Workbook

Sheet Notes
B2: Arrange inputs and outputs more clearly | K2: Microgrid Conversion | R2: Charge Set Point | S2: 100
B3: Include financial model with LCOE and IRR instead of carrying charges | K3: Change Names | R3: Battery | S3: 200
B4: Demonstrate effect of battery life different from solar life | K4: Use Coincident or Non-Coincident Load Shapes
B5: Include on-peak and off-peak energy charges | K5: Get Diesel Costs | R5: Load After Solar | T5: 200 | U5: -200 | V5: -200 | W5: 200 | X5: 120 | Y5: 500 | Z5: 300
K6: Take Out Demand Charges and Rates
R7: Charge Switch | S7: =S2 -> 100 | T7: =T5<=$S$7 -> FALSE | U7: TRUE | V7: TRUE | W7: FALSE | X7: FALSE | Y7: FALSE | Z7: FALSE
R8: Charge Amount | S8: =S3 -> 200 | T8: =($S$7-T5)*T7 -> 0 | U8: 300 | V8: 300 | W8: 0 | X8: 0 | Y8: 0 | Z8: 0
B9: Notes | K9: Do the Charge First
B10: 1. Not true when said that could easily copy codes | K10: Define Charge Hours First | R10: Start of Charge Period | T10: =AND(T7,NOT(S7)) -> FALSE | U10: =AND(U7,NOT(T7)) -> TRUE | V10: FALSE | W10: FALSE | X10: FALSE | Y10: FALSE | Z10: FALSE
B11: 2. Show how counter, index and assumptions work | K11: Put in Off-Peak Only Switch (without solar)
B12: 3. Discuss Solar Shapes and Sources | K12: Put in Charge Set-point | R12: Discharge | T12: =NOT(T7) -> TRUE | U12: FALSE | V12: FALSE | W12: TRUE | X12: TRUE | Y12: TRUE | Z12: TRUE
B13: 4. Graph of Different Days | K13: When Zero, Only Charge Negative Loads | R13: First Charge | T13: =IF(T10,MATCH(TRUE,T12:Y12,0)) -> FALSE | U13: =IF(U10,MATCH(TRUE,OFFSET(U12,0,0,1,12),0)) -> 3 | V13: =IF(V10,MATCH(TRUE,OFFSET(V12,0,0,1,12),0)) -> FALSE | W13: FALSE | X13: FALSE | Y13: FALSE | Z13: FALSE
R15: Charge Balance
B16: 4. Discussion how Carrying Charges Reconcile with Financial Model | R16: Opening Balance | U16: =S19 -> 0 | V16: =U19 -> 210 | W16: 420 | X16: 420 | Y16: 420 | Z16: 420
B17: 4a. See Implicit Assumptions | K17: Off-Peak Hours | R17: Add: Charge | U17: =U8 -> 300 | V17: 300 | W17: 0 | X17: 0 | Y17: 0 | Z17: 0
B18: 5. Discuss Case with Only Solar | K18: Load Less than Average | R18: Less: Loss | S18: 0.3 | U18: =U17*$S$18 -> 90 | V18: 90 | W18: 0 | X18: 0 | Y18: 0 | Z18: 0
B19: 6. Discuss Problem with Different Lives and Residual Value | K19: Load Less than Set Point | R19: Closing Balance | U19: =U16+U17-U18 -> 210 | V19: =V16+V17-V18 -> 420 | W19: 420 | X19: 420 | Y19: 420 | Z19: 420
B20: 7. Issue of Changes in Battery Cost
K21: Always when Negative | R21: Max Balance | U21: =IF(U10,MAX(OFFSET(U16,0,0,1,12))) -> 420 | V21: =IF(V10,MAX(OFFSET(V16,0,0,1,12))) -> FALSE | W21: FALSE | X21: FALSE | Y21: FALSE | Z21: FALSE
B22: 10. How Optimisation of Peak and Off-peak | R22: Load During Discharge | U22: =IF(U10,SUMPRODUCT(OFFSET(U12,0,0,1,12)*OFFSET(U5,0,0,1,12))) -> 1120 | V22: =IF(V10,SUMPRODUCT(OFFSET(V12,0,0,1,12)*OFFSET(V5,0,0,1,12))) -> FALSE | W22: FALSE | X22: FALSE | Y22: FALSE | Z22: FALSE
R23: Percent to Discharge | U23: =IF(U10,U21/U22,T23) -> 0.375 | V23: =IF(V10,V21/V22,U23) -> 0.375 | W23: 0.375 | X23: 0.375 | Y23: 0.375 | Z23: 0.375
K24: Find Max Storage for the Day
R25: Opening Balance | U25: =S29 -> 0 | V25: =U29 -> 210 | W25: 420 | X25: 345 | Y25: 300 | Z25: 112.5
R26: Add: Charge | U26: =U17 -> 300 | V26: =V17 -> 300 | W26: 0 | X26: 0 | Y26: 0 | Z26: 0
K27: Most Difficult | R27: Less: Loss | S27: =S18 -> 0.3 | U27: =U26*$S$27 -> 90 | V27: 90 | W27: 0 | X27: 0 | Y27: 0 | Z27: 0
K28: Find the maximum Storage with Cronology | R28: Less: Discharge | U28: =U23*U12*U5 -> 0 | V28: 0 | W28: 75 | X28: 45 | Y28: 187.5 | Z28: 112.5
R29: Closing Balance | U29: =U25+U26-U27-U28 -> 210 | V29: =V25+V26-V27-V28 -> 420 | W29: 345 | X29: 300 | Y29: 112.5 | Z29: 0
R33: Total to Discharge | T33: 400
R34: Load | V34: 600 | W34: 500 | X34: 550
R35: Total Load | T35: =SUM(V34:X34) -> 1650
R37: Total Load - Discharge | T37: =T35-T33 -> 1250
R38: Target | T38: =T37/3 -> 416.6666667
R40: Target | V40: =$T$38 -> 416.6666667 | W40: =$T$38 -> 416.6666667 | X40: 416.6666667
R41: Discharge | V41: =V34-V40 -> 183.3333333 | W41: =W34-W40 -> 83.33333333 | X41: 133.3333333
R44: Load | V44: 100 | W44: 200 | X44: 300 | Y44: 400 | Z44: 500
R45: Average | S45: =AVERAGE(V44:Z44) -> 300

Sheet Summary of Results
F1: Total | G1: LOCE | I1: Battery | M1: Solar | R1: Rates
C2: Total Cost USD/Year | F2: =SUM(F4:F6) -> 1026019.107 | G2: =resulting_cost/F8*1000 -> 175.8371442 | I2: Capacity (kW) | K2: ='Load and Storage Analysis'!F16 -> 500 | M2: Capacity (kW) | P2: =Assumptions!D95*1000 -> 0 | R2: Demand (kW) | U2: ='Load and Storage Analysis'!F129 -> 1020.464536
I3: Duration (hrs) | K3: ='Load and Storage Analysis'!F17 -> 6 | M3: Capital Cost/kW | P3: ='Technology Cost'!F11 -> 750 | R3: Capacity Charge (USD/kW-mo) | U3: ='Load and Storage Analysis'!F143 -> 9.736602052
C4: Total Cost of Retail Rates | F4: =U15 -> 961309.107 | G4: =F4/(U11+U12) -> 159.0795008 | I4: 1-Cycle kWh | K4: ='Load and Storage Analysis'!F18 -> 3000 | M4: Carrying Charge Rate | P4: =Assumptions!E71 -> 0.06526146837 | R4: On Peak Energy Charge (USD/MWH) | U4: =Assumptions!E67 -> 177.331813
C5: Total Fixed Cost of Solar | F5: =U20 -> 0 | G5: =IFERROR(F5/U18,"") ->  | I5: Loss Percent | K5: ='Load and Storage Analysis'!F19 -> 0.7 | M5: O&M Cost/kW-yr | P5: ='Technology Cost'!F17 -> 6 | R5: Off Peak Energy Charge (USD/MWH) | U5: =Assumptions!E68 -> 78.81413911
C6: Total Fixed Cost of Batteries | F6: =Assumptions!D107 -> 64710 | I6: Capital Cost/kWh | K6: ='Technology Cost'!E39 -> 303 | M6: Total Fixed Cost USD/kW-yr | P6: =P4*P3+P5 -> 54.94610128 | R6: Total Annual Fixed Cost/kW | U6: ='Load and Storage Analysis'!F143*12 -> 116.8392246
I7: Capital Cost/kW | K7: =K6*K3 -> 1818 | M7: Solar Capacity Factor | P7: ='Load and Storage Analysis'!F13 -> FALSE | R7: Total Variable Cost/MWH | U7: =(U14/(U11+U12)) -> 139.3490165
C8: Base Energy (kWh) | F8: =SUM('Load and Storage Analysis'!55:55)*12 -> 5835053.29 | I8: Carrying Charge | K8: =Assumptions!E77 -> 0.06716639358 | M8: Solar Cost USD/MWH | P8: =IFERROR(P6*1000/(8760*P7),FALSE) -> FALSE
C9: Less: Gross Solar (kWh) | F9: =-U18*1000 -> 0 | I9: Carrying Cost/kW-yr | K9: =Assumptions!D106 -> 129.42 | M9: Solar Wasted kWh | P9: =SUM('Load and Storage Analysis'!120:120)*12 -> 0 | S9: Annual Retail Rate Cost
C10: Add: Solar Wasted (kWh) | F10: =P9 -> 0 | S10: Demand - kW | U10: =U2 -> 1020.464536
C11: Net Before Storage | F11: =SUM(F8:F10) -> 5835053.29 | I11: Day of Graph | K11: ='Load and Storage Analysis'!J8 -> 8 | M11: ='Load and Storage Analysis'!$I$9 -> Low Day Base Load Factor | S11: On-Peak Generation (MWH) | U11: ='Load and Storage Analysis'!F123*12/1000 -> 3713.131717
I12: Charge Hr Start | K12: =Assumptions!E37 -> 0 | M12: ='Load and Storage Analysis'!I10 -> Solar Shape 8 | S12: Off-Peak Generation (MWH) | U12: ='Load and Storage Analysis'!F124*12/1000 -> 2329.816003
S13: Fixed Cost - USD | U13: =U10*U6 -> 119230.2851
S14: Variable Cost - USD | U14: =U11*U4+U12*U5 -> 842078.8219
S15: Retail Rate Cost | U15: =U13+U14 -> 961309.107
S17: Annual Solar Cost
S18: Solar Production (MWH) | U18: =P7*P2*8.76 -> 0
S19: Capacity - kW | U19: =P2 -> 0
S20: Fixed Cost - USD | U20: =U19*P6 -> 0
S22: Annual Battery Cost
S23: Capacity - MW | U23: =K2 -> 500
S24: Fixed Cost | U24: =U23*K9 -> 64710
C27: Maximum Charge | F27: ='Load and Storage Analysis'!F24 -> 229.04994
C28: Maximum Discharge | F28: ='Load and Storage Analysis'!F25 -> 192.276929

Sheet Load and Storage Analysis
A1: Timeline | F1: Total Cost | G1: =resulting_cost -> 1026019.107 | H1: =H32 -> 1 | I1: =I32 -> 2 | J1: 3 | K1: 4 | L1: 5 | M1: 6 | N1: 7 | O1: 8 | P1: 9 | Q1: 10 | R1: 11 | S1: 12 | T1: 13 | U1: 14 | V1: 15 | W1: 16 | X1: 17 | Y1: 18 | Z1: 19 | AA1: 20 | AB1: 21 | AC1: 22 | AD1: 23 | AE1: 24 | AF1: 25 | AG1: 26 | AH1: 27 | AI1: 28 | AJ1: 29 | AK1: 30 | AL1: 31 | AM1: 32 | AN1: 33 | AO1: 34 | AP1: 35 | AQ1: 36 | AR1: 37 | AS1: 38 | AT1: 39 | AU1: 40 | AV1: 41 | AW1: 42 | AX1: 43 | AY1: 44 | AZ1: 45 | BA1: 46 | BB1: 47 | BC1: 48 | BD1: 49 | BE1: 50 | BF1: 51 | BG1: 52 | BH1: 53 | BI1: 54 | BJ1: 55 | BK1: 56 | BL1: 57 | BM1: 58 | BN1: 59 | BO1: 60 | BP1: 61 | BQ1: 62 | BR1: 63 | BS1: 64 | BT1: 65 | BU1: =BU32 -> 66 | BV1: 67 | BW1: 68 | BX1: 69 | BY1: 70 | BZ1: 71 | CA1: 72 | CB1: 73 | CC1: 74 | CD1: 75 | CE1: 76 | CF1: 77 | CG1: 78 | CH1: 79 | CI1: 80 | CJ1: 81 | CK1: 82 | CL1: 83 | CM1: 84 | CN1: 85 | CO1: 86 | CP1: 87 | CQ1: 88 | CR1: 89 | CS1: 90 | CT1: 91 | CU1: 92 | CV1: 93 | CW1: 94 | CX1: 95 | CY1: 96 | CZ1: 97 | DA1: 98 | DB1: 99 | DC1: 100 | DD1: 101 | DE1: 102 | DF1: 103 | DG1: 104 | DH1: 105 | DI1: 106 | DJ1: 107 | DK1: 108 | DL1: 109 | DM1: 110 | DN1: 111 | DO1: 112 | DP1: 113 | DQ1: 114 | DR1: 115 | DS1: 116 | DT1: 117 | DU1: 118 | DV1: 119 | DW1: 120 | DX1: 121 | DY1: 122 | DZ1: 123 | EA1: 124 | EB1: 125 | EC1: 126 | ED1: 127 | EE1: 128 | EF1: 129 | EG1: =EG32 -> 130 | EH1: 131 | EI1: 132 | EJ1: 133 | EK1: 134 | EL1: 135 | EM1: 136 | EN1: 137 | EO1: 138 | EP1: 139 | EQ1: 140 | ER1: 141 | ES1: 142 | ET1: 143 | EU1: 144 | EV1: 145 | EW1: 146 | EX1: 147 | EY1: 148 | EZ1: 149 | FA1: 150 | FB1: 151 | FC1: 152 | FD1: 153 | FE1: 154 | FF1: 155 | FG1: 156 | FH1: 157 | FI1: 158 | FJ1: 159 | FK1: 160 | FL1: 161 | FM1: 162 | FN1: 163 | FO1: 164 | FP1: 165 | FQ1: 166 | FR1: 167 | FS1: 168 | FT1: 169 | FU1: 170 | FV1: 171 | FW1: 172 | FX1: 173 | FY1: 174 | FZ1: 175 | GA1: 176 | GB1: 177 | GC1: 178 | GD1: 179 | GE1: 180 | GF1: 181 | GG1: 182 | GH1: 183 | GI1: 184 | GJ1: 185 | GK1: 186 | GL1: 187 | GM1: 188 | GN1: 189 | GO1: 190 | GP1: 191 | GQ1: 192 | GR1: 193 | GS1: =GS32 -> 194 | GT1: 195 | GU1: 196 | GV1: 197 | GW1: 198 | GX1: 199 | GY1: 200 | GZ1: 201 | HA1: 202 | HB1: 203 | HC1: 204 | HD1: 205 | HE1: 206 | HF1: 207 | HG1: 208 | HH1: 209 | HI1: 210 | HJ1: 211 | HK1: 212 | HL1: 213 | HM1: 214 | HN1: 215 | HO1: 216 | HP1: 217 | HQ1: 218 | HR1: 219 | HS1: 220 | HT1: 221 | HU1: 222 | HV1: 223 | HW1: 224 | HX1: 225 | HY1: 226 | HZ1: 227 | IA1: 228 | IB1: 229 | IC1: 230 | ID1: 231 | IE1: 232 | IF1: 233 | IG1: 234 | IH1: 235 | II1: 236 | IJ1: 237 | IK1: 238 | IL1: 239 | IM1: 240 | IN1: 241 | IO1: 242 | IP1: 243 | IQ1: 244 | IR1: 245 | IS1: 246 | IT1: 247 | IU1: 248 | IV1: 249 | IW1: 250 | IX1: 251 | IY1: 252 | IZ1: 253 | JA1: 254 | JB1: 255 | JC1: 256 | JD1: 257 | JE1: =JE32 -> 258 | JF1: 259 | JG1: 260 | JH1: 261 | JI1: 262 | JJ1: 263 | JK1: 264 | JL1: 265 | JM1: 266 | JN1: 267 | JO1: 268 | JP1: 269 | JQ1: 270 | JR1: 271 | JS1: 272 | JT1: 273 | JU1: 274 | JV1: 275 | JW1: 276 | JX1: 277 | JY1: 278 | JZ1: 279 | KA1: 280 | KB1: 281 | KC1: 282 | KD1: 283 | KE1: 284 | KF1: 285 | KG1: 286 | KH1: 287 | KI1: 288 | KJ1: 289 | KK1: 290 | KL1: 291 | KM1: 292 | KN1: 293 | KO1: 294 | KP1: 295 | KQ1: 296 | KR1: 297 | KS1: 298 | KT1: 299 | KU1: 300 | KV1: 301 | KW1: 302 | KX1: 303 | KY1: 304 | KZ1: 305 | LA1: 306 | LB1: 307 | LC1: 308 | LD1: 309 | LE1: 310 | LF1: 311 | LG1: 312 | LH1: 313 | LI1: 314 | LJ1: 315 | LK1: 316 | LL1: 317 | LM1: 318 | LN1: 319 | LO1: 320 | LP1: 321 | LQ1: =LQ32 -> 322 | LR1: 323 | LS1: 324 | LT1: 325 | LU1: 326 | LV1: 327 | LW1: 328 | LX1: 329 | LY1: 330 | LZ1: 331 | MA1: 332 | MB1: 333 | MC1: 334 | MD1: 335 | ME1: 336 | MF1: 337 | MG1: 338 | MH1: 339 | MI1: 340 | MJ1: 341 | MK1: 342 | ML1: 343 | MM1: 344 | MN1: 345 | MO1: 346 | MP1: 347 | MQ1: 348 | MR1: 349 | MS1: 350 | MT1: 351 | MU1: 352 | MV1: 353 | MW1: 354 | MX1: 355 | MY1: 356 | MZ1: 357 | NA1: 358 | NB1: 359 | NC1: 360 | ND1: 361 | NE1: 362 | NF1: 363 | NG1: 364 | NH1: 365 | NI1: 366 | NJ1: 367 | NK1: 368 | NL1: 369 | NM1: 370 | NN1: 371 | NO1: 372 | NP1: 373 | NQ1: 374 | NR1: 375 | NS1: 376 | NT1: 377 | NU1: 378 | NV1: 379 | NW1: 380 | NX1: 381 | NY1: 382 | NZ1: 383 | OA1: 384 | OB1: 385 | OC1: =OC32 -> 386 | OD1: 387 | OE1: 388 | OF1: 389 | OG1: 390 | OH1: 391 | OI1: 392 | OJ1: 393 | OK1: 394 | OL1: 395 | OM1: 396 | ON1: 397 | OO1: 398 | OP1: 399 | OQ1: 400 | OR1: 401 | OS1: 402 | OT1: 403 | OU1: 404 | OV1: 405 | OW1: 406 | OX1: 407 | OY1: 408 | OZ1: 409 | PA1: 410 | PB1: 411 | PC1: 412 | PD1: 413 | PE1: 414 | PF1: 415 | PG1: 416 | PH1: 417 | PI1: 418 | PJ1: 419 | PK1: 420 | PL1: 421 | PM1: 422 | PN1: 423 | PO1: 424 | PP1: 425 | PQ1: 426 | PR1: 427 | PS1: 428 | PT1: 429 | PU1: 430 | PV1: 431 | PW1: 432 | PX1: 433 | PY1: 434 | PZ1: 435 | QA1: 436 | QB1: 437 | QC1: 438 | QD1: 439 | QE1: 440 | QF1: 441 | QG1: 442 | QH1: 443 | QI1: 444 | QJ1: 445 | QK1: 446 | QL1: 447 | QM1: 448 | QN1: 449 | QO1: =QO32 -> 450 | QP1: 451 | QQ1: 452 | QR1: 453 | QS1: 454 | QT1: 455 | QU1: 456 | QV1: 457 | QW1: 458 | QX1: 459 | QY1: 460 | QZ1: 461 | RA1: 462 | RB1: 463 | RC1: 464 | RD1: 465 | RE1: 466 | RF1: 467 | RG1: 468 | RH1: 469 | RI1: 470 | RJ1: 471 | RK1: 472 | RL1: 473 | RM1: 474 | RN1: 475 | RO1: 476 | RP1: 477 | RQ1: 478 | RR1: 479 | RS1: 480 | RT1: 481 | RU1: 482 | RV1: 483 | RW1: 484 | RX1: 485 | RY1: 486 | RZ1: 487 | SA1: 488 | SB1: 489 | SC1: 490 | SD1: 491 | SE1: 492 | SF1: 493 | SG1: 494 | SH1: 495 | SI1: 496 | SJ1: 497 | SK1: 498 | SL1: 499 | SM1: 500 | SN1: 501 | SO1: 502 | SP1: 503 | SQ1: 504 | SR1: 505 | SS1: 506 | ST1: 507 | SU1: 508 | SV1: 509 | SW1: 510 | SX1: 511 | SY1: 512 | SZ1: 513 | TA1: =TA32 -> 514 | TB1: 515 | TC1: 516 | TD1: 517 | TE1: 518 | TF1: 519 | TG1: 520 | TH1: 521 | TI1: 522 | TJ1: 523 | TK1: 524 | TL1: 525 | TM1: 526 | TN1: 527 | TO1: 528 | TP1: 529 | TQ1: 530 | TR1: 531 | TS1: 532 | TT1: 533 | TU1: 534 | TV1: 535 | TW1: 536 | TX1: 537 | TY1: 538 | TZ1: 539 | UA1: 540 | UB1: 541 | UC1: 542 | UD1: 543 | UE1: 544 | UF1: 545 | UG1: 546 | UH1: 547 | UI1: 548 | UJ1: 549 | UK1: 550 | UL1: 551 | UM1: 552 | UN1: 553 | UO1: 554 | UP1: 555 | UQ1: 556 | UR1: 557 | US1: 558 | UT1: 559 | UU1: 560 | UV1: 561 | UW1: 562 | UX1: 563 | UY1: 564 | UZ1: 565 | VA1: 566 | VB1: 567 | VC1: 568 | VD1: 569 | VE1: 570 | VF1: 571 | VG1: 572 | VH1: 573 | VI1: 574 | VJ1: 575 | VK1: 576 | VL1: 577 | VM1: =VM32 -> 578 | VN1: 579 | VO1: 580 | VP1: 581 | VQ1: 582 | VR1: 583 | VS1: 584 | VT1: 585 | VU1: 586 | VV1: 587 | VW1: 588 | VX1: 589 | VY1: 590 | VZ1: 591 | WA1: 592 | WB1: 593 | WC1: 594 | WD1: 595 | WE1: 596 | WF1: 597 | WG1: 598 | WH1: 599 | WI1: 600 | WJ1: 601 | WK1: 602 | WL1: 603 | WM1: 604 | WN1: 605 | WO1: 606 | WP1: 607 | WQ1: 608 | WR1: 609 | WS1: 610 | WT1: 611 | WU1: 612 | WV1: 613 | WW1: 614 | WX1: 615 | WY1: 616 | WZ1: 617 | XA1: 618 | XB1: 619 | XC1: 620 | XD1: 621 | XE1: 622 | XF1: 623 | XG1: 624 | XH1: 625 | XI1: 626 | XJ1: 627 | XK1: 628 | XL1: 629 | XM1: 630 | XN1: 631 | XO1: 632 | XP1: 633 | XQ1: 634 | XR1: 635 | XS1: 636 | XT1: 637 | XU1: 638 | XV1: 639 | XW1: 640 | XX1: 641 | XY1: =XY32 -> 642 | XZ1: 643 | YA1: 644 | YB1: 645 | YC1: 646 | YD1: 647 | YE1: 648 | YF1: 649 | YG1: 650 | YH1: 651 | YI1: 652 | YJ1: 653 | YK1: 654 | YL1: 655 | YM1: 656 | YN1: 657 | YO1: 658 | YP1: 659 | YQ1: 660 | YR1: 661 | YS1: 662 | YT1: 663 | YU1: 664 | YV1: 665 | YW1: 666 | YX1: 667 | YY1: 668 | YZ1: 669 | ZA1: 670 | ZB1: 671 | ZC1: 672 | ZD1: 673 | ZE1: 674 | ZF1: 675 | ZG1: 676 | ZH1: 677 | ZI1: 678 | ZJ1: 679 | ZK1: 680 | ZL1: 681 | ZM1: 682 | ZN1: 683 | ZO1: 684 | ZP1: 685 | ZQ1: 686 | ZR1: 687 | ZS1: 688 | ZT1: 689 | ZU1: 690 | ZV1: 691 | ZW1: 692 | ZX1: 693 | ZY1: 694 | ZZ1: 695 | AAA1: 696 | AAB1: 697 | AAC1: 698 | AAD1: 699 | AAE1: 700 | AAF1: 701 | AAG1: 702 | AAH1: 703 | AAI1: 704 | AAJ1: 705 | AAK1: =AAK32 -> 706 | AAL1: 707 | AAM1: 708 | AAN1: 709 | AAO1: 710 | AAP1: 711 | AAQ1: 712 | AAR1: 713 | AAS1: 714 | AAT1: 715 | AAU1: 716 | AAV1: 717 | AAW1: 718 | AAX1: 719 | AAY1: 720
F2: Battery | H2: =F16 -> 500 | I2: Solar | J2: =Assumptions!D95*1000 -> 0 | L2: Total Retail Energy | M2: =F116*12/1000 -> 6042.94772 | N2: Solar Wasted | P2: =F120 -> 0 | Q2: Duration | R2: =Assumptions!$D$103 -> 6
A5: Summary
B6: Loads
C7: Peak Load for Month | E7: kW | F7: =MAX(H55:AAY55) -> 1200
C8: Energy of Month | E8: kWh | F8: =SUM(55:55) -> 486254.4408 | I8: Day Graph | J8: 8
C9: Load Factor for Month | E9: % | F9: =F8/730/F7 -> 0.5550849781 | I9: =H177 -> Low Day Base Load Factor
I10: =H178 -> Solar Shape 8
B11: Solar power
C12: Solar Capacity | E12: kW | F12: =Assumptions!D95*1000 -> 0 | I12: Start Hour | J12: =Assumptions!E37 -> 0
C13: Solar Capacity Factor | F13: =IFERROR(SUM(H57:AAY57)/730/F12,FALSE) -> FALSE
B15: Battery
C16: Capacity | E16: kW | F16: =Assumptions!D102*1000 -> 500
C17: Duration | E17: Hour | F17: =Assumptions!D103 -> 6
C18: 1-cycle energy | E18: kWh | F18: =F16*F17 -> 3000
C19: Loss Percent | E19: % | F19: =Assumptions!D104 -> 0.7
B21: Only Charge Off-Peak | E21: Switch | F21: FALSE
B22: Peak Load | E22: kW | F22: =F130 -> 1022.45412
B24: Maximum Charge | E24: kW | F24: =MAX(H115:AE115) -> 229.04994
B25: Maximum Discharge | E25: kW | F25: =MAX(H114:AE114) -> 192.276929 | AA25: On-Peak Load | AD25: =F123 -> 309427.6431
AA26: Off-Peak Load | AD26: =F124 -> 194151.3336
B27: Total retail | F27: =SUM(H116:AE116) -> 23276.05279 | AA27: Total | AD27: =SUM(AD25:AD26) -> 503578.9767
B28: Peak Load | F28: =MAX(55:55)/1000 -> 1.2
A30: Operations
B31: Timing Parameters
C32: Hour Counter | H32: 1 | I32: 2 | J32: 3 | K32: 4 | L32: 5 | M32: 6 | N32: 7 | O32: 8 | P32: 9 | Q32: 10 | R32: 11 | S32: 12 | T32: 13 | U32: 14 | V32: 15 | W32: 16 | X32: 17 | Y32: 18 | Z32: 19 | AA32: 20 | AB32: 21 | AC32: 22 | AD32: 23 | AE32: 24 | AF32: 25 | AG32: 26 | AH32: 27 | AI32: 28 | AJ32: 29 | AK32: 30 | AL32: 31 | AM32: 32 | AN32: 33 | AO32: 34 | AP32: 35 | AQ32: 36 | AR32: 37 | AS32: 38 | AT32: 39 | AU32: 40 | AV32: 41 | AW32: 42 | AX32: 43 | AY32: 44 | AZ32: 45 | BA32: 46 | BB32: 47 | BC32: 48 | BD32: 49 | BE32: 50 | BF32: 51 | BG32: 52 | BH32: 53 | BI32: 54 | BJ32: 55 | BK32: 56 | BL32: 57 | BM32: 58 | BN32: 59 | BO32: 60 | BP32: 61 | BQ32: 62 | BR32: 63 | BS32: 64 | BT32: 65 | BU32: 66 | BV32: 67 | BW32: 68 | BX32: 69 | BY32: 70 | BZ32: 71 | CA32: 72 | CB32: 73 | CC32: 74 | CD32: 75 | CE32: 76 | CF32: 77 | CG32: 78 | CH32: 79 | CI32: 80 | CJ32: 81 | CK32: 82 | CL32: 83 | CM32: 84 | CN32: 85 | CO32: 86 | CP32: 87 | CQ32: 88 | CR32: 89 | CS32: 90 | CT32: 91 | CU32: 92 | CV32: 93 | CW32: 94 | CX32: 95 | CY32: 96 | CZ32: 97 | DA32: 98 | DB32: 99 | DC32: 100 | DD32: 101 | DE32: 102 | DF32: 103 | DG32: 104 | DH32: 105 | DI32: 106 | DJ32: 107 | DK32: 108 | DL32: 109 | DM32: 110 | DN32: 111 | DO32: 112 | DP32: 113 | DQ32: 114 | DR32: 115 | DS32: 116 | DT32: 117 | DU32: 118 | DV32: 119 | DW32: 120 | DX32: 121 | DY32: 122 | DZ32: 123 | EA32: 124 | EB32: 125 | EC32: 126 | ED32: 127 | EE32: 128 | EF32: 129 | EG32: 130 | EH32: 131 | EI32: 132 | EJ32: 133 | EK32: 134 | EL32: 135 | EM32: 136 | EN32: 137 | EO32: 138 | EP32: 139 | EQ32: 140 | ER32: 141 | ES32: 142 | ET32: 143 | EU32: 144 | EV32: 145 | EW32: 146 | EX32: 147 | EY32: 148 | EZ32: 149 | FA32: 150 | FB32: 151 | FC32: 152 | FD32: 153 | FE32: 154 | FF32: 155 | FG32: 156 | FH32: 157 | FI32: 158 | FJ32: 159 | FK32: 160 | FL32: 161 | FM32: 162 | FN32: 163 | FO32: 164 | FP32: 165 | FQ32: 166 | FR32: 167 | FS32: 168 | FT32: 169 | FU32: 170 | FV32: 171 | FW32: 172 | FX32: 173 | FY32: 174 | FZ32: 175 | GA32: 176 | GB32: 177 | GC32: 178 | GD32: 179 | GE32: 180 | GF32: 181 | GG32: 182 | GH32: 183 | GI32: 184 | GJ32: 185 | GK32: 186 | GL32: 187 | GM32: 188 | GN32: 189 | GO32: 190 | GP32: 191 | GQ32: 192 | GR32: 193 | GS32: 194 | GT32: 195 | GU32: 196 | GV32: 197 | GW32: 198 | GX32: 199 | GY32: 200 | GZ32: 201 | HA32: 202 | HB32: 203 | HC32: 204 | HD32: 205 | HE32: 206 | HF32: 207 | HG32: 208 | HH32: 209 | HI32: 210 | HJ32: 211 | HK32: 212 | HL32: 213 | HM32: 214 | HN32: 215 | HO32: 216 | HP32: 217 | HQ32: 218 | HR32: 219 | HS32: 220 | HT32: 221 | HU32: 222 | HV32: 223 | HW32: 224 | HX32: 225 | HY32: 226 | HZ32: 227 | IA32: 228 | IB32: 229 | IC32: 230 | ID32: 231 | IE32: 232 | IF32: 233 | IG32: 234 | IH32: 235 | II32: 236 | IJ32: 237 | IK32: 238 | IL32: 239 | IM32: 240 | IN32: 241 | IO32: 242 | IP32: 243 | IQ32: 244 | IR32: 245 | IS32: 246 | IT32: 247 | IU32: 248 | IV32: 249 | IW32: 250 | IX32: 251 | IY32: 252 | IZ32: 253 | JA32: 254 | JB32: 255 | JC32: 256 | JD32: 257 | JE32: 258 | JF32: 259 | JG32: 260 | JH32: 261 | JI32: 262 | JJ32: 263 | JK32: 264 | JL32: 265 | JM32: 266 | JN32: 267 | JO32: 268 | JP32: 269 | JQ32: 270 | JR32: 271 | JS32: 272 | JT32: 273 | JU32: 274 | JV32: 275 | JW32: 276 | JX32: 277 | JY32: 278 | JZ32: 279 | KA32: 280 | KB32: 281 | KC32: 282 | KD32: 283 | KE32: 284 | KF32: 285 | KG32: 286 | KH32: 287 | KI32: 288 | KJ32: 289 | KK32: 290 | KL32: 291 | KM32: 292 | KN32: 293 | KO32: 294 | KP32: 295 | KQ32: 296 | KR32: 297 | KS32: 298 | KT32: 299 | KU32: 300 | KV32: 301 | KW32: 302 | KX32: 303 | KY32: 304 | KZ32: 305 | LA32: 306 | LB32: 307 | LC32: 308 | LD32: 309 | LE32: 310 | LF32: 311 | LG32: 312 | LH32: 313 | LI32: 314 | LJ32: 315 | LK32: 316 | LL32: 317 | LM32: 318 | LN32: 319 | LO32: 320 | LP32: 321 | LQ32: 322 | LR32: 323 | LS32: 324 | LT32: 325 | LU32: 326 | LV32: 327 | LW32: 328 | LX32: 329 | LY32: 330 | LZ32: 331 | MA32: 332 | MB32: 333 | MC32: 334 | MD32: 335 | ME32: 336 | MF32: 337 | MG32: 338 | MH32: 339 | MI32: 340 | MJ32: 341 | MK32: 342 | ML32: 343 | MM32: 344 | MN32: 345 | MO32: 346 | MP32: 347 | MQ32: 348 | MR32: 349 | MS32: 350 | MT32: 351 | MU32: 352 | MV32: 353 | MW32: 354 | MX32: 355 | MY32: 356 | MZ32: 357 | NA32: 358 | NB32: 359 | NC32: 360 | ND32: 361 | NE32: 362 | NF32: 363 | NG32: 364 | NH32: 365 | NI32: 366 | NJ32: 367 | NK32: 368 | NL32: 369 | NM32: 370 | NN32: 371 | NO32: 372 | NP32: 373 | NQ32: 374 | NR32: 375 | NS32: 376 | NT32: 377 | NU32: 378 | NV32: 379 | NW32: 380 | NX32: 381 | NY32: 382 | NZ32: 383 | OA32: 384 | OB32: 385 | OC32: 386 | OD32: 387 | OE32: 388 | OF32: 389 | OG32: 390 | OH32: 391 | OI32: 392 | OJ32: 393 | OK32: 394 | OL32: 395 | OM32: 396 | ON32: 397 | OO32: 398 | OP32: 399 | OQ32: 400 | OR32: 401 | OS32: 402 | OT32: 403 | OU32: 404 | OV32: 405 | OW32: 406 | OX32: 407 | OY32: 408 | OZ32: 409 | PA32: 410 | PB32: 411 | PC32: 412 | PD32: 413 | PE32: 414 | PF32: 415 | PG32: 416 | PH32: 417 | PI32: 418 | PJ32: 419 | PK32: 420 | PL32: 421 | PM32: 422 | PN32: 423 | PO32: 424 | PP32: 425 | PQ32: 426 | PR32: 427 | PS32: 428 | PT32: 429 | PU32: 430 | PV32: 431 | PW32: 432 | PX32: 433 | PY32: 434 | PZ32: 435 | QA32: 436 | QB32: 437 | QC32: 438 | QD32: 439 | QE32: 440 | QF32: 441 | QG32: 442 | QH32: 443 | QI32: 444 | QJ32: 445 | QK32: 446 | QL32: 447 | QM32: 448 | QN32: 449 | QO32: 450 | QP32: 451 | QQ32: 452 | QR32: 453 | QS32: 454 | QT32: 455 | QU32: 456 | QV32: 457 | QW32: 458 | QX32: 459 | QY32: 460 | QZ32: 461 | RA32: 462 | RB32: 463 | RC32: 464 | RD32: 465 | RE32: 466 | RF32: 467 | RG32: 468 | RH32: 469 | RI32: 470 | RJ32: 471 | RK32: 472 | RL32: 473 | RM32: 474 | RN32: 475 | RO32: 476 | RP32: 477 | RQ32: 478 | RR32: 479 | RS32: 480 | RT32: 481 | RU32: 482 | RV32: 483 | RW32: 484 | RX32: 485 | RY32: 486 | RZ32: 487 | SA32: 488 | SB32: 489 | SC32: 490 | SD32: 491 | SE32: 492 | SF32: 493 | SG32: 494 | SH32: 495 | SI32: 496 | SJ32: 497 | SK32: 498 | SL32: 499 | SM32: 500 | SN32: 501 | SO32: 502 | SP32: 503 | SQ32: 504 | SR32: 505 | SS32: 506 | ST32: 507 | SU32: 508 | SV32: 509 | SW32: 510 | SX32: 511 | SY32: 512 | SZ32: 513 | TA32: 514 | TB32: 515 | TC32: 516 | TD32: 517 | TE32: 518 | TF32: 519 | TG32: 520 | TH32: 521 | TI32: 522 | TJ32: 523 | TK32: 524 | TL32: 525 | TM32: 526 | TN32: 527 | TO32: 528 | TP32: 529 | TQ32: 530 | TR32: 531 | TS32: 532 | TT32: 533 | TU32: 534 | TV32: 535 | TW32: 536 | TX32: 537 | TY32: 538 | TZ32: 539 | UA32: 540 | UB32: 541 | UC32: 542 | UD32: 543 | UE32: 544 | UF32: 545 | UG32: 546 | UH32: 547 | UI32: 548 | UJ32: 549 | UK32: 550 | UL32: 551 | UM32: 552 | UN32: 553 | UO32: 554 | UP32: 555 | UQ32: 556 | UR32: 557 | US32: 558 | UT32: 559 | UU32: 560 | UV32: 561 | UW32: 562 | UX32: 563 | UY32: 564 | UZ32: 565 | VA32: 566 | VB32: 567 | VC32: 568 | VD32: 569 | VE32: 570 | VF32: 571 | VG32: 572 | VH32: 573 | VI32: 574 | VJ32: 575 | VK32: 576 | VL32: 577 | VM32: 578 | VN32: 579 | VO32: 580 | VP32: 581 | VQ32: 582 | VR32: 583 | VS32: 584 | VT32: 585 | VU32: 586 | VV32: 587 | VW32: 588 | VX32: 589 | VY32: 590 | VZ32: 591 | WA32: 592 | WB32: 593 | WC32: 594 | WD32: 595 | WE32: 596 | WF32: 597 | WG32: 598 | WH32: 599 | WI32: 600 | WJ32: 601 | WK32: 602 | WL32: 603 | WM32: 604 | WN32: 605 | WO32: 606 | WP32: 607 | WQ32: 608 | WR32: 609 | WS32: 610 | WT32: 611 | WU32: 612 | WV32: 613 | WW32: 614 | WX32: 615 | WY32: 616 | WZ32: 617 | XA32: 618 | XB32: 619 | XC32: 620 | XD32: 621 | XE32: 622 | XF32: 623 | XG32: 624 | XH32: 625 | XI32: 626 | XJ32: 627 | XK32: 628 | XL32: 629 | XM32: 630 | XN32: 631 | XO32: 632 | XP32: 633 | XQ32: 634 | XR32: 635 | XS32: 636 | XT32: 637 | XU32: 638 | XV32: 639 | XW32: 640 | XX32: 641 | XY32: 642 | XZ32: 643 | YA32: 644 | YB32: 645 | YC32: 646 | YD32: 647 | YE32: 648 | YF32: 649 | YG32: 650 | YH32: 651 | YI32: 652 | YJ32: 653 | YK32: 654 | YL32: 655 | YM32: 656 | YN32: 657 | YO32: 658 | YP32: 659 | YQ32: 660 | YR32: 661 | YS32: 662 | YT32: 663 | YU32: 664 | YV32: 665 | YW32: 666 | YX32: 667 | YY32: 668 | YZ32: 669 | ZA32: 670 | ZB32: 671 | ZC32: 672 | ZD32: 673 | ZE32: 674 | ZF32: 675 | ZG32: 676 | ZH32: 677 | ZI32: 678 | ZJ32: 679 | ZK32: 680 | ZL32: 681 | ZM32: 682 | ZN32: 683 | ZO32: 684 | ZP32: 685 | ZQ32: 686 | ZR32: 687 | ZS32: 688 | ZT32: 689 | ZU32: 690 | ZV32: 691 | ZW32: 692 | ZX32: 693 | ZY32: 694 | ZZ32: 695 | AAA32: 696 | AAB32: 697 | AAC32: 698 | AAD32: 699 | AAE32: 700 | AAF32: 701 | AAG32: 702 | AAH32: 703 | AAI32: 704 | AAJ32: 705 | AAK32: 706 | AAL32: 707 | AAM32: 708 | AAN32: 709 | AAO32: 710 | AAP32: 711 | AAQ32: 712 | AAR32: 713 | AAS32: 714 | AAT32: 715 | AAU32: 716 | AAV32: 717 | AAW32: 718 | AAX32: 719 | AAY32: 720
C33: Day of Month | H33: 1 | I33: =IF(I34=1,H33+1,H33) -> 1 | J33: =IF(J34=1,I33+1,I33) -> 1 | K33: 1 | L33: 1 | M33: 1 | N33: 1 | O33: 1 | P33: 1 | Q33: 1 | R33: 1 | S33: 1 | T33: 1 | U33: 1 | V33: 1 | W33: 1 | X33: 1 | Y33: 1 | Z33: 1 | AA33: 1 | AB33: 1 | AC33: 1 | AD33: 1 | AE33: 1 | AF33: 2 | AG33: 2 | AH33: 2 | AI33: 2 | AJ33: 2 | AK33: 2 | AL33: 2 | AM33: 2 | AN33: 2 | AO33: 2 | AP33: 2 | AQ33: 2 | AR33: 2 | AS33: 2 | AT33: 2 | AU33: 2 | AV33: 2 | AW33: 2 | AX33: 2 | AY33: 2 | AZ33: 2 | BA33: 2 | BB33: 2 | BC33: 2 | BD33: 3 | BE33: 3 | BF33: 3 | BG33: 3 | BH33: 3 | BI33: 3 | BJ33: 3 | BK33: 3 | BL33: 3 | BM33: 3 | BN33: 3 | BO33: 3 | BP33: 3 | BQ33: 3 | BR33: 3 | BS33: 3 | BT33: 3 | BU33: 3 | BV33: =IF(BV34=1,BU33+1,BU33) -> 3 | BW33: 3 | BX33: 3 | BY33: 3 | BZ33: 3 | CA33: 3 | CB33: 4 | CC33: 4 | CD33: 4 | CE33: 4 | CF33: 4 | CG33: 4 | CH33: 4 | CI33: 4 | CJ33: 4 | CK33: 4 | CL33: 4 | CM33: 4 | CN33: 4 | CO33: 4 | CP33: 4 | CQ33: 4 | CR33: 4 | CS33: 4 | CT33: 4 | CU33: 4 | CV33: 4 | CW33: 4 | CX33: 4 | CY33: 4 | CZ33: 5 | DA33: 5 | DB33: 5 | DC33: 5 | DD33: 5 | DE33: 5 | DF33: 5 | DG33: 5 | DH33: 5 | DI33: 5 | DJ33: 5 | DK33: 5 | DL33: 5 | DM33: 5 | DN33: 5 | DO33: 5 | DP33: 5 | DQ33: 5 | DR33: 5 | DS33: 5 | DT33: 5 | DU33: 5 | DV33: 5 | DW33: 5 | DX33: 6 | DY33: 6 | DZ33: 6 | EA33: 6 | EB33: 6 | EC33: 6 | ED33: 6 | EE33: 6 | EF33: 6 | EG33: 6 | EH33: =IF(EH34=1,EG33+1,EG33) -> 6 | EI33: 6 | EJ33: 6 | EK33: 6 | EL33: 6 | EM33: 6 | EN33: 6 | EO33: 6 | EP33: 6 | EQ33: 6 | ER33: 6 | ES33: 6 | ET33: 6 | EU33: 6 | EV33: 7 | EW33: 7 | EX33: 7 | EY33: 7 | EZ33: 7 | FA33: 7 | FB33: 7 | FC33: 7 | FD33: 7 | FE33: 7 | FF33: 7 | FG33: 7 | FH33: 7 | FI33: 7 | FJ33: 7 | FK33: 7 | FL33: 7 | FM33: 7 | FN33: 7 | FO33: 7 | FP33: 7 | FQ33: 7 | FR33: 7 | FS33: 7 | FT33: 8 | FU33: 8 | FV33: 8 | FW33: 8 | FX33: 8 | FY33: 8 | FZ33: 8 | GA33: 8 | GB33: 8 | GC33: 8 | GD33: 8 | GE33: 8 | GF33: 8 | GG33: 8 | GH33: 8 | GI33: 8 | GJ33: 8 | GK33: 8 | GL33: 8 | GM33: 8 | GN33: 8 | GO33: 8 | GP33: 8 | GQ33: 8 | GR33: 9 | GS33: 9 | GT33: =IF(GT34=1,GS33+1,GS33) -> 9 | GU33: 9 | GV33: 9 | GW33: 9 | GX33: 9 | GY33: 9 | GZ33: 9 | HA33: 9 | HB33: 9 | HC33: 9 | HD33: 9 | HE33: 9 | HF33: 9 | HG33: 9 | HH33: 9 | HI33: 9 | HJ33: 9 | HK33: 9 | HL33: 9 | HM33: 9 | HN33: 9 | HO33: 9 | HP33: 10 | HQ33: 10 | HR33: 10 | HS33: 10 | HT33: 10 | HU33: 10 | HV33: 10 | HW33: 10 | HX33: 10 | HY33: 10 | HZ33: 10 | IA33: 10 | IB33: 10 | IC33: 10 | ID33: 10 | IE33: 10 | IF33: 10 | IG33: 10 | IH33: 10 | II33: 10 | IJ33: 10 | IK33: 10 | IL33: 10 | IM33: =IF(IM34=1,IL33+1,IL33) -> 10 | IN33: =IF(IN34=1,IM33+1,IM33) -> 11 | IO33: =IF(IO34=1,IN33+1,IN33) -> 11 | IP33: =IF(IP34=1,IO33+1,IO33) -> 11 | IQ33: =IF(IQ34=1,IP33+1,IP33) -> 11 | IR33: =IF(IR34=1,IQ33+1,IQ33) -> 11 | IS33: =IF(IS34=1,IR33+1,IR33) -> 11 | IT33: =IF(IT34=1,IS33+1,IS33) -> 11 | IU33: =IF(IU34=1,IT33+1,IT33) -> 11 | IV33: =IF(IV34=1,IU33+1,IU33) -> 11 | IW33: =IF(IW34=1,IV33+1,IV33) -> 11 | IX33: =IF(IX34=1,IW33+1,IW33) -> 11 | IY33: =IF(IY34=1,IX33+1,IX33) -> 11 | IZ33: =IF(IZ34=1,IY33+1,IY33) -> 11 | JA33: =IF(JA34=1,IZ33+1,IZ33) -> 11 | JB33: =IF(JB34=1,JA33+1,JA33) -> 11 | JC33: =IF(JC34=1,JB33+1,JB33) -> 11 | JD33: =IF(JD34=1,JC33+1,JC33) -> 11 | JE33: =IF(JE34=1,JD33+1,JD33) -> 11 | JF33: =IF(JF34=1,JE33+1,JE33) -> 11 | JG33: =IF(JG34=1,JF33+1,JF33) -> 11 | JH33: =IF(JH34=1,JG33+1,JG33) -> 11 | JI33: =IF(JI34=1,JH33+1,JH33) -> 11 | JJ33: =IF(JJ34=1,JI33+1,JI33) -> 11 | JK33: =IF(JK34=1,JJ33+1,JJ33) -> 11 | JL33: =IF(JL34=1,JK33+1,JK33) -> 12 | JM33: =IF(JM34=1,JL33+1,JL33) -> 12 | JN33: =IF(JN34=1,JM33+1,JM33) -> 12 | JO33: =IF(JO34=1,JN33+1,JN33) -> 12 | JP33: =IF(JP34=1,JO33+1,JO33) -> 12 | JQ33: =IF(JQ34=1,JP33+1,JP33) -> 12 | JR33: =IF(JR34=1,JQ33+1,JQ33) -> 12 | JS33: =IF(JS34=1,JR33+1,JR33) -> 12 | JT33: =IF(JT34=1,JS33+1,JS33) -> 12 | JU33: =IF(JU34=1,JT33+1,JT33) -> 12 | JV33: =IF(JV34=1,JU33+1,JU33) -> 12 | JW33: =IF(JW34=1,JV33+1,JV33) -> 12 | JX33: =IF(JX34=1,JW33+1,JW33) -> 12 | JY33: =IF(JY34=1,JX33+1,JX33) -> 12 | JZ33: =IF(JZ34=1,JY33+1,JY33) -> 12 | KA33: =IF(KA34=1,JZ33+1,JZ33) -> 12 | KB33: =IF(KB34=1,KA33+1,KA33) -> 12 | KC33: =IF(KC34=1,KB33+1,KB33) -> 12 | KD33: =IF(KD34=1,KC33+1,KC33) -> 12 | KE33: =IF(KE34=1,KD33+1,KD33) -> 12 | KF33: =IF(KF34=1,KE33+1,KE33) -> 12 | KG33: =IF(KG34=1,KF33+1,KF33) -> 12 | KH33: =IF(KH34=1,KG33+1,KG33) -> 12 | KI33: =IF(KI34=1,KH33+1,KH33) -> 12 | KJ33: =IF(KJ34=1,KI33+1,KI33) -> 13 | KK33: =IF(KK34=1,KJ33+1,KJ33) -> 13 | KL33: =IF(KL34=1,KK33+1,KK33) -> 13 | KM33: =IF(KM34=1,KL33+1,KL33) -> 13 | KN33: =IF(KN34=1,KM33+1,KM33) -> 13 | KO33: =IF(KO34=1,KN33+1,KN33) -> 13 | KP33: =IF(KP34=1,KO33+1,KO33) -> 13 | KQ33: =IF(KQ34=1,KP33+1,KP33) -> 13 | KR33: =IF(KR34=1,KQ33+1,KQ33) -> 13 | KS33: =IF(KS34=1,KR33+1,KR33) -> 13 | KT33: =IF(KT34=1,KS33+1,KS33) -> 13 | KU33: =IF(KU34=1,KT33+1,KT33) -> 13 | KV33: =IF(KV34=1,KU33+1,KU33) -> 13 | KW33: =IF(KW34=1,KV33+1,KV33) -> 13 | KX33: =IF(KX34=1,KW33+1,KW33) -> 13 | KY33: =IF(KY34=1,KX33+1,KX33) -> 13 | KZ33: =IF(KZ34=1,KY33+1,KY33) -> 13 | LA33: =IF(LA34=1,KZ33+1,KZ33) -> 13 | LB33: =IF(LB34=1,LA33+1,LA33) -> 13 | LC33: =IF(LC34=1,LB33+1,LB33) -> 13 | LD33: =IF(LD34=1,LC33+1,LC33) -> 13 | LE33: =IF(LE34=1,LD33+1,LD33) -> 13 | LF33: =IF(LF34=1,LE33+1,LE33) -> 13 | LG33: =IF(LG34=1,LF33+1,LF33) -> 13 | LH33: =IF(LH34=1,LG33+1,LG33) -> 14 | LI33: =IF(LI34=1,LH33+1,LH33) -> 14 | LJ33: =IF(LJ34=1,LI33+1,LI33) -> 14 | LK33: =IF(LK34=1,LJ33+1,LJ33) -> 14 | LL33: =IF(LL34=1,LK33+1,LK33) -> 14 | LM33: =IF(LM34=1,LL33+1,LL33) -> 14 | LN33: =IF(LN34=1,LM33+1,LM33) -> 14 | LO33: =IF(LO34=1,LN33+1,LN33) -> 14 | LP33: =IF(LP34=1,LO33+1,LO33) -> 14 | LQ33: =IF(LQ34=1,LP33+1,LP33) -> 14 | LR33: =IF(LR34=1,LQ33+1,LQ33) -> 14 | LS33: =IF(LS34=1,LR33+1,LR33) -> 14 | LT33: =IF(LT34=1,LS33+1,LS33) -> 14 | LU33: =IF(LU34=1,LT33+1,LT33) -> 14 | LV33: =IF(LV34=1,LU33+1,LU33) -> 14 | LW33: =IF(LW34=1,LV33+1,LV33) -> 14 | LX33: =IF(LX34=1,LW33+1,LW33) -> 14 | LY33: =IF(LY34=1,LX33+1,LX33) -> 14 | LZ33: =IF(LZ34=1,LY33+1,LY33) -> 14 | MA33: =IF(MA34=1,LZ33+1,LZ33) -> 14 | MB33: =IF(MB34=1,MA33+1,MA33) -> 14 | MC33: =IF(MC34=1,MB33+1,MB33) -> 14 | MD33: =IF(MD34=1,MC33+1,MC33) -> 14 | ME33: =IF(ME34=1,MD33+1,MD33) -> 14 | MF33: =IF(MF34=1,ME33+1,ME33) -> 15 | MG33: =IF(MG34=1,MF33+1,MF33) -> 15 | MH33: =IF(MH34=1,MG33+1,MG33) -> 15 | MI33: =IF(MI34=1,MH33+1,MH33) -> 15 | MJ33: =IF(MJ34=1,MI33+1,MI33) -> 15 | MK33: =IF(MK34=1,MJ33+1,MJ33) -> 15 | ML33: =IF(ML34=1,MK33+1,MK33) -> 15 | MM33: =IF(MM34=1,ML33+1,ML33) -> 15 | MN33: =IF(MN34=1,MM33+1,MM33) -> 15 | MO33: =IF(MO34=1,MN33+1,MN33) -> 15 | MP33: =IF(MP34=1,MO33+1,MO33) -> 15 | MQ33: =IF(MQ34=1,MP33+1,MP33) -> 15 | MR33: =IF(MR34=1,MQ33+1,MQ33) -> 15 | MS33: =IF(MS34=1,MR33+1,MR33) -> 15 | MT33: =IF(MT34=1,MS33+1,MS33) -> 15 | MU33: =IF(MU34=1,MT33+1,MT33) -> 15 | MV33: =IF(MV34=1,MU33+1,MU33) -> 15 | MW33: =IF(MW34=1,MV33+1,MV33) -> 15 | MX33: =IF(MX34=1,MW33+1,MW33) -> 15 | MY33: =IF(MY34=1,MX33+1,MX33) -> 15 | MZ33: =IF(MZ34=1,MY33+1,MY33) -> 15 | NA33: =IF(NA34=1,MZ33+1,MZ33) -> 15 | NB33: =IF(NB34=1,NA33+1,NA33) -> 15 | NC33: =IF(NC34=1,NB33+1,NB33) -> 15 | ND33: =IF(ND34=1,NC33+1,NC33) -> 16 | NE33: =IF(NE34=1,ND33+1,ND33) -> 16 | NF33: =IF(NF34=1,NE33+1,NE33) -> 16 | NG33: =IF(NG34=1,NF33+1,NF33) -> 16 | NH33: =IF(NH34=1,NG33+1,NG33) -> 16 | NI33: =IF(NI34=1,NH33+1,NH33) -> 16 | NJ33: =IF(NJ34=1,NI33+1,NI33) -> 16 | NK33: =IF(NK34=1,NJ33+1,NJ33) -> 16 | NL33: =IF(NL34=1,NK33+1,NK33) -> 16 | NM33: =IF(NM34=1,NL33+1,NL33) -> 16 | NN33: =IF(NN34=1,NM33+1,NM33) -> 16 | NO33: =IF(NO34=1,NN33+1,NN33) -> 16 | NP33: =IF(NP34=1,NO33+1,NO33) -> 16 | NQ33: =IF(NQ34=1,NP33+1,NP33) -> 16 | NR33: =IF(NR34=1,NQ33+1,NQ33) -> 16 | NS33: =IF(NS34=1,NR33+1,NR33) -> 16 | NT33: =IF(NT34=1,NS33+1,NS33) -> 16 | NU33: =IF(NU34=1,NT33+1,NT33) -> 16 | NV33: =IF(NV34=1,NU33+1,NU33) -> 16 | NW33: =IF(NW34=1,NV33+1,NV33) -> 16 | NX33: =IF(NX34=1,NW33+1,NW33) -> 16 | NY33: =IF(NY34=1,NX33+1,NX33) -> 16 | NZ33: =IF(NZ34=1,NY33+1,NY33) -> 16 | OA33: =IF(OA34=1,NZ33+1,NZ33) -> 16 | OB33: =IF(OB34=1,OA33+1,OA33) -> 17 | OC33: =IF(OC34=1,OB33+1,OB33) -> 17 | OD33: =IF(OD34=1,OC33+1,OC33) -> 17 | OE33: =IF(OE34=1,OD33+1,OD33) -> 17 | OF33: =IF(OF34=1,OE33+1,OE33) -> 17 | OG33: =IF(OG34=1,OF33+1,OF33) -> 17 | OH33: =IF(OH34=1,OG33+1,OG33) -> 17 | OI33: =IF(OI34=1,OH33+1,OH33) -> 17 | OJ33: =IF(OJ34=1,OI33+1,OI33) -> 17 | OK33: =IF(OK34=1,OJ33+1,OJ33) -> 17 | OL33: =IF(OL34=1,OK33+1,OK33) -> 17 | OM33: =IF(OM34=1,OL33+1,OL33) -> 17 | ON33: =IF(ON34=1,OM33+1,OM33) -> 17 | OO33: =IF(OO34=1,ON33+1,ON33) -> 17 | OP33: =IF(OP34=1,OO33+1,OO33) -> 17 | OQ33: =IF(OQ34=1,OP33+1,OP33) -> 17 | OR33: =IF(OR34=1,OQ33+1,OQ33) -> 17 | OS33: =IF(OS34=1,OR33+1,OR33) -> 17 | OT33: =IF(OT34=1,OS33+1,OS33) -> 17 | OU33: =IF(OU34=1,OT33+1,OT33) -> 17 | OV33: =IF(OV34=1,OU33+1,OU33) -> 17 | OW33: =IF(OW34=1,OV33+1,OV33) -> 17 | OX33: =IF(OX34=1,OW33+1,OW33) -> 17 | OY33: =IF(OY34=1,OX33+1,OX33) -> 17 | OZ33: =IF(OZ34=1,OY33+1,OY33) -> 18 | PA33: =IF(PA34=1,OZ33+1,OZ33) -> 18 | PB33: =IF(PB34=1,PA33+1,PA33) -> 18 | PC33: =IF(PC34=1,PB33+1,PB33) -> 18 | PD33: =IF(PD34=1,PC33+1,PC33) -> 18 | PE33: =IF(PE34=1,PD33+1,PD33) -> 18 | PF33: =IF(PF34=1,PE33+1,PE33) -> 18 | PG33: =IF(PG34=1,PF33+1,PF33) -> 18 | PH33: =IF(PH34=1,PG33+1,PG33) -> 18 | PI33: =IF(PI34=1,PH33+1,PH33) -> 18 | PJ33: =IF(PJ34=1,PI33+1,PI33) -> 18 | PK33: =IF(PK34=1,PJ33+1,PJ33) -> 18 | PL33: =IF(PL34=1,PK33+1,PK33) -> 18 | PM33: =IF(PM34=1,PL33+1,PL33) -> 18 | PN33: =IF(PN34=1,PM33+1,PM33) -> 18 | PO33: =IF(PO34=1,PN33+1,PN33) -> 18 | PP33: =IF(PP34=1,PO33+1,PO33) -> 18 | PQ33: =IF(PQ34=1,PP33+1,PP33) -> 18 | PR33: =IF(PR34=1,PQ33+1,PQ33) -> 18 | PS33: =IF(PS34=1,PR33+1,PR33) -> 18 | PT33: =IF(PT34=1,PS33+1,PS33) -> 18 | PU33: =IF(PU34=1,PT33+1,PT33) -> 18 | PV33: =IF(PV34=1,PU33+1,PU33) -> 18 | PW33: =IF(PW34=1,PV33+1,PV33) -> 18 | PX33: =IF(PX34=1,PW33+1,PW33) -> 19 | PY33: =IF(PY34=1,PX33+1,PX33) -> 19 | PZ33: =IF(PZ34=1,PY33+1,PY33) -> 19 | QA33: =IF(QA34=1,PZ33+1,PZ33) -> 19 | QB33: =IF(QB34=1,QA33+1,QA33) -> 19 | QC33: =IF(QC34=1,QB33+1,QB33) -> 19 | QD33: =IF(QD34=1,QC33+1,QC33) -> 19 | QE33: =IF(QE34=1,QD33+1,QD33) -> 19 | QF33: =IF(QF34=1,QE33+1,QE33) -> 19 | QG33: =IF(QG34=1,QF33+1,QF33) -> 19 | QH33: =IF(QH34=1,QG33+1,QG33) -> 19 | QI33: =IF(QI34=1,QH33+1,QH33) -> 19 | QJ33: =IF(QJ34=1,QI33+1,QI33) -> 19 | QK33: =IF(QK34=1,QJ33+1,QJ33) -> 19 | QL33: =IF(QL34=1,QK33+1,QK33) -> 19 | QM33: =IF(QM34=1,QL33+1,QL33) -> 19 | QN33: =IF(QN34=1,QM33+1,QM33) -> 19 | QO33: =IF(QO34=1,QN33+1,QN33) -> 19 | QP33: =IF(QP34=1,QO33+1,QO33) -> 19 | QQ33: =IF(QQ34=1,QP33+1,QP33) -> 19 | QR33: =IF(QR34=1,QQ33+1,QQ33) -> 19 | QS33: =IF(QS34=1,QR33+1,QR33) -> 19 | QT33: =IF(QT34=1,QS33+1,QS33) -> 19 | QU33: =IF(QU34=1,QT33+1,QT33) -> 19 | QV33: =IF(QV34=1,QU33+1,QU33) -> 20 | QW33: =IF(QW34=1,QV33+1,QV33) -> 20 | QX33: =IF(QX34=1,QW33+1,QW33) -> 20 | QY33: =IF(QY34=1,QX33+1,QX33) -> 20 | QZ33: =IF(QZ34=1,QY33+1,QY33) -> 20 | RA33: =IF(RA34=1,QZ33+1,QZ33) -> 20 | RB33: =IF(RB34=1,RA33+1,RA33) -> 20 | RC33: =IF(RC34=1,RB33+1,RB33) -> 20 | RD33: =IF(RD34=1,RC33+1,RC33) -> 20 | RE33: =IF(RE34=1,RD33+1,RD33) -> 20 | RF33: =IF(RF34=1,RE33+1,RE33) -> 20 | RG33: =IF(RG34=1,RF33+1,RF33) -> 20 | RH33: =IF(RH34=1,RG33+1,RG33) -> 20 | RI33: =IF(RI34=1,RH33+1,RH33) -> 20 | RJ33: =IF(RJ34=1,RI33+1,RI33) -> 20 | RK33: =IF(RK34=1,RJ33+1,RJ33) -> 20 | RL33: =IF(RL34=1,RK33+1,RK33) -> 20 | RM33: =IF(RM34=1,RL33+1,RL33) -> 20 | RN33: =IF(RN34=1,RM33+1,RM33) -> 20 | RO33: =IF(RO34=1,RN33+1,RN33) -> 20 | RP33: =IF(RP34=1,RO33+1,RO33) -> 20 | RQ33: =IF(RQ34=1,RP33+1,RP33) -> 20 | RR33: =IF(RR34=1,RQ33+1,RQ33) -> 20 | RS33: =IF(RS34=1,RR33+1,RR33) -> 20 | RT33: =IF(RT34=1,RS33+1,RS33) -> 21 | RU33: =IF(RU34=1,RT33+1,RT33) -> 21 | RV33: =IF(RV34=1,RU33+1,RU33) -> 21 | RW33: =IF(RW34=1,RV33+1,RV33) -> 21 | RX33: =IF(RX34=1,RW33+1,RW33) -> 21 | RY33: =IF(RY34=1,RX33+1,RX33) -> 21 | RZ33: =IF(RZ34=1,RY33+1,RY33) -> 21 | SA33: =IF(SA34=1,RZ33+1,RZ33) -> 21 | SB33: =IF(SB34=1,SA33+1,SA33) -> 21 | SC33: =IF(SC34=1,SB33+1,SB33) -> 21 | SD33: =IF(SD34=1,SC33+1,SC33) -> 21 | SE33: =IF(SE34=1,SD33+1,SD33) -> 21 | SF33: =IF(SF34=1,SE33+1,SE33) -> 21 | SG33: =IF(SG34=1,SF33+1,SF33) -> 21 | SH33: =IF(SH34=1,SG33+1,SG33) -> 21 | SI33: =IF(SI34=1,SH33+1,SH33) -> 21 | SJ33: =IF(SJ34=1,SI33+1,SI33) -> 21 | SK33: =IF(SK34=1,SJ33+1,SJ33) -> 21 | SL33: =IF(SL34=1,SK33+1,SK33) -> 21 | SM33: =IF(SM34=1,SL33+1,SL33) -> 21 | SN33: =IF(SN34=1,SM33+1,SM33) -> 21 | SO33: =IF(SO34=1,SN33+1,SN33) -> 21 | SP33: =IF(SP34=1,SO33+1,SO33) -> 21 | SQ33: =IF(SQ34=1,SP33+1,SP33) -> 21 | SR33: =IF(SR34=1,SQ33+1,SQ33) -> 22 | SS33: =IF(SS34=1,SR33+1,SR33) -> 22 | ST33: =IF(ST34=1,SS33+1,SS33) -> 22 | SU33: =IF(SU34=1,ST33+1,ST33) -> 22 | SV33: =IF(SV34=1,SU33+1,SU33) -> 22 | SW33: =IF(SW34=1,SV33+1,SV33) -> 22 | SX33: =IF(SX34=1,SW33+1,SW33) -> 22 | SY33: =IF(SY34=1,SX33+1,SX33) -> 22 | SZ33: =IF(SZ34=1,SY33+1,SY33) -> 22 | TA33: =IF(TA34=1,SZ33+1,SZ33) -> 22 | TB33: =IF(TB34=1,TA33+1,TA33) -> 22 | TC33: =IF(TC34=1,TB33+1,TB33) -> 22 | TD33: =IF(TD34=1,TC33+1,TC33) -> 22 | TE33: =IF(TE34=1,TD33+1,TD33) -> 22 | TF33: =IF(TF34=1,TE33+1,TE33) -> 22 | TG33: =IF(TG34=1,TF33+1,TF33) -> 22 | TH33: =IF(TH34=1,TG33+1,TG33) -> 22 | TI33: =IF(TI34=1,TH33+1,TH33) -> 22 | TJ33: =IF(TJ34=1,TI33+1,TI33) -> 22 | TK33: =IF(TK34=1,TJ33+1,TJ33) -> 22 | TL33: =IF(TL34=1,TK33+1,TK33) -> 22 | TM33: =IF(TM34=1,TL33+1,TL33) -> 22 | TN33: =IF(TN34=1,TM33+1,TM33) -> 22 | TO33: =IF(TO34=1,TN33+1,TN33) -> 22 | TP33: =IF(TP34=1,TO33+1,TO33) -> 23 | TQ33: =IF(TQ34=1,TP33+1,TP33) -> 23 | TR33: =IF(TR34=1,TQ33+1,TQ33) -> 23 | TS33: =IF(TS34=1,TR33+1,TR33) -> 23 | TT33: =IF(TT34=1,TS33+1,TS33) -> 23 | TU33: =IF(TU34=1,TT33+1,TT33) -> 23 | TV33: =IF(TV34=1,TU33+1,TU33) -> 23 | TW33: =IF(TW34=1,TV33+1,TV33) -> 23 | TX33: =IF(TX34=1,TW33+1,TW33) -> 23 | TY33: =IF(TY34=1,TX33+1,TX33) -> 23 | TZ33: =IF(TZ34=1,TY33+1,TY33) -> 23 | UA33: =IF(UA34=1,TZ33+1,TZ33) -> 23 | UB33: =IF(UB34=1,UA33+1,UA33) -> 23 | UC33: =IF(UC34=1,UB33+1,UB33) -> 23 | UD33: =IF(UD34=1,UC33+1,UC33) -> 23 | UE33: =IF(UE34=1,UD33+1,UD33) -> 23 | UF33: =IF(UF34=1,UE33+1,UE33) -> 23 | UG33: =IF(UG34=1,UF33+1,UF33) -> 23 | UH33: =IF(UH34=1,UG33+1,UG33) -> 23 | UI33: =IF(UI34=1,UH33+1,UH33) -> 23 | UJ33: =IF(UJ34=1,UI33+1,UI33) -> 23 | UK33: =IF(UK34=1,UJ33+1,UJ33) -> 23 | UL33: =IF(UL34=1,UK33+1,UK33) -> 23 | UM33: =IF(UM34=1,UL33+1,UL33) -> 23 | UN33: =IF(UN34=1,UM33+1,UM33) -> 24 | UO33: =IF(UO34=1,UN33+1,UN33) -> 24 | UP33: =IF(UP34=1,UO33+1,UO33) -> 24 | UQ33: =IF(UQ34=1,UP33+1,UP33) -> 24 | UR33: =IF(UR34=1,UQ33+1,UQ33) -> 24 | US33: =IF(US34=1,UR33+1,UR33) -> 24 | UT33: =IF(UT34=1,US33+1,US33) -> 24 | UU33: =IF(UU34=1,UT33+1,UT33) -> 24 | UV33: =IF(UV34=1,UU33+1,UU33) -> 24 | UW33: =IF(UW34=1,UV33+1,UV33) -> 24 | UX33: =IF(UX34=1,UW33+1,UW33) -> 24 | UY33: =IF(UY34=1,UX33+1,UX33) -> 24 | UZ33: =IF(UZ34=1,UY33+1,UY33) -> 24 | VA33: =IF(VA34=1,UZ33+1,UZ33) -> 24 | VB33: =IF(VB34=1,VA33+1,VA33) -> 24 | VC33: =IF(VC34=1,VB33+1,VB33) -> 24 | VD33: =IF(VD34=1,VC33+1,VC33) -> 24 | VE33: =IF(VE34=1,VD33+1,VD33) -> 24 | VF33: =IF(VF34=1,VE33+1,VE33) -> 24 | VG33: =IF(VG34=1,VF33+1,VF33) -> 24 | VH33: =IF(VH34=1,VG33+1,VG33) -> 24 | VI33: =IF(VI34=1,VH33+1,VH33) -> 24 | VJ33: =IF(VJ34=1,VI33+1,VI33) -> 24 | VK33: =IF(VK34=1,VJ33+1,VJ33) -> 24 | VL33: =IF(VL34=1,VK33+1,VK33) -> 25 | VM33: =IF(VM34=1,VL33+1,VL33) -> 25 | VN33: =IF(VN34=1,VM33+1,VM33) -> 25 | VO33: =IF(VO34=1,VN33+1,VN33) -> 25 | VP33: =IF(VP34=1,VO33+1,VO33) -> 25 | VQ33: =IF(VQ34=1,VP33+1,VP33) -> 25 | VR33: =IF(VR34=1,VQ33+1,VQ33) -> 25 | VS33: =IF(VS34=1,VR33+1,VR33) -> 25 | VT33: =IF(VT34=1,VS33+1,VS33) -> 25 | VU33: =IF(VU34=1,VT33+1,VT33) -> 25 | VV33: =IF(VV34=1,VU33+1,VU33) -> 25 | VW33: =IF(VW34=1,VV33+1,VV33) -> 25 | VX33: =IF(VX34=1,VW33+1,VW33) -> 25 | VY33: =IF(VY34=1,VX33+1,VX33) -> 25 | VZ33: =IF(VZ34=1,VY33+1,VY33) -> 25 | WA33: =IF(WA34=1,VZ33+1,VZ33) -> 25 | WB33: =IF(WB34=1,WA33+1,WA33) -> 25 | WC33: =IF(WC34=1,WB33+1,WB33) -> 25 | WD33: =IF(WD34=1,WC33+1,WC33) -> 25 | WE33: =IF(WE34=1,WD33+1,WD33) -> 25 | WF33: =IF(WF34=1,WE33+1,WE33) -> 25 | WG33: =IF(WG34=1,WF33+1,WF33) -> 25 | WH33: =IF(WH34=1,WG33+1,WG33) -> 25 | WI33: =IF(WI34=1,WH33+1,WH33) -> 25 | WJ33: =IF(WJ34=1,WI33+1,WI33) -> 26 | WK33: =IF(WK34=1,WJ33+1,WJ33) -> 26 | WL33: =IF(WL34=1,WK33+1,WK33) -> 26 | WM33: =IF(WM34=1,WL33+1,WL33) -> 26 | WN33: =IF(WN34=1,WM33+1,WM33) -> 26 | WO33: =IF(WO34=1,WN33+1,WN33) -> 26 | WP33: =IF(WP34=1,WO33+1,WO33) -> 26 | WQ33: =IF(WQ34=1,WP33+1,WP33) -> 26 | WR33: =IF(WR34=1,WQ33+1,WQ33) -> 26 | WS33: =IF(WS34=1,WR33+1,WR33) -> 26 | WT33: =IF(WT34=1,WS33+1,WS33) -> 26 | WU33: =IF(WU34=1,WT33+1,WT33) -> 26 | WV33: =IF(WV34=1,WU33+1,WU33) -> 26 | WW33: =IF(WW34=1,WV33+1,WV33) -> 26 | WX33: =IF(WX34=1,WW33+1,WW33) -> 26 | WY33: =IF(WY34=1,WX33+1,WX33) -> 26 | WZ33: =IF(WZ34=1,WY33+1,WY33) -> 26 | XA33: =IF(XA34=1,WZ33+1,WZ33) -> 26 | XB33: =IF(XB34=1,XA33+1,XA33) -> 26 | XC33: =IF(XC34=1,XB33+1,XB33) -> 26 | XD33: =IF(XD34=1,XC33+1,XC33) -> 26 | XE33: =IF(XE34=1,XD33+1,XD33) -> 26 | XF33: =IF(XF34=1,XE33+1,XE33) -> 26 | XG33: =IF(XG34=1,XF33+1,XF33) -> 26 | XH33: =IF(XH34=1,XG33+1,XG33) -> 27 | XI33: =IF(XI34=1,XH33+1,XH33) -> 27 | XJ33: =IF(XJ34=1,XI33+1,XI33) -> 27 | XK33: =IF(XK34=1,XJ33+1,XJ33) -> 27 | XL33: =IF(XL34=1,XK33+1,XK33) -> 27 | XM33: =IF(XM34=1,XL33+1,XL33) -> 27 | XN33: =IF(XN34=1,XM33+1,XM33) -> 27 | XO33: =IF(XO34=1,XN33+1,XN33) -> 27 | XP33: =IF(XP34=1,XO33+1,XO33) -> 27 | XQ33: =IF(XQ34=1,XP33+1,XP33) -> 27 | XR33: =IF(XR34=1,XQ33+1,XQ33) -> 27 | XS33: =IF(XS34=1,XR33+1,XR33) -> 27 | XT33: =IF(XT34=1,XS33+1,XS33) -> 27 | XU33: =IF(XU34=1,XT33+1,XT33) -> 27 | XV33: =IF(XV34=1,XU33+1,XU33) -> 27 | XW33: =IF(XW34=1,XV33+1,XV33) -> 27 | XX33: =IF(XX34=1,XW33+1,XW33) -> 27 | XY33: =IF(XY34=1,XX33+1,XX33) -> 27 | XZ33: =IF(XZ34=1,XY33+1,XY33) -> 27 | YA33: =IF(YA34=1,XZ33+1,XZ33) -> 27 | YB33: =IF(YB34=1,YA33+1,YA33) -> 27 | YC33: =IF(YC34=1,YB33+1,YB33) -> 27 | YD33: =IF(YD34=1,YC33+1,YC33) -> 27 | YE33: =IF(YE34=1,YD33+1,YD33) -> 27 | YF33: =IF(YF34=1,YE33+1,YE33) -> 28 | YG33: =IF(YG34=1,YF33+1,YF33) -> 28 | YH33: =IF(YH34=1,YG33+1,YG33) -> 28 | YI33: =IF(YI34=1,YH33+1,YH33) -> 28 | YJ33: =IF(YJ34=1,YI33+1,YI33) -> 28 | YK33: =IF(YK34=1,YJ33+1,YJ33) -> 28 | YL33: =IF(YL34=1,YK33+1,YK33) -> 28 | YM33: =IF(YM34=1,YL33+1,YL33) -> 28 | YN33: =IF(YN34=1,YM33+1,YM33) -> 28 | YO33: =IF(YO34=1,YN33+1,YN33) -> 28 | YP33: =IF(YP34=1,YO33+1,YO33) -> 28 | YQ33: =IF(YQ34=1,YP33+1,YP33) -> 28 | YR33: =IF(YR34=1,YQ33+1,YQ33) -> 28 | YS33: =IF(YS34=1,YR33+1,YR33) -> 28 | YT33: =IF(YT34=1,YS33+1,YS33) -> 28 | YU33: =IF(YU34=1,YT33+1,YT33) -> 28 | YV33: =IF(YV34=1,YU33+1,YU33) -> 28 | YW33: =IF(YW34=1,YV33+1,YV33) -> 28 | YX33: =IF(YX34=1,YW33+1,YW33) -> 28 | YY33: =IF(YY34=1,YX33+1,YX33) -> 28 | YZ33: =IF(YZ34=1,YY33+1,YY33) -> 28 | ZA33: =IF(ZA34=1,YZ33+1,YZ33) -> 28 | ZB33: =IF(ZB34=1,ZA33+1,ZA33) -> 28 | ZC33: =IF(ZC34=1,ZB33+1,ZB33) -> 28 | ZD33: =IF(ZD34=1,ZC33+1,ZC33) -> 29 | ZE33: =IF(ZE34=1,ZD33+1,ZD33) -> 29 | ZF33: =IF(ZF34=1,ZE33+1,ZE33) -> 29 | ZG33: =IF(ZG34=1,ZF33+1,ZF33) -> 29 | ZH33: =IF(ZH34=1,ZG33+1,ZG33) -> 29 | ZI33: =IF(ZI34=1,ZH33+1,ZH33) -> 29 | ZJ33: =IF(ZJ34=1,ZI33+1,ZI33) -> 29 | ZK33: =IF(ZK34=1,ZJ33+1,ZJ33) -> 29 | ZL33: =IF(ZL34=1,ZK33+1,ZK33) -> 29 | ZM33: =IF(ZM34=1,ZL33+1,ZL33) -> 29 | ZN33: =IF(ZN34=1,ZM33+1,ZM33) -> 29 | ZO33: =IF(ZO34=1,ZN33+1,ZN33) -> 29 | ZP33: =IF(ZP34=1,ZO33+1,ZO33) -> 29 | ZQ33: =IF(ZQ34=1,ZP33+1,ZP33) -> 29 | ZR33: =IF(ZR34=1,ZQ33+1,ZQ33) -> 29 | ZS33: =IF(ZS34=1,ZR33+1,ZR33) -> 29 | ZT33: =IF(ZT34=1,ZS33+1,ZS33) -> 29 | ZU33: =IF(ZU34=1,ZT33+1,ZT33) -> 29 | ZV33: =IF(ZV34=1,ZU33+1,ZU33) -> 29 | ZW33: =IF(ZW34=1,ZV33+1,ZV33) -> 29 | ZX33: =IF(ZX34=1,ZW33+1,ZW33) -> 29 | ZY33: =IF(ZY34=1,ZX33+1,ZX33) -> 29 | ZZ33: =IF(ZZ34=1,ZY33+1,ZY33) -> 29 | AAA33: =IF(AAA34=1,ZZ33+1,ZZ33) -> 29 | AAB33: =IF(AAB34=1,AAA33+1,AAA33) -> 30 | AAC33: =IF(AAC34=1,AAB33+1,AAB33) -> 30 | AAD33: =IF(AAD34=1,AAC33+1,AAC33) -> 30 | AAE33: =IF(AAE34=1,AAD33+1,AAD33) -> 30 | AAF33: =IF(AAF34=1,AAE33+1,AAE33) -> 30 | AAG33: =IF(AAG34=1,AAF33+1,AAF33) -> 30 | AAH33: =IF(AAH34=1,AAG33+1,AAG33) -> 30 | AAI33: =IF(AAI34=1,AAH33+1,AAH33) -> 30 | AAJ33: =IF(AAJ34=1,AAI33+1,AAI33) -> 30 | AAK33: =IF(AAK34=1,AAJ33+1,AAJ33) -> 30 | AAL33: =IF(AAL34=1,AAK33+1,AAK33) -> 30 | AAM33: =IF(AAM34=1,AAL33+1,AAL33) -> 30 | AAN33: =IF(AAN34=1,AAM33+1,AAM33) -> 30 | AAO33: =IF(AAO34=1,AAN33+1,AAN33) -> 30 | AAP33: =IF(AAP34=1,AAO33+1,AAO33) -> 30 | AAQ33: =IF(AAQ34=1,AAP33+1,AAP33) -> 30 | AAR33: =IF(AAR34=1,AAQ33+1,AAQ33) -> 30 | AAS33: =IF(AAS34=1,AAR33+1,AAR33) -> 30 | AAT33: =IF(AAT34=1,AAS33+1,AAS33) -> 30 | AAU33: =IF(AAU34=1,AAT33+1,AAT33) -> 30 | AAV33: =IF(AAV34=1,AAU33+1,AAU33) -> 30 | AAW33: =IF(AAW34=1,AAV33+1,AAV33) -> 30 | AAX33: =IF(AAX34=1,AAW33+1,AAW33) -> 30 | AAY33: =IF(AAY34=1,AAX33+1,AAX33) -> 30
C34: Hour of Day Counter | H34: 1 | I34: =IF(H34=24,1,H34+1) -> 2 | J34: =IF(I34=24,1,I34+1) -> 3 | K34: 4 | L34: 5 | M34: 6 | N34: 7 | O34: 8 | P34: 9 | Q34: 10 | R34: 11 | S34: 12 | T34: 13 | U34: 14 | V34: 15 | W34: 16 | X34: 17 | Y34: 18 | Z34: 19 | AA34: 20 | AB34: 21 | AC34: 22 | AD34: 23 | AE34: 24 | AF34: 1 | AG34: 2 | AH34: 3 | AI34: 4 | AJ34: 5 | AK34: 6 | AL34: 7 | AM34: 8 | AN34: 9 | AO34: 10 | AP34: 11 | AQ34: 12 | AR34: 13 | AS34: 14 | AT34: 15 | AU34: 16 | AV34: 17 | AW34: 18 | AX34: 19 | AY34: 20 | AZ34: 21 | BA34: 22 | BB34: 23 | BC34: 24 | BD34: 1 | BE34: 2 | BF34: 3 | BG34: 4 | BH34: 5 | BI34: 6 | BJ34: 7 | BK34: 8 | BL34: 9 | BM34: 10 | BN34: 11 | BO34: 12 | BP34: 13 | BQ34: 14 | BR34: 15 | BS34: 16 | BT34: 17 | BU34: 18 | BV34: =IF(BU34=24,1,BU34+1) -> 19 | BW34: 20 | BX34: 21 | BY34: 22 | BZ34: 23 | CA34: 24 | CB34: 1 | CC34: 2 | CD34: 3 | CE34: 4 | CF34: 5 | CG34: 6 | CH34: 7 | CI34: 8 | CJ34: 9 | CK34: 10 | CL34: 11 | CM34: 12 | CN34: 13 | CO34: 14 | CP34: 15 | CQ34: 16 | CR34: 17 | CS34: 18 | CT34: 19 | CU34: 20 | CV34: 21 | CW34: 22 | CX34: 23 | CY34: 24 | CZ34: 1 | DA34: 2 | DB34: 3 | DC34: 4 | DD34: 5 | DE34: 6 | DF34: 7 | DG34: 8 | DH34: 9 | DI34: 10 | DJ34: 11 | DK34: 12 | DL34: 13 | DM34: 14 | DN34: 15 | DO34: 16 | DP34: 17 | DQ34: 18 | DR34: 19 | DS34: 20 | DT34: 21 | DU34: 22 | DV34: 23 | DW34: 24 | DX34: 1 | DY34: 2 | DZ34: 3 | EA34: 4 | EB34: 5 | EC34: 6 | ED34: 7 | EE34: 8 | EF34: 9 | EG34: 10 | EH34: =IF(EG34=24,1,EG34+1) -> 11 | EI34: 12 | EJ34: 13 | EK34: 14 | EL34: 15 | EM34: 16 | EN34: 17 | EO34: 18 | EP34: 19 | EQ34: 20 | ER34: 21 | ES34: 22 | ET34: 23 | EU34: 24 | EV34: 1 | EW34: 2 | EX34: 3 | EY34: 4 | EZ34: 5 | FA34: 6 | FB34: 7 | FC34: 8 | FD34: 9 | FE34: 10 | FF34: 11 | FG34: 12 | FH34: 13 | FI34: 14 | FJ34: 15 | FK34: 16 | FL34: 17 | FM34: 18 | FN34: 19 | FO34: 20 | FP34: 21 | FQ34: 22 | FR34: 23 | FS34: 24 | FT34: 1 | FU34: 2 | FV34: 3 | FW34: 4 | FX34: 5 | FY34: 6 | FZ34: 7 | GA34: 8 | GB34: 9 | GC34: 10 | GD34: 11 | GE34: 12 | GF34: 13 | GG34: 14 | GH34: 15 | GI34: 16 | GJ34: 17 | GK34: 18 | GL34: 19 | GM34: 20 | GN34: 21 | GO34: 22 | GP34: 23 | GQ34: 24 | GR34: 1 | GS34: 2 | GT34: =IF(GS34=24,1,GS34+1) -> 3 | GU34: 4 | GV34: 5 | GW34: 6 | GX34: 7 | GY34: 8 | GZ34: 9 | HA34: 10 | HB34: 11 | HC34: 12 | HD34: 13 | HE34: 14 | HF34: 15 | HG34: 16 | HH34: 17 | HI34: 18 | HJ34: 19 | HK34: 20 | HL34: 21 | HM34: 22 | HN34: 23 | HO34: 24 | HP34: 1 | HQ34: 2 | HR34: 3 | HS34: 4 | HT34: 5 | HU34: 6 | HV34: 7 | HW34: 8 | HX34: 9 | HY34: 10 | HZ34: 11 | IA34: 12 | IB34: 13 | IC34: 14 | ID34: 15 | IE34: 16 | IF34: 17 | IG34: 18 | IH34: 19 | II34: 20 | IJ34: 21 | IK34: 22 | IL34: 23 | IM34: =IF(IL34=24,1,IL34+1) -> 24 | IN34: 1 | IO34: 2 | IP34: 3 | IQ34: 4 | IR34: 5 | IS34: 6 | IT34: 7 | IU34: 8 | IV34: 9 | IW34: 10 | IX34: 11 | IY34: 12 | IZ34: 13 | JA34: 14 | JB34: 15 | JC34: 16 | JD34: 17 | JE34: 18 | JF34: 19 | JG34: 20 | JH34: 21 | JI34: 22 | JJ34: 23 | JK34: 24 | JL34: 1 | JM34: 2 | JN34: 3 | JO34: 4 | JP34: 5 | JQ34: 6 | JR34: 7 | JS34: 8 | JT34: 9 | JU34: 10 | JV34: 11 | JW34: 12 | JX34: 13 | JY34: 14 | JZ34: 15 | KA34: 16 | KB34: 17 | KC34: 18 | KD34: 19 | KE34: 20 | KF34: 21 | KG34: 22 | KH34: 23 | KI34: 24 | KJ34: 1 | KK34: 2 | KL34: 3 | KM34: 4 | KN34: 5 | KO34: 6 | KP34: 7 | KQ34: 8 | KR34: 9 | KS34: 10 | KT34: 11 | KU34: 12 | KV34: 13 | KW34: 14 | KX34: 15 | KY34: =IF(KX34=24,1,KX34+1) -> 16 | KZ34: 17 | LA34: 18 | LB34: 19 | LC34: 20 | LD34: 21 | LE34: 22 | LF34: 23 | LG34: 24 | LH34: 1 | LI34: 2 | LJ34: 3 | LK34: 4 | LL34: 5 | LM34: 6 | LN34: 7 | LO34: 8 | LP34: 9 | LQ34: 10 | LR34: 11 | LS34: 12 | LT34: 13 | LU34: 14 | LV34: 15 | LW34: 16 | LX34: 17 | LY34: 18 | LZ34: 19 | MA34: 20 | MB34: 21 | MC34: 22 | MD34: 23 | ME34: 24 | MF34: 1 | MG34: 2 | MH34: 3 | MI34: 4 | MJ34: 5 | MK34: 6 | ML34: 7 | MM34: 8 | MN34: 9 | MO34: 10 | MP34: 11 | MQ34: 12 | MR34: 13 | MS34: 14 | MT34: 15 | MU34: 16 | MV34: 17 | MW34: 18 | MX34: 19 | MY34: 20 | MZ34: 21 | NA34: 22 | NB34: 23 | NC34: 24 | ND34: 1 | NE34: 2 | NF34: 3 | NG34: 4 | NH34: 5 | NI34: 6 | NJ34: 7 | NK34: =IF(NJ34=24,1,NJ34+1) -> 8 | NL34: 9 | NM34: 10 | NN34: 11 | NO34: 12 | NP34: 13 | NQ34: 14 | NR34: 15 | NS34: 16 | NT34: 17 | NU34: 18 | NV34: 19 | NW34: 20 | NX34: 21 | NY34: 22 | NZ34: 23 | OA34: 24 | OB34: 1 | OC34: 2 | OD34: 3 | OE34: 4 | OF34: 5 | OG34: 6 | OH34: 7 | OI34: 8 | OJ34: 9 | OK34: 10 | OL34: 11 | OM34: 12 | ON34: 13 | OO34: 14 | OP34: 15 | OQ34: 16 | OR34: 17 | OS34: 18 | OT34: 19 | OU34: 20 | OV34: 21 | OW34: 22 | OX34: 23 | OY34: 24 | OZ34: 1 | PA34: 2 | PB34: 3 | PC34: 4 | PD34: 5 | PE34: 6 | PF34: 7 | PG34: 8 | PH34: 9 | PI34: 10 | PJ34: 11 | PK34: 12 | PL34: 13 | PM34: 14 | PN34: 15 | PO34: 16 | PP34: 17 | PQ34: 18 | PR34: 19 | PS34: 20 | PT34: 21 | PU34: 22 | PV34: 23 | PW34: =IF(PV34=24,1,PV34+1) -> 24 | PX34: 1 | PY34: 2 | PZ34: 3 | QA34: 4 | QB34: 5 | QC34: 6 | QD34: 7 | QE34: 8 | QF34: 9 | QG34: 10 | QH34: 11 | QI34: 12 | QJ34: 13 | QK34: 14 | QL34: 15 | QM34: 16 | QN34: 17 | QO34: 18 | QP34: 19 | QQ34: 20 | QR34: 21 | QS34: 22 | QT34: 23 | QU34: 24 | QV34: 1 | QW34: 2 | QX34: 3 | QY34: 4 | QZ34: 5 | RA34: 6 | RB34: 7 | RC34: 8 | RD34: 9 | RE34: 10 | RF34: 11 | RG34: 12 | RH34: 13 | RI34: 14 | RJ34: 15 | RK34: 16 | RL34: 17 | RM34: 18 | RN34: 19 | RO34: 20 | RP34: 21 | RQ34: 22 | RR34: 23 | RS34: 24 | RT34: 1 | RU34: 2 | RV34: 3 | RW34: 4 | RX34: 5 | RY34: 6 | RZ34: 7 | SA34: 8 | SB34: 9 | SC34: 10 | SD34: 11 | SE34: 12 | SF34: 13 | SG34: 14 | SH34: 15 | SI34: =IF(SH34=24,1,SH34+1) -> 16 | SJ34: 17 | SK34: 18 | SL34: 19 | SM34: 20 | SN34: 21 | SO34: 22 | SP34: 23 | SQ34: 24 | SR34: 1 | SS34: 2 | ST34: 3 | SU34: 4 | SV34: 5 | SW34: 6 | SX34: 7 | SY34: 8 | SZ34: 9 | TA34: 10 | TB34: 11 | TC34: 12 | TD34: 13 | TE34: 14 | TF34: 15 | TG34: 16 | TH34: 17 | TI34: 18 | TJ34: 19 | TK34: 20 | TL34: 21 | TM34: 22 | TN34: 23 | TO34: 24 | TP34: 1 | TQ34: 2 | TR34: 3 | TS34: 4 | TT34: 5 | TU34: 6 | TV34: 7 | TW34: 8 | TX34: 9 | TY34: 10 | TZ34: 11 | UA34: 12 | UB34: 13 | UC34: 14 | UD34: 15 | UE34: 16 | UF34: 17 | UG34: 18 | UH34: 19 | UI34: 20 | UJ34: 21 | UK34: 22 | UL34: 23 | UM34: 24 | UN34: 1 | UO34: 2 | UP34: 3 | UQ34: 4 | UR34: 5 | US34: 6 | UT34: 7 | UU34: =IF(UT34=24,1,UT34+1) -> 8 | UV34: 9 | UW34: 10 | UX34: 11 | UY34: 12 | UZ34: 13 | VA34: 14 | VB34: 15 | VC34: 16 | VD34: 17 | VE34: 18 | VF34: 19 | VG34: 20 | VH34: 21 | VI34: 22 | VJ34: 23 | VK34: 24 | VL34: 1 | VM34: 2 | VN34: 3 | VO34: 4 | VP34: 5 | VQ34: 6 | VR34: 7 | VS34: 8 | VT34: 9 | VU34: 10 | VV34: 11 | VW34: 12 | VX34: 13 | VY34: 14 | VZ34: 15 | WA34: 16 | WB34: 17 | WC34: 18 | WD34: 19 | WE34: 20 | WF34: 21 | WG34: 22 | WH34: 23 | WI34: 24 | WJ34: 1 | WK34: 2 | WL34: 3 | WM34: 4 | WN34: 5 | WO34: 6 | WP34: 7 | WQ34: 8 | WR34: 9 | WS34: 10 | WT34: 11 | WU34: 12 | WV34: 13 | WW34: 14 | WX34: 15 | WY34: 16 | WZ34: 17 | XA34: 18 | XB34: 19 | XC34: 20 | XD34: 21 | XE34: 22 | XF34: 23 | XG34: =IF(XF34=24,1,XF34+1) -> 24 | XH34: 1 | XI34: 2 | XJ34: 3 | XK34: 4 | XL34: 5 | XM34: 6 | XN34: 7 | XO34: 8 | XP34: 9 | XQ34: 10 | XR34: 11 | XS34: 12 | XT34: 13 | XU34: 14 | XV34: 15 | XW34: 16 | XX34: 17 | XY34: 18 | XZ34: 19 | YA34: 20 | YB34: 21 | YC34: 22 | YD34: 23 | YE34: 24 | YF34: 1 | YG34: 2 | YH34: 3 | YI34: 4 | YJ34: 5 | YK34: 6 | YL34: 7 | YM34: 8 | YN34: 9 | YO34: 10 | YP34: 11 | YQ34: 12 | YR34: 13 | YS34: 14 | YT34: 15 | YU34: 16 | YV34: 17 | YW34: 18 | YX34: 19 | YY34: 20 | YZ34: 21 | ZA34: 22 | ZB34: 23 | ZC34: 24 | ZD34: 1 | ZE34: 2 | ZF34: 3 | ZG34: 4 | ZH34: 5 | ZI34: 6 | ZJ34: 7 | ZK34: 8 | ZL34: 9 | ZM34: 10 | ZN34: 11 | ZO34: 12 | ZP34: 13 | ZQ34: 14 | ZR34: 15 | ZS34: =IF(ZR34=24,1,ZR34+1) -> 16 | ZT34: 17 | ZU34: 18 | ZV34: 19 | ZW34: 20 | ZX34: 21 | ZY34: 22 | ZZ34: 23 | AAA34: 24 | AAB34: 1 | AAC34: 2 | AAD34: 3 | AAE34: 4 | AAF34: 5 | AAG34: 6 | AAH34: 7 | AAI34: 8 | AAJ34: 9 | AAK34: 10 | AAL34: 11 | AAM34: 12 | AAN34: 13 | AAO34: 14 | AAP34: 15 | AAQ34: 16 | AAR34: 17 | AAS34: 18 | AAT34: 19 | AAU34: 20 | AAV34: 21 | AAW34: 22 | AAX34: 23 | AAY34: 24
C35: Hour of Day | H35: =Assumptions!E37 -> 0 | I35: =IF(H35=24,1,H35+1) -> 1 | J35: =IF(I35=24,1,I35+1) -> 2 | K35: 3 | L35: 4 | M35: 5 | N35: 6 | O35: 7 | P35: 8 | Q35: 9 | R35: 10 | S35: 11 | T35: 12 | U35: 13 | V35: 14 | W35: 15 | X35: 16 | Y35: 17 | Z35: 18 | AA35: 19 | AB35: 20 | AC35: 21 | AD35: 22 | AE35: 23 | AF35: 24 | AG35: 1 | AH35: 2 | AI35: 3 | AJ35: 4 | AK35: 5 | AL35: 6 | AM35: 7 | AN35: 8 | AO35: 9 | AP35: 10 | AQ35: 11 | AR35: 12 | AS35: 13 | AT35: 14 | AU35: 15 | AV35: 16 | AW35: 17 | AX35: 18 | AY35: 19 | AZ35: 20 | BA35: 21 | BB35: 22 | BC35: 23 | BD35: 24 | BE35: 1 | BF35: 2 | BG35: 3 | BH35: 4 | BI35: 5 | BJ35: 6 | BK35: 7 | BL35: 8 | BM35: 9 | BN35: 10 | BO35: 11 | BP35: 12 | BQ35: 13 | BR35: 14 | BS35: 15 | BT35: 16 | BU35: 17 | BV35: =IF(BU35=24,1,BU35+1) -> 18 | BW35: 19 | BX35: 20 | BY35: 21 | BZ35: 22 | CA35: 23 | CB35: 24 | CC35: 1 | CD35: 2 | CE35: 3 | CF35: 4 | CG35: 5 | CH35: 6 | CI35: 7 | CJ35: 8 | CK35: 9 | CL35: 10 | CM35: 11 | CN35: 12 | CO35: 13 | CP35: 14 | CQ35: 15 | CR35: 16 | CS35: 17 | CT35: 18 | CU35: 19 | CV35: 20 | CW35: 21 | CX35: 22 | CY35: 23 | CZ35: 24 | DA35: 1 | DB35: 2 | DC35: 3 | DD35: 4 | DE35: 5 | DF35: 6 | DG35: 7 | DH35: 8 | DI35: 9 | DJ35: 10 | DK35: 11 | DL35: 12 | DM35: 13 | DN35: 14 | DO35: 15 | DP35: 16 | DQ35: 17 | DR35: 18 | DS35: 19 | DT35: 20 | DU35: 21 | DV35: 22 | DW35: 23 | DX35: 24 | DY35: 1 | DZ35: 2 | EA35: 3 | EB35: 4 | EC35: 5 | ED35: 6 | EE35: 7 | EF35: 8 | EG35: 9 | EH35: =IF(EG35=24,1,EG35+1) -> 10 | EI35: 11 | EJ35: 12 | EK35: 13 | EL35: 14 | EM35: 15 | EN35: 16 | EO35: 17 | EP35: 18 | EQ35: 19 | ER35: 20 | ES35: 21 | ET35: 22 | EU35: 23 | EV35: 24 | EW35: 1 | EX35: 2 | EY35: 3 | EZ35: 4 | FA35: 5 | FB35: 6 | FC35: 7 | FD35: 8 | FE35: 9 | FF35: 10 | FG35: 11 | FH35: 12 | FI35: 13 | FJ35: 14 | FK35: 15 | FL35: 16 | FM35: 17 | FN35: 18 | FO35: 19 | FP35: 20 | FQ35: 21 | FR35: 22 | FS35: 23 | FT35: 24 | FU35: 1 | FV35: 2 | FW35: 3 | FX35: 4 | FY35: 5 | FZ35: 6 | GA35: 7 | GB35: 8 | GC35: 9 | GD35: 10 | GE35: 11 | GF35: 12 | GG35: 13 | GH35: 14 | GI35: 15 | GJ35: 16 | GK35: 17 | GL35: 18 | GM35: 19 | GN35: 20 | GO35: 21 | GP35: 22 | GQ35: 23 | GR35: 24 | GS35: 1 | GT35: =IF(GS35=24,1,GS35+1) -> 2 | GU35: 3 | GV35: 4 | GW35: 5 | GX35: 6 | GY35: 7 | GZ35: 8 | HA35: 9 | HB35: 10 | HC35: 11 | HD35: 12 | HE35: 13 | HF35: 14 | HG35: 15 | HH35: 16 | HI35: 17 | HJ35: 18 | HK35: 19 | HL35: 20 | HM35: 21 | HN35: 22 | HO35: 23 | HP35: 24 | HQ35: 1 | HR35: 2 | HS35: 3 | HT35: 4 | HU35: 5 | HV35: 6 | HW35: 7 | HX35: 8 | HY35: 9 | HZ35: 10 | IA35: 11 | IB35: 12 | IC35: 13 | ID35: 14 | IE35: 15 | IF35: 16 | IG35: 17 | IH35: 18 | II35: 19 | IJ35: 20 | IK35: 21 | IL35: 22 | IM35: 23 | IN35: 24 | IO35: 1 | IP35: 2 | IQ35: 3 | IR35: 4 | IS35: 5 | IT35: 6 | IU35: 7 | IV35: 8 | IW35: 9 | IX35: 10 | IY35: 11 | IZ35: 12 | JA35: 13 | JB35: 14 | JC35: 15 | JD35: 16 | JE35: 17 | JF35: =IF(JE35=24,1,JE35+1) -> 18 | JG35: 19 | JH35: 20 | JI35: 21 | JJ35: 22 | JK35: 23 | JL35: 24 | JM35: 1 | JN35: 2 | JO35: 3 | JP35: 4 | JQ35: 5 | JR35: 6 | JS35: 7 | JT35: 8 | JU35: 9 | JV35: 10 | JW35: 11 | JX35: 12 | JY35: 13 | JZ35: 14 | KA35: 15 | KB35: 16 | KC35: 17 | KD35: 18 | KE35: 19 | KF35: 20 | KG35: 21 | KH35: 22 | KI35: 23 | KJ35: 24 | KK35: 1 | KL35: 2 | KM35: 3 | KN35: 4 | KO35: 5 | KP35: 6 | KQ35: 7 | KR35: 8 | KS35: 9 | KT35: 10 | KU35: 11 | KV35: 12 | KW35: 13 | KX35: 14 | KY35: 15 | KZ35: 16 | LA35: 17 | LB35: 18 | LC35: 19 | LD35: 20 | LE35: 21 | LF35: 22 | LG35: 23 | LH35: 24 | LI35: 1 | LJ35: 2 | LK35: 3 | LL35: 4 | LM35: 5 | LN35: 6 | LO35: 7 | LP35: 8 | LQ35: 9 | LR35: =IF(LQ35=24,1,LQ35+1) -> 10 | LS35: 11 | LT35: 12 | LU35: 13 | LV35: 14 | LW35: 15 | LX35: 16 | LY35: 17 | LZ35: 18 | MA35: 19 | MB35: 20 | MC35: 21 | MD35: 22 | ME35: 23 | MF35: 24 | MG35: 1 | MH35: 2 | MI35: 3 | MJ35: 4 | MK35: 5 | ML35: 6 | MM35: 7 | MN35: 8 | MO35: 9 | MP35: 10 | MQ35: 11 | MR35: 12 | MS35: 13 | MT35: 14 | MU35: 15 | MV35: 16 | MW35: 17 | MX35: 18 | MY35: 19 | MZ35: 20 | NA35: 21 | NB35: 22 | NC35: 23 | ND35: 24 | NE35: 1 | NF35: 2 | NG35: 3 | NH35: 4 | NI35: 5 | NJ35: 6 | NK35: 7 | NL35: 8 | NM35: 9 | NN35: 10 | NO35: 11 | NP35: 12 | NQ35: 13 | NR35: 14 | NS35: 15 | NT35: 16 | NU35: 17 | NV35: 18 | NW35: 19 | NX35: 20 | NY35: 21 | NZ35: 22 | OA35: 23 | OB35: 24 | OC35: 1 | OD35: =IF(OC35=24,1,OC35+1) -> 2 | OE35: 3 | OF35: 4 | OG35: 5 | OH35: 6 | OI35: 7 | OJ35: 8 | OK35: 9 | OL35: 10 | OM35: 11 | ON35: 12 | OO35: 13 | OP35: 14 | OQ35: 15 | OR35: 16 | OS35: 17 | OT35: 18 | OU35: 19 | OV35: 20 | OW35: 21 | OX35: 22 | OY35: 23 | OZ35: 24 | PA35: 1 | PB35: 2 | PC35: 3 | PD35: 4 | PE35: 5 | PF35: 6 | PG35: 7 | PH35: 8 | PI35: 9 | PJ35: 10 | PK35: 11 | PL35: 12 | PM35: 13 | PN35: 14 | PO35: 15 | PP35: 16 | PQ35: 17 | PR35: 18 | PS35: 19 | PT35: 20 | PU35: 21 | PV35: 22 | PW35: 23 | PX35: 24 | PY35: 1 | PZ35: 2 | QA35: 3 | QB35: 4 | QC35: 5 | QD35: 6 | QE35: 7 | QF35: 8 | QG35: 9 | QH35: 10 | QI35: 11 | QJ35: 12 | QK35: 13 | QL35: 14 | QM35: 15 | QN35: 16 | QO35: 17 | QP35: =IF(QO35=24,1,QO35+1) -> 18 | QQ35: 19 | QR35: 20 | QS35: 21 | QT35: 22 | QU35: 23 | QV35: 24 | QW35: 1 | QX35: 2 | QY35: 3 | QZ35: 4 | RA35: 5 | RB35: 6 | RC35: 7 | RD35: 8 | RE35: 9 | RF35: 10 | RG35: 11 | RH35: 12 | RI35: 13 | RJ35: 14 | RK35: 15 | RL35: 16 | RM35: 17 | RN35: 18 | RO35: 19 | RP35: 20 | RQ35: 21 | RR35: 22 | RS35: 23 | RT35: 24 | RU35: 1 | RV35: 2 | RW35: 3 | RX35: 4 | RY35: 5 | RZ35: 6 | SA35: 7 | SB35: 8 | SC35: 9 | SD35: 10 | SE35: 11 | SF35: 12 | SG35: 13 | SH35: 14 | SI35: 15 | SJ35: 16 | SK35: 17 | SL35: 18 | SM35: 19 | SN35: 20 | SO35: 21 | SP35: 22 | SQ35: 23 | SR35: 24 | SS35: 1 | ST35: 2 | SU35: 3 | SV35: 4 | SW35: 5 | SX35: 6 | SY35: 7 | SZ35: 8 | TA35: 9 | TB35: =IF(TA35=24,1,TA35+1) -> 10 | TC35: 11 | TD35: 12 | TE35: 13 | TF35: 14 | TG35: 15 | TH35: 16 | TI35: 17 | TJ35: 18 | TK35: 19 | TL35: 20 | TM35: 21 | TN35: 22 | TO35: 23 | TP35: 24 | TQ35: 1 | TR35: 2 | TS35: 3 | TT35: 4 | TU35: 5 | TV35: 6 | TW35: 7 | TX35: 8 | TY35: 9 | TZ35: 10 | UA35: 11 | UB35: 12 | UC35: 13 | UD35: 14 | UE35: 15 | UF35: 16 | UG35: 17 | UH35: 18 | UI35: 19 | UJ35: 20 | UK35: 21 | UL35: 22 | UM35: 23 | UN35: 24 | UO35: 1 | UP35: 2 | UQ35: 3 | UR35: 4 | US35: 5 | UT35: 6 | UU35: 7 | UV35: 8 | UW35: 9 | UX35: 10 | UY35: 11 | UZ35: 12 | VA35: 13 | VB35: 14 | VC35: 15 | VD35: 16 | VE35: 17 | VF35: 18 | VG35: 19 | VH35: 20 | VI35: 21 | VJ35: 22 | VK35: 23 | VL35: 24 | VM35: 1 | VN35: =IF(VM35=24,1,VM35+1) -> 2 | VO35: 3 | VP35: 4 | VQ35: 5 | VR35: 6 | VS35: 7 | VT35: 8 | VU35: 9 | VV35: 10 | VW35: 11 | VX35: 12 | VY35: 13 | VZ35: 14 | WA35: 15 | WB35: 16 | WC35: 17 | WD35: 18 | WE35: 19 | WF35: 20 | WG35: 21 | WH35: 22 | WI35: 23 | WJ35: 24 | WK35: 1 | WL35: 2 | WM35: 3 | WN35: 4 | WO35: 5 | WP35: 6 | WQ35: 7 | WR35: 8 | WS35: 9 | WT35: 10 | WU35: 11 | WV35: 12 | WW35: 13 | WX35: 14 | WY35: 15 | WZ35: 16 | XA35: 17 | XB35: 18 | XC35: 19 | XD35: 20 | XE35: 21 | XF35: 22 | XG35: 23 | XH35: 24 | XI35: 1 | XJ35: 2 | XK35: 3 | XL35: 4 | XM35: 5 | XN35: 6 | XO35: 7 | XP35: 8 | XQ35: 9 | XR35: 10 | XS35: 11 | XT35: 12 | XU35: 13 | XV35: 14 | XW35: 15 | XX35: 16 | XY35: 17 | XZ35: =IF(XY35=24,1,XY35+1) -> 18 | YA35: 19 | YB35: 20 | YC35: 21 | YD35: 22 | YE35: 23 | YF35: 24 | YG35: 1 | YH35: 2 | YI35: 3 | YJ35: 4 | YK35: 5 | YL35: 6 | YM35: 7 | YN35: 8 | YO35: 9 | YP35: 10 | YQ35: 11 | YR35: 12 | YS35: 13 | YT35: 14 | YU35: 15 | YV35: 16 | YW35: 17 | YX35: 18 | YY35: 19 | YZ35: 20 | ZA35: 21 | ZB35: 22 | ZC35: 23 | ZD35: 24 | ZE35: 1 | ZF35: 2 | ZG35: 3 | ZH35: 4 | ZI35: 5 | ZJ35: 6 | ZK35: 7 | ZL35: 8 | ZM35: 9 | ZN35: 10 | ZO35: 11 | ZP35: 12 | ZQ35: 13 | ZR35: 14 | ZS35: 15 | ZT35: 16 | ZU35: 17 | ZV35: 18 | ZW35: 19 | ZX35: 20 | ZY35: 21 | ZZ35: 22 | AAA35: 23 | AAB35: 24 | AAC35: 1 | AAD35: 2 | AAE35: 3 | AAF35: 4 | AAG35: 5 | AAH35: 6 | AAI35: 7 | AAJ35: 8 | AAK35: 9 | AAL35: =IF(AAK35=24,1,AAK35+1) -> 10 | AAM35: 11 | AAN35: 12 | AAO35: 13 | AAP35: 14 | AAQ35: 15 | AAR35: 16 | AAS35: 17 | AAT35: 18 | AAU35: 19 | AAV35: 20 | AAW35: 21 | AAX35: 22 | AAY35: 23
C36: Load Shape Code | H36: =LOOKUP(H33,Assumptions!40:40,Assumptions!41:41) -> 2 | I36: =LOOKUP(I33,Assumptions!40:40,Assumptions!41:41) -> 2 | J36: =LOOKUP(J33,Assumptions!40:40,Assumptions!41:41) -> 2 | K36: =LOOKUP(K33,Assumptions!40:40,Assumptions!41:41) -> 2 | L36: =LOOKUP(L33,Assumptions!40:40,Assumptions!41:41) -> 2 | M36: =LOOKUP(M33,Assumptions!40:40,Assumptions!41:41) -> 2 | N36: =LOOKUP(N33,Assumptions!40:40,Assumptions!41:41) -> 2 | O36: =LOOKUP(O33,Assumptions!40:40,Assumptions!41:41) -> 2 | P36: =LOOKUP(P33,Assumptions!40:40,Assumptions!41:41) -> 2 | Q36: =LOOKUP(Q33,Assumptions!40:40,Assumptions!41:41) -> 2 | R36: =LOOKUP(R33,Assumptions!40:40,Assumptions!41:41) -> 2 | S36: =LOOKUP(S33,Assumptions!40:40,Assumptions!41:41) -> 2 | T36: =LOOKUP(T33,Assumptions!40:40,Assumptions!41:41) -> 2 | U36: =LOOKUP(U33,Assumptions!40:40,Assumptions!41:41) -> 2 | V36: =LOOKUP(V33,Assumptions!40:40,Assumptions!41:41) -> 2 | W36: =LOOKUP(W33,Assumptions!40:40,Assumptions!41:41) -> 2 | X36: =LOOKUP(X33,Assumptions!40:40,Assumptions!41:41) -> 2 | Y36: =LOOKUP(Y33,Assumptions!40:40,Assumptions!41:41) -> 2 | Z36: =LOOKUP(Z33,Assumptions!40:40,Assumptions!41:41) -> 2 | AA36: =LOOKUP(AA33,Assumptions!40:40,Assumptions!41:41) -> 2 | AB36: =LOOKUP(AB33,Assumptions!40:40,Assumptions!41:41) -> 2 | AC36: =LOOKUP(AC33,Assumptions!40:40,Assumptions!41:41) -> 2 | AD36: =LOOKUP(AD33,Assumptions!40:40,Assumptions!41:41) -> 2 | AE36: =LOOKUP(AE33,Assumptions!40:40,Assumptions!41:41) -> 2 | AF36: =LOOKUP(AF33,Assumptions!40:40,Assumptions!41:41) -> 3 | AG36: =LOOKUP(AG33,Assumptions!40:40,Assumptions!41:41) -> 3 | AH36: =LOOKUP(AH33,Assumptions!40:40,Assumptions!41:41) -> 3 | AI36: =LOOKUP(AI33,Assumptions!40:40,Assumptions!41:41) -> 3 | AJ36: =LOOKUP(AJ33,Assumptions!40:40,Assumptions!41:41) -> 3 | AK36: =LOOKUP(AK33,Assumptions!40:40,Assumptions!41:41) -> 3 | AL36: =LOOKUP(AL33,Assumptions!40:40,Assumptions!41:41) -> 3 | AM36: =LOOKUP(AM33,Assumptions!40:40,Assumptions!41:41) -> 3 | AN36: =LOOKUP(AN33,Assumptions!40:40,Assumptions!41:41) -> 3 | AO36: =LOOKUP(AO33,Assumptions!40:40,Assumptions!41:41) -> 3 | AP36: =LOOKUP(AP33,Assumptions!40:40,Assumptions!41:41) -> 3 | AQ36: =LOOKUP(AQ33,Assumptions!40:40,Assumptions!41:41) -> 3 | AR36: =LOOKUP(AR33,Assumptions!40:40,Assumptions!41:41) -> 3 | AS36: =LOOKUP(AS33,Assumptions!40:40,Assumptions!41:41) -> 3 | AT36: =LOOKUP(AT33,Assumptions!40:40,Assumptions!41:41) -> 3 | AU36: =LOOKUP(AU33,Assumptions!40:40,Assumptions!41:41) -> 3 | AV36: =LOOKUP(AV33,Assumptions!40:40,Assumptions!41:41) -> 3 | AW36: =LOOKUP(AW33,Assumptions!40:40,Assumptions!41:41) -> 3 | AX36: =LOOKUP(AX33,Assumptions!40:40,Assumptions!41:41) -> 3 | AY36: =LOOKUP(AY33,Assumptions!40:40,Assumptions!41:41) -> 3 | AZ36: =LOOKUP(AZ33,Assumptions!40:40,Assumptions!41:41) -> 3 | BA36: =LOOKUP(BA33,Assumptions!40:40,Assumptions!41:41) -> 3 | BB36: =LOOKUP(BB33,Assumptions!40:40,Assumptions!41:41) -> 3 | BC36: =LOOKUP(BC33,Assumptions!40:40,Assumptions!41:41) -> 3 | BD36: =LOOKUP(BD33,Assumptions!40:40,Assumptions!41:41) -> 4 | BE36: =LOOKUP(BE33,Assumptions!40:40,Assumptions!41:41) -> 4 | BF36: =LOOKUP(BF33,Assumptions!40:40,Assumptions!41:41) -> 4 | BG36: =LOOKUP(BG33,Assumptions!40:40,Assumptions!41:41) -> 4 | BH36: =LOOKUP(BH33,Assumptions!40:40,Assumptions!41:41) -> 4 | BI36: =LOOKUP(BI33,Assumptions!40:40,Assumptions!41:41) -> 4 | BJ36: =LOOKUP(BJ33,Assumptions!40:40,Assumptions!41:41) -> 4 | BK36: =LOOKUP(BK33,Assumptions!40:40,Assumptions!41:41) -> 4 | BL36: =LOOKUP(BL33,Assumptions!40:40,Assumptions!41:41) -> 4 | BM36: =LOOKUP(BM33,Assumptions!40:40,Assumptions!41:41) -> 4 | BN36: =LOOKUP(BN33,Assumptions!40:40,Assumptions!41:41) -> 4 | BO36: =LOOKUP(BO33,Assumptions!40:40,Assumptions!41:41) -> 4 | BP36: =LOOKUP(BP33,Assumptions!40:40,Assumptions!41:41) -> 4 | BQ36: =LOOKUP(BQ33,Assumptions!40:40,Assumptions!41:41) -> 4 | BR36: =LOOKUP(BR33,Assumptions!40:40,Assumptions!41:41) -> 4 | BS36: =LOOKUP(BS33,Assumptions!40:40,Assumptions!41:41) -> 4 | BT36: =LOOKUP(BT33,Assumptions!40:40,Assumptions!41:41) -> 4 | BU36: =LOOKUP(BU33,Assumptions!40:40,Assumptions!41:41) -> 4 | BV36: =LOOKUP(BV33,Assumptions!40:40,Assumptions!41:41) -> 4 | BW36: =LOOKUP(BW33,Assumptions!40:40,Assumptions!41:41) -> 4 | BX36: =LOOKUP(BX33,Assumptions!40:40,Assumptions!41:41) -> 4 | BY36: =LOOKUP(BY33,Assumptions!40:40,Assumptions!41:41) -> 4 | BZ36: =LOOKUP(BZ33,Assumptions!40:40,Assumptions!41:41) -> 4 | CA36: =LOOKUP(CA33,Assumptions!40:40,Assumptions!41:41) -> 4 | CB36: =LOOKUP(CB33,Assumptions!40:40,Assumptions!41:41) -> 6 | CC36: =LOOKUP(CC33,Assumptions!40:40,Assumptions!41:41) -> 6 | CD36: =LOOKUP(CD33,Assumptions!40:40,Assumptions!41:41) -> 6 | CE36: =LOOKUP(CE33,Assumptions!40:40,Assumptions!41:41) -> 6 | CF36: =LOOKUP(CF33,Assumptions!40:40,Assumptions!41:41) -> 6 | CG36: =LOOKUP(CG33,Assumptions!40:40,Assumptions!41:41) -> 6 | CH36: =LOOKUP(CH33,Assumptions!40:40,Assumptions!41:41) -> 6 | CI36: =LOOKUP(CI33,Assumptions!40:40,Assumptions!41:41) -> 6 | CJ36: =LOOKUP(CJ33,Assumptions!40:40,Assumptions!41:41) -> 6 | CK36: =LOOKUP(CK33,Assumptions!40:40,Assumptions!41:41) -> 6 | CL36: =LOOKUP(CL33,Assumptions!40:40,Assumptions!41:41) -> 6 | CM36: =LOOKUP(CM33,Assumptions!40:40,Assumptions!41:41) -> 6 | CN36: =LOOKUP(CN33,Assumptions!40:40,Assumptions!41:41) -> 6 | CO36: =LOOKUP(CO33,Assumptions!40:40,Assumptions!41:41) -> 6 | CP36: =LOOKUP(CP33,Assumptions!40:40,Assumptions!41:41) -> 6 | CQ36: =LOOKUP(CQ33,Assumptions!40:40,Assumptions!41:41) -> 6 | CR36: =LOOKUP(CR33,Assumptions!40:40,Assumptions!41:41) -> 6 | CS36: =LOOKUP(CS33,Assumptions!40:40,Assumptions!41:41) -> 6 | CT36: =LOOKUP(CT33,Assumptions!40:40,Assumptions!41:41) -> 6 | CU36: =LOOKUP(CU33,Assumptions!40:40,Assumptions!41:41) -> 6 | CV36: =LOOKUP(CV33,Assumptions!40:40,Assumptions!41:41) -> 6 | CW36: =LOOKUP(CW33,Assumptions!40:40,Assumptions!41:41) -> 6 | CX36: =LOOKUP(CX33,Assumptions!40:40,Assumptions!41:41) -> 6 | CY36: =LOOKUP(CY33,Assumptions!40:40,Assumptions!41:41) -> 6 | CZ36: =LOOKUP(CZ33,Assumptions!40:40,Assumptions!41:41) -> 7 | DA36: =LOOKUP(DA33,Assumptions!40:40,Assumptions!41:41) -> 7 | DB36: =LOOKUP(DB33,Assumptions!40:40,Assumptions!41:41) -> 7 | DC36: =LOOKUP(DC33,Assumptions!40:40,Assumptions!41:41) -> 7 | DD36: =LOOKUP(DD33,Assumptions!40:40,Assumptions!41:41) -> 7 | DE36: =LOOKUP(DE33,Assumptions!40:40,Assumptions!41:41) -> 7 | DF36: =LOOKUP(DF33,Assumptions!40:40,Assumptions!41:41) -> 7 | DG36: =LOOKUP(DG33,Assumptions!40:40,Assumptions!41:41) -> 7 | DH36: =LOOKUP(DH33,Assumptions!40:40,Assumptions!41:41) -> 7 | DI36: =LOOKUP(DI33,Assumptions!40:40,Assumptions!41:41) -> 7 | DJ36: =LOOKUP(DJ33,Assumptions!40:40,Assumptions!41:41) -> 7 | DK36: =LOOKUP(DK33,Assumptions!40:40,Assumptions!41:41) -> 7 | DL36: =LOOKUP(DL33,Assumptions!40:40,Assumptions!41:41) -> 7 | DM36: =LOOKUP(DM33,Assumptions!40:40,Assumptions!41:41) -> 7 | DN36: =LOOKUP(DN33,Assumptions!40:40,Assumptions!41:41) -> 7 | DO36: =LOOKUP(DO33,Assumptions!40:40,Assumptions!41:41) -> 7 | DP36: =LOOKUP(DP33,Assumptions!40:40,Assumptions!41:41) -> 7 | DQ36: =LOOKUP(DQ33,Assumptions!40:40,Assumptions!41:41) -> 7 | DR36: =LOOKUP(DR33,Assumptions!40:40,Assumptions!41:41) -> 7 | DS36: =LOOKUP(DS33,Assumptions!40:40,Assumptions!41:41) -> 7 | DT36: =LOOKUP(DT33,Assumptions!40:40,Assumptions!41:41) -> 7 | DU36: =LOOKUP(DU33,Assumptions!40:40,Assumptions!41:41) -> 7 | DV36: =LOOKUP(DV33,Assumptions!40:40,Assumptions!41:41) -> 7 | DW36: =LOOKUP(DW33,Assumptions!40:40,Assumptions!41:41) -> 7 | DX36: =LOOKUP(DX33,Assumptions!40:40,Assumptions!41:41) -> 8 | DY36: =LOOKUP(DY33,Assumptions!40:40,Assumptions!41:41) -> 8 | DZ36: =LOOKUP(DZ33,Assumptions!40:40,Assumptions!41:41) -> 8 | EA36: =LOOKUP(EA33,Assumptions!40:40,Assumptions!41:41) -> 8 | EB36: =LOOKUP(EB33,Assumptions!40:40,Assumptions!41:41) -> 8 | EC36: =LOOKUP(EC33,Assumptions!40:40,Assumptions!41:41) -> 8 | ED36: =LOOKUP(ED33,Assumptions!40:40,Assumptions!41:41) -> 8 | EE36: =LOOKUP(EE33,Assumptions!40:40,Assumptions!41:41) -> 8 | EF36: =LOOKUP(EF33,Assumptions!40:40,Assumptions!41:41) -> 8 | EG36: =LOOKUP(EG33,Assumptions!40:40,Assumptions!41:41) -> 8 | EH36: =LOOKUP(EH33,Assumptions!40:40,Assumptions!41:41) -> 8 | EI36: =LOOKUP(EI33,Assumptions!40:40,Assumptions!41:41) -> 8 | EJ36: =LOOKUP(EJ33,Assumptions!40:40,Assumptions!41:41) -> 8 | EK36: =LOOKUP(EK33,Assumptions!40:40,Assumptions!41:41) -> 8 | EL36: =LOOKUP(EL33,Assumptions!40:40,Assumptions!41:41) -> 8 | EM36: =LOOKUP(EM33,Assumptions!40:40,Assumptions!41:41) -> 8 | EN36: =LOOKUP(EN33,Assumptions!40:40,Assumptions!41:41) -> 8 | EO36: =LOOKUP(EO33,Assumptions!40:40,Assumptions!41:41) -> 8 | EP36: =LOOKUP(EP33,Assumptions!40:40,Assumptions!41:41) -> 8 | EQ36: =LOOKUP(EQ33,Assumptions!40:40,Assumptions!41:41) -> 8 | ER36: =LOOKUP(ER33,Assumptions!40:40,Assumptions!41:41) -> 8 | ES36: =LOOKUP(ES33,Assumptions!40:40,Assumptions!41:41) -> 8 | ET36: =LOOKUP(ET33,Assumptions!40:40,Assumptions!41:41) -> 8 | EU36: =LOOKUP(EU33,Assumptions!40:40,Assumptions!41:41) -> 8 | EV36: =LOOKUP(EV33,Assumptions!40:40,Assumptions!41:41) -> 10 | EW36: =LOOKUP(EW33,Assumptions!40:40,Assumptions!41:41) -> 10 | EX36: =LOOKUP(EX33,Assumptions!40:40,Assumptions!41:41) -> 10 | EY36: =LOOKUP(EY33,Assumptions!40:40,Assumptions!41:41) -> 10 | EZ36: =LOOKUP(EZ33,Assumptions!40:40,Assumptions!41:41) -> 10 | FA36: =LOOKUP(FA33,Assumptions!40:40,Assumptions!41:41) -> 10 | FB36: =LOOKUP(FB33,Assumptions!40:40,Assumptions!41:41) -> 10 | FC36: =LOOKUP(FC33,Assumptions!40:40,Assumptions!41:41) -> 10 | FD36: =LOOKUP(FD33,Assumptions!40:40,Assumptions!41:41) -> 10 | FE36: =LOOKUP(FE33,Assumptions!40:40,Assumptions!41:41) -> 10 | FF36: =LOOKUP(FF33,Assumptions!40:40,Assumptions!41:41) -> 10 | FG36: =LOOKUP(FG33,Assumptions!40:40,Assumptions!41:41) -> 10 | FH36: =LOOKUP(FH33,Assumptions!40:40,Assumptions!41:41) -> 10 | FI36: =LOOKUP(FI33,Assumptions!40:40,Assumptions!41:41) -> 10 | FJ36: =LOOKUP(FJ33,Assumptions!40:40,Assumptions!41:41) -> 10 | FK36: =LOOKUP(FK33,Assumptions!40:40,Assumptions!41:41) -> 10 | FL36: =LOOKUP(FL33,Assumptions!40:40,Assumptions!41:41) -> 10 | FM36: =LOOKUP(FM33,Assumptions!40:40,Assumptions!41:41) -> 10 | FN36: =LOOKUP(FN33,Assumptions!40:40,Assumptions!41:41) -> 10 | FO36: =LOOKUP(FO33,Assumptions!40:40,Assumptions!41:41) -> 10 | FP36: =LOOKUP(FP33,Assumptions!40:40,Assumptions!41:41) -> 10 | FQ36: =LOOKUP(FQ33,Assumptions!40:40,Assumptions!41:41) -> 10 | FR36: =LOOKUP(FR33,Assumptions!40:40,Assumptions!41:41) -> 10 | FS36: =LOOKUP(FS33,Assumptions!40:40,Assumptions!41:41) -> 10 | FT36: =LOOKUP(FT33,Assumptions!40:40,Assumptions!41:41) -> 11 | FU36: =LOOKUP(FU33,Assumptions!40:40,Assumptions!41:41) -> 11 | FV36: =LOOKUP(FV33,Assumptions!40:40,Assumptions!41:41) -> 11 | FW36: =LOOKUP(FW33,Assumptions!40:40,Assumptions!41:41) -> 11 | FX36: =LOOKUP(FX33,Assumptions!40:40,Assumptions!41:41) -> 11 | FY36: =LOOKUP(FY33,Assumptions!40:40,Assumptions!41:41) -> 11 | FZ36: =LOOKUP(FZ33,Assumptions!40:40,Assumptions!41:41) -> 11 | GA36: =LOOKUP(GA33,Assumptions!40:40,Assumptions!41:41) -> 11 | GB36: =LOOKUP(GB33,Assumptions!40:40,Assumptions!41:41) -> 11 | GC36: =LOOKUP(GC33,Assumptions!40:40,Assumptions!41:41) -> 11 | GD36: =LOOKUP(GD33,Assumptions!40:40,Assumptions!41:41) -> 11 | GE36: =LOOKUP(GE33,Assumptions!40:40,Assumptions!41:41) -> 11 | GF36: =LOOKUP(GF33,Assumptions!40:40,Assumptions!41:41) -> 11 | GG36: =LOOKUP(GG33,Assumptions!40:40,Assumptions!41:41) -> 11 | GH36: =LOOKUP(GH33,Assumptions!40:40,Assumptions!41:41) -> 11 | GI36: =LOOKUP(GI33,Assumptions!40:40,Assumptions!41:41) -> 11 | GJ36: =LOOKUP(GJ33,Assumptions!40:40,Assumptions!41:41) -> 11 | GK36: =LOOKUP(GK33,Assumptions!40:40,Assumptions!41:41) -> 11 | GL36: =LOOKUP(GL33,Assumptions!40:40,Assumptions!41:41) -> 11 | GM36: =LOOKUP(GM33,Assumptions!40:40,Assumptions!41:41) -> 11 | GN36: =LOOKUP(GN33,Assumptions!40:40,Assumptions!41:41) -> 11 | GO36: =LOOKUP(GO33,Assumptions!40:40,Assumptions!41:41) -> 11 | GP36: =LOOKUP(GP33,Assumptions!40:40,Assumptions!41:41) -> 11 | GQ36: =LOOKUP(GQ33,Assumptions!40:40,Assumptions!41:41) -> 11 | GR36: =LOOKUP(GR33,Assumptions!40:40,Assumptions!41:41) -> 12 | GS36: =LOOKUP(GS33,Assumptions!40:40,Assumptions!41:41) -> 12 | GT36: =LOOKUP(GT33,Assumptions!40:40,Assumptions!41:41) -> 12 | GU36: =LOOKUP(GU33,Assumptions!40:40,Assumptions!41:41) -> 12 | GV36: =LOOKUP(GV33,Assumptions!40:40,Assumptions!41:41) -> 12 | GW36: =LOOKUP(GW33,Assumptions!40:40,Assumptions!41:41) -> 12 | GX36: =LOOKUP(GX33,Assumptions!40:40,Assumptions!41:41) -> 12 | GY36: =LOOKUP(GY33,Assumptions!40:40,Assumptions!41:41) -> 12 | GZ36: =LOOKUP(GZ33,Assumptions!40:40,Assumptions!41:41) -> 12 | HA36: =LOOKUP(HA33,Assumptions!40:40,Assumptions!41:41) -> 12 | HB36: =LOOKUP(HB33,Assumptions!40:40,Assumptions!41:41) -> 12 | HC36: =LOOKUP(HC33,Assumptions!40:40,Assumptions!41:41) -> 12 | HD36: =LOOKUP(HD33,Assumptions!40:40,Assumptions!41:41) -> 12 | HE36: =LOOKUP(HE33,Assumptions!40:40,Assumptions!41:41) -> 12 | HF36: =LOOKUP(HF33,Assumptions!40:40,Assumptions!41:41) -> 12 | HG36: =LOOKUP(HG33,Assumptions!40:40,Assumptions!41:41) -> 12 | HH36: =LOOKUP(HH33,Assumptions!40:40,Assumptions!41:41) -> 12 | HI36: =LOOKUP(HI33,Assumptions!40:40,Assumptions!41:41) -> 12 | HJ36: =LOOKUP(HJ33,Assumptions!40:40,Assumptions!41:41) -> 12 | HK36: =LOOKUP(HK33,Assumptions!40:40,Assumptions!41:41) -> 12 | HL36: =LOOKUP(HL33,Assumptions!40:40,Assumptions!41:41) -> 12 | HM36: =LOOKUP(HM33,Assumptions!40:40,Assumptions!41:41) -> 12 | HN36: =LOOKUP(HN33,Assumptions!40:40,Assumptions!41:41) -> 12 | HO36: =LOOKUP(HO33,Assumptions!40:40,Assumptions!41:41) -> 12 | HP36: =LOOKUP(HP33,Assumptions!40:40,Assumptions!41:41) -> 2 | HQ36: =LOOKUP(HQ33,Assumptions!40:40,Assumptions!41:41) -> 2 | HR36: =LOOKUP(HR33,Assumptions!40:40,Assumptions!41:41) -> 2 | HS36: =LOOKUP(HS33,Assumptions!40:40,Assumptions!41:41) -> 2 | HT36: =LOOKUP(HT33,Assumptions!40:40,Assumptions!41:41) -> 2 | HU36: =LOOKUP(HU33,Assumptions!40:40,Assumptions!41:41) -> 2 | HV36: =LOOKUP(HV33,Assumptions!40:40,Assumptions!41:41) -> 2 | HW36: =LOOKUP(HW33,Assumptions!40:40,Assumptions!41:41) -> 2 | HX36: =LOOKUP(HX33,Assumptions!40:40,Assumptions!41:41) -> 2 | HY36: =LOOKUP(HY33,Assumptions!40:40,Assumptions!41:41) -> 2 | HZ36: =LOOKUP(HZ33,Assumptions!40:40,Assumptions!41:41) -> 2 | IA36: =LOOKUP(IA33,Assumptions!40:40,Assumptions!41:41) -> 2 | IB36: =LOOKUP(IB33,Assumptions!40:40,Assumptions!41:41) -> 2 | IC36: =LOOKUP(IC33,Assumptions!40:40,Assumptions!41:41) -> 2 | ID36: =LOOKUP(ID33,Assumptions!40:40,Assumptions!41:41) -> 2 | IE36: =LOOKUP(IE33,Assumptions!40:40,Assumptions!41:41) -> 2 | IF36: =LOOKUP(IF33,Assumptions!40:40,Assumptions!41:41) -> 2 | IG36: =LOOKUP(IG33,Assumptions!40:40,Assumptions!41:41) -> 2 | IH36: =LOOKUP(IH33,Assumptions!40:40,Assumptions!41:41) -> 2 | II36: =LOOKUP(II33,Assumptions!40:40,Assumptions!41:41) -> 2 | IJ36: =LOOKUP(IJ33,Assumptions!40:40,Assumptions!41:41) -> 2 | IK36: =LOOKUP(IK33,Assumptions!40:40,Assumptions!41:41) -> 2 | IL36: =LOOKUP(IL33,Assumptions!40:40,Assumptions!41:41) -> 2 | IM36: =LOOKUP(IM33,Assumptions!40:40,Assumptions!41:41) -> 2 | IN36: =LOOKUP(IN33,Assumptions!40:40,Assumptions!41:41) -> 3 | IO36: =LOOKUP(IO33,Assumptions!40:40,Assumptions!41:41) -> 3 | IP36: =LOOKUP(IP33,Assumptions!40:40,Assumptions!41:41) -> 3 | IQ36: =LOOKUP(IQ33,Assumptions!40:40,Assumptions!41:41) -> 3 | IR36: =LOOKUP(IR33,Assumptions!40:40,Assumptions!41:41) -> 3 | IS36: =LOOKUP(IS33,Assumptions!40:40,Assumptions!41:41) -> 3 | IT36: =LOOKUP(IT33,Assumptions!40:40,Assumptions!41:41) -> 3 | IU36: =LOOKUP(IU33,Assumptions!40:40,Assumptions!41:41) -> 3 | IV36: =LOOKUP(IV33,Assumptions!40:40,Assumptions!41:41) -> 3 | IW36: =LOOKUP(IW33,Assumptions!40:40,Assumptions!41:41) -> 3 | IX36: =LOOKUP(IX33,Assumptions!40:40,Assumptions!41:41) -> 3 | IY36: =LOOKUP(IY33,Assumptions!40:40,Assumptions!41:41) -> 3 | IZ36: =LOOKUP(IZ33,Assumptions!40:40,Assumptions!41:41) -> 3 | JA36: =LOOKUP(JA33,Assumptions!40:40,Assumptions!41:41) -> 3 | JB36: =LOOKUP(JB33,Assumptions!40:40,Assumptions!41:41) -> 3 | JC36: =LOOKUP(JC33,Assumptions!40:40,Assumptions!41:41) -> 3 | JD36: =LOOKUP(JD33,Assumptions!40:40,Assumptions!41:41) -> 3 | JE36: =LOOKUP(JE33,Assumptions!40:40,Assumptions!41:41) -> 3 | JF36: =LOOKUP(JF33,Assumptions!40:40,Assumptions!41:41) -> 3 | JG36: =LOOKUP(JG33,Assumptions!40:40,Assumptions!41:41) -> 3 | JH36: =LOOKUP(JH33,Assumptions!40:40,Assumptions!41:41) -> 3 | JI36: =LOOKUP(JI33,Assumptions!40:40,Assumptions!41:41) -> 3 | JJ36: =LOOKUP(JJ33,Assumptions!40:40,Assumptions!41:41) -> 3 | JK36: =LOOKUP(JK33,Assumptions!40:40,Assumptions!41:41) -> 3 | JL36: =LOOKUP(JL33,Assumptions!40:40,Assumptions!41:41) -> 4 | JM36: =LOOKUP(JM33,Assumptions!40:40,Assumptions!41:41) -> 4 | JN36: =LOOKUP(JN33,Assumptions!40:40,Assumptions!41:41) -> 4 | JO36: =LOOKUP(JO33,Assumptions!40:40,Assumptions!41:41) -> 4 | JP36: =LOOKUP(JP33,Assumptions!40:40,Assumptions!41:41) -> 4 | JQ36: =LOOKUP(JQ33,Assumptions!40:40,Assumptions!41:41) -> 4 | JR36: =LOOKUP(JR33,Assumptions!40:40,Assumptions!41:41) -> 4 | JS36: =LOOKUP(JS33,Assumptions!40:40,Assumptions!41:41) -> 4 | JT36: =LOOKUP(JT33,Assumptions!40:40,Assumptions!41:41) -> 4 | JU36: =LOOKUP(JU33,Assumptions!40:40,Assumptions!41:41) -> 4 | JV36: =LOOKUP(JV33,Assumptions!40:40,Assumptions!41:41) -> 4 | JW36: =LOOKUP(JW33,Assumptions!40:40,Assumptions!41:41) -> 4 | JX36: =LOOKUP(JX33,Assumptions!40:40,Assumptions!41:41) -> 4 | JY36: =LOOKUP(JY33,Assumptions!40:40,Assumptions!41:41) -> 4 | JZ36: =LOOKUP(JZ33,Assumptions!40:40,Assumptions!41:41) -> 4 | KA36: =LOOKUP(KA33,Assumptions!40:40,Assumptions!41:41) -> 4 | KB36: =LOOKUP(KB33,Assumptions!40:40,Assumptions!41:41) -> 4 | KC36: =LOOKUP(KC33,Assumptions!40:40,Assumptions!41:41) -> 4 | KD36: =LOOKUP(KD33,Assumptions!40:40,Assumptions!41:41) -> 4 | KE36: =LOOKUP(KE33,Assumptions!40:40,Assumptions!41:41) -> 4 | KF36: =LOOKUP(KF33,Assumptions!40:40,Assumptions!41:41) -> 4 | KG36: =LOOKUP(KG33,Assumptions!40:40,Assumptions!41:41) -> 4 | KH36: =LOOKUP(KH33,Assumptions!40:40,Assumptions!41:41) -> 4 | KI36: =LOOKUP(KI33,Assumptions!40:40,Assumptions!41:41) -> 4 | KJ36: =LOOKUP(KJ33,Assumptions!40:40,Assumptions!41:41) -> 6 | KK36: =LOOKUP(KK33,Assumptions!40:40,Assumptions!41:41) -> 6 | KL36: =LOOKUP(KL33,Assumptions!40:40,Assumptions!41:41) -> 6 | KM36: =LOOKUP(KM33,Assumptions!40:40,Assumptions!41:41) -> 6 | KN36: =LOOKUP(KN33,Assumptions!40:40,Assumptions!41:41) -> 6 | KO36: =LOOKUP(KO33,Assumptions!40:40,Assumptions!41:41) -> 6 | KP36: =LOOKUP(KP33,Assumptions!40:40,Assumptions!41:41) -> 6 | KQ36: =LOOKUP(KQ33,Assumptions!40:40,Assumptions!41:41) -> 6 | KR36: =LOOKUP(KR33,Assumptions!40:40,Assumptions!41:41) -> 6 | KS36: =LOOKUP(KS33,Assumptions!40:40,Assumptions!41:41) -> 6 | KT36: =LOOKUP(KT33,Assumptions!40:40,Assumptions!41:41) -> 6 | KU36: =LOOKUP(KU33,Assumptions!40:40,Assumptions!41:41) -> 6 | KV36: =LOOKUP(KV33,Assumptions!40:40,Assumptions!41:41) -> 6 | KW36: =LOOKUP(KW33,Assumptions!40:40,Assumptions!41:41) -> 6 | KX36: =LOOKUP(KX33,Assumptions!40:40,Assumptions!41:41) -> 6 | KY36: =LOOKUP(KY33,Assumptions!40:40,Assumptions!41:41) -> 6 | KZ36: =LOOKUP(KZ33,Assumptions!40:40,Assumptions!41:41) -> 6 | LA36: =LOOKUP(LA33,Assumptions!40:40,Assumptions!41:41) -> 6 | LB36: =LOOKUP(LB33,Assumptions!40:40,Assumptions!41:41) -> 6 | LC36: =LOOKUP(LC33,Assumptions!40:40,Assumptions!41:41) -> 6 | LD36: =LOOKUP(LD33,Assumptions!40:40,Assumptions!41:41) -> 6 | LE36: =LOOKUP(LE33,Assumptions!40:40,Assumptions!41:41) -> 6 | LF36: =LOOKUP(LF33,Assumptions!40:40,Assumptions!41:41) -> 6 | LG36: =LOOKUP(LG33,Assumptions!40:40,Assumptions!41:41) -> 6 | LH36: =LOOKUP(LH33,Assumptions!40:40,Assumptions!41:41) -> 7 | LI36: =LOOKUP(LI33,Assumptions!40:40,Assumptions!41:41) -> 7 | LJ36: =LOOKUP(LJ33,Assumptions!40:40,Assumptions!41:41) -> 7 | LK36: =LOOKUP(LK33,Assumptions!40:40,Assumptions!41:41) -> 7 | LL36: =LOOKUP(LL33,Assumptions!40:40,Assumptions!41:41) -> 7 | LM36: =LOOKUP(LM33,Assumptions!40:40,Assumptions!41:41) -> 7 | LN36: =LOOKUP(LN33,Assumptions!40:40,Assumptions!41:41) -> 7 | LO36: =LOOKUP(LO33,Assumptions!40:40,Assumptions!41:41) -> 7 | LP36: =LOOKUP(LP33,Assumptions!40:40,Assumptions!41:41) -> 7 | LQ36: =LOOKUP(LQ33,Assumptions!40:40,Assumptions!41:41) -> 7 | LR36: =LOOKUP(LR33,Assumptions!40:40,Assumptions!41:41) -> 7 | LS36: =LOOKUP(LS33,Assumptions!40:40,Assumptions!41:41) -> 7 | LT36: =LOOKUP(LT33,Assumptions!40:40,Assumptions!41:41) -> 7 | LU36: =LOOKUP(LU33,Assumptions!40:40,Assumptions!41:41) -> 7 | LV36: =LOOKUP(LV33,Assumptions!40:40,Assumptions!41:41) -> 7 | LW36: =LOOKUP(LW33,Assumptions!40:40,Assumptions!41:41) -> 7 | LX36: =LOOKUP(LX33,Assumptions!40:40,Assumptions!41:41) -> 7 | LY36: =LOOKUP(LY33,Assumptions!40:40,Assumptions!41:41) -> 7 | LZ36: =LOOKUP(LZ33,Assumptions!40:40,Assumptions!41:41) -> 7 | MA36: =LOOKUP(MA33,Assumptions!40:40,Assumptions!41:41) -> 7 | MB36: =LOOKUP(MB33,Assumptions!40:40,Assumptions!41:41) -> 7 | MC36: =LOOKUP(MC33,Assumptions!40:40,Assumptions!41:41) -> 7 | MD36: =LOOKUP(MD33,Assumptions!40:40,Assumptions!41:41) -> 7 | ME36: =LOOKUP(ME33,Assumptions!40:40,Assumptions!41:41) -> 7 | MF36: =LOOKUP(MF33,Assumptions!40:40,Assumptions!41:41) -> 8 | MG36: =LOOKUP(MG33,Assumptions!40:40,Assumptions!41:41) -> 8 | MH36: =LOOKUP(MH33,Assumptions!40:40,Assumptions!41:41) -> 8 | MI36: =LOOKUP(MI33,Assumptions!40:40,Assumptions!41:41) -> 8 | MJ36: =LOOKUP(MJ33,Assumptions!40:40,Assumptions!41:41) -> 8 | MK36: =LOOKUP(MK33,Assumptions!40:40,Assumptions!41:41) -> 8 | ML36: =LOOKUP(ML33,Assumptions!40:40,Assumptions!41:41) -> 8 | MM36: =LOOKUP(MM33,Assumptions!40:40,Assumptions!41:41) -> 8 | MN36: =LOOKUP(MN33,Assumptions!40:40,Assumptions!41:41) -> 8 | MO36: =LOOKUP(MO33,Assumptions!40:40,Assumptions!41:41) -> 8 | MP36: =LOOKUP(MP33,Assumptions!40:40,Assumptions!41:41) -> 8 | MQ36: =LOOKUP(MQ33,Assumptions!40:40,Assumptions!41:41) -> 8 | MR36: =LOOKUP(MR33,Assumptions!40:40,Assumptions!41:41) -> 8 | MS36: =LOOKUP(MS33,Assumptions!40:40,Assumptions!41:41) -> 8 | MT36: =LOOKUP(MT33,Assumptions!40:40,Assumptions!41:41) -> 8 | MU36: =LOOKUP(MU33,Assumptions!40:40,Assumptions!41:41) -> 8 | MV36: =LOOKUP(MV33,Assumptions!40:40,Assumptions!41:41) -> 8 | MW36: =LOOKUP(MW33,Assumptions!40:40,Assumptions!41:41) -> 8 | MX36: =LOOKUP(MX33,Assumptions!40:40,Assumptions!41:41) -> 8 | MY36: =LOOKUP(MY33,Assumptions!40:40,Assumptions!41:41) -> 8 | MZ36: =LOOKUP(MZ33,Assumptions!40:40,Assumptions!41:41) -> 8 | NA36: =LOOKUP(NA33,Assumptions!40:40,Assumptions!41:41) -> 8 | NB36: =LOOKUP(NB33,Assumptions!40:40,Assumptions!41:41) -> 8 | NC36: =LOOKUP(NC33,Assumptions!40:40,Assumptions!41:41) -> 8 | ND36: =LOOKUP(ND33,Assumptions!40:40,Assumptions!41:41) -> 10 | NE36: =LOOKUP(NE33,Assumptions!40:40,Assumptions!41:41) -> 10 | NF36: =LOOKUP(NF33,Assumptions!40:40,Assumptions!41:41) -> 10 | NG36: =LOOKUP(NG33,Assumptions!40:40,Assumptions!41:41) -> 10 | NH36: =LOOKUP(NH33,Assumptions!40:40,Assumptions!41:41) -> 10 | NI36: =LOOKUP(NI33,Assumptions!40:40,Assumptions!41:41) -> 10 | NJ36: =LOOKUP(NJ33,Assumptions!40:40,Assumptions!41:41) -> 10 | NK36: =LOOKUP(NK33,Assumptions!40:40,Assumptions!41:41) -> 10 | NL36: =LOOKUP(NL33,Assumptions!40:40,Assumptions!41:41) -> 10 | NM36: =LOOKUP(NM33,Assumptions!40:40,Assumptions!41:41) -> 10 | NN36: =LOOKUP(NN33,Assumptions!40:40,Assumptions!41:41) -> 10 | NO36: =LOOKUP(NO33,Assumptions!40:40,Assumptions!41:41) -> 10 | NP36: =LOOKUP(NP33,Assumptions!40:40,Assumptions!41:41) -> 10 | NQ36: =LOOKUP(NQ33,Assumptions!40:40,Assumptions!41:41) -> 10 | NR36: =LOOKUP(NR33,Assumptions!40:40,Assumptions!41:41) -> 10 | NS36: =LOOKUP(NS33,Assumptions!40:40,Assumptions!41:41) -> 10 | NT36: =LOOKUP(NT33,Assumptions!40:40,Assumptions!41:41) -> 10 | NU36: =LOOKUP(NU33,Assumptions!40:40,Assumptions!41:41) -> 10 | NV36: =LOOKUP(NV33,Assumptions!40:40,Assumptions!41:41) -> 10 | NW36: =LOOKUP(NW33,Assumptions!40:40,Assumptions!41:41) -> 10 | NX36: =LOOKUP(NX33,Assumptions!40:40,Assumptions!41:41) -> 10 | NY36: =LOOKUP(NY33,Assumptions!40:40,Assumptions!41:41) -> 10 | NZ36: =LOOKUP(NZ33,Assumptions!40:40,Assumptions!41:41) -> 10 | OA36: =LOOKUP(OA33,Assumptions!40:40,Assumptions!41:41) -> 10 | OB36: =LOOKUP(OB33,Assumptions!40:40,Assumptions!41:41) -> 11 | OC36: =LOOKUP(OC33,Assumptions!40:40,Assumptions!41:41) -> 11 | OD36: =LOOKUP(OD33,Assumptions!40:40,Assumptions!41:41) -> 11 | OE36: =LOOKUP(OE33,Assumptions!40:40,Assumptions!41:41) -> 11 | OF36: =LOOKUP(OF33,Assumptions!40:40,Assumptions!41:41) -> 11 | OG36: =LOOKUP(OG33,Assumptions!40:40,Assumptions!41:41) -> 11 | OH36: =LOOKUP(OH33,Assumptions!40:40,Assumptions!41:41) -> 11 | OI36: =LOOKUP(OI33,Assumptions!40:40,Assumptions!41:41) -> 11 | OJ36: =LOOKUP(OJ33,Assumptions!40:40,Assumptions!41:41) -> 11 | OK36: =LOOKUP(OK33,Assumptions!40:40,Assumptions!41:41) -> 11 | OL36: =LOOKUP(OL33,Assumptions!40:40,Assumptions!41:41) -> 11 | OM36: =LOOKUP(OM33,Assumptions!40:40,Assumptions!41:41) -> 11 | ON36: =LOOKUP(ON33,Assumptions!40:40,Assumptions!41:41) -> 11 | OO36: =LOOKUP(OO33,Assumptions!40:40,Assumptions!41:41) -> 11 | OP36: =LOOKUP(OP33,Assumptions!40:40,Assumptions!41:41) -> 11 | OQ36: =LOOKUP(OQ33,Assumptions!40:40,Assumptions!41:41) -> 11 | OR36: =LOOKUP(OR33,Assumptions!40:40,Assumptions!41:41) -> 11 | OS36: =LOOKUP(OS33,Assumptions!40:40,Assumptions!41:41) -> 11 | OT36: =LOOKUP(OT33,Assumptions!40:40,Assumptions!41:41) -> 11 | OU36: =LOOKUP(OU33,Assumptions!40:40,Assumptions!41:41) -> 11 | OV36: =LOOKUP(OV33,Assumptions!40:40,Assumptions!41:41) -> 11 | OW36: =LOOKUP(OW33,Assumptions!40:40,Assumptions!41:41) -> 11 | OX36: =LOOKUP(OX33,Assumptions!40:40,Assumptions!41:41) -> 11 | OY36: =LOOKUP(OY33,Assumptions!40:40,Assumptions!41:41) -> 11 | OZ36: =LOOKUP(OZ33,Assumptions!40:40,Assumptions!41:41) -> 12 | PA36: =LOOKUP(PA33,Assumptions!40:40,Assumptions!41:41) -> 12 | PB36: =LOOKUP(PB33,Assumptions!40:40,Assumptions!41:41) -> 12 | PC36: =LOOKUP(PC33,Assumptions!40:40,Assumptions!41:41) -> 12 | PD36: =LOOKUP(PD33,Assumptions!40:40,Assumptions!41:41) -> 12 | PE36: =LOOKUP(PE33,Assumptions!40:40,Assumptions!41:41) -> 12 | PF36: =LOOKUP(PF33,Assumptions!40:40,Assumptions!41:41) -> 12 | PG36: =LOOKUP(PG33,Assumptions!40:40,Assumptions!41:41) -> 12 | PH36: =LOOKUP(PH33,Assumptions!40:40,Assumptions!41:41) -> 12 | PI36: =LOOKUP(PI33,Assumptions!40:40,Assumptions!41:41) -> 12 | PJ36: =LOOKUP(PJ33,Assumptions!40:40,Assumptions!41:41) -> 12 | PK36: =LOOKUP(PK33,Assumptions!40:40,Assumptions!41:41) -> 12 | PL36: =LOOKUP(PL33,Assumptions!40:40,Assumptions!41:41) -> 12 | PM36: =LOOKUP(PM33,Assumptions!40:40,Assumptions!41:41) -> 12 | PN36: =LOOKUP(PN33,Assumptions!40:40,Assumptions!41:41) -> 12 | PO36: =LOOKUP(PO33,Assumptions!40:40,Assumptions!41:41) -> 12 | PP36: =LOOKUP(PP33,Assumptions!40:40,Assumptions!41:41) -> 12 | PQ36: =LOOKUP(PQ33,Assumptions!40:40,Assumptions!41:41) -> 12 | PR36: =LOOKUP(PR33,Assumptions!40:40,Assumptions!41:41) -> 12 | PS36: =LOOKUP(PS33,Assumptions!40:40,Assumptions!41:41) -> 12 | PT36: =LOOKUP(PT33,Assumptions!40:40,Assumptions!41:41) -> 12 | PU36: =LOOKUP(PU33,Assumptions!40:40,Assumptions!41:41) -> 12 | PV36: =LOOKUP(PV33,Assumptions!40:40,Assumptions!41:41) -> 12 | PW36: =LOOKUP(PW33,Assumptions!40:40,Assumptions!41:41) -> 12 | PX36: =LOOKUP(PX33,Assumptions!40:40,Assumptions!41:41) -> 2 | PY36: =LOOKUP(PY33,Assumptions!40:40,Assumptions!41:41) -> 2 | PZ36: =LOOKUP(PZ33,Assumptions!40:40,Assumptions!41:41) -> 2 | QA36: =LOOKUP(QA33,Assumptions!40:40,Assumptions!41:41) -> 2 | QB36: =LOOKUP(QB33,Assumptions!40:40,Assumptions!41:41) -> 2 | QC36: =LOOKUP(QC33,Assumptions!40:40,Assumptions!41:41) -> 2 | QD36: =LOOKUP(QD33,Assumptions!40:40,Assumptions!41:41) -> 2 | QE36: =LOOKUP(QE33,Assumptions!40:40,Assumptions!41:41) -> 2 | QF36: =LOOKUP(QF33,Assumptions!40:40,Assumptions!41:41) -> 2 | QG36: =LOOKUP(QG33,Assumptions!40:40,Assumptions!41:41) -> 2 | QH36: =LOOKUP(QH33,Assumptions!40:40,Assumptions!41:41) -> 2 | QI36: =LOOKUP(QI33,Assumptions!40:40,Assumptions!41:41) -> 2 | QJ36: =LOOKUP(QJ33,Assumptions!40:40,Assumptions!41:41) -> 2 | QK36: =LOOKUP(QK33,Assumptions!40:40,Assumptions!41:41) -> 2 | QL36: =LOOKUP(QL33,Assumptions!40:40,Assumptions!41:41) -> 2 | QM36: =LOOKUP(QM33,Assumptions!40:40,Assumptions!41:41) -> 2 | QN36: =LOOKUP(QN33,Assumptions!40:40,Assumptions!41:41) -> 2 | QO36: =LOOKUP(QO33,Assumptions!40:40,Assumptions!41:41) -> 2 | QP36: =LOOKUP(QP33,Assumptions!40:40,Assumptions!41:41) -> 2 | QQ36: =LOOKUP(QQ33,Assumptions!40:40,Assumptions!41:41) -> 2 | QR36: =LOOKUP(QR33,Assumptions!40:40,Assumptions!41:41) -> 2 | QS36: =LOOKUP(QS33,Assumptions!40:40,Assumptions!41:41) -> 2 | QT36: =LOOKUP(QT33,Assumptions!40:40,Assumptions!41:41) -> 2 | QU36: =LOOKUP(QU33,Assumptions!40:40,Assumptions!41:41) -> 2 | QV36: =LOOKUP(QV33,Assumptions!40:40,Assumptions!41:41) -> 3 | QW36: =LOOKUP(QW33,Assumptions!40:40,Assumptions!41:41) -> 3 | QX36: =LOOKUP(QX33,Assumptions!40:40,Assumptions!41:41) -> 3 | QY36: =LOOKUP(QY33,Assumptions!40:40,Assumptions!41:41) -> 3 | QZ36: =LOOKUP(QZ33,Assumptions!40:40,Assumptions!41:41) -> 3 | RA36: =LOOKUP(RA33,Assumptions!40:40,Assumptions!41:41) -> 3 | RB36: =LOOKUP(RB33,Assumptions!40:40,Assumptions!41:41) -> 3 | RC36: =LOOKUP(RC33,Assumptions!40:40,Assumptions!41:41) -> 3 | RD36: =LOOKUP(RD33,Assumptions!40:40,Assumptions!41:41) -> 3 | RE36: =LOOKUP(RE33,Assumptions!40:40,Assumptions!41:41) -> 3 | RF36: =LOOKUP(RF33,Assumptions!40:40,Assumptions!41:41) -> 3 | RG36: =LOOKUP(RG33,Assumptions!40:40,Assumptions!41:41) -> 3 | RH36: =LOOKUP(RH33,Assumptions!40:40,Assumptions!41:41) -> 3 | RI36: =LOOKUP(RI33,Assumptions!40:40,Assumptions!41:41) -> 3 | RJ36: =LOOKUP(RJ33,Assumptions!40:40,Assumptions!41:41) -> 3 | RK36: =LOOKUP(RK33,Assumptions!40:40,Assumptions!41:41) -> 3 | RL36: =LOOKUP(RL33,Assumptions!40:40,Assumptions!41:41) -> 3 | RM36: =LOOKUP(RM33,Assumptions!40:40,Assumptions!41:41) -> 3 | RN36: =LOOKUP(RN33,Assumptions!40:40,Assumptions!41:41) -> 3 | RO36: =LOOKUP(RO33,Assumptions!40:40,Assumptions!41:41) -> 3 | RP36: =LOOKUP(RP33,Assumptions!40:40,Assumptions!41:41) -> 3 | RQ36: =LOOKUP(RQ33,Assumptions!40:40,Assumptions!41:41) -> 3 | RR36: =LOOKUP(RR33,Assumptions!40:40,Assumptions!41:41) -> 3 | RS36: =LOOKUP(RS33,Assumptions!40:40,Assumptions!41:41) -> 3 | RT36: =LOOKUP(RT33,Assumptions!40:40,Assumptions!41:41) -> 4 | RU36: =LOOKUP(RU33,Assumptions!40:40,Assumptions!41:41) -> 4 | RV36: =LOOKUP(RV33,Assumptions!40:40,Assumptions!41:41) -> 4 | RW36: =LOOKUP(RW33,Assumptions!40:40,Assumptions!41:41) -> 4 | RX36: =LOOKUP(RX33,Assumptions!40:40,Assumptions!41:41) -> 4 | RY36: =LOOKUP(RY33,Assumptions!40:40,Assumptions!41:41) -> 4 | RZ36: =LOOKUP(RZ33,Assumptions!40:40,Assumptions!41:41) -> 4 | SA36: =LOOKUP(SA33,Assumptions!40:40,Assumptions!41:41) -> 4 | SB36: =LOOKUP(SB33,Assumptions!40:40,Assumptions!41:41) -> 4 | SC36: =LOOKUP(SC33,Assumptions!40:40,Assumptions!41:41) -> 4 | SD36: =LOOKUP(SD33,Assumptions!40:40,Assumptions!41:41) -> 4 | SE36: =LOOKUP(SE33,Assumptions!40:40,Assumptions!41:41) -> 4 | SF36: =LOOKUP(SF33,Assumptions!40:40,Assumptions!41:41) -> 4 | SG36: =LOOKUP(SG33,Assumptions!40:40,Assumptions!41:41) -> 4 | SH36: =LOOKUP(SH33,Assumptions!40:40,Assumptions!41:41) -> 4 | SI36: =LOOKUP(SI33,Assumptions!40:40,Assumptions!41:41) -> 4 | SJ36: =LOOKUP(SJ33,Assumptions!40:40,Assumptions!41:41) -> 4 | SK36: =LOOKUP(SK33,Assumptions!40:40,Assumptions!41:41) -> 4 | SL36: =LOOKUP(SL33,Assumptions!40:40,Assumptions!41:41) -> 4 | SM36: =LOOKUP(SM33,Assumptions!40:40,Assumptions!41:41) -> 4 | SN36: =LOOKUP(SN33,Assumptions!40:40,Assumptions!41:41) -> 4 | SO36: =LOOKUP(SO33,Assumptions!40:40,Assumptions!41:41) -> 4 | SP36: =LOOKUP(SP33,Assumptions!40:40,Assumptions!41:41) -> 4 | SQ36: =LOOKUP(SQ33,Assumptions!40:40,Assumptions!41:41) -> 4 | SR36: =LOOKUP(SR33,Assumptions!40:40,Assumptions!41:41) -> 6 | SS36: =LOOKUP(SS33,Assumptions!40:40,Assumptions!41:41) -> 6 | ST36: =LOOKUP(ST33,Assumptions!40:40,Assumptions!41:41) -> 6 | SU36: =LOOKUP(SU33,Assumptions!40:40,Assumptions!41:41) -> 6 | SV36: =LOOKUP(SV33,Assumptions!40:40,Assumptions!41:41) -> 6 | SW36: =LOOKUP(SW33,Assumptions!40:40,Assumptions!41:41) -> 6 | SX36: =LOOKUP(SX33,Assumptions!40:40,Assumptions!41:41) -> 6 | SY36: =LOOKUP(SY33,Assumptions!40:40,Assumptions!41:41) -> 6 | SZ36: =LOOKUP(SZ33,Assumptions!40:40,Assumptions!41:41) -> 6 | TA36: =LOOKUP(TA33,Assumptions!40:40,Assumptions!41:41) -> 6 | TB36: =LOOKUP(TB33,Assumptions!40:40,Assumptions!41:41) -> 6 | TC36: =LOOKUP(TC33,Assumptions!40:40,Assumptions!41:41) -> 6 | TD36: =LOOKUP(TD33,Assumptions!40:40,Assumptions!41:41) -> 6 | TE36: =LOOKUP(TE33,Assumptions!40:40,Assumptions!41:41) -> 6 | TF36: =LOOKUP(TF33,Assumptions!40:40,Assumptions!41:41) -> 6 | TG36: =LOOKUP(TG33,Assumptions!40:40,Assumptions!41:41) -> 6 | TH36: =LOOKUP(TH33,Assumptions!40:40,Assumptions!41:41) -> 6 | TI36: =LOOKUP(TI33,Assumptions!40:40,Assumptions!41:41) -> 6 | TJ36: =LOOKUP(TJ33,Assumptions!40:40,Assumptions!41:41) -> 6 | TK36: =LOOKUP(TK33,Assumptions!40:40,Assumptions!41:41) -> 6 | TL36: =LOOKUP(TL33,Assumptions!40:40,Assumptions!41:41) -> 6 | TM36: =LOOKUP(TM33,Assumptions!40:40,Assumptions!41:41) -> 6 | TN36: =LOOKUP(TN33,Assumptions!40:40,Assumptions!41:41) -> 6 | TO36: =LOOKUP(TO33,Assumptions!40:40,Assumptions!41:41) -> 6 | TP36: =LOOKUP(TP33,Assumptions!40:40,Assumptions!41:41) -> 7 | TQ36: =LOOKUP(TQ33,Assumptions!40:40,Assumptions!41:41) -> 7 | TR36: =LOOKUP(TR33,Assumptions!40:40,Assumptions!41:41) -> 7 | TS36: =LOOKUP(TS33,Assumptions!40:40,Assumptions!41:41) -> 7 | TT36: =LOOKUP(TT33,Assumptions!40:40,Assumptions!41:41) -> 7 | TU36: =LOOKUP(TU33,Assumptions!40:40,Assumptions!41:41) -> 7 | TV36: =LOOKUP(TV33,Assumptions!40:40,Assumptions!41:41) -> 7 | TW36: =LOOKUP(TW33,Assumptions!40:40,Assumptions!41:41) -> 7 | TX36: =LOOKUP(TX33,Assumptions!40:40,Assumptions!41:41) -> 7 | TY36: =LOOKUP(TY33,Assumptions!40:40,Assumptions!41:41) -> 7 | TZ36: =LOOKUP(TZ33,Assumptions!40:40,Assumptions!41:41) -> 7 | UA36: =LOOKUP(UA33,Assumptions!40:40,Assumptions!41:41) -> 7 | UB36: =LOOKUP(UB33,Assumptions!40:40,Assumptions!41:41) -> 7 | UC36: =LOOKUP(UC33,Assumptions!40:40,Assumptions!41:41) -> 7 | UD36: =LOOKUP(UD33,Assumptions!40:40,Assumptions!41:41) -> 7 | UE36: =LOOKUP(UE33,Assumptions!40:40,Assumptions!41:41) -> 7 | UF36: =LOOKUP(UF33,Assumptions!40:40,Assumptions!41:41) -> 7 | UG36: =LOOKUP(UG33,Assumptions!40:40,Assumptions!41:41) -> 7 | UH36: =LOOKUP(UH33,Assumptions!40:40,Assumptions!41:41) -> 7 | UI36: =LOOKUP(UI33,Assumptions!40:40,Assumptions!41:41) -> 7 | UJ36: =LOOKUP(UJ33,Assumptions!40:40,Assumptions!41:41) -> 7 | UK36: =LOOKUP(UK33,Assumptions!40:40,Assumptions!41:41) -> 7 | UL36: =LOOKUP(UL33,Assumptions!40:40,Assumptions!41:41) -> 7 | UM36: =LOOKUP(UM33,Assumptions!40:40,Assumptions!41:41) -> 7 | UN36: =LOOKUP(UN33,Assumptions!40:40,Assumptions!41:41) -> 8 | UO36: =LOOKUP(UO33,Assumptions!40:40,Assumptions!41:41) -> 8 | UP36: =LOOKUP(UP33,Assumptions!40:40,Assumptions!41:41) -> 8 | UQ36: =LOOKUP(UQ33,Assumptions!40:40,Assumptions!41:41) -> 8 | UR36: =LOOKUP(UR33,Assumptions!40:40,Assumptions!41:41) -> 8 | US36: =LOOKUP(US33,Assumptions!40:40,Assumptions!41:41) -> 8 | UT36: =LOOKUP(UT33,Assumptions!40:40,Assumptions!41:41) -> 8 | UU36: =LOOKUP(UU33,Assumptions!40:40,Assumptions!41:41) -> 8 | UV36: =LOOKUP(UV33,Assumptions!40:40,Assumptions!41:41) -> 8 | UW36: =LOOKUP(UW33,Assumptions!40:40,Assumptions!41:41) -> 8 | UX36: =LOOKUP(UX33,Assumptions!40:40,Assumptions!41:41) -> 8 | UY36: =LOOKUP(UY33,Assumptions!40:40,Assumptions!41:41) -> 8 | UZ36: =LOOKUP(UZ33,Assumptions!40:40,Assumptions!41:41) -> 8 | VA36: =LOOKUP(VA33,Assumptions!40:40,Assumptions!41:41) -> 8 | VB36: =LOOKUP(VB33,Assumptions!40:40,Assumptions!41:41) -> 8 | VC36: =LOOKUP(VC33,Assumptions!40:40,Assumptions!41:41) -> 8 | VD36: =LOOKUP(VD33,Assumptions!40:40,Assumptions!41:41) -> 8 | VE36: =LOOKUP(VE33,Assumptions!40:40,Assumptions!41:41) -> 8 | VF36: =LOOKUP(VF33,Assumptions!40:40,Assumptions!41:41) -> 8 | VG36: =LOOKUP(VG33,Assumptions!40:40,Assumptions!41:41) -> 8 | VH36: =LOOKUP(VH33,Assumptions!40:40,Assumptions!41:41) -> 8 | VI36: =LOOKUP(VI33,Assumptions!40:40,Assumptions!41:41) -> 8 | VJ36: =LOOKUP(VJ33,Assumptions!40:40,Assumptions!41:41) -> 8 | VK36: =LOOKUP(VK33,Assumptions!40:40,Assumptions!41:41) -> 8 | VL36: =LOOKUP(VL33,Assumptions!40:40,Assumptions!41:41) -> 10 | VM36: =LOOKUP(VM33,Assumptions!40:40,Assumptions!41:41) -> 10 | VN36: =LOOKUP(VN33,Assumptions!40:40,Assumptions!41:41) -> 10 | VO36: =LOOKUP(VO33,Assumptions!40:40,Assumptions!41:41) -> 10 | VP36: =LOOKUP(VP33,Assumptions!40:40,Assumptions!41:41) -> 10 | VQ36: =LOOKUP(VQ33,Assumptions!40:40,Assumptions!41:41) -> 10 | VR36: =LOOKUP(VR33,Assumptions!40:40,Assumptions!41:41) -> 10 | VS36: =LOOKUP(VS33,Assumptions!40:40,Assumptions!41:41) -> 10 | VT36: =LOOKUP(VT33,Assumptions!40:40,Assumptions!41:41) -> 10 | VU36: =LOOKUP(VU33,Assumptions!40:40,Assumptions!41:41) -> 10 | VV36: =LOOKUP(VV33,Assumptions!40:40,Assumptions!41:41) -> 10 | VW36: =LOOKUP(VW33,Assumptions!40:40,Assumptions!41:41) -> 10 | VX36: =LOOKUP(VX33,Assumptions!40:40,Assumptions!41:41) -> 10 | VY36: =LOOKUP(VY33,Assumptions!40:40,Assumptions!41:41) -> 10 | VZ36: =LOOKUP(VZ33,Assumptions!40:40,Assumptions!41:41) -> 10 | WA36: =LOOKUP(WA33,Assumptions!40:40,Assumptions!41:41) -> 10 | WB36: =LOOKUP(WB33,Assumptions!40:40,Assumptions!41:41) -> 10 | WC36: =LOOKUP(WC33,Assumptions!40:40,Assumptions!41:41) -> 10 | WD36: =LOOKUP(WD33,Assumptions!40:40,Assumptions!41:41) -> 10 | WE36: =LOOKUP(WE33,Assumptions!40:40,Assumptions!41:41) -> 10 | WF36: =LOOKUP(WF33,Assumptions!40:40,Assumptions!41:41) -> 10 | WG36: =LOOKUP(WG33,Assumptions!40:40,Assumptions!41:41) -> 10 | WH36: =LOOKUP(WH33,Assumptions!40:40,Assumptions!41:41) -> 10 | WI36: =LOOKUP(WI33,Assumptions!40:40,Assumptions!41:41) -> 10 | WJ36: =LOOKUP(WJ33,Assumptions!40:40,Assumptions!41:41) -> 11 | WK36: =LOOKUP(WK33,Assumptions!40:40,Assumptions!41:41) -> 11 | WL36: =LOOKUP(WL33,Assumptions!40:40,Assumptions!41:41) -> 11 | WM36: =LOOKUP(WM33,Assumptions!40:40,Assumptions!41:41) -> 11 | WN36: =LOOKUP(WN33,Assumptions!40:40,Assumptions!41:41) -> 11 | WO36: =LOOKUP(WO33,Assumptions!40:40,Assumptions!41:41) -> 11 | WP36: =LOOKUP(WP33,Assumptions!40:40,Assumptions!41:41) -> 11 | WQ36: =LOOKUP(WQ33,Assumptions!40:40,Assumptions!41:41) -> 11 | WR36: =LOOKUP(WR33,Assumptions!40:40,Assumptions!41:41) -> 11 | WS36: =LOOKUP(WS33,Assumptions!40:40,Assumptions!41:41) -> 11 | WT36: =LOOKUP(WT33,Assumptions!40:40,Assumptions!41:41) -> 11 | WU36: =LOOKUP(WU33,Assumptions!40:40,Assumptions!41:41) -> 11 | WV36: =LOOKUP(WV33,Assumptions!40:40,Assumptions!41:41) -> 11 | WW36: =LOOKUP(WW33,Assumptions!40:40,Assumptions!41:41) -> 11 | WX36: =LOOKUP(WX33,Assumptions!40:40,Assumptions!41:41) -> 11 | WY36: =LOOKUP(WY33,Assumptions!40:40,Assumptions!41:41) -> 11 | WZ36: =LOOKUP(WZ33,Assumptions!40:40,Assumptions!41:41) -> 11 | XA36: =LOOKUP(XA33,Assumptions!40:40,Assumptions!41:41) -> 11 | XB36: =LOOKUP(XB33,Assumptions!40:40,Assumptions!41:41) -> 11 | XC36: =LOOKUP(XC33,Assumptions!40:40,Assumptions!41:41) -> 11 | XD36: =LOOKUP(XD33,Assumptions!40:40,Assumptions!41:41) -> 11 | XE36: =LOOKUP(XE33,Assumptions!40:40,Assumptions!41:41) -> 11 | XF36: =LOOKUP(XF33,Assumptions!40:40,Assumptions!41:41) -> 11 | XG36: =LOOKUP(XG33,Assumptions!40:40,Assumptions!41:41) -> 11 | XH36: =LOOKUP(XH33,Assumptions!40:40,Assumptions!41:41) -> 12 | XI36: =LOOKUP(XI33,Assumptions!40:40,Assumptions!41:41) -> 12 | XJ36: =LOOKUP(XJ33,Assumptions!40:40,Assumptions!41:41) -> 12 | XK36: =LOOKUP(XK33,Assumptions!40:40,Assumptions!41:41) -> 12 | XL36: =LOOKUP(XL33,Assumptions!40:40,Assumptions!41:41) -> 12 | XM36: =LOOKUP(XM33,Assumptions!40:40,Assumptions!41:41) -> 12 | XN36: =LOOKUP(XN33,Assumptions!40:40,Assumptions!41:41) -> 12 | XO36: =LOOKUP(XO33,Assumptions!40:40,Assumptions!41:41) -> 12 | XP36: =LOOKUP(XP33,Assumptions!40:40,Assumptions!41:41) -> 12 | XQ36: =LOOKUP(XQ33,Assumptions!40:40,Assumptions!41:41) -> 12 | XR36: =LOOKUP(XR33,Assumptions!40:40,Assumptions!41:41) -> 12 | XS36: =LOOKUP(XS33,Assumptions!40:40,Assumptions!41:41) -> 12 | XT36: =LOOKUP(XT33,Assumptions!40:40,Assumptions!41:41) -> 12 | XU36: =LOOKUP(XU33,Assumptions!40:40,Assumptions!41:41) -> 12 | XV36: =LOOKUP(XV33,Assumptions!40:40,Assumptions!41:41) -> 12 | XW36: =LOOKUP(XW33,Assumptions!40:40,Assumptions!41:41) -> 12 | XX36: =LOOKUP(XX33,Assumptions!40:40,Assumptions!41:41) -> 12 | XY36: =LOOKUP(XY33,Assumptions!40:40,Assumptions!41:41) -> 12 | XZ36: =LOOKUP(XZ33,Assumptions!40:40,Assumptions!41:41) -> 12 | YA36: =LOOKUP(YA33,Assumptions!40:40,Assumptions!41:41) -> 12 | YB36: =LOOKUP(YB33,Assumptions!40:40,Assumptions!41:41) -> 12 | YC36: =LOOKUP(YC33,Assumptions!40:40,Assumptions!41:41) -> 12 | YD36: =LOOKUP(YD33,Assumptions!40:40,Assumptions!41:41) -> 12 | YE36: =LOOKUP(YE33,Assumptions!40:40,Assumptions!41:41) -> 12 | YF36: =LOOKUP(YF33,Assumptions!40:40,Assumptions!41:41) -> 2 | YG36: =LOOKUP(YG33,Assumptions!40:40,Assumptions!41:41) -> 2 | YH36: =LOOKUP(YH33,Assumptions!40:40,Assumptions!41:41) -> 2 | YI36: =LOOKUP(YI33,Assumptions!40:40,Assumptions!41:41) -> 2 | YJ36: =LOOKUP(YJ33,Assumptions!40:40,Assumptions!41:41) -> 2 | YK36: =LOOKUP(YK33,Assumptions!40:40,Assumptions!41:41) -> 2 | YL36: =LOOKUP(YL33,Assumptions!40:40,Assumptions!41:41) -> 2 | YM36: =LOOKUP(YM33,Assumptions!40:40,Assumptions!41:41) -> 2 | YN36: =LOOKUP(YN33,Assumptions!40:40,Assumptions!41:41) -> 2 | YO36: =LOOKUP(YO33,Assumptions!40:40,Assumptions!41:41) -> 2 | YP36: =LOOKUP(YP33,Assumptions!40:40,Assumptions!41:41) -> 2 | YQ36: =LOOKUP(YQ33,Assumptions!40:40,Assumptions!41:41) -> 2 | YR36: =LOOKUP(YR33,Assumptions!40:40,Assumptions!41:41) -> 2 | YS36: =LOOKUP(YS33,Assumptions!40:40,Assumptions!41:41) -> 2 | YT36: =LOOKUP(YT33,Assumptions!40:40,Assumptions!41:41) -> 2 | YU36: =LOOKUP(YU33,Assumptions!40:40,Assumptions!41:41) -> 2 | YV36: =LOOKUP(YV33,Assumptions!40:40,Assumptions!41:41) -> 2 | YW36: =LOOKUP(YW33,Assumptions!40:40,Assumptions!41:41) -> 2 | YX36: =LOOKUP(YX33,Assumptions!40:40,Assumptions!41:41) -> 2 | YY36: =LOOKUP(YY33,Assumptions!40:40,Assumptions!41:41) -> 2 | YZ36: =LOOKUP(YZ33,Assumptions!40:40,Assumptions!41:41) -> 2 | ZA36: =LOOKUP(ZA33,Assumptions!40:40,Assumptions!41:41) -> 2 | ZB36: =LOOKUP(ZB33,Assumptions!40:40,Assumptions!41:41) -> 2 | ZC36: =LOOKUP(ZC33,Assumptions!40:40,Assumptions!41:41) -> 2 | ZD36: =LOOKUP(ZD33,Assumptions!40:40,Assumptions!41:41) -> 3 | ZE36: =LOOKUP(ZE33,Assumptions!40:40,Assumptions!41:41) -> 3 | ZF36: =LOOKUP(ZF33,Assumptions!40:40,Assumptions!41:41) -> 3 | ZG36: =LOOKUP(ZG33,Assumptions!40:40,Assumptions!41:41) -> 3 | ZH36: =LOOKUP(ZH33,Assumptions!40:40,Assumptions!41:41) -> 3 | ZI36: =LOOKUP(ZI33,Assumptions!40:40,Assumptions!41:41) -> 3 | ZJ36: =LOOKUP(ZJ33,Assumptions!40:40,Assumptions!41:41) -> 3 | ZK36: =LOOKUP(ZK33,Assumptions!40:40,Assumptions!41:41) -> 3 | ZL36: =LOOKUP(ZL33,Assumptions!40:40,Assumptions!41:41) -> 3 | ZM36: =LOOKUP(ZM33,Assumptions!40:40,Assumptions!41:41) -> 3 | ZN36: =LOOKUP(ZN33,Assumptions!40:40,Assumptions!41:41) -> 3 | ZO36: =LOOKUP(ZO33,Assumptions!40:40,Assumptions!41:41) -> 3 | ZP36: =LOOKUP(ZP33,Assumptions!40:40,Assumptions!41:41) -> 3 | ZQ36: =LOOKUP(ZQ33,Assumptions!40:40,Assumptions!41:41) -> 3 | ZR36: =LOOKUP(ZR33,Assumptions!40:40,Assumptions!41:41) -> 3 | ZS36: =LOOKUP(ZS33,Assumptions!40:40,Assumptions!41:41) -> 3 | ZT36: =LOOKUP(ZT33,Assumptions!40:40,Assumptions!41:41) -> 3 | ZU36: =LOOKUP(ZU33,Assumptions!40:40,Assumptions!41:41) -> 3 | ZV36: =LOOKUP(ZV33,Assumptions!40:40,Assumptions!41:41) -> 3 | ZW36: =LOOKUP(ZW33,Assumptions!40:40,Assumptions!41:41) -> 3 | ZX36: =LOOKUP(ZX33,Assumptions!40:40,Assumptions!41:41) -> 3 | ZY36: =LOOKUP(ZY33,Assumptions!40:40,Assumptions!41:41) -> 3 | ZZ36: =LOOKUP(ZZ33,Assumptions!40:40,Assumptions!41:41) -> 3 | AAA36: =LOOKUP(AAA33,Assumptions!40:40,Assumptions!41:41) -> 3 | AAB36: =LOOKUP(AAB33,Assumptions!40:40,Assumptions!41:41) -> 4 | AAC36: =LOOKUP(AAC33,Assumptions!40:40,Assumptions!41:41) -> 4 | AAD36: =LOOKUP(AAD33,Assumptions!40:40,Assumptions!41:41) -> 4 | AAE36: =LOOKUP(AAE33,Assumptions!40:40,Assumptions!41:41) -> 4 | AAF36: =LOOKUP(AAF33,Assumptions!40:40,Assumptions!41:41) -> 4 | AAG36: =LOOKUP(AAG33,Assumptions!40:40,Assumptions!41:41) -> 4 | AAH36: =LOOKUP(AAH33,Assumptions!40:40,Assumptions!41:41) -> 4 | AAI36: =LOOKUP(AAI33,Assumptions!40:40,Assumptions!41:41) -> 4 | AAJ36: =LOOKUP(AAJ33,Assumptions!40:40,Assumptions!41:41) -> 4 | AAK36: =LOOKUP(AAK33,Assumptions!40:40,Assumptions!41:41) -> 4 | AAL36: =LOOKUP(AAL33,Assumptions!40:40,Assumptions!41:41) -> 4 | AAM36: =LOOKUP(AAM33,Assumptions!40:40,Assumptions!41:41) -> 4 | AAN36: =LOOKUP(AAN33,Assumptions!40:40,Assumptions!41:41) -> 4 | AAO36: =LOOKUP(AAO33,Assumptions!40:40,Assumptions!41:41) -> 4 | AAP36: =LOOKUP(AAP33,Assumptions!40:40,Assumptions!41:41) -> 4 | AAQ36: =LOOKUP(AAQ33,Assumptions!40:40,Assumptions!41:41) -> 4 | AAR36: =LOOKUP(AAR33,Assumptions!40:40,Assumptions!41:41) -> 4 | AAS36: =LOOKUP(AAS33,Assumptions!40:40,Assumptions!41:41) -> 4 | AAT36: =LOOKUP(AAT33,Assumptions!40:40,Assumptions!41:41) -> 4 | AAU36: =LOOKUP(AAU33,Assumptions!40:40,Assumptions!41:41) -> 4 | AAV36: =LOOKUP(AAV33,Assumptions!40:40,Assumptions!41:41) -> 4 | AAW36: =LOOKUP(AAW33,Assumptions!40:40,Assumptions!41:41) -> 4 | AAX36: =LOOKUP(AAX33,Assumptions!40:40,Assumptions!41:41) -> 4 | AAY36: =LOOKUP(AAY33,Assumptions!40:40,Assumptions!41:41) -> 4
C37: Load Shape Name | H37: =LOOKUP(H33,Assumptions!40:40,Assumptions!42:42) -> High Day High Load Factor | I37: =LOOKUP(I33,Assumptions!40:40,Assumptions!42:42) -> High Day High Load Factor | J37: =LOOKUP(J33,Assumptions!40:40,Assumptions!42:42) -> High Day High Load Factor | K37: =LOOKUP(K33,Assumptions!40:40,Assumptions!42:42) -> High Day High Load Factor | L37: =LOOKUP(L33,Assumptions!40:40,Assumptions!42:42) -> High Day High Load Factor | M37: =LOOKUP(M33,Assumptions!40:40,Assumptions!42:42) -> High Day High Load Factor | N37: =LOOKUP(N33,Assumptions!40:40,Assumptions!42:42) -> High Day High Load Factor | O37: =LOOKUP(O33,Assumptions!40:40,Assumptions!42:42) -> High Day High Load Factor | P37: =LOOKUP(P33,Assumptions!40:40,Assumptions!42:42) -> High Day High Load Factor | Q37: =LOOKUP(Q33,Assumptions!40:40,Assumptions!42:42) -> High Day High Load Factor | R37: =LOOKUP(R33,Assumptions!40:40,Assumptions!42:42) -> High Day High Load Factor | S37: =LOOKUP(S33,Assumptions!40:40,Assumptions!42:42) -> High Day High Load Factor | T37: =LOOKUP(T33,Assumptions!40:40,Assumptions!42:42) -> High Day High Load Factor | U37: =LOOKUP(U33,Assumptions!40:40,Assumptions!42:42) -> High Day High Load Factor | V37: =LOOKUP(V33,Assumptions!40:40,Assumptions!42:42) -> High Day High Load Factor | W37: =LOOKUP(W33,Assumptions!40:40,Assumptions!42:42) -> High Day High Load Factor | X37: =LOOKUP(X33,Assumptions!40:40,Assumptions!42:42) -> High Day High Load Factor | Y37: =LOOKUP(Y33,Assumptions!40:40,Assumptions!42:42) -> High Day High Load Factor | Z37: =LOOKUP(Z33,Assumptions!40:40,Assumptions!42:42) -> High Day High Load Factor | AA37: =LOOKUP(AA33,Assumptions!40:40,Assumptions!42:42) -> High Day High Load Factor | AB37: =LOOKUP(AB33,Assumptions!40:40,Assumptions!42:42) -> High Day High Load Factor | AC37: =LOOKUP(AC33,Assumptions!40:40,Assumptions!42:42) -> High Day High Load Factor | AD37: =LOOKUP(AD33,Assumptions!40:40,Assumptions!42:42) -> High Day High Load Factor | AE37: =LOOKUP(AE33,Assumptions!40:40,Assumptions!42:42) -> High Day High Load Factor | AF37: =LOOKUP(AF33,Assumptions!40:40,Assumptions!42:42) -> High Day Base Load Factor | AG37: =LOOKUP(AG33,Assumptions!40:40,Assumptions!42:42) -> High Day Base Load Factor | AH37: =LOOKUP(AH33,Assumptions!40:40,Assumptions!42:42) -> High Day Base Load Factor | AI37: =LOOKUP(AI33,Assumptions!40:40,Assumptions!42:42) -> High Day Base Load Factor | AJ37: =LOOKUP(AJ33,Assumptions!40:40,Assumptions!42:42) -> High Day Base Load Factor | AK37: =LOOKUP(AK33,Assumptions!40:40,Assumptions!42:42) -> High Day Base Load Factor | AL37: =LOOKUP(AL33,Assumptions!40:40,Assumptions!42:42) -> High Day Base Load Factor | AM37: =LOOKUP(AM33,Assumptions!40:40,Assumptions!42:42) -> High Day Base Load Factor | AN37: =LOOKUP(AN33,Assumptions!40:40,Assumptions!42:42) -> High Day Base Load Factor | AO37: =LOOKUP(AO33,Assumptions!40:40,Assumptions!42:42) -> High Day Base Load Factor | AP37: =LOOKUP(AP33,Assumptions!40:40,Assumptions!42:42) -> High Day Base Load Factor | AQ37: =LOOKUP(AQ33,Assumptions!40:40,Assumptions!42:42) -> High Day Base Load Factor | AR37: =LOOKUP(AR33,Assumptions!40:40,Assumptions!42:42) -> High Day Base Load Factor | AS37: =LOOKUP(AS33,Assumptions!40:40,Assumptions!42:42) -> High Day Base Load Factor | AT37: =LOOKUP(AT33,Assumptions!40:40,Assumptions!42:42) -> High Day Base Load Factor | AU37: =LOOKUP(AU33,Assumptions!40:40,Assumptions!42:42) -> High Day Base Load Factor | AV37: =LOOKUP(AV33,Assumptions!40:40,Assumptions!42:42) -> High Day Base Load Factor | AW37: =LOOKUP(AW33,Assumptions!40:40,Assumptions!42:42) -> High Day Base Load Factor | AX37: =LOOKUP(AX33,Assumptions!40:40,Assumptions!42:42) -> High Day Base Load Factor | AY37: =LOOKUP(AY33,Assumptions!40:40,Assumptions!42:42) -> High Day Base Load Factor | AZ37: =LOOKUP(AZ33,Assumptions!40:40,Assumptions!42:42) -> High Day Base Load Factor | BA37: =LOOKUP(BA33,Assumptions!40:40,Assumptions!42:42) -> High Day Base Load Factor | BB37: =LOOKUP(BB33,Assumptions!40:40,Assumptions!42:42) -> High Day Base Load Factor | BC37: =LOOKUP(BC33,Assumptions!40:40,Assumptions!42:42) -> High Day Base Load Factor | BD37: =LOOKUP(BD33,Assumptions!40:40,Assumptions!42:42) -> High Day Low Load Factor | BE37: =LOOKUP(BE33,Assumptions!40:40,Assumptions!42:42) -> High Day Low Load Factor | BF37: =LOOKUP(BF33,Assumptions!40:40,Assumptions!42:42) -> High Day Low Load Factor | BG37: =LOOKUP(BG33,Assumptions!40:40,Assumptions!42:42) -> High Day Low Load Factor | BH37: =LOOKUP(BH33,Assumptions!40:40,Assumptions!42:42) -> High Day Low Load Factor | BI37: =LOOKUP(BI33,Assumptions!40:40,Assumptions!42:42) -> High Day Low Load Factor | BJ37: =LOOKUP(BJ33,Assumptions!40:40,Assumptions!42:42) -> High Day Low Load Factor | BK37: =LOOKUP(BK33,Assumptions!40:40,Assumptions!42:42) -> High Day Low Load Factor | BL37: =LOOKUP(BL33,Assumptions!40:40,Assumptions!42:42) -> High Day Low Load Factor | BM37: =LOOKUP(BM33,Assumptions!40:40,Assumptions!42:42) -> High Day Low Load Factor | BN37: =LOOKUP(BN33,Assumptions!40:40,Assumptions!42:42) -> High Day Low Load Factor | BO37: =LOOKUP(BO33,Assumptions!40:40,Assumptions!42:42) -> High Day Low Load Factor | BP37: =LOOKUP(BP33,Assumptions!40:40,Assumptions!42:42) -> High Day Low Load Factor | BQ37: =LOOKUP(BQ33,Assumptions!40:40,Assumptions!42:42) -> High Day Low Load Factor | BR37: =LOOKUP(BR33,Assumptions!40:40,Assumptions!42:42) -> High Day Low Load Factor | BS37: =LOOKUP(BS33,Assumptions!40:40,Assumptions!42:42) -> High Day Low Load Factor | BT37: =LOOKUP(BT33,Assumptions!40:40,Assumptions!42:42) -> High Day Low Load Factor | BU37: =LOOKUP(BU33,Assumptions!40:40,Assumptions!42:42) -> High Day Low Load Factor | BV37: =LOOKUP(BV33,Assumptions!40:40,Assumptions!42:42) -> High Day Low Load Factor | BW37: =LOOKUP(BW33,Assumptions!40:40,Assumptions!42:42) -> High Day Low Load Factor | BX37: =LOOKUP(BX33,Assumptions!40:40,Assumptions!42:42) -> High Day Low Load Factor | BY37: =LOOKUP(BY33,Assumptions!40:40,Assumptions!42:42) -> High Day Low Load Factor | BZ37: =LOOKUP(BZ33,Assumptions!40:40,Assumptions!42:42) -> High Day Low Load Factor | CA37: =LOOKUP(CA33,Assumptions!40:40,Assumptions!42:42) -> High Day Low Load Factor | CB37: =LOOKUP(CB33,Assumptions!40:40,Assumptions!42:42) -> Base Day High Load Factor | CC37: =LOOKUP(CC33,Assumptions!40:40,Assumptions!42:42) -> Base Day High Load Factor | CD37: =LOOKUP(CD33,Assumptions!40:40,Assumptions!42:42) -> Base Day High Load Factor | CE37: =LOOKUP(CE33,Assumptions!40:40,Assumptions!42:42) -> Base Day High Load Factor | CF37: =LOOKUP(CF33,Assumptions!40:40,Assumptions!42:42) -> Base Day High Load Factor | CG37: =LOOKUP(CG33,Assumptions!40:40,Assumptions!42:42) -> Base Day High Load Factor | CH37: =LOOKUP(CH33,Assumptions!40:40,Assumptions!42:42) -> Base Day High Load Factor | CI37: =LOOKUP(CI33,Assumptions!40:40,Assumptions!42:42) -> Base Day High Load Factor | CJ37: =LOOKUP(CJ33,Assumptions!40:40,Assumptions!42:42) -> Base Day High Load Factor | CK37: =LOOKUP(CK33,Assumptions!40:40,Assumptions!42:42) -> Base Day High Load Factor | CL37: =LOOKUP(CL33,Assumptions!40:40,Assumptions!42:42) -> Base Day High Load Factor | CM37: =LOOKUP(CM33,Assumptions!40:40,Assumptions!42:42) -> Base Day High Load Factor | CN37: =LOOKUP(CN33,Assumptions!40:40,Assumptions!42:42) -> Base Day High Load Factor | CO37: =LOOKUP(CO33,Assumptions!40:40,Assumptions!42:42) -> Base Day High Load Factor | CP37: =LOOKUP(CP33,Assumptions!40:40,Assumptions!42:42) -> Base Day High Load Factor | CQ37: =LOOKUP(CQ33,Assumptions!40:40,Assumptions!42:42) -> Base Day High Load Factor | CR37: =LOOKUP(CR33,Assumptions!40:40,Assumptions!42:42) -> Base Day High Load Factor | CS37: =LOOKUP(CS33,Assumptions!40:40,Assumptions!42:42) -> Base Day High Load Factor | CT37: =LOOKUP(CT33,Assumptions!40:40,Assumptions!42:42) -> Base Day High Load Factor | CU37: =LOOKUP(CU33,Assumptions!40:40,Assumptions!42:42) -> Base Day High Load Factor | CV37: =LOOKUP(CV33,Assumptions!40:40,Assumptions!42:42) -> Base Day High Load Factor | CW37: =LOOKUP(CW33,Assumptions!40:40,Assumptions!42:42) -> Base Day High Load Factor | CX37: =LOOKUP(CX33,Assumptions!40:40,Assumptions!42:42) -> Base Day High Load Factor | CY37: =LOOKUP(CY33,Assumptions!40:40,Assumptions!42:42) -> Base Day High Load Factor | CZ37: =LOOKUP(CZ33,Assumptions!40:40,Assumptions!42:42) -> Base Day Base Load Factor | DA37: =LOOKUP(DA33,Assumptions!40:40,Assumptions!42:42) -> Base Day Base Load Factor | DB37: =LOOKUP(DB33,Assumptions!40:40,Assumptions!42:42) -> Base Day Base Load Factor | DC37: =LOOKUP(DC33,Assumptions!40:40,Assumptions!42:42) -> Base Day Base Load Factor | DD37: =LOOKUP(DD33,Assumptions!40:40,Assumptions!42:42) -> Base Day Base Load Factor | DE37: =LOOKUP(DE33,Assumptions!40:40,Assumptions!42:42) -> Base Day Base Load Factor | DF37: =LOOKUP(DF33,Assumptions!40:40,Assumptions!42:42) -> Base Day Base Load Factor | DG37: =LOOKUP(DG33,Assumptions!40:40,Assumptions!42:42) -> Base Day Base Load Factor | DH37: =LOOKUP(DH33,Assumptions!40:40,Assumptions!42:42) -> Base Day Base Load Factor | DI37: =LOOKUP(DI33,Assumptions!40:40,Assumptions!42:42) -> Base Day Base Load Factor | DJ37: =LOOKUP(DJ33,Assumptions!40:40,Assumptions!42:42) -> Base Day Base Load Factor | DK37: =LOOKUP(DK33,Assumptions!40:40,Assumptions!42:42) -> Base Day Base Load Factor | DL37: =LOOKUP(DL33,Assumptions!40:40,Assumptions!42:42) -> Base Day Base Load Factor | DM37: =LOOKUP(DM33,Assumptions!40:40,Assumptions!42:42) -> Base Day Base Load Factor | DN37: =LOOKUP(DN33,Assumptions!40:40,Assumptions!42:42) -> Base Day Base Load Factor | DO37: =LOOKUP(DO33,Assumptions!40:40,Assumptions!42:42) -> Base Day Base Load Factor | DP37: =LOOKUP(DP33,Assumptions!40:40,Assumptions!42:42) -> Base Day Base Load Factor | DQ37: =LOOKUP(DQ33,Assumptions!40:40,Assumptions!42:42) -> Base Day Base Load Factor | DR37: =LOOKUP(DR33,Assumptions!40:40,Assumptions!42:42) -> Base Day Base Load Factor | DS37: =LOOKUP(DS33,Assumptions!40:40,Assumptions!42:42) -> Base Day Base Load Factor | DT37: =LOOKUP(DT33,Assumptions!40:40,Assumptions!42:42) -> Base Day Base Load Factor | DU37: =LOOKUP(DU33,Assumptions!40:40,Assumptions!42:42) -> Base Day Base Load Factor | DV37: =LOOKUP(DV33,Assumptions!40:40,Assumptions!42:42) -> Base Day Base Load Factor | DW37: =LOOKUP(DW33,Assumptions!40:40,Assumptions!42:42) -> Base Day Base Load Factor | DX37: =LOOKUP(DX33,Assumptions!40:40,Assumptions!42:42) -> Base Day Low Load Factor | DY37: =LOOKUP(DY33,Assumptions!40:40,Assumptions!42:42) -> Base Day Low Load Factor | DZ37: =LOOKUP(DZ33,Assumptions!40:40,Assumptions!42:42) -> Base Day Low Load Factor | EA37: =LOOKUP(EA33,Assumptions!40:40,Assumptions!42:42) -> Base Day Low Load Factor | EB37: =LOOKUP(EB33,Assumptions!40:40,Assumptions!42:42) -> Base Day Low Load Factor | EC37: =LOOKUP(EC33,Assumptions!40:40,Assumptions!42:42) -> Base Day Low Load Factor | ED37: =LOOKUP(ED33,Assumptions!40:40,Assumptions!42:42) -> Base Day Low Load Factor | EE37: =LOOKUP(EE33,Assumptions!40:40,Assumptions!42:42) -> Base Day Low Load Factor | EF37: =LOOKUP(EF33,Assumptions!40:40,Assumptions!42:42) -> Base Day Low Load Factor | EG37: =LOOKUP(EG33,Assumptions!40:40,Assumptions!42:42) -> Base Day Low Load Factor | EH37: =LOOKUP(EH33,Assumptions!40:40,Assumptions!42:42) -> Base Day Low Load Factor | EI37: =LOOKUP(EI33,Assumptions!40:40,Assumptions!42:42) -> Base Day Low Load Factor | EJ37: =LOOKUP(EJ33,Assumptions!40:40,Assumptions!42:42) -> Base Day Low Load Factor | EK37: =LOOKUP(EK33,Assumptions!40:40,Assumptions!42:42) -> Base Day Low Load Factor | EL37: =LOOKUP(EL33,Assumptions!40:40,Assumptions!42:42) -> Base Day Low Load Factor | EM37: =LOOKUP(EM33,Assumptions!40:40,Assumptions!42:42) -> Base Day Low Load Factor | EN37: =LOOKUP(EN33,Assumptions!40:40,Assumptions!42:42) -> Base Day Low Load Factor | EO37: =LOOKUP(EO33,Assumptions!40:40,Assumptions!42:42) -> Base Day Low Load Factor | EP37: =LOOKUP(EP33,Assumptions!40:40,Assumptions!42:42) -> Base Day Low Load Factor | EQ37: =LOOKUP(EQ33,Assumptions!40:40,Assumptions!42:42) -> Base Day Low Load Factor | ER37: =LOOKUP(ER33,Assumptions!40:40,Assumptions!42:42) -> Base Day Low Load Factor | ES37: =LOOKUP(ES33,Assumptions!40:40,Assumptions!42:42) -> Base Day Low Load Factor | ET37: =LOOKUP(ET33,Assumptions!40:40,Assumptions!42:42) -> Base Day Low Load Factor | EU37: =LOOKUP(EU33,Assumptions!40:40,Assumptions!42:42) -> Base Day Low Load Factor | EV37: =LOOKUP(EV33,Assumptions!40:40,Assumptions!42:42) -> Low Day High Load Factor | EW37: =LOOKUP(EW33,Assumptions!40:40,Assumptions!42:42) -> Low Day High Load Factor | EX37: =LOOKUP(EX33,Assumptions!40:40,Assumptions!42:42) -> Low Day High Load Factor | EY37: =LOOKUP(EY33,Assumptions!40:40,Assumptions!42:42) -> Low Day High Load Factor | EZ37: =LOOKUP(EZ33,Assumptions!40:40,Assumptions!42:42) -> Low Day High Load Factor | FA37: =LOOKUP(FA33,Assumptions!40:40,Assumptions!42:42) -> Low Day High Load Factor | FB37: =LOOKUP(FB33,Assumptions!40:40,Assumptions!42:42) -> Low Day High Load Factor | FC37: =LOOKUP(FC33,Assumptions!40:40,Assumptions!42:42) -> Low Day High Load Factor | FD37: =LOOKUP(FD33,Assumptions!40:40,Assumptions!42:42) -> Low Day High Load Factor | FE37: =LOOKUP(FE33,Assumptions!40:40,Assumptions!42:42) -> Low Day High Load Factor | FF37: =LOOKUP(FF33,Assumptions!40:40,Assumptions!42:42) -> Low Day High Load Factor | FG37: =LOOKUP(FG33,Assumptions!40:40,Assumptions!42:42) -> Low Day High Load Factor | FH37: =LOOKUP(FH33,Assumptions!40:40,Assumptions!42:42) -> Low Day High Load Factor | FI37: =LOOKUP(FI33,Assumptions!40:40,Assumptions!42:42) -> Low Day High Load Factor | FJ37: =LOOKUP(FJ33,Assumptions!40:40,Assumptions!42:42) -> Low Day High Load Factor | FK37: =LOOKUP(FK33,Assumptions!40:40,Assumptions!42:42) -> Low Day High Load Factor | FL37: =LOOKUP(FL33,Assumptions!40:40,Assumptions!42:42) -> Low Day High Load Factor | FM37: =LOOKUP(FM33,Assumptions!40:40,Assumptions!42:42) -> Low Day High Load Factor | FN37: =LOOKUP(FN33,Assumptions!40:40,Assumptions!42:42) -> Low Day High Load Factor | FO37: =LOOKUP(FO33,Assumptions!40:40,Assumptions!42:42) -> Low Day High Load Factor | FP37: =LOOKUP(FP33,Assumptions!40:40,Assumptions!42:42) -> Low Day High Load Factor | FQ37: =LOOKUP(FQ33,Assumptions!40:40,Assumptions!42:42) -> Low Day High Load Factor | FR37: =LOOKUP(FR33,Assumptions!40:40,Assumptions!42:42) -> Low Day High Load Factor | FS37: =LOOKUP(FS33,Assumptions!40:40,Assumptions!42:42) -> Low Day High Load Factor | FT37: =LOOKUP(FT33,Assumptions!40:40,Assumptions!42:42) -> Low Day Base Load Factor | FU37: =LOOKUP(FU33,Assumptions!40:40,Assumptions!42:42) -> Low Day Base Load Factor | FV37: =LOOKUP(FV33,Assumptions!40:40,Assumptions!42:42) -> Low Day Base Load Factor | FW37: =LOOKUP(FW33,Assumptions!40:40,Assumptions!42:42) -> Low Day Base Load Factor | FX37: =LOOKUP(FX33,Assumptions!40:40,Assumptions!42:42) -> Low Day Base Load Factor | FY37: =LOOKUP(FY33,Assumptions!40:40,Assumptions!42:42) -> Low Day Base Load Factor | FZ37: =LOOKUP(FZ33,Assumptions!40:40,Assumptions!42:42) -> Low Day Base Load Factor | GA37: =LOOKUP(GA33,Assumptions!40:40,Assumptions!42:42) -> Low Day Base Load Factor | GB37: =LOOKUP(GB33,Assumptions!40:40,Assumptions!42:42) -> Low Day Base Load Factor | GC37: =LOOKUP(GC33,Assumptions!40:40,Assumptions!42:42) -> Low Day Base Load Factor | GD37: =LOOKUP(GD33,Assumptions!40:40,Assumptions!42:42) -> Low Day Base Load Factor | GE37: =LOOKUP(GE33,Assumptions!40:40,Assumptions!42:42) -> Low Day Base Load Factor | GF37: =LOOKUP(GF33,Assumptions!40:40,Assumptions!42:42) -> Low Day Base Load Factor | GG37: =LOOKUP(GG33,Assumptions!40:40,Assumptions!42:42) -> Low Day Base Load Factor | GH37: =LOOKUP(GH33,Assumptions!40:40,Assumptions!42:42) -> Low Day Base Load Factor | GI37: =LOOKUP(GI33,Assumptions!40:40,Assumptions!42:42) -> Low Day Base Load Factor | GJ37: =LOOKUP(GJ33,Assumptions!40:40,Assumptions!42:42) -> Low Day Base Load Factor | GK37: =LOOKUP(GK33,Assumptions!40:40,Assumptions!42:42) -> Low Day Base Load Factor | GL37: =LOOKUP(GL33,Assumptions!40:40,Assumptions!42:42) -> Low Day Base Load Factor | GM37: =LOOKUP(GM33,Assumptions!40:40,Assumptions!42:42) -> Low Day Base Load Factor | GN37: =LOOKUP(GN33,Assumptions!40:40,Assumptions!42:42) -> Low Day Base Load Factor | GO37: =LOOKUP(GO33,Assumptions!40:40,Assumptions!42:42) -> Low Day Base Load Factor | GP37: =LOOKUP(GP33,Assumptions!40:40,Assumptions!42:42) -> Low Day Base Load Factor | GQ37: =LOOKUP(GQ33,Assumptions!40:40,Assumptions!42:42) -> Low Day Base Load Factor | GR37: =LOOKUP(GR33,Assumptions!40:40,Assumptions!42:42) -> Low Day Low Load Factor | GS37: =LOOKUP(GS33,Assumptions!40:40,Assumptions!42:42) -> Low Day Low Load Factor | GT37: =LOOKUP(GT33,Assumptions!40:40,Assumptions!42:42) -> Low Day Low Load Factor | GU37: =LOOKUP(GU33,Assumptions!40:40,Assumptions!42:42) -> Low Day Low Load Factor | GV37: =LOOKUP(GV33,Assumptions!40:40,Assumptions!42:42) -> Low Day Low Load Factor | GW37: =LOOKUP(GW33,Assumptions!40:40,Assumptions!42:42) -> Low Day Low Load Factor | GX37: =LOOKUP(GX33,Assumptions!40:40,Assumptions!42:42) -> Low Day Low Load Factor | GY37: =LOOKUP(GY33,Assumptions!40:40,Assumptions!42:42) -> Low Day Low Load Factor | GZ37: =LOOKUP(GZ33,Assumptions!40:40,Assumptions!42:42) -> Low Day Low Load Factor | HA37: =LOOKUP(HA33,Assumptions!40:40,Assumptions!42:42) -> Low Day Low Load Factor | HB37: =LOOKUP(HB33,Assumptions!40:40,Assumptions!42:42) -> Low Day Low Load Factor | HC37: =LOOKUP(HC33,Assumptions!40:40,Assumptions!42:42) -> Low Day Low Load Factor | HD37: =LOOKUP(HD33,Assumptions!40:40,Assumptions!42:42) -> Low Day Low Load Factor | HE37: =LOOKUP(HE33,Assumptions!40:40,Assumptions!42:42) -> Low Day Low Load Factor | HF37: =LOOKUP(HF33,Assumptions!40:40,Assumptions!42:42) -> Low Day Low Load Factor | HG37: =LOOKUP(HG33,Assumptions!40:40,Assumptions!42:42) -> Low Day Low Load Factor | HH37: =LOOKUP(HH33,Assumptions!40:40,Assumptions!42:42) -> Low Day Low Load Factor | HI37: =LOOKUP(HI33,Assumptions!40:40,Assumptions!42:42) -> Low Day Low Load Factor | HJ37: =LOOKUP(HJ33,Assumptions!40:40,Assumptions!42:42) -> Low Day Low Load Factor | HK37: =LOOKUP(HK33,Assumptions!40:40,Assumptions!42:42) -> Low Day Low Load Factor | HL37: =LOOKUP(HL33,Assumptions!40:40,Assumptions!42:42) -> Low Day Low Load Factor | HM37: =LOOKUP(HM33,Assumptions!40:40,Assumptions!42:42) -> Low Day Low Load Factor | HN37: =LOOKUP(HN33,Assumptions!40:40,Assumptions!42:42) -> Low Day Low Load Factor | HO37: =LOOKUP(HO33,Assumptions!40:40,Assumptions!42:42) -> Low Day Low Load Factor | HP37: =LOOKUP(HP33,Assumptions!40:40,Assumptions!42:42) -> High Day High Load Factor | HQ37: =LOOKUP(HQ33,Assumptions!40:40,Assumptions!42:42) -> High Day High Load Factor | HR37: =LOOKUP(HR33,Assumptions!40:40,Assumptions!42:42) -> High Day High Load Factor | HS37: =LOOKUP(HS33,Assumptions!40:40,Assumptions!42:42) -> High Day High Load Factor | HT37: =LOOKUP(HT33,Assumptions!40:40,Assumptions!42:42) -> High Day High Load Factor | HU37: =LOOKUP(HU33,Assumptions!40:40,Assumptions!42:42) -> High Day High Load Factor | HV37: =LOOKUP(HV33,Assumptions!40:40,Assumptions!42:42) -> High Day High Load Factor | HW37: =LOOKUP(HW33,Assumptions!40:40,Assumptions!42:42) -> High Day High Load Factor | HX37: =LOOKUP(HX33,Assumptions!40:40,Assumptions!42:42) -> High Day High Load Factor | HY37: =LOOKUP(HY33,Assumptions!40:40,Assumptions!42:42) -> High Day High Load Factor | HZ37: =LOOKUP(HZ33,Assumptions!40:40,Assumptions!42:42) -> High Day High Load Factor | IA37: =LOOKUP(IA33,Assumptions!40:40,Assumptions!42:42) -> High Day High Load Factor | IB37: =LOOKUP(IB33,Assumptions!40:40,Assumptions!42:42) -> High Day High Load Factor | IC37: =LOOKUP(IC33,Assumptions!40:40,Assumptions!42:42) -> High Day High Load Factor | ID37: =LOOKUP(ID33,Assumptions!40:40,Assumptions!42:42) -> High Day High Load Factor | IE37: =LOOKUP(IE33,Assumptions!40:40,Assumptions!42:42) -> High Day High Load Factor | IF37: =LOOKUP(IF33,Assumptions!40:40,Assumptions!42:42) -> High Day High Load Factor | IG37: =LOOKUP(IG33,Assumptions!40:40,Assumptions!42:42) -> High Day High Load Factor | IH37: =LOOKUP(IH33,Assumptions!40:40,Assumptions!42:42) -> High Day High Load Factor | II37: =LOOKUP(II33,Assumptions!40:40,Assumptions!42:42) -> High Day High Load Factor | IJ37: =LOOKUP(IJ33,Assumptions!40:40,Assumptions!42:42) -> High Day High Load Factor | IK37: =LOOKUP(IK33,Assumptions!40:40,Assumptions!42:42) -> High Day High Load Factor | IL37: =LOOKUP(IL33,Assumptions!40:40,Assumptions!42:42) -> High Day High Load Factor | IM37: =LOOKUP(IM33,Assumptions!40:40,Assumptions!42:42) -> High Day High Load Factor | IN37: =LOOKUP(IN33,Assumptions!40:40,Assumptions!42:42) -> High Day Base Load Factor | IO37: =LOOKUP(IO33,Assumptions!40:40,Assumptions!42:42) -> High Day Base Load Factor | IP37: =LOOKUP(IP33,Assumptions!40:40,Assumptions!42:42) -> High Day Base Load Factor | IQ37: =LOOKUP(IQ33,Assumptions!40:40,Assumptions!42:42) -> High Day Base Load Factor | IR37: =LOOKUP(IR33,Assumptions!40:40,Assumptions!42:42) -> High Day Base Load Factor | IS37: =LOOKUP(IS33,Assumptions!40:40,Assumptions!42:42) -> High Day Base Load Factor | IT37: =LOOKUP(IT33,Assumptions!40:40,Assumptions!42:42) -> High Day Base Load Factor | IU37: =LOOKUP(IU33,Assumptions!40:40,Assumptions!42:42) -> High Day Base Load Factor | IV37: =LOOKUP(IV33,Assumptions!40:40,Assumptions!42:42) -> High Day Base Load Factor | IW37: =LOOKUP(IW33,Assumptions!40:40,Assumptions!42:42) -> High Day Base Load Factor | IX37: =LOOKUP(IX33,Assumptions!40:40,Assumptions!42:42) -> High Day Base Load Factor | IY37: =LOOKUP(IY33,Assumptions!40:40,Assumptions!42:42) -> High Day Base Load Factor | IZ37: =LOOKUP(IZ33,Assumptions!40:40,Assumptions!42:42) -> High Day Base Load Factor | JA37: =LOOKUP(JA33,Assumptions!40:40,Assumptions!42:42) -> High Day Base Load Factor | JB37: =LOOKUP(JB33,Assumptions!40:40,Assumptions!42:42) -> High Day Base Load Factor | JC37: =LOOKUP(JC33,Assumptions!40:40,Assumptions!42:42) -> High Day Base Load Factor | JD37: =LOOKUP(JD33,Assumptions!40:40,Assumptions!42:42) -> High Day Base Load Factor | JE37: =LOOKUP(JE33,Assumptions!40:40,Assumptions!42:42) -> High Day Base Load Factor | JF37: =LOOKUP(JF33,Assumptions!40:40,Assumptions!42:42) -> High Day Base Load Factor | JG37: =LOOKUP(JG33,Assumptions!40:40,Assumptions!42:42) -> High Day Base Load Factor | JH37: =LOOKUP(JH33,Assumptions!40:40,Assumptions!42:42) -> High Day Base Load Factor | JI37: =LOOKUP(JI33,Assumptions!40:40,Assumptions!42:42) -> High Day Base Load Factor | JJ37: =LOOKUP(JJ33,Assumptions!40:40,Assumptions!42:42) -> High Day Base Load Factor | JK37: =LOOKUP(JK33,Assumptions!40:40,Assumptions!42:42) -> High Day Base Load Factor | JL37: =LOOKUP(JL33,Assumptions!40:40,Assumptions!42:42) -> High Day Low Load Factor | JM37: =LOOKUP(JM33,Assumptions!40:40,Assumptions!42:42) -> High Day Low Load Factor | JN37: =LOOKUP(JN33,Assumptions!40:40,Assumptions!42:42) -> High Day Low Load Factor | JO37: =LOOKUP(JO33,Assumptions!40:40,Assumptions!42:42) -> High Day Low Load Factor | JP37: =LOOKUP(JP33,Assumptions!40:40,Assumptions!42:42) -> High Day Low Load Factor | JQ37: =LOOKUP(JQ33,Assumptions!40:40,Assumptions!42:42) -> High Day Low Load Factor | JR37: =LOOKUP(JR33,Assumptions!40:40,Assumptions!42:42) -> High Day Low Load Factor | JS37: =LOOKUP(JS33,Assumptions!40:40,Assumptions!42:42) -> High Day Low Load Factor | JT37: =LOOKUP(JT33,Assumptions!40:40,Assumptions!42:42) -> High Day Low Load Factor | JU37: =LOOKUP(JU33,Assumptions!40:40,Assumptions!42:42) -> High Day Low Load Factor | JV37: =LOOKUP(JV33,Assumptions!40:40,Assumptions!42:42) -> High Day Low Load Factor | JW37: =LOOKUP(JW33,Assumptions!40:40,Assumptions!42:42) -> High Day Low Load Factor | JX37: =LOOKUP(JX33,Assumptions!40:40,Assumptions!42:42) -> High Day Low Load Factor | JY37: =LOOKUP(JY33,Assumptions!40:40,Assumptions!42:42) -> High Day Low Load Factor | JZ37: =LOOKUP(JZ33,Assumptions!40:40,Assumptions!42:42) -> High Day Low Load Factor | KA37: =LOOKUP(KA33,Assumptions!40:40,Assumptions!42:42) -> High Day Low Load Factor | KB37: =LOOKUP(KB33,Assumptions!40:40,Assumptions!42:42) -> High Day Low Load Factor | KC37: =LOOKUP(KC33,Assumptions!40:40,Assumptions!42:42) -> High Day Low Load Factor | KD37: =LOOKUP(KD33,Assumptions!40:40,Assumptions!42:42) -> High Day Low Load Factor | KE37: =LOOKUP(KE33,Assumptions!40:40,Assumptions!42:42) -> High Day Low Load Factor | KF37: =LOOKUP(KF33,Assumptions!40:40,Assumptions!42:42) -> High Day Low Load Factor | KG37: =LOOKUP(KG33,Assumptions!40:40,Assumptions!42:42) -> High Day Low Load Factor | KH37: =LOOKUP(KH33,Assumptions!40:40,Assumptions!42:42) -> High Day Low Load Factor | KI37: =LOOKUP(KI33,Assumptions!40:40,Assumptions!42:42) -> High Day Low Load Factor | KJ37: =LOOKUP(KJ33,Assumptions!40:40,Assumptions!42:42) -> Base Day High Load Factor | KK37: =LOOKUP(KK33,Assumptions!40:40,Assumptions!42:42) -> Base Day High Load Factor | KL37: =LOOKUP(KL33,Assumptions!40:40,Assumptions!42:42) -> Base Day High Load Factor | KM37: =LOOKUP(KM33,Assumptions!40:40,Assumptions!42:42) -> Base Day High Load Factor | KN37: =LOOKUP(KN33,Assumptions!40:40,Assumptions!42:42) -> Base Day High Load Factor | KO37: =LOOKUP(KO33,Assumptions!40:40,Assumptions!42:42) -> Base Day High Load Factor | KP37: =LOOKUP(KP33,Assumptions!40:40,Assumptions!42:42) -> Base Day High Load Factor | KQ37: =LOOKUP(KQ33,Assumptions!40:40,Assumptions!42:42) -> Base Day High Load Factor | KR37: =LOOKUP(KR33,Assumptions!40:40,Assumptions!42:42) -> Base Day High Load Factor | KS37: =LOOKUP(KS33,Assumptions!40:40,Assumptions!42:42) -> Base Day High Load Factor | KT37: =LOOKUP(KT33,Assumptions!40:40,Assumptions!42:42) -> Base Day High Load Factor | KU37: =LOOKUP(KU33,Assumptions!40:40,Assumptions!42:42) -> Base Day High Load Factor | KV37: =LOOKUP(KV33,Assumptions!40:40,Assumptions!42:42) -> Base Day High Load Factor | KW37: =LOOKUP(KW33,Assumptions!40:40,Assumptions!42:42) -> Base Day High Load Factor | KX37: =LOOKUP(KX33,Assumptions!40:40,Assumptions!42:42) -> Base Day High Load Factor | KY37: =LOOKUP(KY33,Assumptions!40:40,Assumptions!42:42) -> Base Day High Load Factor | KZ37: =LOOKUP(KZ33,Assumptions!40:40,Assumptions!42:42) -> Base Day High Load Factor | LA37: =LOOKUP(LA33,Assumptions!40:40,Assumptions!42:42) -> Base Day High Load Factor | LB37: =LOOKUP(LB33,Assumptions!40:40,Assumptions!42:42) -> Base Day High Load Factor | LC37: =LOOKUP(LC33,Assumptions!40:40,Assumptions!42:42) -> Base Day High Load Factor | LD37: =LOOKUP(LD33,Assumptions!40:40,Assumptions!42:42) -> Base Day High Load Factor | LE37: =LOOKUP(LE33,Assumptions!40:40,Assumptions!42:42) -> Base Day High Load Factor | LF37: =LOOKUP(LF33,Assumptions!40:40,Assumptions!42:42) -> Base Day High Load Factor | LG37: =LOOKUP(LG33,Assumptions!40:40,Assumptions!42:42) -> Base Day High Load Factor | LH37: =LOOKUP(LH33,Assumptions!40:40,Assumptions!42:42) -> Base Day Base Load Factor | LI37: =LOOKUP(LI33,Assumptions!40:40,Assumptions!42:42) -> Base Day Base Load Factor | LJ37: =LOOKUP(LJ33,Assumptions!40:40,Assumptions!42:42) -> Base Day Base Load Factor | LK37: =LOOKUP(LK33,Assumptions!40:40,Assumptions!42:42) -> Base Day Base Load Factor | LL37: =LOOKUP(LL33,Assumptions!40:40,Assumptions!42:42) -> Base Day Base Load Factor | LM37: =LOOKUP(LM33,Assumptions!40:40,Assumptions!42:42) -> Base Day Base Load Factor | LN37: =LOOKUP(LN33,Assumptions!40:40,Assumptions!42:42) -> Base Day Base Load Factor | LO37: =LOOKUP(LO33,Assumptions!40:40,Assumptions!42:42) -> Base Day Base Load Factor | LP37: =LOOKUP(LP33,Assumptions!40:40,Assumptions!42:42) -> Base Day Base Load Factor | LQ37: =LOOKUP(LQ33,Assumptions!40:40,Assumptions!42:42) -> Base Day Base Load Factor | LR37: =LOOKUP(LR33,Assumptions!40:40,Assumptions!42:42) -> Base Day Base Load Factor | LS37: =LOOKUP(LS33,Assumptions!40:40,Assumptions!42:42) -> Base Day Base Load Factor | LT37: =LOOKUP(LT33,Assumptions!40:40,Assumptions!42:42) -> Base Day Base Load Factor | LU37: =LOOKUP(LU33,Assumptions!40:40,Assumptions!42:42) -> Base Day Base Load Factor | LV37: =LOOKUP(LV33,Assumptions!40:40,Assumptions!42:42) -> Base Day Base Load Factor | LW37: =LOOKUP(LW33,Assumptions!40:40,Assumptions!42:42) -> Base Day Base Load Factor | LX37: =LOOKUP(LX33,Assumptions!40:40,Assumptions!42:42) -> Base Day Base Load Factor | LY37: =LOOKUP(LY33,Assumptions!40:40,Assumptions!42:42) -> Base Day Base Load Factor | LZ37: =LOOKUP(LZ33,Assumptions!40:40,Assumptions!42:42) -> Base Day Base Load Factor | MA37: =LOOKUP(MA33,Assumptions!40:40,Assumptions!42:42) -> Base Day Base Load Factor | MB37: =LOOKUP(MB33,Assumptions!40:40,Assumptions!42:42) -> Base Day Base Load Factor | MC37: =LOOKUP(MC33,Assumptions!40:40,Assumptions!42:42) -> Base Day Base Load Factor | MD37: =LOOKUP(MD33,Assumptions!40:40,Assumptions!42:42) -> Base Day Base Load Factor | ME37: =LOOKUP(ME33,Assumptions!40:40,Assumptions!42:42) -> Base Day Base Load Factor | MF37: =LOOKUP(MF33,Assumptions!40:40,Assumptions!42:42) -> Base Day Low Load Factor | MG37: =LOOKUP(MG33,Assumptions!40:40,Assumptions!42:42) -> Base Day Low Load Factor | MH37: =LOOKUP(MH33,Assumptions!40:40,Assumptions!42:42) -> Base Day Low Load Factor | MI37: =LOOKUP(MI33,Assumptions!40:40,Assumptions!42:42) -> Base Day Low Load Factor | MJ37: =LOOKUP(MJ33,Assumptions!40:40,Assumptions!42:42) -> Base Day Low Load Factor | MK37: =LOOKUP(MK33,Assumptions!40:40,Assumptions!42:42) -> Base Day Low Load Factor | ML37: =LOOKUP(ML33,Assumptions!40:40,Assumptions!42:42) -> Base Day Low Load Factor | MM37: =LOOKUP(MM33,Assumptions!40:40,Assumptions!42:42) -> Base Day Low Load Factor | MN37: =LOOKUP(MN33,Assumptions!40:40,Assumptions!42:42) -> Base Day Low Load Factor | MO37: =LOOKUP(MO33,Assumptions!40:40,Assumptions!42:42) -> Base Day Low Load Factor | MP37: =LOOKUP(MP33,Assumptions!40:40,Assumptions!42:42) -> Base Day Low Load Factor | MQ37: =LOOKUP(MQ33,Assumptions!40:40,Assumptions!42:42) -> Base Day Low Load Factor | MR37: =LOOKUP(MR33,Assumptions!40:40,Assumptions!42:42) -> Base Day Low Load Factor | MS37: =LOOKUP(MS33,Assumptions!40:40,Assumptions!42:42) -> Base Day Low Load Factor | MT37: =LOOKUP(MT33,Assumptions!40:40,Assumptions!42:42) -> Base Day Low Load Factor | MU37: =LOOKUP(MU33,Assumptions!40:40,Assumptions!42:42) -> Base Day Low Load Factor | MV37: =LOOKUP(MV33,Assumptions!40:40,Assumptions!42:42) -> Base Day Low Load Factor | MW37: =LOOKUP(MW33,Assumptions!40:40,Assumptions!42:42) -> Base Day Low Load Factor | MX37: =LOOKUP(MX33,Assumptions!40:40,Assumptions!42:42) -> Base Day Low Load Factor | MY37: =LOOKUP(MY33,Assumptions!40:40,Assumptions!42:42) -> Base Day Low Load Factor | MZ37: =LOOKUP(MZ33,Assumptions!40:40,Assumptions!42:42) -> Base Day Low Load Factor | NA37: =LOOKUP(NA33,Assumptions!40:40,Assumptions!42:42) -> Base Day Low Load Factor | NB37: =LOOKUP(NB33,Assumptions!40:40,Assumptions!42:42) -> Base Day Low Load Factor | NC37: =LOOKUP(NC33,Assumptions!40:40,Assumptions!42:42) -> Base Day Low Load Factor | ND37: =LOOKUP(ND33,Assumptions!40:40,Assumptions!42:42) -> Low Day High Load Factor | NE37: =LOOKUP(NE33,Assumptions!40:40,Assumptions!42:42) -> Low Day High Load Factor | NF37: =LOOKUP(NF33,Assumptions!40:40,Assumptions!42:42) -> Low Day High Load Factor | NG37: =LOOKUP(NG33,Assumptions!40:40,Assumptions!42:42) -> Low Day High Load Factor | NH37: =LOOKUP(NH33,Assumptions!40:40,Assumptions!42:42) -> Low Day High Load Factor | NI37: =LOOKUP(NI33,Assumptions!40:40,Assumptions!42:42) -> Low Day High Load Factor | NJ37: =LOOKUP(NJ33,Assumptions!40:40,Assumptions!42:42) -> Low Day High Load Factor | NK37: =LOOKUP(NK33,Assumptions!40:40,Assumptions!42:42) -> Low Day High Load Factor | NL37: =LOOKUP(NL33,Assumptions!40:40,Assumptions!42:42) -> Low Day High Load Factor | NM37: =LOOKUP(NM33,Assumptions!40:40,Assumptions!42:42) -> Low Day High Load Factor | NN37: =LOOKUP(NN33,Assumptions!40:40,Assumptions!42:42) -> Low Day High Load Factor | NO37: =LOOKUP(NO33,Assumptions!40:40,Assumptions!42:42) -> Low Day High Load Factor | NP37: =LOOKUP(NP33,Assumptions!40:40,Assumptions!42:42) -> Low Day High Load Factor | NQ37: =LOOKUP(NQ33,Assumptions!40:40,Assumptions!42:42) -> Low Day High Load Factor | NR37: =LOOKUP(NR33,Assumptions!40:40,Assumptions!42:42) -> Low Day High Load Factor | NS37: =LOOKUP(NS33,Assumptions!40:40,Assumptions!42:42) -> Low Day High Load Factor | NT37: =LOOKUP(NT33,Assumptions!40:40,Assumptions!42:42) -> Low Day High Load Factor | NU37: =LOOKUP(NU33,Assumptions!40:40,Assumptions!42:42) -> Low Day High Load Factor | NV37: =LOOKUP(NV33,Assumptions!40:40,Assumptions!42:42) -> Low Day High Load Factor | NW37: =LOOKUP(NW33,Assumptions!40:40,Assumptions!42:42) -> Low Day High Load Factor | NX37: =LOOKUP(NX33,Assumptions!40:40,Assumptions!42:42) -> Low Day High Load Factor | NY37: =LOOKUP(NY33,Assumptions!40:40,Assumptions!42:42) -> Low Day High Load Factor | NZ37: =LOOKUP(NZ33,Assumptions!40:40,Assumptions!42:42) -> Low Day High Load Factor | OA37: =LOOKUP(OA33,Assumptions!40:40,Assumptions!42:42) -> Low Day High Load Factor | OB37: =LOOKUP(OB33,Assumptions!40:40,Assumptions!42:42) -> Low Day Base Load Factor | OC37: =LOOKUP(OC33,Assumptions!40:40,Assumptions!42:42) -> Low Day Base Load Factor | OD37: =LOOKUP(OD33,Assumptions!40:40,Assumptions!42:42) -> Low Day Base Load Factor | OE37: =LOOKUP(OE33,Assumptions!40:40,Assumptions!42:42) -> Low Day Base Load Factor | OF37: =LOOKUP(OF33,Assumptions!40:40,Assumptions!42:42) -> Low Day Base Load Factor | OG37: =LOOKUP(OG33,Assumptions!40:40,Assumptions!42:42) -> Low Day Base Load Factor | OH37: =LOOKUP(OH33,Assumptions!40:40,Assumptions!42:42) -> Low Day Base Load Factor | OI37: =LOOKUP(OI33,Assumptions!40:40,Assumptions!42:42) -> Low Day Base Load Factor | OJ37: =LOOKUP(OJ33,Assumptions!40:40,Assumptions!42:42) -> Low Day Base Load Factor | OK37: =LOOKUP(OK33,Assumptions!40:40,Assumptions!42:42) -> Low Day Base Load Factor | OL37: =LOOKUP(OL33,Assumptions!40:40,Assumptions!42:42) -> Low Day Base Load Factor | OM37: =LOOKUP(OM33,Assumptions!40:40,Assumptions!42:42) -> Low Day Base Load Factor | ON37: =LOOKUP(ON33,Assumptions!40:40,Assumptions!42:42) -> Low Day Base Load Factor | OO37: =LOOKUP(OO33,Assumptions!40:40,Assumptions!42:42) -> Low Day Base Load Factor | OP37: =LOOKUP(OP33,Assumptions!40:40,Assumptions!42:42) -> Low Day Base Load Factor | OQ37: =LOOKUP(OQ33,Assumptions!40:40,Assumptions!42:42) -> Low Day Base Load Factor | OR37: =LOOKUP(OR33,Assumptions!40:40,Assumptions!42:42) -> Low Day Base Load Factor | OS37: =LOOKUP(OS33,Assumptions!40:40,Assumptions!42:42) -> Low Day Base Load Factor | OT37: =LOOKUP(OT33,Assumptions!40:40,Assumptions!42:42) -> Low Day Base Load Factor | OU37: =LOOKUP(OU33,Assumptions!40:40,Assumptions!42:42) -> Low Day Base Load Factor | OV37: =LOOKUP(OV33,Assumptions!40:40,Assumptions!42:42) -> Low Day Base Load Factor | OW37: =LOOKUP(OW33,Assumptions!40:40,Assumptions!42:42) -> Low Day Base Load Factor | OX37: =LOOKUP(OX33,Assumptions!40:40,Assumptions!42:42) -> Low Day Base Load Factor | OY37: =LOOKUP(OY33,Assumptions!40:40,Assumptions!42:42) -> Low Day Base Load Factor | OZ37: =LOOKUP(OZ33,Assumptions!40:40,Assumptions!42:42) -> Low Day Low Load Factor | PA37: =LOOKUP(PA33,Assumptions!40:40,Assumptions!42:42) -> Low Day Low Load Factor | PB37: =LOOKUP(PB33,Assumptions!40:40,Assumptions!42:42) -> Low Day Low Load Factor | PC37: =LOOKUP(PC33,Assumptions!40:40,Assumptions!42:42) -> Low Day Low Load Factor | PD37: =LOOKUP(PD33,Assumptions!40:40,Assumptions!42:42) -> Low Day Low Load Factor | PE37: =LOOKUP(PE33,Assumptions!40:40,Assumptions!42:42) -> Low Day Low Load Factor | PF37: =LOOKUP(PF33,Assumptions!40:40,Assumptions!42:42) -> Low Day Low Load Factor | PG37: =LOOKUP(PG33,Assumptions!40:40,Assumptions!42:42) -> Low Day Low Load Factor | PH37: =LOOKUP(PH33,Assumptions!40:40,Assumptions!42:42) -> Low Day Low Load Factor | PI37: =LOOKUP(PI33,Assumptions!40:40,Assumptions!42:42) -> Low Day Low Load Factor | PJ37: =LOOKUP(PJ33,Assumptions!40:40,Assumptions!42:42) -> Low Day Low Load Factor | PK37: =LOOKUP(PK33,Assumptions!40:40,Assumptions!42:42) -> Low Day Low Load Factor | PL37: =LOOKUP(PL33,Assumptions!40:40,Assumptions!42:42) -> Low Day Low Load Factor | PM37: =LOOKUP(PM33,Assumptions!40:40,Assumptions!42:42) -> Low Day Low Load Factor | PN37: =LOOKUP(PN33,Assumptions!40:40,Assumptions!42:42) -> Low Day Low Load Factor | PO37: =LOOKUP(PO33,Assumptions!40:40,Assumptions!42:42) -> Low Day Low Load Factor | PP37: =LOOKUP(PP33,Assumptions!40:40,Assumptions!42:42) -> Low Day Low Load Factor | PQ37: =LOOKUP(PQ33,Assumptions!40:40,Assumptions!42:42) -> Low Day Low Load Factor | PR37: =LOOKUP(PR33,Assumptions!40:40,Assumptions!42:42) -> Low Day Low Load Factor | PS37: =LOOKUP(PS33,Assumptions!40:40,Assumptions!42:42) -> Low Day Low Load Factor | PT37: =LOOKUP(PT33,Assumptions!40:40,Assumptions!42:42) -> Low Day Low Load Factor | PU37: =LOOKUP(PU33,Assumptions!40:40,Assumptions!42:42) -> Low Day Low Load Factor | PV37: =LOOKUP(PV33,Assumptions!40:40,Assumptions!42:42) -> Low Day Low Load Factor | PW37: =LOOKUP(PW33,Assumptions!40:40,Assumptions!42:42) -> Low Day Low Load Factor | PX37: =LOOKUP(PX33,Assumptions!40:40,Assumptions!42:42) -> High Day High Load Factor | PY37: =LOOKUP(PY33,Assumptions!40:40,Assumptions!42:42) -> High Day High Load Factor | PZ37: =LOOKUP(PZ33,Assumptions!40:40,Assumptions!42:42) -> High Day High Load Factor | QA37: =LOOKUP(QA33,Assumptions!40:40,Assumptions!42:42) -> High Day High Load Factor | QB37: =LOOKUP(QB33,Assumptions!40:40,Assumptions!42:42) -> High Day High Load Factor | QC37: =LOOKUP(QC33,Assumptions!40:40,Assumptions!42:42) -> High Day High Load Factor | QD37: =LOOKUP(QD33,Assumptions!40:40,Assumptions!42:42) -> High Day High Load Factor | QE37: =LOOKUP(QE33,Assumptions!40:40,Assumptions!42:42) -> High Day High Load Factor | QF37: =LOOKUP(QF33,Assumptions!40:40,Assumptions!42:42) -> High Day High Load Factor | QG37: =LOOKUP(QG33,Assumptions!40:40,Assumptions!42:42) -> High Day High Load Factor | QH37: =LOOKUP(QH33,Assumptions!40:40,Assumptions!42:42) -> High Day High Load Factor | QI37: =LOOKUP(QI33,Assumptions!40:40,Assumptions!42:42) -> High Day High Load Factor | QJ37: =LOOKUP(QJ33,Assumptions!40:40,Assumptions!42:42) -> High Day High Load Factor | QK37: =LOOKUP(QK33,Assumptions!40:40,Assumptions!42:42) -> High Day High Load Factor | QL37: =LOOKUP(QL33,Assumptions!40:40,Assumptions!42:42) -> High Day High Load Factor | QM37: =LOOKUP(QM33,Assumptions!40:40,Assumptions!42:42) -> High Day High Load Factor | QN37: =LOOKUP(QN33,Assumptions!40:40,Assumptions!42:42) -> High Day High Load Factor | QO37: =LOOKUP(QO33,Assumptions!40:40,Assumptions!42:42) -> High Day High Load Factor | QP37: =LOOKUP(QP33,Assumptions!40:40,Assumptions!42:42) -> High Day High Load Factor | QQ37: =LOOKUP(QQ33,Assumptions!40:40,Assumptions!42:42) -> High Day High Load Factor | QR37: =LOOKUP(QR33,Assumptions!40:40,Assumptions!42:42) -> High Day High Load Factor | QS37: =LOOKUP(QS33,Assumptions!40:40,Assumptions!42:42) -> High Day High Load Factor | QT37: =LOOKUP(QT33,Assumptions!40:40,Assumptions!42:42) -> High Day High Load Factor | QU37: =LOOKUP(QU33,Assumptions!40:40,Assumptions!42:42) -> High Day High Load Factor | QV37: =LOOKUP(QV33,Assumptions!40:40,Assumptions!42:42) -> High Day Base Load Factor | QW37: =LOOKUP(QW33,Assumptions!40:40,Assumptions!42:42) -> High Day Base Load Factor | QX37: =LOOKUP(QX33,Assumptions!40:40,Assumptions!42:42) -> High Day Base Load Factor | QY37: =LOOKUP(QY33,Assumptions!40:40,Assumptions!42:42) -> High Day Base Load Factor | QZ37: =LOOKUP(QZ33,Assumptions!40:40,Assumptions!42:42) -> High Day Base Load Factor | RA37: =LOOKUP(RA33,Assumptions!40:40,Assumptions!42:42) -> High Day Base Load Factor | RB37: =LOOKUP(RB33,Assumptions!40:40,Assumptions!42:42) -> High Day Base Load Factor | RC37: =LOOKUP(RC33,Assumptions!40:40,Assumptions!42:42) -> High Day Base Load Factor | RD37: =LOOKUP(RD33,Assumptions!40:40,Assumptions!42:42) -> High Day Base Load Factor | RE37: =LOOKUP(RE33,Assumptions!40:40,Assumptions!42:42) -> High Day Base Load Factor | RF37: =LOOKUP(RF33,Assumptions!40:40,Assumptions!42:42) -> High Day Base Load Factor | RG37: =LOOKUP(RG33,Assumptions!40:40,Assumptions!42:42) -> High Day Base Load Factor | RH37: =LOOKUP(RH33,Assumptions!40:40,Assumptions!42:42) -> High Day Base Load Factor | RI37: =LOOKUP(RI33,Assumptions!40:40,Assumptions!42:42) -> High Day Base Load Factor | RJ37: =LOOKUP(RJ33,Assumptions!40:40,Assumptions!42:42) -> High Day Base Load Factor | RK37: =LOOKUP(RK33,Assumptions!40:40,Assumptions!42:42) -> High Day Base Load Factor | RL37: =LOOKUP(RL33,Assumptions!40:40,Assumptions!42:42) -> High Day Base Load Factor | RM37: =LOOKUP(RM33,Assumptions!40:40,Assumptions!42:42) -> High Day Base Load Factor | RN37: =LOOKUP(RN33,Assumptions!40:40,Assumptions!42:42) -> High Day Base Load Factor | RO37: =LOOKUP(RO33,Assumptions!40:40,Assumptions!42:42) -> High Day Base Load Factor | RP37: =LOOKUP(RP33,Assumptions!40:40,Assumptions!42:42) -> High Day Base Load Factor | RQ37: =LOOKUP(RQ33,Assumptions!40:40,Assumptions!42:42) -> High Day Base Load Factor | RR37: =LOOKUP(RR33,Assumptions!40:40,Assumptions!42:42) -> High Day Base Load Factor | RS37: =LOOKUP(RS33,Assumptions!40:40,Assumptions!42:42) -> High Day Base Load Factor | RT37: =LOOKUP(RT33,Assumptions!40:40,Assumptions!42:42) -> High Day Low Load Factor | RU37: =LOOKUP(RU33,Assumptions!40:40,Assumptions!42:42) -> High Day Low Load Factor | RV37: =LOOKUP(RV33,Assumptions!40:40,Assumptions!42:42) -> High Day Low Load Factor | RW37: =LOOKUP(RW33,Assumptions!40:40,Assumptions!42:42) -> High Day Low Load Factor | RX37: =LOOKUP(RX33,Assumptions!40:40,Assumptions!42:42) -> High Day Low Load Factor | RY37: =LOOKUP(RY33,Assumptions!40:40,Assumptions!42:42) -> High Day Low Load Factor | RZ37: =LOOKUP(RZ33,Assumptions!40:40,Assumptions!42:42) -> High Day Low Load Factor | SA37: =LOOKUP(SA33,Assumptions!40:40,Assumptions!42:42) -> High Day Low Load Factor | SB37: =LOOKUP(SB33,Assumptions!40:40,Assumptions!42:42) -> High Day Low Load Factor | SC37: =LOOKUP(SC33,Assumptions!40:40,Assumptions!42:42) -> High Day Low Load Factor | SD37: =LOOKUP(SD33,Assumptions!40:40,Assumptions!42:42) -> High Day Low Load Factor | SE37: =LOOKUP(SE33,Assumptions!40:40,Assumptions!42:42) -> High Day Low Load Factor | SF37: =LOOKUP(SF33,Assumptions!40:40,Assumptions!42:42) -> High Day Low Load Factor | SG37: =LOOKUP(SG33,Assumptions!40:40,Assumptions!42:42) -> High Day Low Load Factor | SH37: =LOOKUP(SH33,Assumptions!40:40,Assumptions!42:42) -> High Day Low Load Factor | SI37: =LOOKUP(SI33,Assumptions!40:40,Assumptions!42:42) -> High Day Low Load Factor | SJ37: =LOOKUP(SJ33,Assumptions!40:40,Assumptions!42:42) -> High Day Low Load Factor | SK37: =LOOKUP(SK33,Assumptions!40:40,Assumptions!42:42) -> High Day Low Load Factor | SL37: =LOOKUP(SL33,Assumptions!40:40,Assumptions!42:42) -> High Day Low Load Factor | SM37: =LOOKUP(SM33,Assumptions!40:40,Assumptions!42:42) -> High Day Low Load Factor | SN37: =LOOKUP(SN33,Assumptions!40:40,Assumptions!42:42) -> High Day Low Load Factor | SO37: =LOOKUP(SO33,Assumptions!40:40,Assumptions!42:42) -> High Day Low Load Factor | SP37: =LOOKUP(SP33,Assumptions!40:40,Assumptions!42:42) -> High Day Low Load Factor | SQ37: =LOOKUP(SQ33,Assumptions!40:40,Assumptions!42:42) -> High Day Low Load Factor | SR37: =LOOKUP(SR33,Assumptions!40:40,Assumptions!42:42) -> Base Day High Load Factor | SS37: =LOOKUP(SS33,Assumptions!40:40,Assumptions!42:42) -> Base Day High Load Factor | ST37: =LOOKUP(ST33,Assumptions!40:40,Assumptions!42:42) -> Base Day High Load Factor | SU37: =LOOKUP(SU33,Assumptions!40:40,Assumptions!42:42) -> Base Day High Load Factor | SV37: =LOOKUP(SV33,Assumptions!40:40,Assumptions!42:42) -> Base Day High Load Factor | SW37: =LOOKUP(SW33,Assumptions!40:40,Assumptions!42:42) -> Base Day High Load Factor | SX37: =LOOKUP(SX33,Assumptions!40:40,Assumptions!42:42) -> Base Day High Load Factor | SY37: =LOOKUP(SY33,Assumptions!40:40,Assumptions!42:42) -> Base Day High Load Factor | SZ37: =LOOKUP(SZ33,Assumptions!40:40,Assumptions!42:42) -> Base Day High Load Factor | TA37: =LOOKUP(TA33,Assumptions!40:40,Assumptions!42:42) -> Base Day High Load Factor | TB37: =LOOKUP(TB33,Assumptions!40:40,Assumptions!42:42) -> Base Day High Load Factor | TC37: =LOOKUP(TC33,Assumptions!40:40,Assumptions!42:42) -> Base Day High Load Factor | TD37: =LOOKUP(TD33,Assumptions!40:40,Assumptions!42:42) -> Base Day High Load Factor | TE37: =LOOKUP(TE33,Assumptions!40:40,Assumptions!42:42) -> Base Day High Load Factor | TF37: =LOOKUP(TF33,Assumptions!40:40,Assumptions!42:42) -> Base Day High Load Factor | TG37: =LOOKUP(TG33,Assumptions!40:40,Assumptions!42:42) -> Base Day High Load Factor | TH37: =LOOKUP(TH33,Assumptions!40:40,Assumptions!42:42) -> Base Day High Load Factor | TI37: =LOOKUP(TI33,Assumptions!40:40,Assumptions!42:42) -> Base Day High Load Factor | TJ37: =LOOKUP(TJ33,Assumptions!40:40,Assumptions!42:42) -> Base Day High Load Factor | TK37: =LOOKUP(TK33,Assumptions!40:40,Assumptions!42:42) -> Base Day High Load Factor | TL37: =LOOKUP(TL33,Assumptions!40:40,Assumptions!42:42) -> Base Day High Load Factor | TM37: =LOOKUP(TM33,Assumptions!40:40,Assumptions!42:42) -> Base Day High Load Factor | TN37: =LOOKUP(TN33,Assumptions!40:40,Assumptions!42:42) -> Base Day High Load Factor | TO37: =LOOKUP(TO33,Assumptions!40:40,Assumptions!42:42) -> Base Day High Load Factor | TP37: =LOOKUP(TP33,Assumptions!40:40,Assumptions!42:42) -> Base Day Base Load Factor | TQ37: =LOOKUP(TQ33,Assumptions!40:40,Assumptions!42:42) -> Base Day Base Load Factor | TR37: =LOOKUP(TR33,Assumptions!40:40,Assumptions!42:42) -> Base Day Base Load Factor | TS37: =LOOKUP(TS33,Assumptions!40:40,Assumptions!42:42) -> Base Day Base Load Factor | TT37: =LOOKUP(TT33,Assumptions!40:40,Assumptions!42:42) -> Base Day Base Load Factor | TU37: =LOOKUP(TU33,Assumptions!40:40,Assumptions!42:42) -> Base Day Base Load Factor | TV37: =LOOKUP(TV33,Assumptions!40:40,Assumptions!42:42) -> Base Day Base Load Factor | TW37: =LOOKUP(TW33,Assumptions!40:40,Assumptions!42:42) -> Base Day Base Load Factor | TX37: =LOOKUP(TX33,Assumptions!40:40,Assumptions!42:42) -> Base Day Base Load Factor | TY37: =LOOKUP(TY33,Assumptions!40:40,Assumptions!42:42) -> Base Day Base Load Factor | TZ37: =LOOKUP(TZ33,Assumptions!40:40,Assumptions!42:42) -> Base Day Base Load Factor | UA37: =LOOKUP(UA33,Assumptions!40:40,Assumptions!42:42) -> Base Day Base Load Factor | UB37: =LOOKUP(UB33,Assumptions!40:40,Assumptions!42:42) -> Base Day Base Load Factor | UC37: =LOOKUP(UC33,Assumptions!40:40,Assumptions!42:42) -> Base Day Base Load Factor | UD37: =LOOKUP(UD33,Assumptions!40:40,Assumptions!42:42) -> Base Day Base Load Factor | UE37: =LOOKUP(UE33,Assumptions!40:40,Assumptions!42:42) -> Base Day Base Load Factor | UF37: =LOOKUP(UF33,Assumptions!40:40,Assumptions!42:42) -> Base Day Base Load Factor | UG37: =LOOKUP(UG33,Assumptions!40:40,Assumptions!42:42) -> Base Day Base Load Factor | UH37: =LOOKUP(UH33,Assumptions!40:40,Assumptions!42:42) -> Base Day Base Load Factor | UI37: =LOOKUP(UI33,Assumptions!40:40,Assumptions!42:42) -> Base Day Base Load Factor | UJ37: =LOOKUP(UJ33,Assumptions!40:40,Assumptions!42:42) -> Base Day Base Load Factor | UK37: =LOOKUP(UK33,Assumptions!40:40,Assumptions!42:42) -> Base Day Base Load Factor | UL37: =LOOKUP(UL33,Assumptions!40:40,Assumptions!42:42) -> Base Day Base Load Factor | UM37: =LOOKUP(UM33,Assumptions!40:40,Assumptions!42:42) -> Base Day Base Load Factor | UN37: =LOOKUP(UN33,Assumptions!40:40,Assumptions!42:42) -> Base Day Low Load Factor | UO37: =LOOKUP(UO33,Assumptions!40:40,Assumptions!42:42) -> Base Day Low Load Factor | UP37: =LOOKUP(UP33,Assumptions!40:40,Assumptions!42:42) -> Base Day Low Load Factor | UQ37: =LOOKUP(UQ33,Assumptions!40:40,Assumptions!42:42) -> Base Day Low Load Factor | UR37: =LOOKUP(UR33,Assumptions!40:40,Assumptions!42:42) -> Base Day Low Load Factor | US37: =LOOKUP(US33,Assumptions!40:40,Assumptions!42:42) -> Base Day Low Load Factor | UT37: =LOOKUP(UT33,Assumptions!40:40,Assumptions!42:42) -> Base Day Low Load Factor | UU37: =LOOKUP(UU33,Assumptions!40:40,Assumptions!42:42) -> Base Day Low Load Factor | UV37: =LOOKUP(UV33,Assumptions!40:40,Assumptions!42:42) -> Base Day Low Load Factor | UW37: =LOOKUP(UW33,Assumptions!40:40,Assumptions!42:42) -> Base Day Low Load Factor | UX37: =LOOKUP(UX33,Assumptions!40:40,Assumptions!42:42) -> Base Day Low Load Factor | UY37: =LOOKUP(UY33,Assumptions!40:40,Assumptions!42:42) -> Base Day Low Load Factor | UZ37: =LOOKUP(UZ33,Assumptions!40:40,Assumptions!42:42) -> Base Day Low Load Factor | VA37: =LOOKUP(VA33,Assumptions!40:40,Assumptions!42:42) -> Base Day Low Load Factor | VB37: =LOOKUP(VB33,Assumptions!40:40,Assumptions!42:42) -> Base Day Low Load Factor | VC37: =LOOKUP(VC33,Assumptions!40:40,Assumptions!42:42) -> Base Day Low Load Factor | VD37: =LOOKUP(VD33,Assumptions!40:40,Assumptions!42:42) -> Base Day Low Load Factor | VE37: =LOOKUP(VE33,Assumptions!40:40,Assumptions!42:42) -> Base Day Low Load Factor | VF37: =LOOKUP(VF33,Assumptions!40:40,Assumptions!42:42) -> Base Day Low Load Factor | VG37: =LOOKUP(VG33,Assumptions!40:40,Assumptions!42:42) -> Base Day Low Load Factor | VH37: =LOOKUP(VH33,Assumptions!40:40,Assumptions!42:42) -> Base Day Low Load Factor | VI37: =LOOKUP(VI33,Assumptions!40:40,Assumptions!42:42) -> Base Day Low Load Factor | VJ37: =LOOKUP(VJ33,Assumptions!40:40,Assumptions!42:42) -> Base Day Low Load Factor | VK37: =LOOKUP(VK33,Assumptions!40:40,Assumptions!42:42) -> Base Day Low Load Factor | VL37: =LOOKUP(VL33,Assumptions!40:40,Assumptions!42:42) -> Low Day High Load Factor | VM37: =LOOKUP(VM33,Assumptions!40:40,Assumptions!42:42) -> Low Day High Load Factor | VN37: =LOOKUP(VN33,Assumptions!40:40,Assumptions!42:42) -> Low Day High Load Factor | VO37: =LOOKUP(VO33,Assumptions!40:40,Assumptions!42:42) -> Low Day High Load Factor | VP37: =LOOKUP(VP33,Assumptions!40:40,Assumptions!42:42) -> Low Day High Load Factor | VQ37: =LOOKUP(VQ33,Assumptions!40:40,Assumptions!42:42) -> Low Day High Load Factor | VR37: =LOOKUP(VR33,Assumptions!40:40,Assumptions!42:42) -> Low Day High Load Factor | VS37: =LOOKUP(VS33,Assumptions!40:40,Assumptions!42:42) -> Low Day High Load Factor | VT37: =LOOKUP(VT33,Assumptions!40:40,Assumptions!42:42) -> Low Day High Load Factor | VU37: =LOOKUP(VU33,Assumptions!40:40,Assumptions!42:42) -> Low Day High Load Factor | VV37: =LOOKUP(VV33,Assumptions!40:40,Assumptions!42:42) -> Low Day High Load Factor | VW37: =LOOKUP(VW33,Assumptions!40:40,Assumptions!42:42) -> Low Day High Load Factor | VX37: =LOOKUP(VX33,Assumptions!40:40,Assumptions!42:42) -> Low Day High Load Factor | VY37: =LOOKUP(VY33,Assumptions!40:40,Assumptions!42:42) -> Low Day High Load Factor | VZ37: =LOOKUP(VZ33,Assumptions!40:40,Assumptions!42:42) -> Low Day High Load Factor | WA37: =LOOKUP(WA33,Assumptions!40:40,Assumptions!42:42) -> Low Day High Load Factor | WB37: =LOOKUP(WB33,Assumptions!40:40,Assumptions!42:42) -> Low Day High Load Factor | WC37: =LOOKUP(WC33,Assumptions!40:40,Assumptions!42:42) -> Low Day High Load Factor | WD37: =LOOKUP(WD33,Assumptions!40:40,Assumptions!42:42) -> Low Day High Load Factor | WE37: =LOOKUP(WE33,Assumptions!40:40,Assumptions!42:42) -> Low Day High Load Factor | WF37: =LOOKUP(WF33,Assumptions!40:40,Assumptions!42:42) -> Low Day High Load Factor | WG37: =LOOKUP(WG33,Assumptions!40:40,Assumptions!42:42) -> Low Day High Load Factor | WH37: =LOOKUP(WH33,Assumptions!40:40,Assumptions!42:42) -> Low Day High Load Factor | WI37: =LOOKUP(WI33,Assumptions!40:40,Assumptions!42:42) -> Low Day High Load Factor | WJ37: =LOOKUP(WJ33,Assumptions!40:40,Assumptions!42:42) -> Low Day Base Load Factor | WK37: =LOOKUP(WK33,Assumptions!40:40,Assumptions!42:42) -> Low Day Base Load Factor | WL37: =LOOKUP(WL33,Assumptions!40:40,Assumptions!42:42) -> Low Day Base Load Factor | WM37: =LOOKUP(WM33,Assumptions!40:40,Assumptions!42:42) -> Low Day Base Load Factor | WN37: =LOOKUP(WN33,Assumptions!40:40,Assumptions!42:42) -> Low Day Base Load Factor | WO37: =LOOKUP(WO33,Assumptions!40:40,Assumptions!42:42) -> Low Day Base Load Factor | WP37: =LOOKUP(WP33,Assumptions!40:40,Assumptions!42:42) -> Low Day Base Load Factor | WQ37: =LOOKUP(WQ33,Assumptions!40:40,Assumptions!42:42) -> Low Day Base Load Factor | WR37: =LOOKUP(WR33,Assumptions!40:40,Assumptions!42:42) -> Low Day Base Load Factor | WS37: =LOOKUP(WS33,Assumptions!40:40,Assumptions!42:42) -> Low Day Base Load Factor | WT37: =LOOKUP(WT33,Assumptions!40:40,Assumptions!42:42) -> Low Day Base Load Factor | WU37: =LOOKUP(WU33,Assumptions!40:40,Assumptions!42:42) -> Low Day Base Load Factor | WV37: =LOOKUP(WV33,Assumptions!40:40,Assumptions!42:42) -> Low Day Base Load Factor | WW37: =LOOKUP(WW33,Assumptions!40:40,Assumptions!42:42) -> Low Day Base Load Factor | WX37: =LOOKUP(WX33,Assumptions!40:40,Assumptions!42:42) -> Low Day Base Load Factor | WY37: =LOOKUP(WY33,Assumptions!40:40,Assumptions!42:42) -> Low Day Base Load Factor | WZ37: =LOOKUP(WZ33,Assumptions!40:40,Assumptions!42:42) -> Low Day Base Load Factor | XA37: =LOOKUP(XA33,Assumptions!40:40,Assumptions!42:42) -> Low Day Base Load Factor | XB37: =LOOKUP(XB33,Assumptions!40:40,Assumptions!42:42) -> Low Day Base Load Factor | XC37: =LOOKUP(XC33,Assumptions!40:40,Assumptions!42:42) -> Low Day Base Load Factor | XD37: =LOOKUP(XD33,Assumptions!40:40,Assumptions!42:42) -> Low Day Base Load Factor | XE37: =LOOKUP(XE33,Assumptions!40:40,Assumptions!42:42) -> Low Day Base Load Factor | XF37: =LOOKUP(XF33,Assumptions!40:40,Assumptions!42:42) -> Low Day Base Load Factor | XG37: =LOOKUP(XG33,Assumptions!40:40,Assumptions!42:42) -> Low Day Base Load Factor | XH37: =LOOKUP(XH33,Assumptions!40:40,Assumptions!42:42) -> Low Day Low Load Factor | XI37: =LOOKUP(XI33,Assumptions!40:40,Assumptions!42:42) -> Low Day Low Load Factor | XJ37: =LOOKUP(XJ33,Assumptions!40:40,Assumptions!42:42) -> Low Day Low Load Factor | XK37: =LOOKUP(XK33,Assumptions!40:40,Assumptions!42:42) -> Low Day Low Load Factor | XL37: =LOOKUP(XL33,Assumptions!40:40,Assumptions!42:42) -> Low Day Low Load Factor | XM37: =LOOKUP(XM33,Assumptions!40:40,Assumptions!42:42) -> Low Day Low Load Factor | XN37: =LOOKUP(XN33,Assumptions!40:40,Assumptions!42:42) -> Low Day Low Load Factor | XO37: =LOOKUP(XO33,Assumptions!40:40,Assumptions!42:42) -> Low Day Low Load Factor | XP37: =LOOKUP(XP33,Assumptions!40:40,Assumptions!42:42) -> Low Day Low Load Factor | XQ37: =LOOKUP(XQ33,Assumptions!40:40,Assumptions!42:42) -> Low Day Low Load Factor | XR37: =LOOKUP(XR33,Assumptions!40:40,Assumptions!42:42) -> Low Day Low Load Factor | XS37: =LOOKUP(XS33,Assumptions!40:40,Assumptions!42:42) -> Low Day Low Load Factor | XT37: =LOOKUP(XT33,Assumptions!40:40,Assumptions!42:42) -> Low Day Low Load Factor | XU37: =LOOKUP(XU33,Assumptions!40:40,Assumptions!42:42) -> Low Day Low Load Factor | XV37: =LOOKUP(XV33,Assumptions!40:40,Assumptions!42:42) -> Low Day Low Load Factor | XW37: =LOOKUP(XW33,Assumptions!40:40,Assumptions!42:42) -> Low Day Low Load Factor | XX37: =LOOKUP(XX33,Assumptions!40:40,Assumptions!42:42) -> Low Day Low Load Factor | XY37: =LOOKUP(XY33,Assumptions!40:40,Assumptions!42:42) -> Low Day Low Load Factor | XZ37: =LOOKUP(XZ33,Assumptions!40:40,Assumptions!42:42) -> Low Day Low Load Factor | YA37: =LOOKUP(YA33,Assumptions!40:40,Assumptions!42:42) -> Low Day Low Load Factor | YB37: =LOOKUP(YB33,Assumptions!40:40,Assumptions!42:42) -> Low Day Low Load Factor | YC37: =LOOKUP(YC33,Assumptions!40:40,Assumptions!42:42) -> Low Day Low Load Factor | YD37: =LOOKUP(YD33,Assumptions!40:40,Assumptions!42:42) -> Low Day Low Load Factor | YE37: =LOOKUP(YE33,Assumptions!40:40,Assumptions!42:42) -> Low Day Low Load Factor | YF37: =LOOKUP(YF33,Assumptions!40:40,Assumptions!42:42) -> High Day High Load Factor | YG37: =LOOKUP(YG33,Assumptions!40:40,Assumptions!42:42) -> High Day High Load Factor | YH37: =LOOKUP(YH33,Assumptions!40:40,Assumptions!42:42) -> High Day High Load Factor | YI37: =LOOKUP(YI33,Assumptions!40:40,Assumptions!42:42) -> High Day High Load Factor | YJ37: =LOOKUP(YJ33,Assumptions!40:40,Assumptions!42:42) -> High Day High Load Factor | YK37: =LOOKUP(YK33,Assumptions!40:40,Assumptions!42:42) -> High Day High Load Factor | YL37: =LOOKUP(YL33,Assumptions!40:40,Assumptions!42:42) -> High Day High Load Factor | YM37: =LOOKUP(YM33,Assumptions!40:40,Assumptions!42:42) -> High Day High Load Factor | YN37: =LOOKUP(YN33,Assumptions!40:40,Assumptions!42:42) -> High Day High Load Factor | YO37: =LOOKUP(YO33,Assumptions!40:40,Assumptions!42:42) -> High Day High Load Factor | YP37: =LOOKUP(YP33,Assumptions!40:40,Assumptions!42:42) -> High Day High Load Factor | YQ37: =LOOKUP(YQ33,Assumptions!40:40,Assumptions!42:42) -> High Day High Load Factor | YR37: =LOOKUP(YR33,Assumptions!40:40,Assumptions!42:42) -> High Day High Load Factor | YS37: =LOOKUP(YS33,Assumptions!40:40,Assumptions!42:42) -> High Day High Load Factor | YT37: =LOOKUP(YT33,Assumptions!40:40,Assumptions!42:42) -> High Day High Load Factor | YU37: =LOOKUP(YU33,Assumptions!40:40,Assumptions!42:42) -> High Day High Load Factor | YV37: =LOOKUP(YV33,Assumptions!40:40,Assumptions!42:42) -> High Day High Load Factor | YW37: =LOOKUP(YW33,Assumptions!40:40,Assumptions!42:42) -> High Day High Load Factor | YX37: =LOOKUP(YX33,Assumptions!40:40,Assumptions!42:42) -> High Day High Load Factor | YY37: =LOOKUP(YY33,Assumptions!40:40,Assumptions!42:42) -> High Day High Load Factor | YZ37: =LOOKUP(YZ33,Assumptions!40:40,Assumptions!42:42) -> High Day High Load Factor | ZA37: =LOOKUP(ZA33,Assumptions!40:40,Assumptions!42:42) -> High Day High Load Factor | ZB37: =LOOKUP(ZB33,Assumptions!40:40,Assumptions!42:42) -> High Day High Load Factor | ZC37: =LOOKUP(ZC33,Assumptions!40:40,Assumptions!42:42) -> High Day High Load Factor | ZD37: =LOOKUP(ZD33,Assumptions!40:40,Assumptions!42:42) -> High Day Base Load Factor | ZE37: =LOOKUP(ZE33,Assumptions!40:40,Assumptions!42:42) -> High Day Base Load Factor | ZF37: =LOOKUP(ZF33,Assumptions!40:40,Assumptions!42:42) -> High Day Base Load Factor | ZG37: =LOOKUP(ZG33,Assumptions!40:40,Assumptions!42:42) -> High Day Base Load Factor | ZH37: =LOOKUP(ZH33,Assumptions!40:40,Assumptions!42:42) -> High Day Base Load Factor | ZI37: =LOOKUP(ZI33,Assumptions!40:40,Assumptions!42:42) -> High Day Base Load Factor | ZJ37: =LOOKUP(ZJ33,Assumptions!40:40,Assumptions!42:42) -> High Day Base Load Factor | ZK37: =LOOKUP(ZK33,Assumptions!40:40,Assumptions!42:42) -> High Day Base Load Factor | ZL37: =LOOKUP(ZL33,Assumptions!40:40,Assumptions!42:42) -> High Day Base Load Factor | ZM37: =LOOKUP(ZM33,Assumptions!40:40,Assumptions!42:42) -> High Day Base Load Factor | ZN37: =LOOKUP(ZN33,Assumptions!40:40,Assumptions!42:42) -> High Day Base Load Factor | ZO37: =LOOKUP(ZO33,Assumptions!40:40,Assumptions!42:42) -> High Day Base Load Factor | ZP37: =LOOKUP(ZP33,Assumptions!40:40,Assumptions!42:42) -> High Day Base Load Factor | ZQ37: =LOOKUP(ZQ33,Assumptions!40:40,Assumptions!42:42) -> High Day Base Load Factor | ZR37: =LOOKUP(ZR33,Assumptions!40:40,Assumptions!42:42) -> High Day Base Load Factor | ZS37: =LOOKUP(ZS33,Assumptions!40:40,Assumptions!42:42) -> High Day Base Load Factor | ZT37: =LOOKUP(ZT33,Assumptions!40:40,Assumptions!42:42) -> High Day Base Load Factor | ZU37: =LOOKUP(ZU33,Assumptions!40:40,Assumptions!42:42) -> High Day Base Load Factor | ZV37: =LOOKUP(ZV33,Assumptions!40:40,Assumptions!42:42) -> High Day Base Load Factor | ZW37: =LOOKUP(ZW33,Assumptions!40:40,Assumptions!42:42) -> High Day Base Load Factor | ZX37: =LOOKUP(ZX33,Assumptions!40:40,Assumptions!42:42) -> High Day Base Load Factor | ZY37: =LOOKUP(ZY33,Assumptions!40:40,Assumptions!42:42) -> High Day Base Load Factor | ZZ37: =LOOKUP(ZZ33,Assumptions!40:40,Assumptions!42:42) -> High Day Base Load Factor | AAA37: =LOOKUP(AAA33,Assumptions!40:40,Assumptions!42:42) -> High Day Base Load Factor | AAB37: =LOOKUP(AAB33,Assumptions!40:40,Assumptions!42:42) -> High Day Low Load Factor | AAC37: =LOOKUP(AAC33,Assumptions!40:40,Assumptions!42:42) -> High Day Low Load Factor | AAD37: =LOOKUP(AAD33,Assumptions!40:40,Assumptions!42:42) -> High Day Low Load Factor | AAE37: =LOOKUP(AAE33,Assumptions!40:40,Assumptions!42:42) -> High Day Low Load Factor | AAF37: =LOOKUP(AAF33,Assumptions!40:40,Assumptions!42:42) -> High Day Low Load Factor | AAG37: =LOOKUP(AAG33,Assumptions!40:40,Assumptions!42:42) -> High Day Low Load Factor | AAH37: =LOOKUP(AAH33,Assumptions!40:40,Assumptions!42:42) -> High Day Low Load Factor | AAI37: =LOOKUP(AAI33,Assumptions!40:40,Assumptions!42:42) -> High Day Low Load Factor | AAJ37: =LOOKUP(AAJ33,Assumptions!40:40,Assumptions!42:42) -> High Day Low Load Factor | AAK37: =LOOKUP(AAK33,Assumptions!40:40,Assumptions!42:42) -> High Day Low Load Factor | AAL37: =LOOKUP(AAL33,Assumptions!40:40,Assumptions!42:42) -> High Day Low Load Factor | AAM37: =LOOKUP(AAM33,Assumptions!40:40,Assumptions!42:42) -> High Day Low Load Factor | AAN37: =LOOKUP(AAN33,Assumptions!40:40,Assumptions!42:42) -> High Day Low Load Factor | AAO37: =LOOKUP(AAO33,Assumptions!40:40,Assumptions!42:42) -> High Day Low Load Factor | AAP37: =LOOKUP(AAP33,Assumptions!40:40,Assumptions!42:42) -> High Day Low Load Factor | AAQ37: =LOOKUP(AAQ33,Assumptions!40:40,Assumptions!42:42) -> High Day Low Load Factor | AAR37: =LOOKUP(AAR33,Assumptions!40:40,Assumptions!42:42) -> High Day Low Load Factor | AAS37: =LOOKUP(AAS33,Assumptions!40:40,Assumptions!42:42) -> High Day Low Load Factor | AAT37: =LOOKUP(AAT33,Assumptions!40:40,Assumptions!42:42) -> High Day Low Load Factor | AAU37: =LOOKUP(AAU33,Assumptions!40:40,Assumptions!42:42) -> High Day Low Load Factor | AAV37: =LOOKUP(AAV33,Assumptions!40:40,Assumptions!42:42) -> High Day Low Load Factor | AAW37: =LOOKUP(AAW33,Assumptions!40:40,Assumptions!42:42) -> High Day Low Load Factor | AAX37: =LOOKUP(AAX33,Assumptions!40:40,Assumptions!42:42) -> High Day Low Load Factor | AAY37: =LOOKUP(AAY33,Assumptions!40:40,Assumptions!42:42) -> High Day Low Load Factor
C38: Solar Shape Code | H38: =LOOKUP(H33,Assumptions!40:40,Assumptions!44:44) -> 1 | I38: =LOOKUP(I33,Assumptions!40:40,Assumptions!44:44) -> 1 | J38: =LOOKUP(J33,Assumptions!40:40,Assumptions!44:44) -> 1 | K38: =LOOKUP(K33,Assumptions!40:40,Assumptions!44:44) -> 1 | L38: =LOOKUP(L33,Assumptions!40:40,Assumptions!44:44) -> 1 | M38: =LOOKUP(M33,Assumptions!40:40,Assumptions!44:44) -> 1 | N38: =LOOKUP(N33,Assumptions!40:40,Assumptions!44:44) -> 1 | O38: =LOOKUP(O33,Assumptions!40:40,Assumptions!44:44) -> 1 | P38: =LOOKUP(P33,Assumptions!40:40,Assumptions!44:44) -> 1 | Q38: =LOOKUP(Q33,Assumptions!40:40,Assumptions!44:44) -> 1 | R38: =LOOKUP(R33,Assumptions!40:40,Assumptions!44:44) -> 1 | S38: =LOOKUP(S33,Assumptions!40:40,Assumptions!44:44) -> 1 | T38: =LOOKUP(T33,Assumptions!40:40,Assumptions!44:44) -> 1 | U38: =LOOKUP(U33,Assumptions!40:40,Assumptions!44:44) -> 1 | V38: =LOOKUP(V33,Assumptions!40:40,Assumptions!44:44) -> 1 | W38: =LOOKUP(W33,Assumptions!40:40,Assumptions!44:44) -> 1 | X38: =LOOKUP(X33,Assumptions!40:40,Assumptions!44:44) -> 1 | Y38: =LOOKUP(Y33,Assumptions!40:40,Assumptions!44:44) -> 1 | Z38: =LOOKUP(Z33,Assumptions!40:40,Assumptions!44:44) -> 1 | AA38: =LOOKUP(AA33,Assumptions!40:40,Assumptions!44:44) -> 1 | AB38: =LOOKUP(AB33,Assumptions!40:40,Assumptions!44:44) -> 1 | AC38: =LOOKUP(AC33,Assumptions!40:40,Assumptions!44:44) -> 1 | AD38: =LOOKUP(AD33,Assumptions!40:40,Assumptions!44:44) -> 1 | AE38: =LOOKUP(AE33,Assumptions!40:40,Assumptions!44:44) -> 1 | AF38: =LOOKUP(AF33,Assumptions!40:40,Assumptions!44:44) -> 2 | AG38: =LOOKUP(AG33,Assumptions!40:40,Assumptions!44:44) -> 2 | AH38: =LOOKUP(AH33,Assumptions!40:40,Assumptions!44:44) -> 2 | AI38: =LOOKUP(AI33,Assumptions!40:40,Assumptions!44:44) -> 2 | AJ38: =LOOKUP(AJ33,Assumptions!40:40,Assumptions!44:44) -> 2 | AK38: =LOOKUP(AK33,Assumptions!40:40,Assumptions!44:44) -> 2 | AL38: =LOOKUP(AL33,Assumptions!40:40,Assumptions!44:44) -> 2 | AM38: =LOOKUP(AM33,Assumptions!40:40,Assumptions!44:44) -> 2 | AN38: =LOOKUP(AN33,Assumptions!40:40,Assumptions!44:44) -> 2 | AO38: =LOOKUP(AO33,Assumptions!40:40,Assumptions!44:44) -> 2 | AP38: =LOOKUP(AP33,Assumptions!40:40,Assumptions!44:44) -> 2 | AQ38: =LOOKUP(AQ33,Assumptions!40:40,Assumptions!44:44) -> 2 | AR38: =LOOKUP(AR33,Assumptions!40:40,Assumptions!44:44) -> 2 | AS38: =LOOKUP(AS33,Assumptions!40:40,Assumptions!44:44) -> 2 | AT38: =LOOKUP(AT33,Assumptions!40:40,Assumptions!44:44) -> 2 | AU38: =LOOKUP(AU33,Assumptions!40:40,Assumptions!44:44) -> 2 | AV38: =LOOKUP(AV33,Assumptions!40:40,Assumptions!44:44) -> 2 | AW38: =LOOKUP(AW33,Assumptions!40:40,Assumptions!44:44) -> 2 | AX38: =LOOKUP(AX33,Assumptions!40:40,Assumptions!44:44) -> 2 | AY38: =LOOKUP(AY33,Assumptions!40:40,Assumptions!44:44) -> 2 | AZ38: =LOOKUP(AZ33,Assumptions!40:40,Assumptions!44:44) -> 2 | BA38: =LOOKUP(BA33,Assumptions!40:40,Assumptions!44:44) -> 2 | BB38: =LOOKUP(BB33,Assumptions!40:40,Assumptions!44:44) -> 2 | BC38: =LOOKUP(BC33,Assumptions!40:40,Assumptions!44:44) -> 2 | BD38: =LOOKUP(BD33,Assumptions!40:40,Assumptions!44:44) -> 3 | BE38: =LOOKUP(BE33,Assumptions!40:40,Assumptions!44:44) -> 3 | BF38: =LOOKUP(BF33,Assumptions!40:40,Assumptions!44:44) -> 3 | BG38: =LOOKUP(BG33,Assumptions!40:40,Assumptions!44:44) -> 3 | BH38: =LOOKUP(BH33,Assumptions!40:40,Assumptions!44:44) -> 3 | BI38: =LOOKUP(BI33,Assumptions!40:40,Assumptions!44:44) -> 3 | BJ38: =LOOKUP(BJ33,Assumptions!40:40,Assumptions!44:44) -> 3 | BK38: =LOOKUP(BK33,Assumptions!40:40,Assumptions!44:44) -> 3 | BL38: =LOOKUP(BL33,Assumptions!40:40,Assumptions!44:44) -> 3 | BM38: =LOOKUP(BM33,Assumptions!40:40,Assumptions!44:44) -> 3 | BN38: =LOOKUP(BN33,Assumptions!40:40,Assumptions!44:44) -> 3 | BO38: =LOOKUP(BO33,Assumptions!40:40,Assumptions!44:44) -> 3 | BP38: =LOOKUP(BP33,Assumptions!40:40,Assumptions!44:44) -> 3 | BQ38: =LOOKUP(BQ33,Assumptions!40:40,Assumptions!44:44) -> 3 | BR38: =LOOKUP(BR33,Assumptions!40:40,Assumptions!44:44) -> 3 | BS38: =LOOKUP(BS33,Assumptions!40:40,Assumptions!44:44) -> 3 | BT38: =LOOKUP(BT33,Assumptions!40:40,Assumptions!44:44) -> 3 | BU38: =LOOKUP(BU33,Assumptions!40:40,Assumptions!44:44) -> 3 | BV38: =LOOKUP(BV33,Assumptions!40:40,Assumptions!44:44) -> 3 | BW38: =LOOKUP(BW33,Assumptions!40:40,Assumptions!44:44) -> 3 | BX38: =LOOKUP(BX33,Assumptions!40:40,Assumptions!44:44) -> 3 | BY38: =LOOKUP(BY33,Assumptions!40:40,Assumptions!44:44) -> 3 | BZ38: =LOOKUP(BZ33,Assumptions!40:40,Assumptions!44:44) -> 3 | CA38: =LOOKUP(CA33,Assumptions!40:40,Assumptions!44:44) -> 3 | CB38: =LOOKUP(CB33,Assumptions!40:40,Assumptions!44:44) -> 4 | CC38: =LOOKUP(CC33,Assumptions!40:40,Assumptions!44:44) -> 4 | CD38: =LOOKUP(CD33,Assumptions!40:40,Assumptions!44:44) -> 4 | CE38: =LOOKUP(CE33,Assumptions!40:40,Assumptions!44:44) -> 4 | CF38: =LOOKUP(CF33,Assumptions!40:40,Assumptions!44:44) -> 4 | CG38: =LOOKUP(CG33,Assumptions!40:40,Assumptions!44:44) -> 4 | CH38: =LOOKUP(CH33,Assumptions!40:40,Assumptions!44:44) -> 4 | CI38: =LOOKUP(CI33,Assumptions!40:40,Assumptions!44:44) -> 4 | CJ38: =LOOKUP(CJ33,Assumptions!40:40,Assumptions!44:44) -> 4 | CK38: =LOOKUP(CK33,Assumptions!40:40,Assumptions!44:44) -> 4 | CL38: =LOOKUP(CL33,Assumptions!40:40,Assumptions!44:44) -> 4 | CM38: =LOOKUP(CM33,Assumptions!40:40,Assumptions!44:44) -> 4 | CN38: =LOOKUP(CN33,Assumptions!40:40,Assumptions!44:44) -> 4 | CO38: =LOOKUP(CO33,Assumptions!40:40,Assumptions!44:44) -> 4 | CP38: =LOOKUP(CP33,Assumptions!40:40,Assumptions!44:44) -> 4 | CQ38: =LOOKUP(CQ33,Assumptions!40:40,Assumptions!44:44) -> 4 | CR38: =LOOKUP(CR33,Assumptions!40:40,Assumptions!44:44) -> 4 | CS38: =LOOKUP(CS33,Assumptions!40:40,Assumptions!44:44) -> 4 | CT38: =LOOKUP(CT33,Assumptions!40:40,Assumptions!44:44) -> 4 | CU38: =LOOKUP(CU33,Assumptions!40:40,Assumptions!44:44) -> 4 | CV38: =LOOKUP(CV33,Assumptions!40:40,Assumptions!44:44) -> 4 | CW38: =LOOKUP(CW33,Assumptions!40:40,Assumptions!44:44) -> 4 | CX38: =LOOKUP(CX33,Assumptions!40:40,Assumptions!44:44) -> 4 | CY38: =LOOKUP(CY33,Assumptions!40:40,Assumptions!44:44) -> 4 | CZ38: =LOOKUP(CZ33,Assumptions!40:40,Assumptions!44:44) -> 5 | DA38: =LOOKUP(DA33,Assumptions!40:40,Assumptions!44:44) -> 5 | DB38: =LOOKUP(DB33,Assumptions!40:40,Assumptions!44:44) -> 5 | DC38: =LOOKUP(DC33,Assumptions!40:40,Assumptions!44:44) -> 5 | DD38: =LOOKUP(DD33,Assumptions!40:40,Assumptions!44:44) -> 5 | DE38: =LOOKUP(DE33,Assumptions!40:40,Assumptions!44:44) -> 5 | DF38: =LOOKUP(DF33,Assumptions!40:40,Assumptions!44:44) -> 5 | DG38: =LOOKUP(DG33,Assumptions!40:40,Assumptions!44:44) -> 5 | DH38: =LOOKUP(DH33,Assumptions!40:40,Assumptions!44:44) -> 5 | DI38: =LOOKUP(DI33,Assumptions!40:40,Assumptions!44:44) -> 5 | DJ38: =LOOKUP(DJ33,Assumptions!40:40,Assumptions!44:44) -> 5 | DK38: =LOOKUP(DK33,Assumptions!40:40,Assumptions!44:44) -> 5 | DL38: =LOOKUP(DL33,Assumptions!40:40,Assumptions!44:44) -> 5 | DM38: =LOOKUP(DM33,Assumptions!40:40,Assumptions!44:44) -> 5 | DN38: =LOOKUP(DN33,Assumptions!40:40,Assumptions!44:44) -> 5 | DO38: =LOOKUP(DO33,Assumptions!40:40,Assumptions!44:44) -> 5 | DP38: =LOOKUP(DP33,Assumptions!40:40,Assumptions!44:44) -> 5 | DQ38: =LOOKUP(DQ33,Assumptions!40:40,Assumptions!44:44) -> 5 | DR38: =LOOKUP(DR33,Assumptions!40:40,Assumptions!44:44) -> 5 | DS38: =LOOKUP(DS33,Assumptions!40:40,Assumptions!44:44) -> 5 | DT38: =LOOKUP(DT33,Assumptions!40:40,Assumptions!44:44) -> 5 | DU38: =LOOKUP(DU33,Assumptions!40:40,Assumptions!44:44) -> 5 | DV38: =LOOKUP(DV33,Assumptions!40:40,Assumptions!44:44) -> 5 | DW38: =LOOKUP(DW33,Assumptions!40:40,Assumptions!44:44) -> 5 | DX38: =LOOKUP(DX33,Assumptions!40:40,Assumptions!44:44) -> 6 | DY38: =LOOKUP(DY33,Assumptions!40:40,Assumptions!44:44) -> 6 | DZ38: =LOOKUP(DZ33,Assumptions!40:40,Assumptions!44:44) -> 6 | EA38: =LOOKUP(EA33,Assumptions!40:40,Assumptions!44:44) -> 6 | EB38: =LOOKUP(EB33,Assumptions!40:40,Assumptions!44:44) -> 6 | EC38: =LOOKUP(EC33,Assumptions!40:40,Assumptions!44:44) -> 6 | ED38: =LOOKUP(ED33,Assumptions!40:40,Assumptions!44:44) -> 6 | EE38: =LOOKUP(EE33,Assumptions!40:40,Assumptions!44:44) -> 6 | EF38: =LOOKUP(EF33,Assumptions!40:40,Assumptions!44:44) -> 6 | EG38: =LOOKUP(EG33,Assumptions!40:40,Assumptions!44:44) -> 6 | EH38: =LOOKUP(EH33,Assumptions!40:40,Assumptions!44:44) -> 6 | EI38: =LOOKUP(EI33,Assumptions!40:40,Assumptions!44:44) -> 6 | EJ38: =LOOKUP(EJ33,Assumptions!40:40,Assumptions!44:44) -> 6 | EK38: =LOOKUP(EK33,Assumptions!40:40,Assumptions!44:44) -> 6 | EL38: =LOOKUP(EL33,Assumptions!40:40,Assumptions!44:44) -> 6 | EM38: =LOOKUP(EM33,Assumptions!40:40,Assumptions!44:44) -> 6 | EN38: =LOOKUP(EN33,Assumptions!40:40,Assumptions!44:44) -> 6 | EO38: =LOOKUP(EO33,Assumptions!40:40,Assumptions!44:44) -> 6 | EP38: =LOOKUP(EP33,Assumptions!40:40,Assumptions!44:44) -> 6 | EQ38: =LOOKUP(EQ33,Assumptions!40:40,Assumptions!44:44) -> 6 | ER38: =LOOKUP(ER33,Assumptions!40:40,Assumptions!44:44) -> 6 | ES38: =LOOKUP(ES33,Assumptions!40:40,Assumptions!44:44) -> 6 | ET38: =LOOKUP(ET33,Assumptions!40:40,Assumptions!44:44) -> 6 | EU38: =LOOKUP(EU33,Assumptions!40:40,Assumptions!44:44) -> 6 | EV38: =LOOKUP(EV33,Assumptions!40:40,Assumptions!44:44) -> 7 | EW38: =LOOKUP(EW33,Assumptions!40:40,Assumptions!44:44) -> 7 | EX38: =LOOKUP(EX33,Assumptions!40:40,Assumptions!44:44) -> 7 | EY38: =LOOKUP(EY33,Assumptions!40:40,Assumptions!44:44) -> 7 | EZ38: =LOOKUP(EZ33,Assumptions!40:40,Assumptions!44:44) -> 7 | FA38: =LOOKUP(FA33,Assumptions!40:40,Assumptions!44:44) -> 7 | FB38: =LOOKUP(FB33,Assumptions!40:40,Assumptions!44:44) -> 7 | FC38: =LOOKUP(FC33,Assumptions!40:40,Assumptions!44:44) -> 7 | FD38: =LOOKUP(FD33,Assumptions!40:40,Assumptions!44:44) -> 7 | FE38: =LOOKUP(FE33,Assumptions!40:40,Assumptions!44:44) -> 7 | FF38: =LOOKUP(FF33,Assumptions!40:40,Assumptions!44:44) -> 7 | FG38: =LOOKUP(FG33,Assumptions!40:40,Assumptions!44:44) -> 7 | FH38: =LOOKUP(FH33,Assumptions!40:40,Assumptions!44:44) -> 7 | FI38: =LOOKUP(FI33,Assumptions!40:40,Assumptions!44:44) -> 7 | FJ38: =LOOKUP(FJ33,Assumptions!40:40,Assumptions!44:44) -> 7 | FK38: =LOOKUP(FK33,Assumptions!40:40,Assumptions!44:44) -> 7 | FL38: =LOOKUP(FL33,Assumptions!40:40,Assumptions!44:44) -> 7 | FM38: =LOOKUP(FM33,Assumptions!40:40,Assumptions!44:44) -> 7 | FN38: =LOOKUP(FN33,Assumptions!40:40,Assumptions!44:44) -> 7 | FO38: =LOOKUP(FO33,Assumptions!40:40,Assumptions!44:44) -> 7 | FP38: =LOOKUP(FP33,Assumptions!40:40,Assumptions!44:44) -> 7 | FQ38: =LOOKUP(FQ33,Assumptions!40:40,Assumptions!44:44) -> 7 | FR38: =LOOKUP(FR33,Assumptions!40:40,Assumptions!44:44) -> 7 | FS38: =LOOKUP(FS33,Assumptions!40:40,Assumptions!44:44) -> 7 | FT38: =LOOKUP(FT33,Assumptions!40:40,Assumptions!44:44) -> 8 | FU38: =LOOKUP(FU33,Assumptions!40:40,Assumptions!44:44) -> 8 | FV38: =LOOKUP(FV33,Assumptions!40:40,Assumptions!44:44) -> 8 | FW38: =LOOKUP(FW33,Assumptions!40:40,Assumptions!44:44) -> 8 | FX38: =LOOKUP(FX33,Assumptions!40:40,Assumptions!44:44) -> 8 | FY38: =LOOKUP(FY33,Assumptions!40:40,Assumptions!44:44) -> 8 | FZ38: =LOOKUP(FZ33,Assumptions!40:40,Assumptions!44:44) -> 8 | GA38: =LOOKUP(GA33,Assumptions!40:40,Assumptions!44:44) -> 8 | GB38: =LOOKUP(GB33,Assumptions!40:40,Assumptions!44:44) -> 8 | GC38: =LOOKUP(GC33,Assumptions!40:40,Assumptions!44:44) -> 8 | GD38: =LOOKUP(GD33,Assumptions!40:40,Assumptions!44:44) -> 8 | GE38: =LOOKUP(GE33,Assumptions!40:40,Assumptions!44:44) -> 8 | GF38: =LOOKUP(GF33,Assumptions!40:40,Assumptions!44:44) -> 8 | GG38: =LOOKUP(GG33,Assumptions!40:40,Assumptions!44:44) -> 8 | GH38: =LOOKUP(GH33,Assumptions!40:40,Assumptions!44:44) -> 8 | GI38: =LOOKUP(GI33,Assumptions!40:40,Assumptions!44:44) -> 8 | GJ38: =LOOKUP(GJ33,Assumptions!40:40,Assumptions!44:44) -> 8 | GK38: =LOOKUP(GK33,Assumptions!40:40,Assumptions!44:44) -> 8 | GL38: =LOOKUP(GL33,Assumptions!40:40,Assumptions!44:44) -> 8 | GM38: =LOOKUP(GM33,Assumptions!40:40,Assumptions!44:44) -> 8 | GN38: =LOOKUP(GN33,Assumptions!40:40,Assumptions!44:44) -> 8 | GO38: =LOOKUP(GO33,Assumptions!40:40,Assumptions!44:44) -> 8 | GP38: =LOOKUP(GP33,Assumptions!40:40,Assumptions!44:44) -> 8 | GQ38: =LOOKUP(GQ33,Assumptions!40:40,Assumptions!44:44) -> 8 | GR38: =LOOKUP(GR33,Assumptions!40:40,Assumptions!44:44) -> 1 | GS38: =LOOKUP(GS33,Assumptions!40:40,Assumptions!44:44) -> 1 | GT38: =LOOKUP(GT33,Assumptions!40:40,Assumptions!44:44) -> 1 | GU38: =LOOKUP(GU33,Assumptions!40:40,Assumptions!44:44) -> 1 | GV38: =LOOKUP(GV33,Assumptions!40:40,Assumptions!44:44) -> 1 | GW38: =LOOKUP(GW33,Assumptions!40:40,Assumptions!44:44) -> 1 | GX38: =LOOKUP(GX33,Assumptions!40:40,Assumptions!44:44) -> 1 | GY38: =LOOKUP(GY33,Assumptions!40:40,Assumptions!44:44) -> 1 | GZ38: =LOOKUP(GZ33,Assumptions!40:40,Assumptions!44:44) -> 1 | HA38: =LOOKUP(HA33,Assumptions!40:40,Assumptions!44:44) -> 1 | HB38: =LOOKUP(HB33,Assumptions!40:40,Assumptions!44:44) -> 1 | HC38: =LOOKUP(HC33,Assumptions!40:40,Assumptions!44:44) -> 1 | HD38: =LOOKUP(HD33,Assumptions!40:40,Assumptions!44:44) -> 1 | HE38: =LOOKUP(HE33,Assumptions!40:40,Assumptions!44:44) -> 1 | HF38: =LOOKUP(HF33,Assumptions!40:40,Assumptions!44:44) -> 1 | HG38: =LOOKUP(HG33,Assumptions!40:40,Assumptions!44:44) -> 1 | HH38: =LOOKUP(HH33,Assumptions!40:40,Assumptions!44:44) -> 1 | HI38: =LOOKUP(HI33,Assumptions!40:40,Assumptions!44:44) -> 1 | HJ38: =LOOKUP(HJ33,Assumptions!40:40,Assumptions!44:44) -> 1 | HK38: =LOOKUP(HK33,Assumptions!40:40,Assumptions!44:44) -> 1 | HL38: =LOOKUP(HL33,Assumptions!40:40,Assumptions!44:44) -> 1 | HM38: =LOOKUP(HM33,Assumptions!40:40,Assumptions!44:44) -> 1 | HN38: =LOOKUP(HN33,Assumptions!40:40,Assumptions!44:44) -> 1 | HO38: =LOOKUP(HO33,Assumptions!40:40,Assumptions!44:44) -> 1 | HP38: =LOOKUP(HP33,Assumptions!40:40,Assumptions!44:44) -> 2 | HQ38: =LOOKUP(HQ33,Assumptions!40:40,Assumptions!44:44) -> 2 | HR38: =LOOKUP(HR33,Assumptions!40:40,Assumptions!44:44) -> 2 | HS38: =LOOKUP(HS33,Assumptions!40:40,Assumptions!44:44) -> 2 | HT38: =LOOKUP(HT33,Assumptions!40:40,Assumptions!44:44) -> 2 | HU38: =LOOKUP(HU33,Assumptions!40:40,Assumptions!44:44) -> 2 | HV38: =LOOKUP(HV33,Assumptions!40:40,Assumptions!44:44) -> 2 | HW38: =LOOKUP(HW33,Assumptions!40:40,Assumptions!44:44) -> 2 | HX38: =LOOKUP(HX33,Assumptions!40:40,Assumptions!44:44) -> 2 | HY38: =LOOKUP(HY33,Assumptions!40:40,Assumptions!44:44) -> 2 | HZ38: =LOOKUP(HZ33,Assumptions!40:40,Assumptions!44:44) -> 2 | IA38: =LOOKUP(IA33,Assumptions!40:40,Assumptions!44:44) -> 2 | IB38: =LOOKUP(IB33,Assumptions!40:40,Assumptions!44:44) -> 2 | IC38: =LOOKUP(IC33,Assumptions!40:40,Assumptions!44:44) -> 2 | ID38: =LOOKUP(ID33,Assumptions!40:40,Assumptions!44:44) -> 2 | IE38: =LOOKUP(IE33,Assumptions!40:40,Assumptions!44:44) -> 2 | IF38: =LOOKUP(IF33,Assumptions!40:40,Assumptions!44:44) -> 2 | IG38: =LOOKUP(IG33,Assumptions!40:40,Assumptions!44:44) -> 2 | IH38: =LOOKUP(IH33,Assumptions!40:40,Assumptions!44:44) -> 2 | II38: =LOOKUP(II33,Assumptions!40:40,Assumptions!44:44) -> 2 | IJ38: =LOOKUP(IJ33,Assumptions!40:40,Assumptions!44:44) -> 2 | IK38: =LOOKUP(IK33,Assumptions!40:40,Assumptions!44:44) -> 2 | IL38: =LOOKUP(IL33,Assumptions!40:40,Assumptions!44:44) -> 2 | IM38: =LOOKUP(IM33,Assumptions!40:40,Assumptions!44:44) -> 2 | IN38: =LOOKUP(IN33,Assumptions!40:40,Assumptions!44:44) -> 3 | IO38: =LOOKUP(IO33,Assumptions!40:40,Assumptions!44:44) -> 3 | IP38: =LOOKUP(IP33,Assumptions!40:40,Assumptions!44:44) -> 3 | IQ38: =LOOKUP(IQ33,Assumptions!40:40,Assumptions!44:44) -> 3 | IR38: =LOOKUP(IR33,Assumptions!40:40,Assumptions!44:44) -> 3 | IS38: =LOOKUP(IS33,Assumptions!40:40,Assumptions!44:44) -> 3 | IT38: =LOOKUP(IT33,Assumptions!40:40,Assumptions!44:44) -> 3 | IU38: =LOOKUP(IU33,Assumptions!40:40,Assumptions!44:44) -> 3 | IV38: =LOOKUP(IV33,Assumptions!40:40,Assumptions!44:44) -> 3 | IW38: =LOOKUP(IW33,Assumptions!40:40,Assumptions!44:44) -> 3 | IX38: =LOOKUP(IX33,Assumptions!40:40,Assumptions!44:44) -> 3 | IY38: =LOOKUP(IY33,Assumptions!40:40,Assumptions!44:44) -> 3 | IZ38: =LOOKUP(IZ33,Assumptions!40:40,Assumptions!44:44) -> 3 | JA38: =LOOKUP(JA33,Assumptions!40:40,Assumptions!44:44) -> 3 | JB38: =LOOKUP(JB33,Assumptions!40:40,Assumptions!44:44) -> 3 | JC38: =LOOKUP(JC33,Assumptions!40:40,Assumptions!44:44) -> 3 | JD38: =LOOKUP(JD33,Assumptions!40:40,Assumptions!44:44) -> 3 | JE38: =LOOKUP(JE33,Assumptions!40:40,Assumptions!44:44) -> 3 | JF38: =LOOKUP(JF33,Assumptions!40:40,Assumptions!44:44) -> 3 | JG38: =LOOKUP(JG33,Assumptions!40:40,Assumptions!44:44) -> 3 | JH38: =LOOKUP(JH33,Assumptions!40:40,Assumptions!44:44) -> 3 | JI38: =LOOKUP(JI33,Assumptions!40:40,Assumptions!44:44) -> 3 | JJ38: =LOOKUP(JJ33,Assumptions!40:40,Assumptions!44:44) -> 3 | JK38: =LOOKUP(JK33,Assumptions!40:40,Assumptions!44:44) -> 3 | JL38: =LOOKUP(JL33,Assumptions!40:40,Assumptions!44:44) -> 4 | JM38: =LOOKUP(JM33,Assumptions!40:40,Assumptions!44:44) -> 4 | JN38: =LOOKUP(JN33,Assumptions!40:40,Assumptions!44:44) -> 4 | JO38: =LOOKUP(JO33,Assumptions!40:40,Assumptions!44:44) -> 4 | JP38: =LOOKUP(JP33,Assumptions!40:40,Assumptions!44:44) -> 4 | JQ38: =LOOKUP(JQ33,Assumptions!40:40,Assumptions!44:44) -> 4 | JR38: =LOOKUP(JR33,Assumptions!40:40,Assumptions!44:44) -> 4 | JS38: =LOOKUP(JS33,Assumptions!40:40,Assumptions!44:44) -> 4 | JT38: =LOOKUP(JT33,Assumptions!40:40,Assumptions!44:44) -> 4 | JU38: =LOOKUP(JU33,Assumptions!40:40,Assumptions!44:44) -> 4 | JV38: =LOOKUP(JV33,Assumptions!40:40,Assumptions!44:44) -> 4 | JW38: =LOOKUP(JW33,Assumptions!40:40,Assumptions!44:44) -> 4 | JX38: =LOOKUP(JX33,Assumptions!40:40,Assumptions!44:44) -> 4 | JY38: =LOOKUP(JY33,Assumptions!40:40,Assumptions!44:44) -> 4 | JZ38: =LOOKUP(JZ33,Assumptions!40:40,Assumptions!44:44) -> 4 | KA38: =LOOKUP(KA33,Assumptions!40:40,Assumptions!44:44) -> 4 | KB38: =LOOKUP(KB33,Assumptions!40:40,Assumptions!44:44) -> 4 | KC38: =LOOKUP(KC33,Assumptions!40:40,Assumptions!44:44) -> 4 | KD38: =LOOKUP(KD33,Assumptions!40:40,Assumptions!44:44) -> 4 | KE38: =LOOKUP(KE33,Assumptions!40:40,Assumptions!44:44) -> 4 | KF38: =LOOKUP(KF33,Assumptions!40:40,Assumptions!44:44) -> 4 | KG38: =LOOKUP(KG33,Assumptions!40:40,Assumptions!44:44) -> 4 | KH38: =LOOKUP(KH33,Assumptions!40:40,Assumptions!44:44) -> 4 | KI38: =LOOKUP(KI33,Assumptions!40:40,Assumptions!44:44) -> 4 | KJ38: =LOOKUP(KJ33,Assumptions!40:40,Assumptions!44:44) -> 5 | KK38: =LOOKUP(KK33,Assumptions!40:40,Assumptions!44:44) -> 5 | KL38: =LOOKUP(KL33,Assumptions!40:40,Assumptions!44:44) -> 5 | KM38: =LOOKUP(KM33,Assumptions!40:40,Assumptions!44:44) -> 5 | KN38: =LOOKUP(KN33,Assumptions!40:40,Assumptions!44:44) -> 5 | KO38: =LOOKUP(KO33,Assumptions!40:40,Assumptions!44:44) -> 5 | KP38: =LOOKUP(KP33,Assumptions!40:40,Assumptions!44:44) -> 5 | KQ38: =LOOKUP(KQ33,Assumptions!40:40,Assumptions!44:44) -> 5 | KR38: =LOOKUP(KR33,Assumptions!40:40,Assumptions!44:44) -> 5 | KS38: =LOOKUP(KS33,Assumptions!40:40,Assumptions!44:44) -> 5 | KT38: =LOOKUP(KT33,Assumptions!40:40,Assumptions!44:44) -> 5 | KU38: =LOOKUP(KU33,Assumptions!40:40,Assumptions!44:44) -> 5 | KV38: =LOOKUP(KV33,Assumptions!40:40,Assumptions!44:44) -> 5 | KW38: =LOOKUP(KW33,Assumptions!40:40,Assumptions!44:44) -> 5 | KX38: =LOOKUP(KX33,Assumptions!40:40,Assumptions!44:44) -> 5 | KY38: =LOOKUP(KY33,Assumptions!40:40,Assumptions!44:44) -> 5 | KZ38: =LOOKUP(KZ33,Assumptions!40:40,Assumptions!44:44) -> 5 | LA38: =LOOKUP(LA33,Assumptions!40:40,Assumptions!44:44) -> 5 | LB38: =LOOKUP(LB33,Assumptions!40:40,Assumptions!44:44) -> 5 | LC38: =LOOKUP(LC33,Assumptions!40:40,Assumptions!44:44) -> 5 | LD38: =LOOKUP(LD33,Assumptions!40:40,Assumptions!44:44) -> 5 | LE38: =LOOKUP(LE33,Assumptions!40:40,Assumptions!44:44) -> 5 | LF38: =LOOKUP(LF33,Assumptions!40:40,Assumptions!44:44) -> 5 | LG38: =LOOKUP(LG33,Assumptions!40:40,Assumptions!44:44) -> 5 | LH38: =LOOKUP(LH33,Assumptions!40:40,Assumptions!44:44) -> 6 | LI38: =LOOKUP(LI33,Assumptions!40:40,Assumptions!44:44) -> 6 | LJ38: =LOOKUP(LJ33,Assumptions!40:40,Assumptions!44:44) -> 6 | LK38: =LOOKUP(LK33,Assumptions!40:40,Assumptions!44:44) -> 6 | LL38: =LOOKUP(LL33,Assumptions!40:40,Assumptions!44:44) -> 6 | LM38: =LOOKUP(LM33,Assumptions!40:40,Assumptions!44:44) -> 6 | LN38: =LOOKUP(LN33,Assumptions!40:40,Assumptions!44:44) -> 6 | LO38: =LOOKUP(LO33,Assumptions!40:40,Assumptions!44:44) -> 6 | LP38: =LOOKUP(LP33,Assumptions!40:40,Assumptions!44:44) -> 6 | LQ38: =LOOKUP(LQ33,Assumptions!40:40,Assumptions!44:44) -> 6 | LR38: =LOOKUP(LR33,Assumptions!40:40,Assumptions!44:44) -> 6 | LS38: =LOOKUP(LS33,Assumptions!40:40,Assumptions!44:44) -> 6 | LT38: =LOOKUP(LT33,Assumptions!40:40,Assumptions!44:44) -> 6 | LU38: =LOOKUP(LU33,Assumptions!40:40,Assumptions!44:44) -> 6 | LV38: =LOOKUP(LV33,Assumptions!40:40,Assumptions!44:44) -> 6 | LW38: =LOOKUP(LW33,Assumptions!40:40,Assumptions!44:44) -> 6 | LX38: =LOOKUP(LX33,Assumptions!40:40,Assumptions!44:44) -> 6 | LY38: =LOOKUP(LY33,Assumptions!40:40,Assumptions!44:44) -> 6 | LZ38: =LOOKUP(LZ33,Assumptions!40:40,Assumptions!44:44) -> 6 | MA38: =LOOKUP(MA33,Assumptions!40:40,Assumptions!44:44) -> 6 | MB38: =LOOKUP(MB33,Assumptions!40:40,Assumptions!44:44) -> 6 | MC38: =LOOKUP(MC33,Assumptions!40:40,Assumptions!44:44) -> 6 | MD38: =LOOKUP(MD33,Assumptions!40:40,Assumptions!44:44) -> 6 | ME38: =LOOKUP(ME33,Assumptions!40:40,Assumptions!44:44) -> 6 | MF38: =LOOKUP(MF33,Assumptions!40:40,Assumptions!44:44) -> 7 | MG38: =LOOKUP(MG33,Assumptions!40:40,Assumptions!44:44) -> 7 | MH38: =LOOKUP(MH33,Assumptions!40:40,Assumptions!44:44) -> 7 | MI38: =LOOKUP(MI33,Assumptions!40:40,Assumptions!44:44) -> 7 | MJ38: =LOOKUP(MJ33,Assumptions!40:40,Assumptions!44:44) -> 7 | MK38: =LOOKUP(MK33,Assumptions!40:40,Assumptions!44:44) -> 7 | ML38: =LOOKUP(ML33,Assumptions!40:40,Assumptions!44:44) -> 7 | MM38: =LOOKUP(MM33,Assumptions!40:40,Assumptions!44:44) -> 7 | MN38: =LOOKUP(MN33,Assumptions!40:40,Assumptions!44:44) -> 7 | MO38: =LOOKUP(MO33,Assumptions!40:40,Assumptions!44:44) -> 7 | MP38: =LOOKUP(MP33,Assumptions!40:40,Assumptions!44:44) -> 7 | MQ38: =LOOKUP(MQ33,Assumptions!40:40,Assumptions!44:44) -> 7 | MR38: =LOOKUP(MR33,Assumptions!40:40,Assumptions!44:44) -> 7 | MS38: =LOOKUP(MS33,Assumptions!40:40,Assumptions!44:44) -> 7 | MT38: =LOOKUP(MT33,Assumptions!40:40,Assumptions!44:44) -> 7 | MU38: =LOOKUP(MU33,Assumptions!40:40,Assumptions!44:44) -> 7 | MV38: =LOOKUP(MV33,Assumptions!40:40,Assumptions!44:44) -> 7 | MW38: =LOOKUP(MW33,Assumptions!40:40,Assumptions!44:44) -> 7 | MX38: =LOOKUP(MX33,Assumptions!40:40,Assumptions!44:44) -> 7 | MY38: =LOOKUP(MY33,Assumptions!40:40,Assumptions!44:44) -> 7 | MZ38: =LOOKUP(MZ33,Assumptions!40:40,Assumptions!44:44) -> 7 | NA38: =LOOKUP(NA33,Assumptions!40:40,Assumptions!44:44) -> 7 | NB38: =LOOKUP(NB33,Assumptions!40:40,Assumptions!44:44) -> 7 | NC38: =LOOKUP(NC33,Assumptions!40:40,Assumptions!44:44) -> 7 | ND38: =LOOKUP(ND33,Assumptions!40:40,Assumptions!44:44) -> 8 | NE38: =LOOKUP(NE33,Assumptions!40:40,Assumptions!44:44) -> 8 | NF38: =LOOKUP(NF33,Assumptions!40:40,Assumptions!44:44) -> 8 | NG38: =LOOKUP(NG33,Assumptions!40:40,Assumptions!44:44) -> 8 | NH38: =LOOKUP(NH33,Assumptions!40:40,Assumptions!44:44) -> 8 | NI38: =LOOKUP(NI33,Assumptions!40:40,Assumptions!44:44) -> 8 | NJ38: =LOOKUP(NJ33,Assumptions!40:40,Assumptions!44:44) -> 8 | NK38: =LOOKUP(NK33,Assumptions!40:40,Assumptions!44:44) -> 8 | NL38: =LOOKUP(NL33,Assumptions!40:40,Assumptions!44:44) -> 8 | NM38: =LOOKUP(NM33,Assumptions!40:40,Assumptions!44:44) -> 8 | NN38: =LOOKUP(NN33,Assumptions!40:40,Assumptions!44:44) -> 8 | NO38: =LOOKUP(NO33,Assumptions!40:40,Assumptions!44:44) -> 8 | NP38: =LOOKUP(NP33,Assumptions!40:40,Assumptions!44:44) -> 8 | NQ38: =LOOKUP(NQ33,Assumptions!40:40,Assumptions!44:44) -> 8 | NR38: =LOOKUP(NR33,Assumptions!40:40,Assumptions!44:44) -> 8 | NS38: =LOOKUP(NS33,Assumptions!40:40,Assumptions!44:44) -> 8 | NT38: =LOOKUP(NT33,Assumptions!40:40,Assumptions!44:44) -> 8 | NU38: =LOOKUP(NU33,Assumptions!40:40,Assumptions!44:44) -> 8 | NV38: =LOOKUP(NV33,Assumptions!40:40,Assumptions!44:44) -> 8 | NW38: =LOOKUP(NW33,Assumptions!40:40,Assumptions!44:44) -> 8 | NX38: =LOOKUP(NX33,Assumptions!40:40,Assumptions!44:44) -> 8 | NY38: =LOOKUP(NY33,Assumptions!40:40,Assumptions!44:44) -> 8 | NZ38: =LOOKUP(NZ33,Assumptions!40:40,Assumptions!44:44) -> 8 | OA38: =LOOKUP(OA33,Assumptions!40:40,Assumptions!44:44) -> 8 | OB38: =LOOKUP(OB33,Assumptions!40:40,Assumptions!44:44) -> 1 | OC38: =LOOKUP(OC33,Assumptions!40:40,Assumptions!44:44) -> 1 | OD38: =LOOKUP(OD33,Assumptions!40:40,Assumptions!44:44) -> 1 | OE38: =LOOKUP(OE33,Assumptions!40:40,Assumptions!44:44) -> 1 | OF38: =LOOKUP(OF33,Assumptions!40:40,Assumptions!44:44) -> 1 | OG38: =LOOKUP(OG33,Assumptions!40:40,Assumptions!44:44) -> 1 | OH38: =LOOKUP(OH33,Assumptions!40:40,Assumptions!44:44) -> 1 | OI38: =LOOKUP(OI33,Assumptions!40:40,Assumptions!44:44) -> 1 | OJ38: =LOOKUP(OJ33,Assumptions!40:40,Assumptions!44:44) -> 1 | OK38: =LOOKUP(OK33,Assumptions!40:40,Assumptions!44:44) -> 1 | OL38: =LOOKUP(OL33,Assumptions!40:40,Assumptions!44:44) -> 1 | OM38: =LOOKUP(OM33,Assumptions!40:40,Assumptions!44:44) -> 1 | ON38: =LOOKUP(ON33,Assumptions!40:40,Assumptions!44:44) -> 1 | OO38: =LOOKUP(OO33,Assumptions!40:40,Assumptions!44:44) -> 1 | OP38: =LOOKUP(OP33,Assumptions!40:40,Assumptions!44:44) -> 1 | OQ38: =LOOKUP(OQ33,Assumptions!40:40,Assumptions!44:44) -> 1 | OR38: =LOOKUP(OR33,Assumptions!40:40,Assumptions!44:44) -> 1 | OS38: =LOOKUP(OS33,Assumptions!40:40,Assumptions!44:44) -> 1 | OT38: =LOOKUP(OT33,Assumptions!40:40,Assumptions!44:44) -> 1 | OU38: =LOOKUP(OU33,Assumptions!40:40,Assumptions!44:44) -> 1 | OV38: =LOOKUP(OV33,Assumptions!40:40,Assumptions!44:44) -> 1 | OW38: =LOOKUP(OW33,Assumptions!40:40,Assumptions!44:44) -> 1 | OX38: =LOOKUP(OX33,Assumptions!40:40,Assumptions!44:44) -> 1 | OY38: =LOOKUP(OY33,Assumptions!40:40,Assumptions!44:44) -> 1 | OZ38: =LOOKUP(OZ33,Assumptions!40:40,Assumptions!44:44) -> 2 | PA38: =LOOKUP(PA33,Assumptions!40:40,Assumptions!44:44) -> 2 | PB38: =LOOKUP(PB33,Assumptions!40:40,Assumptions!44:44) -> 2 | PC38: =LOOKUP(PC33,Assumptions!40:40,Assumptions!44:44) -> 2 | PD38: =LOOKUP(PD33,Assumptions!40:40,Assumptions!44:44) -> 2 | PE38: =LOOKUP(PE33,Assumptions!40:40,Assumptions!44:44) -> 2 | PF38: =LOOKUP(PF33,Assumptions!40:40,Assumptions!44:44) -> 2 | PG38: =LOOKUP(PG33,Assumptions!40:40,Assumptions!44:44) -> 2 | PH38: =LOOKUP(PH33,Assumptions!40:40,Assumptions!44:44) -> 2 | PI38: =LOOKUP(PI33,Assumptions!40:40,Assumptions!44:44) -> 2 | PJ38: =LOOKUP(PJ33,Assumptions!40:40,Assumptions!44:44) -> 2 | PK38: =LOOKUP(PK33,Assumptions!40:40,Assumptions!44:44) -> 2 | PL38: =LOOKUP(PL33,Assumptions!40:40,Assumptions!44:44) -> 2 | PM38: =LOOKUP(PM33,Assumptions!40:40,Assumptions!44:44) -> 2 | PN38: =LOOKUP(PN33,Assumptions!40:40,Assumptions!44:44) -> 2 | PO38: =LOOKUP(PO33,Assumptions!40:40,Assumptions!44:44) -> 2 | PP38: =LOOKUP(PP33,Assumptions!40:40,Assumptions!44:44) -> 2 | PQ38: =LOOKUP(PQ33,Assumptions!40:40,Assumptions!44:44) -> 2 | PR38: =LOOKUP(PR33,Assumptions!40:40,Assumptions!44:44) -> 2 | PS38: =LOOKUP(PS33,Assumptions!40:40,Assumptions!44:44) -> 2 | PT38: =LOOKUP(PT33,Assumptions!40:40,Assumptions!44:44) -> 2 | PU38: =LOOKUP(PU33,Assumptions!40:40,Assumptions!44:44) -> 2 | PV38: =LOOKUP(PV33,Assumptions!40:40,Assumptions!44:44) -> 2 | PW38: =LOOKUP(PW33,Assumptions!40:40,Assumptions!44:44) -> 2 | PX38: =LOOKUP(PX33,Assumptions!40:40,Assumptions!44:44) -> 3 | PY38: =LOOKUP(PY33,Assumptions!40:40,Assumptions!44:44) -> 3 | PZ38: =LOOKUP(PZ33,Assumptions!40:40,Assumptions!44:44) -> 3 | QA38: =LOOKUP(QA33,Assumptions!40:40,Assumptions!44:44) -> 3 | QB38: =LOOKUP(QB33,Assumptions!40:40,Assumptions!44:44) -> 3 | QC38: =LOOKUP(QC33,Assumptions!40:40,Assumptions!44:44) -> 3 | QD38: =LOOKUP(QD33,Assumptions!40:40,Assumptions!44:44) -> 3 | QE38: =LOOKUP(QE33,Assumptions!40:40,Assumptions!44:44) -> 3 | QF38: =LOOKUP(QF33,Assumptions!40:40,Assumptions!44:44) -> 3 | QG38: =LOOKUP(QG33,Assumptions!40:40,Assumptions!44:44) -> 3 | QH38: =LOOKUP(QH33,Assumptions!40:40,Assumptions!44:44) -> 3 | QI38: =LOOKUP(QI33,Assumptions!40:40,Assumptions!44:44) -> 3 | QJ38: =LOOKUP(QJ33,Assumptions!40:40,Assumptions!44:44) -> 3 | QK38: =LOOKUP(QK33,Assumptions!40:40,Assumptions!44:44) -> 3 | QL38: =LOOKUP(QL33,Assumptions!40:40,Assumptions!44:44) -> 3 | QM38: =LOOKUP(QM33,Assumptions!40:40,Assumptions!44:44) -> 3 | QN38: =LOOKUP(QN33,Assumptions!40:40,Assumptions!44:44) -> 3 | QO38: =LOOKUP(QO33,Assumptions!40:40,Assumptions!44:44) -> 3 | QP38: =LOOKUP(QP33,Assumptions!40:40,Assumptions!44:44) -> 3 | QQ38: =LOOKUP(QQ33,Assumptions!40:40,Assumptions!44:44) -> 3 | QR38: =LOOKUP(QR33,Assumptions!40:40,Assumptions!44:44) -> 3 | QS38: =LOOKUP(QS33,Assumptions!40:40,Assumptions!44:44) -> 3 | QT38: =LOOKUP(QT33,Assumptions!40:40,Assumptions!44:44) -> 3 | QU38: =LOOKUP(QU33,Assumptions!40:40,Assumptions!44:44) -> 3 | QV38: =LOOKUP(QV33,Assumptions!40:40,Assumptions!44:44) -> 4 | QW38: =LOOKUP(QW33,Assumptions!40:40,Assumptions!44:44) -> 4 | QX38: =LOOKUP(QX33,Assumptions!40:40,Assumptions!44:44) -> 4 | QY38: =LOOKUP(QY33,Assumptions!40:40,Assumptions!44:44) -> 4 | QZ38: =LOOKUP(QZ33,Assumptions!40:40,Assumptions!44:44) -> 4 | RA38: =LOOKUP(RA33,Assumptions!40:40,Assumptions!44:44) -> 4 | RB38: =LOOKUP(RB33,Assumptions!40:40,Assumptions!44:44) -> 4 | RC38: =LOOKUP(RC33,Assumptions!40:40,Assumptions!44:44) -> 4 | RD38: =LOOKUP(RD33,Assumptions!40:40,Assumptions!44:44) -> 4 | RE38: =LOOKUP(RE33,Assumptions!40:40,Assumptions!44:44) -> 4 | RF38: =LOOKUP(RF33,Assumptions!40:40,Assumptions!44:44) -> 4 | RG38: =LOOKUP(RG33,Assumptions!40:40,Assumptions!44:44) -> 4 | RH38: =LOOKUP(RH33,Assumptions!40:40,Assumptions!44:44) -> 4 | RI38: =LOOKUP(RI33,Assumptions!40:40,Assumptions!44:44) -> 4 | RJ38: =LOOKUP(RJ33,Assumptions!40:40,Assumptions!44:44) -> 4 | RK38: =LOOKUP(RK33,Assumptions!40:40,Assumptions!44:44) -> 4 | RL38: =LOOKUP(RL33,Assumptions!40:40,Assumptions!44:44) -> 4 | RM38: =LOOKUP(RM33,Assumptions!40:40,Assumptions!44:44) -> 4 | RN38: =LOOKUP(RN33,Assumptions!40:40,Assumptions!44:44) -> 4 | RO38: =LOOKUP(RO33,Assumptions!40:40,Assumptions!44:44) -> 4 | RP38: =LOOKUP(RP33,Assumptions!40:40,Assumptions!44:44) -> 4 | RQ38: =LOOKUP(RQ33,Assumptions!40:40,Assumptions!44:44) -> 4 | RR38: =LOOKUP(RR33,Assumptions!40:40,Assumptions!44:44) -> 4 | RS38: =LOOKUP(RS33,Assumptions!40:40,Assumptions!44:44) -> 4 | RT38: =LOOKUP(RT33,Assumptions!40:40,Assumptions!44:44) -> 5 | RU38: =LOOKUP(RU33,Assumptions!40:40,Assumptions!44:44) -> 5 | RV38: =LOOKUP(RV33,Assumptions!40:40,Assumptions!44:44) -> 5 | RW38: =LOOKUP(RW33,Assumptions!40:40,Assumptions!44:44) -> 5 | RX38: =LOOKUP(RX33,Assumptions!40:40,Assumptions!44:44) -> 5 | RY38: =LOOKUP(RY33,Assumptions!40:40,Assumptions!44:44) -> 5 | RZ38: =LOOKUP(RZ33,Assumptions!40:40,Assumptions!44:44) -> 5 | SA38: =LOOKUP(SA33,Assumptions!40:40,Assumptions!44:44) -> 5 | SB38: =LOOKUP(SB33,Assumptions!40:40,Assumptions!44:44) -> 5 | SC38: =LOOKUP(SC33,Assumptions!40:40,Assumptions!44:44) -> 5 | SD38: =LOOKUP(SD33,Assumptions!40:40,Assumptions!44:44) -> 5 | SE38: =LOOKUP(SE33,Assumptions!40:40,Assumptions!44:44) -> 5 | SF38: =LOOKUP(SF33,Assumptions!40:40,Assumptions!44:44) -> 5 | SG38: =LOOKUP(SG33,Assumptions!40:40,Assumptions!44:44) -> 5 | SH38: =LOOKUP(SH33,Assumptions!40:40,Assumptions!44:44) -> 5 | SI38: =LOOKUP(SI33,Assumptions!40:40,Assumptions!44:44) -> 5 | SJ38: =LOOKUP(SJ33,Assumptions!40:40,Assumptions!44:44) -> 5 | SK38: =LOOKUP(SK33,Assumptions!40:40,Assumptions!44:44) -> 5 | SL38: =LOOKUP(SL33,Assumptions!40:40,Assumptions!44:44) -> 5 | SM38: =LOOKUP(SM33,Assumptions!40:40,Assumptions!44:44) -> 5 | SN38: =LOOKUP(SN33,Assumptions!40:40,Assumptions!44:44) -> 5 | SO38: =LOOKUP(SO33,Assumptions!40:40,Assumptions!44:44) -> 5 | SP38: =LOOKUP(SP33,Assumptions!40:40,Assumptions!44:44) -> 5 | SQ38: =LOOKUP(SQ33,Assumptions!40:40,Assumptions!44:44) -> 5 | SR38: =LOOKUP(SR33,Assumptions!40:40,Assumptions!44:44) -> 6 | SS38: =LOOKUP(SS33,Assumptions!40:40,Assumptions!44:44) -> 6 | ST38: =LOOKUP(ST33,Assumptions!40:40,Assumptions!44:44) -> 6 | SU38: =LOOKUP(SU33,Assumptions!40:40,Assumptions!44:44) -> 6 | SV38: =LOOKUP(SV33,Assumptions!40:40,Assumptions!44:44) -> 6 | SW38: =LOOKUP(SW33,Assumptions!40:40,Assumptions!44:44) -> 6 | SX38: =LOOKUP(SX33,Assumptions!40:40,Assumptions!44:44) -> 6 | SY38: =LOOKUP(SY33,Assumptions!40:40,Assumptions!44:44) -> 6 | SZ38: =LOOKUP(SZ33,Assumptions!40:40,Assumptions!44:44) -> 6 | TA38: =LOOKUP(TA33,Assumptions!40:40,Assumptions!44:44) -> 6 | TB38: =LOOKUP(TB33,Assumptions!40:40,Assumptions!44:44) -> 6 | TC38: =LOOKUP(TC33,Assumptions!40:40,Assumptions!44:44) -> 6 | TD38: =LOOKUP(TD33,Assumptions!40:40,Assumptions!44:44) -> 6 | TE38: =LOOKUP(TE33,Assumptions!40:40,Assumptions!44:44) -> 6 | TF38: =LOOKUP(TF33,Assumptions!40:40,Assumptions!44:44) -> 6 | TG38: =LOOKUP(TG33,Assumptions!40:40,Assumptions!44:44) -> 6 | TH38: =LOOKUP(TH33,Assumptions!40:40,Assumptions!44:44) -> 6 | TI38: =LOOKUP(TI33,Assumptions!40:40,Assumptions!44:44) -> 6 | TJ38: =LOOKUP(TJ33,Assumptions!40:40,Assumptions!44:44) -> 6 | TK38: =LOOKUP(TK33,Assumptions!40:40,Assumptions!44:44) -> 6 | TL38: =LOOKUP(TL33,Assumptions!40:40,Assumptions!44:44) -> 6 | TM38: =LOOKUP(TM33,Assumptions!40:40,Assumptions!44:44) -> 6 | TN38: =LOOKUP(TN33,Assumptions!40:40,Assumptions!44:44) -> 6 | TO38: =LOOKUP(TO33,Assumptions!40:40,Assumptions!44:44) -> 6 | TP38: =LOOKUP(TP33,Assumptions!40:40,Assumptions!44:44) -> 7 | TQ38: =LOOKUP(TQ33,Assumptions!40:40,Assumptions!44:44) -> 7 | TR38: =LOOKUP(TR33,Assumptions!40:40,Assumptions!44:44) -> 7 | TS38: =LOOKUP(TS33,Assumptions!40:40,Assumptions!44:44) -> 7 | TT38: =LOOKUP(TT33,Assumptions!40:40,Assumptions!44:44) -> 7 | TU38: =LOOKUP(TU33,Assumptions!40:40,Assumptions!44:44) -> 7 | TV38: =LOOKUP(TV33,Assumptions!40:40,Assumptions!44:44) -> 7 | TW38: =LOOKUP(TW33,Assumptions!40:40,Assumptions!44:44) -> 7 | TX38: =LOOKUP(TX33,Assumptions!40:40,Assumptions!44:44) -> 7 | TY38: =LOOKUP(TY33,Assumptions!40:40,Assumptions!44:44) -> 7 | TZ38: =LOOKUP(TZ33,Assumptions!40:40,Assumptions!44:44) -> 7 | UA38: =LOOKUP(UA33,Assumptions!40:40,Assumptions!44:44) -> 7 | UB38: =LOOKUP(UB33,Assumptions!40:40,Assumptions!44:44) -> 7 | UC38: =LOOKUP(UC33,Assumptions!40:40,Assumptions!44:44) -> 7 | UD38: =LOOKUP(UD33,Assumptions!40:40,Assumptions!44:44) -> 7 | UE38: =LOOKUP(UE33,Assumptions!40:40,Assumptions!44:44) -> 7 | UF38: =LOOKUP(UF33,Assumptions!40:40,Assumptions!44:44) -> 7 | UG38: =LOOKUP(UG33,Assumptions!40:40,Assumptions!44:44) -> 7 | UH38: =LOOKUP(UH33,Assumptions!40:40,Assumptions!44:44) -> 7 | UI38: =LOOKUP(UI33,Assumptions!40:40,Assumptions!44:44) -> 7 | UJ38: =LOOKUP(UJ33,Assumptions!40:40,Assumptions!44:44) -> 7 | UK38: =LOOKUP(UK33,Assumptions!40:40,Assumptions!44:44) -> 7 | UL38: =LOOKUP(UL33,Assumptions!40:40,Assumptions!44:44) -> 7 | UM38: =LOOKUP(UM33,Assumptions!40:40,Assumptions!44:44) -> 7 | UN38: =LOOKUP(UN33,Assumptions!40:40,Assumptions!44:44) -> 8 | UO38: =LOOKUP(UO33,Assumptions!40:40,Assumptions!44:44) -> 8 | UP38: =LOOKUP(UP33,Assumptions!40:40,Assumptions!44:44) -> 8 | UQ38: =LOOKUP(UQ33,Assumptions!40:40,Assumptions!44:44) -> 8 | UR38: =LOOKUP(UR33,Assumptions!40:40,Assumptions!44:44) -> 8 | US38: =LOOKUP(US33,Assumptions!40:40,Assumptions!44:44) -> 8 | UT38: =LOOKUP(UT33,Assumptions!40:40,Assumptions!44:44) -> 8 | UU38: =LOOKUP(UU33,Assumptions!40:40,Assumptions!44:44) -> 8 | UV38: =LOOKUP(UV33,Assumptions!40:40,Assumptions!44:44) -> 8 | UW38: =LOOKUP(UW33,Assumptions!40:40,Assumptions!44:44) -> 8 | UX38: =LOOKUP(UX33,Assumptions!40:40,Assumptions!44:44) -> 8 | UY38: =LOOKUP(UY33,Assumptions!40:40,Assumptions!44:44) -> 8 | UZ38: =LOOKUP(UZ33,Assumptions!40:40,Assumptions!44:44) -> 8 | VA38: =LOOKUP(VA33,Assumptions!40:40,Assumptions!44:44) -> 8 | VB38: =LOOKUP(VB33,Assumptions!40:40,Assumptions!44:44) -> 8 | VC38: =LOOKUP(VC33,Assumptions!40:40,Assumptions!44:44) -> 8 | VD38: =LOOKUP(VD33,Assumptions!40:40,Assumptions!44:44) -> 8 | VE38: =LOOKUP(VE33,Assumptions!40:40,Assumptions!44:44) -> 8 | VF38: =LOOKUP(VF33,Assumptions!40:40,Assumptions!44:44) -> 8 | VG38: =LOOKUP(VG33,Assumptions!40:40,Assumptions!44:44) -> 8 | VH38: =LOOKUP(VH33,Assumptions!40:40,Assumptions!44:44) -> 8 | VI38: =LOOKUP(VI33,Assumptions!40:40,Assumptions!44:44) -> 8 | VJ38: =LOOKUP(VJ33,Assumptions!40:40,Assumptions!44:44) -> 8 | VK38: =LOOKUP(VK33,Assumptions!40:40,Assumptions!44:44) -> 8 | VL38: =LOOKUP(VL33,Assumptions!40:40,Assumptions!44:44) -> 1 | VM38: =LOOKUP(VM33,Assumptions!40:40,Assumptions!44:44) -> 1 | VN38: =LOOKUP(VN33,Assumptions!40:40,Assumptions!44:44) -> 1 | VO38: =LOOKUP(VO33,Assumptions!40:40,Assumptions!44:44) -> 1 | VP38: =LOOKUP(VP33,Assumptions!40:40,Assumptions!44:44) -> 1 | VQ38: =LOOKUP(VQ33,Assumptions!40:40,Assumptions!44:44) -> 1 | VR38: =LOOKUP(VR33,Assumptions!40:40,Assumptions!44:44) -> 1 | VS38: =LOOKUP(VS33,Assumptions!40:40,Assumptions!44:44) -> 1 | VT38: =LOOKUP(VT33,Assumptions!40:40,Assumptions!44:44) -> 1 | VU38: =LOOKUP(VU33,Assumptions!40:40,Assumptions!44:44) -> 1 | VV38: =LOOKUP(VV33,Assumptions!40:40,Assumptions!44:44) -> 1 | VW38: =LOOKUP(VW33,Assumptions!40:40,Assumptions!44:44) -> 1 | VX38: =LOOKUP(VX33,Assumptions!40:40,Assumptions!44:44) -> 1 | VY38: =LOOKUP(VY33,Assumptions!40:40,Assumptions!44:44) -> 1 | VZ38: =LOOKUP(VZ33,Assumptions!40:40,Assumptions!44:44) -> 1 | WA38: =LOOKUP(WA33,Assumptions!40:40,Assumptions!44:44) -> 1 | WB38: =LOOKUP(WB33,Assumptions!40:40,Assumptions!44:44) -> 1 | WC38: =LOOKUP(WC33,Assumptions!40:40,Assumptions!44:44) -> 1 | WD38: =LOOKUP(WD33,Assumptions!40:40,Assumptions!44:44) -> 1 | WE38: =LOOKUP(WE33,Assumptions!40:40,Assumptions!44:44) -> 1 | WF38: =LOOKUP(WF33,Assumptions!40:40,Assumptions!44:44) -> 1 | WG38: =LOOKUP(WG33,Assumptions!40:40,Assumptions!44:44) -> 1 | WH38: =LOOKUP(WH33,Assumptions!40:40,Assumptions!44:44) -> 1 | WI38: =LOOKUP(WI33,Assumptions!40:40,Assumptions!44:44) -> 1 | WJ38: =LOOKUP(WJ33,Assumptions!40:40,Assumptions!44:44) -> 2 | WK38: =LOOKUP(WK33,Assumptions!40:40,Assumptions!44:44) -> 2 | WL38: =LOOKUP(WL33,Assumptions!40:40,Assumptions!44:44) -> 2 | WM38: =LOOKUP(WM33,Assumptions!40:40,Assumptions!44:44) -> 2 | WN38: =LOOKUP(WN33,Assumptions!40:40,Assumptions!44:44) -> 2 | WO38: =LOOKUP(WO33,Assumptions!40:40,Assumptions!44:44) -> 2 | WP38: =LOOKUP(WP33,Assumptions!40:40,Assumptions!44:44) -> 2 | WQ38: =LOOKUP(WQ33,Assumptions!40:40,Assumptions!44:44) -> 2 | WR38: =LOOKUP(WR33,Assumptions!40:40,Assumptions!44:44) -> 2 | WS38: =LOOKUP(WS33,Assumptions!40:40,Assumptions!44:44) -> 2 | WT38: =LOOKUP(WT33,Assumptions!40:40,Assumptions!44:44) -> 2 | WU38: =LOOKUP(WU33,Assumptions!40:40,Assumptions!44:44) -> 2 | WV38: =LOOKUP(WV33,Assumptions!40:40,Assumptions!44:44) -> 2 | WW38: =LOOKUP(WW33,Assumptions!40:40,Assumptions!44:44) -> 2 | WX38: =LOOKUP(WX33,Assumptions!40:40,Assumptions!44:44) -> 2 | WY38: =LOOKUP(WY33,Assumptions!40:40,Assumptions!44:44) -> 2 | WZ38: =LOOKUP(WZ33,Assumptions!40:40,Assumptions!44:44) -> 2 | XA38: =LOOKUP(XA33,Assumptions!40:40,Assumptions!44:44) -> 2 | XB38: =LOOKUP(XB33,Assumptions!40:40,Assumptions!44:44) -> 2 | XC38: =LOOKUP(XC33,Assumptions!40:40,Assumptions!44:44) -> 2 | XD38: =LOOKUP(XD33,Assumptions!40:40,Assumptions!44:44) -> 2 | XE38: =LOOKUP(XE33,Assumptions!40:40,Assumptions!44:44) -> 2 | XF38: =LOOKUP(XF33,Assumptions!40:40,Assumptions!44:44) -> 2 | XG38: =LOOKUP(XG33,Assumptions!40:40,Assumptions!44:44) -> 2 | XH38: =LOOKUP(XH33,Assumptions!40:40,Assumptions!44:44) -> 3 | XI38: =LOOKUP(XI33,Assumptions!40:40,Assumptions!44:44) -> 3 | XJ38: =LOOKUP(XJ33,Assumptions!40:40,Assumptions!44:44) -> 3 | XK38: =LOOKUP(XK33,Assumptions!40:40,Assumptions!44:44) -> 3 | XL38: =LOOKUP(XL33,Assumptions!40:40,Assumptions!44:44) -> 3 | XM38: =LOOKUP(XM33,Assumptions!40:40,Assumptions!44:44) -> 3 | XN38: =LOOKUP(XN33,Assumptions!40:40,Assumptions!44:44) -> 3 | XO38: =LOOKUP(XO33,Assumptions!40:40,Assumptions!44:44) -> 3 | XP38: =LOOKUP(XP33,Assumptions!40:40,Assumptions!44:44) -> 3 | XQ38: =LOOKUP(XQ33,Assumptions!40:40,Assumptions!44:44) -> 3 | XR38: =LOOKUP(XR33,Assumptions!40:40,Assumptions!44:44) -> 3 | XS38: =LOOKUP(XS33,Assumptions!40:40,Assumptions!44:44) -> 3 | XT38: =LOOKUP(XT33,Assumptions!40:40,Assumptions!44:44) -> 3 | XU38: =LOOKUP(XU33,Assumptions!40:40,Assumptions!44:44) -> 3 | XV38: =LOOKUP(XV33,Assumptions!40:40,Assumptions!44:44) -> 3 | XW38: =LOOKUP(XW33,Assumptions!40:40,Assumptions!44:44) -> 3 | XX38: =LOOKUP(XX33,Assumptions!40:40,Assumptions!44:44) -> 3 | XY38: =LOOKUP(XY33,Assumptions!40:40,Assumptions!44:44) -> 3 | XZ38: =LOOKUP(XZ33,Assumptions!40:40,Assumptions!44:44) -> 3 | YA38: =LOOKUP(YA33,Assumptions!40:40,Assumptions!44:44) -> 3 | YB38: =LOOKUP(YB33,Assumptions!40:40,Assumptions!44:44) -> 3 | YC38: =LOOKUP(YC33,Assumptions!40:40,Assumptions!44:44) -> 3 | YD38: =LOOKUP(YD33,Assumptions!40:40,Assumptions!44:44) -> 3 | YE38: =LOOKUP(YE33,Assumptions!40:40,Assumptions!44:44) -> 3 | YF38: =LOOKUP(YF33,Assumptions!40:40,Assumptions!44:44) -> 4 | YG38: =LOOKUP(YG33,Assumptions!40:40,Assumptions!44:44) -> 4 | YH38: =LOOKUP(YH33,Assumptions!40:40,Assumptions!44:44) -> 4 | YI38: =LOOKUP(YI33,Assumptions!40:40,Assumptions!44:44) -> 4 | YJ38: =LOOKUP(YJ33,Assumptions!40:40,Assumptions!44:44) -> 4 | YK38: =LOOKUP(YK33,Assumptions!40:40,Assumptions!44:44) -> 4 | YL38: =LOOKUP(YL33,Assumptions!40:40,Assumptions!44:44) -> 4 | YM38: =LOOKUP(YM33,Assumptions!40:40,Assumptions!44:44) -> 4 | YN38: =LOOKUP(YN33,Assumptions!40:40,Assumptions!44:44) -> 4 | YO38: =LOOKUP(YO33,Assumptions!40:40,Assumptions!44:44) -> 4 | YP38: =LOOKUP(YP33,Assumptions!40:40,Assumptions!44:44) -> 4 | YQ38: =LOOKUP(YQ33,Assumptions!40:40,Assumptions!44:44) -> 4 | YR38: =LOOKUP(YR33,Assumptions!40:40,Assumptions!44:44) -> 4 | YS38: =LOOKUP(YS33,Assumptions!40:40,Assumptions!44:44) -> 4 | YT38: =LOOKUP(YT33,Assumptions!40:40,Assumptions!44:44) -> 4 | YU38: =LOOKUP(YU33,Assumptions!40:40,Assumptions!44:44) -> 4 | YV38: =LOOKUP(YV33,Assumptions!40:40,Assumptions!44:44) -> 4 | YW38: =LOOKUP(YW33,Assumptions!40:40,Assumptions!44:44) -> 4 | YX38: =LOOKUP(YX33,Assumptions!40:40,Assumptions!44:44) -> 4 | YY38: =LOOKUP(YY33,Assumptions!40:40,Assumptions!44:44) -> 4 | YZ38: =LOOKUP(YZ33,Assumptions!40:40,Assumptions!44:44) -> 4 | ZA38: =LOOKUP(ZA33,Assumptions!40:40,Assumptions!44:44) -> 4 | ZB38: =LOOKUP(ZB33,Assumptions!40:40,Assumptions!44:44) -> 4 | ZC38: =LOOKUP(ZC33,Assumptions!40:40,Assumptions!44:44) -> 4 | ZD38: =LOOKUP(ZD33,Assumptions!40:40,Assumptions!44:44) -> 5 | ZE38: =LOOKUP(ZE33,Assumptions!40:40,Assumptions!44:44) -> 5 | ZF38: =LOOKUP(ZF33,Assumptions!40:40,Assumptions!44:44) -> 5 | ZG38: =LOOKUP(ZG33,Assumptions!40:40,Assumptions!44:44) -> 5 | ZH38: =LOOKUP(ZH33,Assumptions!40:40,Assumptions!44:44) -> 5 | ZI38: =LOOKUP(ZI33,Assumptions!40:40,Assumptions!44:44) -> 5 | ZJ38: =LOOKUP(ZJ33,Assumptions!40:40,Assumptions!44:44) -> 5 | ZK38: =LOOKUP(ZK33,Assumptions!40:40,Assumptions!44:44) -> 5 | ZL38: =LOOKUP(ZL33,Assumptions!40:40,Assumptions!44:44) -> 5 | ZM38: =LOOKUP(ZM33,Assumptions!40:40,Assumptions!44:44) -> 5 | ZN38: =LOOKUP(ZN33,Assumptions!40:40,Assumptions!44:44) -> 5 | ZO38: =LOOKUP(ZO33,Assumptions!40:40,Assumptions!44:44) -> 5 | ZP38: =LOOKUP(ZP33,Assumptions!40:40,Assumptions!44:44) -> 5 | ZQ38: =LOOKUP(ZQ33,Assumptions!40:40,Assumptions!44:44) -> 5 | ZR38: =LOOKUP(ZR33,Assumptions!40:40,Assumptions!44:44) -> 5 | ZS38: =LOOKUP(ZS33,Assumptions!40:40,Assumptions!44:44) -> 5 | ZT38: =LOOKUP(ZT33,Assumptions!40:40,Assumptions!44:44) -> 5 | ZU38: =LOOKUP(ZU33,Assumptions!40:40,Assumptions!44:44) -> 5 | ZV38: =LOOKUP(ZV33,Assumptions!40:40,Assumptions!44:44) -> 5 | ZW38: =LOOKUP(ZW33,Assumptions!40:40,Assumptions!44:44) -> 5 | ZX38: =LOOKUP(ZX33,Assumptions!40:40,Assumptions!44:44) -> 5 | ZY38: =LOOKUP(ZY33,Assumptions!40:40,Assumptions!44:44) -> 5 | ZZ38: =LOOKUP(ZZ33,Assumptions!40:40,Assumptions!44:44) -> 5 | AAA38: =LOOKUP(AAA33,Assumptions!40:40,Assumptions!44:44) -> 5 | AAB38: =LOOKUP(AAB33,Assumptions!40:40,Assumptions!44:44) -> 6 | AAC38: =LOOKUP(AAC33,Assumptions!40:40,Assumptions!44:44) -> 6 | AAD38: =LOOKUP(AAD33,Assumptions!40:40,Assumptions!44:44) -> 6 | AAE38: =LOOKUP(AAE33,Assumptions!40:40,Assumptions!44:44) -> 6 | AAF38: =LOOKUP(AAF33,Assumptions!40:40,Assumptions!44:44) -> 6 | AAG38: =LOOKUP(AAG33,Assumptions!40:40,Assumptions!44:44) -> 6 | AAH38: =LOOKUP(AAH33,Assumptions!40:40,Assumptions!44:44) -> 6 | AAI38: =LOOKUP(AAI33,Assumptions!40:40,Assumptions!44:44) -> 6 | AAJ38: =LOOKUP(AAJ33,Assumptions!40:40,Assumptions!44:44) -> 6 | AAK38: =LOOKUP(AAK33,Assumptions!40:40,Assumptions!44:44) -> 6 | AAL38: =LOOKUP(AAL33,Assumptions!40:40,Assumptions!44:44) -> 6 | AAM38: =LOOKUP(AAM33,Assumptions!40:40,Assumptions!44:44) -> 6 | AAN38: =LOOKUP(AAN33,Assumptions!40:40,Assumptions!44:44) -> 6 | AAO38: =LOOKUP(AAO33,Assumptions!40:40,Assumptions!44:44) -> 6 | AAP38: =LOOKUP(AAP33,Assumptions!40:40,Assumptions!44:44) -> 6 | AAQ38: =LOOKUP(AAQ33,Assumptions!40:40,Assumptions!44:44) -> 6 | AAR38: =LOOKUP(AAR33,Assumptions!40:40,Assumptions!44:44) -> 6 | AAS38: =LOOKUP(AAS33,Assumptions!40:40,Assumptions!44:44) -> 6 | AAT38: =LOOKUP(AAT33,Assumptions!40:40,Assumptions!44:44) -> 6 | AAU38: =LOOKUP(AAU33,Assumptions!40:40,Assumptions!44:44) -> 6 | AAV38: =LOOKUP(AAV33,Assumptions!40:40,Assumptions!44:44) -> 6 | AAW38: =LOOKUP(AAW33,Assumptions!40:40,Assumptions!44:44) -> 6 | AAX38: =LOOKUP(AAX33,Assumptions!40:40,Assumptions!44:44) -> 6 | AAY38: =LOOKUP(AAY33,Assumptions!40:40,Assumptions!44:44) -> 6
C39: Solar Shape Name | H39: =LOOKUP(H33,Assumptions!40:40,Assumptions!45:45) -> Solar Shape 1 | I39: =LOOKUP(I33,Assumptions!40:40,Assumptions!45:45) -> Solar Shape 1 | J39: =LOOKUP(J33,Assumptions!40:40,Assumptions!45:45) -> Solar Shape 1 | K39: =LOOKUP(K33,Assumptions!40:40,Assumptions!45:45) -> Solar Shape 1 | L39: =LOOKUP(L33,Assumptions!40:40,Assumptions!45:45) -> Solar Shape 1 | M39: =LOOKUP(M33,Assumptions!40:40,Assumptions!45:45) -> Solar Shape 1 | N39: =LOOKUP(N33,Assumptions!40:40,Assumptions!45:45) -> Solar Shape 1 | O39: =LOOKUP(O33,Assumptions!40:40,Assumptions!45:45) -> Solar Shape 1 | P39: =LOOKUP(P33,Assumptions!40:40,Assumptions!45:45) -> Solar Shape 1 | Q39: =LOOKUP(Q33,Assumptions!40:40,Assumptions!45:45) -> Solar Shape 1 | R39: =LOOKUP(R33,Assumptions!40:40,Assumptions!45:45) -> Solar Shape 1 | S39: =LOOKUP(S33,Assumptions!40:40,Assumptions!45:45) -> Solar Shape 1 | T39: =LOOKUP(T33,Assumptions!40:40,Assumptions!45:45) -> Solar Shape 1 | U39: =LOOKUP(U33,Assumptions!40:40,Assumptions!45:45) -> Solar Shape 1 | V39: =LOOKUP(V33,Assumptions!40:40,Assumptions!45:45) -> Solar Shape 1 | W39: =LOOKUP(W33,Assumptions!40:40,Assumptions!45:45) -> Solar Shape 1 | X39: =LOOKUP(X33,Assumptions!40:40,Assumptions!45:45) -> Solar Shape 1 | Y39: =LOOKUP(Y33,Assumptions!40:40,Assumptions!45:45) -> Solar Shape 1 | Z39: =LOOKUP(Z33,Assumptions!40:40,Assumptions!45:45) -> Solar Shape 1 | AA39: =LOOKUP(AA33,Assumptions!40:40,Assumptions!45:45) -> Solar Shape 1 | AB39: =LOOKUP(AB33,Assumptions!40:40,Assumptions!45:45) -> Solar Shape 1 | AC39: =LOOKUP(AC33,Assumptions!40:40,Assumptions!45:45) -> Solar Shape 1 | AD39: =LOOKUP(AD33,Assumptions!40:40,Assumptions!45:45) -> Solar Shape 1 | AE39: =LOOKUP(AE33,Assumptions!40:40,Assumptions!45:45) -> Solar Shape 1 | AF39: =LOOKUP(AF33,Assumptions!40:40,Assumptions!45:45) -> Solar Shape 2 | AG39: =LOOKUP(AG33,Assumptions!40:40,Assumptions!45:45) -> Solar Shape 2 | AH39: =LOOKUP(AH33,Assumptions!40:40,Assumptions!45:45) -> Solar Shape 2 | AI39: =LOOKUP(AI33,Assumptions!40:40,Assumptions!45:45) -> Solar Shape 2 | AJ39: =LOOKUP(AJ33,Assumptions!40:40,Assumptions!45:45) -> Solar Shape 2 | AK39: =LOOKUP(AK33,Assumptions!40:40,Assumptions!45:45) -> Solar Shape 2 | AL39: =LOOKUP(AL33,Assumptions!40:40,Assumptions!45:45) -> Solar Shape 2 | AM39: =LOOKUP(AM33,Assumptions!40:40,Assumptions!45:45) -> Solar Shape 2 | AN39: =LOOKUP(AN33,Assumptions!40:40,Assumptions!45:45) -> Solar Shape 2 | AO39: =LOOKUP(AO33,Assumptions!40:40,Assumptions!45:45) -> Solar Shape 2 | AP39: =LOOKUP(AP33,Assumptions!40:40,Assumptions!45:45) -> Solar Shape 2 | AQ39: =LOOKUP(AQ33,Assumptions!40:40,Assumptions!45:45) -> Solar Shape 2 | AR39: =LOOKUP(AR33,Assumptions!40:40,Assumptions!45:45) -> Solar Shape 2 | AS39: =LOOKUP(AS33,Assumptions!40:40,Assumptions!45:45) -> Solar Shape 2 | AT39: =LOOKUP(AT33,Assumptions!40:40,Assumptions!45:45) -> Solar Shape 2 | AU39: =LOOKUP(AU33,Assumptions!40:40,Assumptions!45:45) -> Solar Shape 2 | AV39: =LOOKUP(AV33,Assumptions!40:40,Assumptions!45:45) -> Solar Shape 2 | AW39: =LOOKUP(AW33,Assumptions!40:40,Assumptions!45:45) -> Solar Shape 2 | AX39: =LOOKUP(AX33,Assumptions!40:40,Assumptions!45:45) -> Solar Shape 2 | AY39: =LOOKUP(AY33,Assumptions!40:40,Assumptions!45:45) -> Solar Shape 2 | AZ39: =LOOKUP(AZ33,Assumptions!40:40,Assumptions!45:45) -> Solar Shape 2 | BA39: =LOOKUP(BA33,Assumptions!40:40,Assumptions!45:45) -> Solar Shape 2 | BB39: =LOOKUP(BB33,Assumptions!40:40,Assumptions!45:45) -> Solar Shape 2 | BC39: =LOOKUP(BC33,Assumptions!40:40,Assumptions!45:45) -> Solar Shape 2 | BD39: =LOOKUP(BD33,Assumptions!40:40,Assumptions!45:45) -> Solar Shape 3 | BE39: =LOOKUP(BE33,Assumptions!40:40,Assumptions!45:45) -> Solar Shape 3 | BF39: =LOOKUP(BF33,Assumptions!40:40,Assumptions!45:45) -> Solar Shape 3 | BG39: =LOOKUP(BG33,Assumptions!40:40,Assumptions!45:45) -> Solar Shape 3 | BH39: =LOOKUP(BH33,Assumptions!40:40,Assumptions!45:45) -> Solar Shape 3 | BI39: =LOOKUP(BI33,Assumptions!40:40,Assumptions!45:45) -> Solar Shape 3 | BJ39: =LOOKUP(BJ33,Assumptions!40:40,Assumptions!45:45) -> Solar Shape 3 | BK39: =LOOKUP(BK33,Assumptions!40:40,Assumptions!45:45) -> Solar Shape 3 | BL39: =LOOKUP(BL33,Assumptions!40:40,Assumptions!45:45) -> Solar Shape 3 | BM39: =LOOKUP(BM33,Assumptions!40:40,Assumptions!45:45) -> Solar Shape 3 | BN39: =LOOKUP(BN33,Assumptions!40:40,Assumptions!45:45) -> Solar Shape 3 | BO39: =LOOKUP(BO33,Assumptions!40:40,Assumptions!45:45) -> Solar Shape 3 | BP39: =LOOKUP(BP33,Assumptions!40:40,Assumptions!45:45) -> Solar Shape 3 | BQ39: =LOOKUP(BQ33,Assumptions!40:40,Assumptions!45:45) -> Solar Shape 3 | BR39: =LOOKUP(BR33,Assumptions!40:40,Assumptions!45:45) -> Solar Shape 3 | BS39: =LOOKUP(BS33,Assumptions!40:40,Assumptions!45:45) -> Solar Shape 3 | BT39: =LOOKUP(BT33,Assumptions!40:40,Assumptions!45:45) -> Solar Shape 3 | BU39: =LOOKUP(BU33,Assumptions!40:40,Assumptions!45:45) -> Solar Shape 3 | BV39: =LOOKUP(BV33,Assumptions!40:40,Assumptions!45:45) -> Solar Shape 3 | BW39: =LOOKUP(BW33,Assumptions!40:40,Assumptions!45:45) -> Solar Shape 3 | BX39: =LOOKUP(BX33,Assumptions!40:40,Assumptions!45:45) -> Solar Shape 3 | BY39: =LOOKUP(BY33,Assumptions!40:40,Assumptions!45:45) -> Solar Shape 3 | BZ39: =LOOKUP(BZ33,Assumptions!40:40,Assumptions!45:45) -> Solar Shape 3 | CA39: =LOOKUP(CA33,Assumptions!40:40,Assumptions!45:45) -> Solar Shape 3 | CB39: =LOOKUP(CB33,Assumptions!40:40,Assumptions!45:45) -> Solar Shape 4 | CC39: =LOOKUP(CC33,Assumptions!40:40,Assumptions!45:45) -> Solar Shape 4 | CD39: =LOOKUP(CD33,Assumptions!40:40,Assumptions!45:45) -> Solar Shape 4 | CE39: =LOOKUP(CE33,Assumptions!40:40,Assumptions!45:45) -> Solar Shape 4 | CF39: =LOOKUP(CF33,Assumptions!40:40,Assumptions!45:45) -> Solar Shape 4 | CG39: =LOOKUP(CG33,Assumptions!40:40,Assumptions!45:45) -> Solar Shape 4 | CH39: =LOOKUP(CH33,Assumptions!40:40,Assumptions!45:45) -> Solar Shape 4 | CI39: =LOOKUP(CI33,Assumptions!40:40,Assumptions!45:45) -> Solar Shape 4 | CJ39: =LOOKUP(CJ33,Assumptions!40:40,Assumptions!45:45) -> Solar Shape 4 | CK39: =LOOKUP(CK33,Assumptions!40:40,Assumptions!45:45) -> Solar Shape 4 | CL39: =LOOKUP(CL33,Assumptions!40:40,Assumptions!45:45) -> Solar Shape 4 | CM39: =LOOKUP(CM33,Assumptions!40:40,Assumptions!45:45) -> Solar Shape 4 | CN39: =LOOKUP(CN33,Assumptions!40:40,Assumptions!45:45) -> Solar Shape 4 | CO39: =LOOKUP(CO33,Assumptions!40:40,Assumptions!45:45) -> Solar Shape 4 | CP39: =LOOKUP(CP33,Assumptions!40:40,Assumptions!45:45) -> Solar Shape 4 | CQ39: =LOOKUP(CQ33,Assumptions!40:40,Assumptions!45:45) -> Solar Shape 4 | CR39: =LOOKUP(CR33,Assumptions!40:40,Assumptions!45:45) -> Solar Shape 4 | CS39: =LOOKUP(CS33,Assumptions!40:40,Assumptions!45:45) -> Solar Shape 4 | CT39: =LOOKUP(CT33,Assumptions!40:40,Assumptions!45:45) -> Solar Shape 4 | CU39: =LOOKUP(CU33,Assumptions!40:40,Assumptions!45:45) -> Solar Shape 4 | CV39: =LOOKUP(CV33,Assumptions!40:40,Assumptions!45:45) -> Solar Shape 4 | CW39: =LOOKUP(CW33,Assumptions!40:40,Assumptions!45:45) -> Solar Shape 4 | CX39: =LOOKUP(CX33,Assumptions!40:40,Assumptions!45:45) -> Solar Shape 4 | CY39: =LOOKUP(CY33,Assumptions!40:40,Assumptions!45:45) -> Solar Shape 4 | CZ39: =LOOKUP(CZ33,Assumptions!40:40,Assumptions!45:45) -> Solar Shape 5 | DA39: =LOOKUP(DA33,Assumptions!40:40,Assumptions!45:45) -> Solar Shape 5 | DB39: =LOOKUP(DB33,Assumptions!40:40,Assumptions!45:45) -> Solar Shape 5 | DC39: =LOOKUP(DC33,Assumptions!40:40,Assumptions!45:45) -> Solar Shape 5 | DD39: =LOOKUP(DD33,Assumptions!40:40,Assumptions!45:45) -> Solar Shape 5 | DE39: =LOOKUP(DE33,Assumptions!40:40,Assumptions!45:45) -> Solar Shape 5 | DF39: =LOOKUP(DF33,Assumptions!40:40,Assumptions!45:45) -> Solar Shape 5 | DG39: =LOOKUP(DG33,Assumptions!40:40,Assumptions!45:45) -> Solar Shape 5 | DH39: =LOOKUP(DH33,Assumptions!40:40,Assumptions!45:45) -> Solar Shape 5 | DI39: =LOOKUP(DI33,Assumptions!40:40,Assumptions!45:45) -> Solar Shape 5 | DJ39: =LOOKUP(DJ33,Assumptions!40:40,Assumptions!45:45) -> Solar Shape 5 | DK39: =LOOKUP(DK33,Assumptions!40:40,Assumptions!45:45) -> Solar Shape 5 | DL39: =LOOKUP(DL33,Assumptions!40:40,Assumptions!45:45) -> Solar Shape 5 | DM39: =LOOKUP(DM33,Assumptions!40:40,Assumptions!45:45) -> Solar Shape 5 | DN39: =LOOKUP(DN33,Assumptions!40:40,Assumptions!45:45) -> Solar Shape 5 | DO39: =LOOKUP(DO33,Assumptions!40:40,Assumptions!45:45) -> Solar Shape 5 | DP39: =LOOKUP(DP33,Assumptions!40:40,Assumptions!45:45) -> Solar Shape 5 | DQ39: =LOOKUP(DQ33,Assumptions!40:40,Assumptions!45:45) -> Solar Shape 5 | DR39: =LOOKUP(DR33,Assumptions!40:40,Assumptions!45:45) -> Solar Shape 5 | DS39: =LOOKUP(DS33,Assumptions!40:40,Assumptions!45:45) -> Solar Shape 5 | DT39: =LOOKUP(DT33,Assumptions!40:40,Assumptions!45:45) -> Solar Shape 5 | DU39: =LOOKUP(DU33,Assumptions!40:40,Assumptions!45:45) -> Solar Shape 5 | DV39: =LOOKUP(DV33,Assumptions!40:40,Assumptions!45:45) -> Solar Shape 5 | DW39: =LOOKUP(DW33,Assumptions!40:40,Assumptions!45:45) -> Solar Shape 5 | DX39: =LOOKUP(DX33,Assumptions!40:40,Assumptions!45:45) -> Solar Shape 6 | DY39: =LOOKUP(DY33,Assumptions!40:40,Assumptions!45:45) -> Solar Shape 6 | DZ39: =LOOKUP(DZ33,Assumptions!40:40,Assumptions!45:45) -> Solar Shape 6 | EA39: =LOOKUP(EA33,Assumptions!40:40,Assumptions!45:45) -> Solar Shape 6 | EB39: =LOOKUP(EB33,Assumptions!40:40,Assumptions!45:45) -> Solar Shape 6 | EC39: =LOOKUP(EC33,Assumptions!40:40,Assumptions!45:45) -> Solar Shape 6 | ED39: =LOOKUP(ED33,Assumptions!40:40,Assumptions!45:45) -> Solar Shape 6 | EE39: =LOOKUP(EE33,Assumptions!40:40,Assumptions!45:45) -> Solar Shape 6 | EF39: =LOOKUP(EF33,Assumptions!40:40,Assumptions!45:45) -> Solar Shape 6 | EG39: =LOOKUP(EG33,Assumptions!40:40,Assumptions!45:45) -> Solar Shape 6 | EH39: =LOOKUP(EH33,Assumptions!40:40,Assumptions!45:45) -> Solar Shape 6 | EI39: =LOOKUP(EI33,Assumptions!40:40,Assumptions!45:45) -> Solar Shape 6 | EJ39: =LOOKUP(EJ33,Assumptions!40:40,Assumptions!45:45) -> Solar Shape 6 | EK39: =LOOKUP(EK33,Assumptions!40:40,Assumptions!45:45) -> Solar Shape 6 | EL39: =LOOKUP(EL33,Assumptions!40:40,Assumptions!45:45) -> Solar Shape 6 | EM39: =LOOKUP(EM33,Assumptions!40:40,Assumptions!45:45) -> Solar Shape 6 | EN39: =LOOKUP(EN33,Assumptions!40:40,Assumptions!45:45) -> Solar Shape 6 | EO39: =LOOKUP(EO33,Assumptions!40:40,Assumptions!45:45) -> Solar Shape 6 | EP39: =LOOKUP(EP33,Assumptions!40:40,Assumptions!45:45) -> Solar Shape 6 | EQ39: =LOOKUP(EQ33,Assumptions!40:40,Assumptions!45:45) -> Solar Shape 6 | ER39: =LOOKUP(ER33,Assumptions!40:40,Assumptions!45:45) -> Solar Shape 6 | ES39: =LOOKUP(ES33,Assumptions!40:40,Assumptions!45:45) -> Solar Shape 6 | ET39: =LOOKUP(ET33,Assumptions!40:40,Assumptions!45:45) -> Solar Shape 6 | EU39: =LOOKUP(EU33,Assumptions!40:40,Assumptions!45:45) -> Solar Shape 6 | EV39: =LOOKUP(EV33,Assumptions!40:40,Assumptions!45:45) -> Solar Shape 7 | EW39: =LOOKUP(EW33,Assumptions!40:40,Assumptions!45:45) -> Solar Shape 7 | EX39: =LOOKUP(EX33,Assumptions!40:40,Assumptions!45:45) -> Solar Shape 7 | EY39: =LOOKUP(EY33,Assumptions!40:40,Assumptions!45:45) -> Solar Shape 7 | EZ39: =LOOKUP(EZ33,Assumptions!40:40,Assumptions!45:45) -> Solar Shape 7 | FA39: =LOOKUP(FA33,Assumptions!40:40,Assumptions!45:45) -> Solar Shape 7 | FB39: =LOOKUP(FB33,Assumptions!40:40,Assumptions!45:45) -> Solar Shape 7 | FC39: =LOOKUP(FC33,Assumptions!40:40,Assumptions!45:45) -> Solar Shape 7 | FD39: =LOOKUP(FD33,Assumptions!40:40,Assumptions!45:45) -> Solar Shape 7 | FE39: =LOOKUP(FE33,Assumptions!40:40,Assumptions!45:45) -> Solar Shape 7 | FF39: =LOOKUP(FF33,Assumptions!40:40,Assumptions!45:45) -> Solar Shape 7 | FG39: =LOOKUP(FG33,Assumptions!40:40,Assumptions!45:45) -> Solar Shape 7 | FH39: =LOOKUP(FH33,Assumptions!40:40,Assumptions!45:45) -> Solar Shape 7 | FI39: =LOOKUP(FI33,Assumptions!40:40,Assumptions!45:45) -> Solar Shape 7 | FJ39: =LOOKUP(FJ33,Assumptions!40:40,Assumptions!45:45) -> Solar Shape 7 | FK39: =LOOKUP(FK33,Assumptions!40:40,Assumptions!45:45) -> Solar Shape 7 | FL39: =LOOKUP(FL33,Assumptions!40:40,Assumptions!45:45) -> Solar Shape 7 | FM39: =LOOKUP(FM33,Assumptions!40:40,Assumptions!45:45) -> Solar Shape 7 | FN39: =LOOKUP(FN33,Assumptions!40:40,Assumptions!45:45) -> Solar Shape 7 | FO39: =LOOKUP(FO33,Assumptions!40:40,Assumptions!45:45) -> Solar Shape 7 | FP39: =LOOKUP(FP33,Assumptions!40:40,Assumptions!45:45) -> Solar Shape 7 | FQ39: =LOOKUP(FQ33,Assumptions!40:40,Assumptions!45:45) -> Solar Shape 7 | FR39: =LOOKUP(FR33,Assumptions!40:40,Assumptions!45:45) -> Solar Shape 7 | FS39: =LOOKUP(FS33,Assumptions!40:40,Assumptions!45:45) -> Solar Shape 7 | FT39: =LOOKUP(FT33,Assumptions!40:40,Assumptions!45:45) -> Solar Shape 8 | FU39: =LOOKUP(FU33,Assumptions!40:40,Assumptions!45:45) -> Solar Shape 8 | FV39: =LOOKUP(FV33,Assumptions!40:40,Assumptions!45:45) -> Solar Shape 8 | FW39: =LOOKUP(FW33,Assumptions!40:40,Assumptions!45:45) -> Solar Shape 8 | FX39: =LOOKUP(FX33,Assumptions!40:40,Assumptions!45:45) -> Solar Shape 8 | FY39: =LOOKUP(FY33,Assumptions!40:40,Assumptions!45:45) -> Solar Shape 8 | FZ39: =LOOKUP(FZ33,Assumptions!40:40,Assumptions!45:45) -> Solar Shape 8 | GA39: =LOOKUP(GA33,Assumptions!40:40,Assumptions!45:45) -> Solar Shape 8 | GB39: =LOOKUP(GB33,Assumptions!40:40,Assumptions!45:45) -> Solar Shape 8 | GC39: =LOOKUP(GC33,Assumptions!40:40,Assumptions!45:45) -> Solar Shape 8 | GD39: =LOOKUP(GD33,Assumptions!40:40,Assumptions!45:45) -> Solar Shape 8 | GE39: =LOOKUP(GE33,Assumptions!40:40,Assumptions!45:45) -> Solar Shape 8 | GF39: =LOOKUP(GF33,Assumptions!40:40,Assumptions!45:45) -> Solar Shape 8 | GG39: =LOOKUP(GG33,Assumptions!40:40,Assumptions!45:45) -> Solar Shape 8 | GH39: =LOOKUP(GH33,Assumptions!40:40,Assumptions!45:45) -> Solar Shape 8 | GI39: =LOOKUP(GI33,Assumptions!40:40,Assumptions!45:45) -> Solar Shape 8 | GJ39: =LOOKUP(GJ33,Assumptions!40:40,Assumptions!45:45) -> Solar Shape 8 | GK39: =LOOKUP(GK33,Assumptions!40:40,Assumptions!45:45) -> Solar Shape 8 | GL39: =LOOKUP(GL33,Assumptions!40:40,Assumptions!45:45) -> Solar Shape 8 | GM39: =LOOKUP(GM33,Assumptions!40:40,Assumptions!45:45) -> Solar Shape 8 | GN39: =LOOKUP(GN33,Assumptions!40:40,Assumptions!45:45) -> Solar Shape 8 | GO39: =LOOKUP(GO33,Assumptions!40:40,Assumptions!45:45) -> Solar Shape 8 | GP39: =LOOKUP(GP33,Assumptions!40:40,Assumptions!45:45) -> Solar Shape 8 | GQ39: =LOOKUP(GQ33,Assumptions!40:40,Assumptions!45:45) -> Solar Shape 8 | GR39: =LOOKUP(GR33,Assumptions!40:40,Assumptions!45:45) -> Solar Shape 1 | GS39: =LOOKUP(GS33,Assumptions!40:40,Assumptions!45:45) -> Solar Shape 1 | GT39: =LOOKUP(GT33,Assumptions!40:40,Assumptions!45:45) -> Solar Shape 1 | GU39: =LOOKUP(GU33,Assumptions!40:40,Assumptions!45:45) -> Solar Shape 1 | GV39: =LOOKUP(GV33,Assumptions!40:40,Assumptions!45:45) -> Solar Shape 1 | GW39: =LOOKUP(GW33,Assumptions!40:40,Assumptions!45:45) -> Solar Shape 1 | GX39: =LOOKUP(GX33,Assumptions!40:40,Assumptions!45:45) -> Solar Shape 1 | GY39: =LOOKUP(GY33,Assumptions!40:40,Assumptions!45:45) -> Solar Shape 1 | GZ39: =LOOKUP(GZ33,Assumptions!40:40,Assumptions!45:45) -> Solar Shape 1 | HA39: =LOOKUP(HA33,Assumptions!40:40,Assumptions!45:45) -> Solar Shape 1 | HB39: =LOOKUP(HB33,Assumptions!40:40,Assumptions!45:45) -> Solar Shape 1 | HC39: =LOOKUP(HC33,Assumptions!40:40,Assumptions!45:45) -> Solar Shape 1 | HD39: =LOOKUP(HD33,Assumptions!40:40,Assumptions!45:45) -> Solar Shape 1 | HE39: =LOOKUP(HE33,Assumptions!40:40,Assumptions!45:45) -> Solar Shape 1 | HF39: =LOOKUP(HF33,Assumptions!40:40,Assumptions!45:45) -> Solar Shape 1 | HG39: =LOOKUP(HG33,Assumptions!40:40,Assumptions!45:45) -> Solar Shape 1 | HH39: =LOOKUP(HH33,Assumptions!40:40,Assumptions!45:45) -> Solar Shape 1 | HI39: =LOOKUP(HI33,Assumptions!40:40,Assumptions!45:45) -> Solar Shape 1 | HJ39: =LOOKUP(HJ33,Assumptions!40:40,Assumptions!45:45) -> Solar Shape 1 | HK39: =LOOKUP(HK33,Assumptions!40:40,Assumptions!45:45) -> Solar Shape 1 | HL39: =LOOKUP(HL33,Assumptions!40:40,Assumptions!45:45) -> Solar Shape 1 | HM39: =LOOKUP(HM33,Assumptions!40:40,Assumptions!45:45) -> Solar Shape 1 | HN39: =LOOKUP(HN33,Assumptions!40:40,Assumptions!45:45) -> Solar Shape 1 | HO39: =LOOKUP(HO33,Assumptions!40:40,Assumptions!45:45) -> Solar Shape 1 | HP39: =LOOKUP(HP33,Assumptions!40:40,Assumptions!45:45) -> Solar Shape 2 | HQ39: =LOOKUP(HQ33,Assumptions!40:40,Assumptions!45:45) -> Solar Shape 2 | HR39: =LOOKUP(HR33,Assumptions!40:40,Assumptions!45:45) -> Solar Shape 2 | HS39: =LOOKUP(HS33,Assumptions!40:40,Assumptions!45:45) -> Solar Shape 2 | HT39: =LOOKUP(HT33,Assumptions!40:40,Assumptions!45:45) -> Solar Shape 2 | HU39: =LOOKUP(HU33,Assumptions!40:40,Assumptions!45:45) -> Solar Shape 2 | HV39: =LOOKUP(HV33,Assumptions!40:40,Assumptions!45:45) -> Solar Shape 2 | HW39: =LOOKUP(HW33,Assumptions!40:40,Assumptions!45:45) -> Solar Shape 2 | HX39: =LOOKUP(HX33,Assumptions!40:40,Assumptions!45:45) -> Solar Shape 2 | HY39: =LOOKUP(HY33,Assumptions!40:40,Assumptions!45:45) -> Solar Shape 2 | HZ39: =LOOKUP(HZ33,Assumptions!40:40,Assumptions!45:45) -> Solar Shape 2 | IA39: =LOOKUP(IA33,Assumptions!40:40,Assumptions!45:45) -> Solar Shape 2 | IB39: =LOOKUP(IB33,Assumptions!40:40,Assumptions!45:45) -> Solar Shape 2 | IC39: =LOOKUP(IC33,Assumptions!40:40,Assumptions!45:45) -> Solar Shape 2 | ID39: =LOOKUP(ID33,Assumptions!40:40,Assumptions!45:45) -> Solar Shape 2 | IE39: =LOOKUP(IE33,Assumptions!40:40,Assumptions!45:45) -> Solar Shape 2 | IF39: =LOOKUP(IF33,Assumptions!40:40,Assumptions!45:45) -> Solar Shape 2 | IG39: =LOOKUP(IG33,Assumptions!40:40,Assumptions!45:45) -> Solar Shape 2 | IH39: =LOOKUP(IH33,Assumptions!40:40,Assumptions!45:45) -> Solar Shape 2 | II39: =LOOKUP(II33,Assumptions!40:40,Assumptions!45:45) -> Solar Shape 2 | IJ39: =LOOKUP(IJ33,Assumptions!40:40,Assumptions!45:45) -> Solar Shape 2 | IK39: =LOOKUP(IK33,Assumptions!40:40,Assumptions!45:45) -> Solar Shape 2 | IL39: =LOOKUP(IL33,Assumptions!40:40,Assumptions!45:45) -> Solar Shape 2 | IM39: =LOOKUP(IM33,Assumptions!40:40,Assumptions!45:45) -> Solar Shape 2 | IN39: =LOOKUP(IN33,Assumptions!40:40,Assumptions!45:45) -> Solar Shape 3 | IO39: =LOOKUP(IO33,Assumptions!40:40,Assumptions!45:45) -> Solar Shape 3 | IP39: =LOOKUP(IP33,Assumptions!40:40,Assumptions!45:45) -> Solar Shape 3 | IQ39: =LOOKUP(IQ33,Assumptions!40:40,Assumptions!45:45) -> Solar Shape 3 | IR39: =LOOKUP(IR33,Assumptions!40:40,Assumptions!45:45) -> Solar Shape 3 | IS39: =LOOKUP(IS33,Assumptions!40:40,Assumptions!45:45) -> Solar Shape 3 | IT39: =LOOKUP(IT33,Assumptions!40:40,Assumptions!45:45) -> Solar Shape 3 | IU39: =LOOKUP(IU33,Assumptions!40:40,Assumptions!45:45) -> Solar Shape 3 | IV39: =LOOKUP(IV33,Assumptions!40:40,Assumptions!45:45) -> Solar Shape 3 | IW39: =LOOKUP(IW33,Assumptions!40:40,Assumptions!45:45) -> Solar Shape 3 | IX39: =LOOKUP(IX33,Assumptions!40:40,Assumptions!45:45) -> Solar Shape 3 | IY39: =LOOKUP(IY33,Assumptions!40:40,Assumptions!45:45) -> Solar Shape 3 | IZ39: =LOOKUP(IZ33,Assumptions!40:40,Assumptions!45:45) -> Solar Shape 3 | JA39: =LOOKUP(JA33,Assumptions!40:40,Assumptions!45:45) -> Solar Shape 3 | JB39: =LOOKUP(JB33,Assumptions!40:40,Assumptions!45:45) -> Solar Shape 3 | JC39: =LOOKUP(JC33,Assumptions!40:40,Assumptions!45:45) -> Solar Shape 3 | JD39: =LOOKUP(JD33,Assumptions!40:40,Assumptions!45:45) -> Solar Shape 3 | JE39: =LOOKUP(JE33,Assumptions!40:40,Assumptions!45:45) -> Solar Shape 3 | JF39: =LOOKUP(JF33,Assumptions!40:40,Assumptions!45:45) -> Solar Shape 3 | JG39: =LOOKUP(JG33,Assumptions!40:40,Assumptions!45:45) -> Solar Shape 3 | JH39: =LOOKUP(JH33,Assumptions!40:40,Assumptions!45:45) -> Solar Shape 3 | JI39: =LOOKUP(JI33,Assumptions!40:40,Assumptions!45:45) -> Solar Shape 3 | JJ39: =LOOKUP(JJ33,Assumptions!40:40,Assumptions!45:45) -> Solar Shape 3 | JK39: =LOOKUP(JK33,Assumptions!40:40,Assumptions!45:45) -> Solar Shape 3 | JL39: =LOOKUP(JL33,Assumptions!40:40,Assumptions!45:45) -> Solar Shape 4 | JM39: =LOOKUP(JM33,Assumptions!40:40,Assumptions!45:45) -> Solar Shape 4 | JN39: =LOOKUP(JN33,Assumptions!40:40,Assumptions!45:45) -> Solar Shape 4 | JO39: =LOOKUP(JO33,Assumptions!40:40,Assumptions!45:45) -> Solar Shape 4 | JP39: =LOOKUP(JP33,Assumptions!40:40,Assumptions!45:45) -> Solar Shape 4 | JQ39: =LOOKUP(JQ33,Assumptions!40:40,Assumptions!45:45) -> Solar Shape 4 | JR39: =LOOKUP(JR33,Assumptions!40:40,Assumptions!45:45) -> Solar Shape 4 | JS39: =LOOKUP(JS33,Assumptions!40:40,Assumptions!45:45) -> Solar Shape 4 | JT39: =LOOKUP(JT33,Assumptions!40:40,Assumptions!45:45) -> Solar Shape 4 | JU39: =LOOKUP(JU33,Assumptions!40:40,Assumptions!45:45) -> Solar Shape 4 | JV39: =LOOKUP(JV33,Assumptions!40:40,Assumptions!45:45) -> Solar Shape 4 | JW39: =LOOKUP(JW33,Assumptions!40:40,Assumptions!45:45) -> Solar Shape 4 | JX39: =LOOKUP(JX33,Assumptions!40:40,Assumptions!45:45) -> Solar Shape 4 | JY39: =LOOKUP(JY33,Assumptions!40:40,Assumptions!45:45) -> Solar Shape 4 | JZ39: =LOOKUP(JZ33,Assumptions!40:40,Assumptions!45:45) -> Solar Shape 4 | KA39: =LOOKUP(KA33,Assumptions!40:40,Assumptions!45:45) -> Solar Shape 4 | KB39: =LOOKUP(KB33,Assumptions!40:40,Assumptions!45:45) -> Solar Shape 4 | KC39: =LOOKUP(KC33,Assumptions!40:40,Assumptions!45:45) -> Solar Shape 4 | KD39: =LOOKUP(KD33,Assumptions!40:40,Assumptions!45:45) -> Solar Shape 4 | KE39: =LOOKUP(KE33,Assumptions!40:40,Assumptions!45:45) -> Solar Shape 4 | KF39: =LOOKUP(KF33,Assumptions!40:40,Assumptions!45:45) -> Solar Shape 4 | KG39: =LOOKUP(KG33,Assumptions!40:40,Assumptions!45:45) -> Solar Shape 4 | KH39: =LOOKUP(KH33,Assumptions!40:40,Assumptions!45:45) -> Solar Shape 4 | KI39: =LOOKUP(KI33,Assumptions!40:40,Assumptions!45:45) -> Solar Shape 4 | KJ39: =LOOKUP(KJ33,Assumptions!40:40,Assumptions!45:45) -> Solar Shape 5 | KK39: =LOOKUP(KK33,Assumptions!40:40,Assumptions!45:45) -> Solar Shape 5 | KL39: =LOOKUP(KL33,Assumptions!40:40,Assumptions!45:45) -> Solar Shape 5 | KM39: =LOOKUP(KM33,Assumptions!40:40,Assumptions!45:45) -> Solar Shape 5 | KN39: =LOOKUP(KN33,Assumptions!40:40,Assumptions!45:45) -> Solar Shape 5 | KO39: =LOOKUP(KO33,Assumptions!40:40,Assumptions!45:45) -> Solar Shape 5 | KP39: =LOOKUP(KP33,Assumptions!40:40,Assumptions!45:45) -> Solar Shape 5 | KQ39: =LOOKUP(KQ33,Assumptions!40:40,Assumptions!45:45) -> Solar Shape 5 | KR39: =LOOKUP(KR33,Assumptions!40:40,Assumptions!45:45) -> Solar Shape 5 | KS39: =LOOKUP(KS33,Assumptions!40:40,Assumptions!45:45) -> Solar Shape 5 | KT39: =LOOKUP(KT33,Assumptions!40:40,Assumptions!45:45) -> Solar Shape 5 | KU39: =LOOKUP(KU33,Assumptions!40:40,Assumptions!45:45) -> Solar Shape 5 | KV39: =LOOKUP(KV33,Assumptions!40:40,Assumptions!45:45) -> Solar Shape 5 | KW39: =LOOKUP(KW33,Assumptions!40:40,Assumptions!45:45) -> Solar Shape 5 | KX39: =LOOKUP(KX33,Assumptions!40:40,Assumptions!45:45) -> Solar Shape 5 | KY39: =LOOKUP(KY33,Assumptions!40:40,Assumptions!45:45) -> Solar Shape 5 | KZ39: =LOOKUP(KZ33,Assumptions!40:40,Assumptions!45:45) -> Solar Shape 5 | LA39: =LOOKUP(LA33,Assumptions!40:40,Assumptions!45:45) -> Solar Shape 5 | LB39: =LOOKUP(LB33,Assumptions!40:40,Assumptions!45:45) -> Solar Shape 5 | LC39: =LOOKUP(LC33,Assumptions!40:40,Assumptions!45:45) -> Solar Shape 5 | LD39: =LOOKUP(LD33,Assumptions!40:40,Assumptions!45:45) -> Solar Shape 5 | LE39: =LOOKUP(LE33,Assumptions!40:40,Assumptions!45:45) -> Solar Shape 5 | LF39: =LOOKUP(LF33,Assumptions!40:40,Assumptions!45:45) -> Solar Shape 5 | LG39: =LOOKUP(LG33,Assumptions!40:40,Assumptions!45:45) -> Solar Shape 5 | LH39: =LOOKUP(LH33,Assumptions!40:40,Assumptions!45:45) -> Solar Shape 6 | LI39: =LOOKUP(LI33,Assumptions!40:40,Assumptions!45:45) -> Solar Shape 6 | LJ39: =LOOKUP(LJ33,Assumptions!40:40,Assumptions!45:45) -> Solar Shape 6 | LK39: =LOOKUP(LK33,Assumptions!40:40,Assumptions!45:45) -> Solar Shape 6 | LL39: =LOOKUP(LL33,Assumptions!40:40,Assumptions!45:45) -> Solar Shape 6 | LM39: =LOOKUP(LM33,Assumptions!40:40,Assumptions!45:45) -> Solar Shape 6 | LN39: =LOOKUP(LN33,Assumptions!40:40,Assumptions!45:45) -> Solar Shape 6 | LO39: =LOOKUP(LO33,Assumptions!40:40,Assumptions!45:45) -> Solar Shape 6 | LP39: =LOOKUP(LP33,Assumptions!40:40,Assumptions!45:45) -> Solar Shape 6 | LQ39: =LOOKUP(LQ33,Assumptions!40:40,Assumptions!45:45) -> Solar Shape 6 | LR39: =LOOKUP(LR33,Assumptions!40:40,Assumptions!45:45) -> Solar Shape 6 | LS39: =LOOKUP(LS33,Assumptions!40:40,Assumptions!45:45) -> Solar Shape 6 | LT39: =LOOKUP(LT33,Assumptions!40:40,Assumptions!45:45) -> Solar Shape 6 | LU39: =LOOKUP(LU33,Assumptions!40:40,Assumptions!45:45) -> Solar Shape 6 | LV39: =LOOKUP(LV33,Assumptions!40:40,Assumptions!45:45) -> Solar Shape 6 | LW39: =LOOKUP(LW33,Assumptions!40:40,Assumptions!45:45) -> Solar Shape 6 | LX39: =LOOKUP(LX33,Assumptions!40:40,Assumptions!45:45) -> Solar Shape 6 | LY39: =LOOKUP(LY33,Assumptions!40:40,Assumptions!45:45) -> Solar Shape 6 | LZ39: =LOOKUP(LZ33,Assumptions!40:40,Assumptions!45:45) -> Solar Shape 6 | MA39: =LOOKUP(MA33,Assumptions!40:40,Assumptions!45:45) -> Solar Shape 6 | MB39: =LOOKUP(MB33,Assumptions!40:40,Assumptions!45:45) -> Solar Shape 6 | MC39: =LOOKUP(MC33,Assumptions!40:40,Assumptions!45:45) -> Solar Shape 6 | MD39: =LOOKUP(MD33,Assumptions!40:40,Assumptions!45:45) -> Solar Shape 6 | ME39: =LOOKUP(ME33,Assumptions!40:40,Assumptions!45:45) -> Solar Shape 6 | MF39: =LOOKUP(MF33,Assumptions!40:40,Assumptions!45:45) -> Solar Shape 7 | MG39: =LOOKUP(MG33,Assumptions!40:40,Assumptions!45:45) -> Solar Shape 7 | MH39: =LOOKUP(MH33,Assumptions!40:40,Assumptions!45:45) -> Solar Shape 7 | MI39: =LOOKUP(MI33,Assumptions!40:40,Assumptions!45:45) -> Solar Shape 7 | MJ39: =LOOKUP(MJ33,Assumptions!40:40,Assumptions!45:45) -> Solar Shape 7 | MK39: =LOOKUP(MK33,Assumptions!40:40,Assumptions!45:45) -> Solar Shape 7 | ML39: =LOOKUP(ML33,Assumptions!40:40,Assumptions!45:45) -> Solar Shape 7 | MM39: =LOOKUP(MM33,Assumptions!40:40,Assumptions!45:45) -> Solar Shape 7 | MN39: =LOOKUP(MN33,Assumptions!40:40,Assumptions!45:45) -> Solar Shape 7 | MO39: =LOOKUP(MO33,Assumptions!40:40,Assumptions!45:45) -> Solar Shape 7 | MP39: =LOOKUP(MP33,Assumptions!40:40,Assumptions!45:45) -> Solar Shape 7 | MQ39: =LOOKUP(MQ33,Assumptions!40:40,Assumptions!45:45) -> Solar Shape 7 | MR39: =LOOKUP(MR33,Assumptions!40:40,Assumptions!45:45) -> Solar Shape 7 | MS39: =LOOKUP(MS33,Assumptions!40:40,Assumptions!45:45) -> Solar Shape 7 | MT39: =LOOKUP(MT33,Assumptions!40:40,Assumptions!45:45) -> Solar Shape 7 | MU39: =LOOKUP(MU33,Assumptions!40:40,Assumptions!45:45) -> Solar Shape 7 | MV39: =LOOKUP(MV33,Assumptions!40:40,Assumptions!45:45) -> Solar Shape 7 | MW39: =LOOKUP(MW33,Assumptions!40:40,Assumptions!45:45) -> Solar Shape 7 | MX39: =LOOKUP(MX33,Assumptions!40:40,Assumptions!45:45) -> Solar Shape 7 | MY39: =LOOKUP(MY33,Assumptions!40:40,Assumptions!45:45) -> Solar Shape 7 | MZ39: =LOOKUP(MZ33,Assumptions!40:40,Assumptions!45:45) -> Solar Shape 7 | NA39: =LOOKUP(NA33,Assumptions!40:40,Assumptions!45:45) -> Solar Shape 7 | NB39: =LOOKUP(NB33,Assumptions!40:40,Assumptions!45:45) -> Solar Shape 7 | NC39: =LOOKUP(NC33,Assumptions!40:40,Assumptions!45:45) -> Solar Shape 7 | ND39: =LOOKUP(ND33,Assumptions!40:40,Assumptions!45:45) -> Solar Shape 8 | NE39: =LOOKUP(NE33,Assumptions!40:40,Assumptions!45:45) -> Solar Shape 8 | NF39: =LOOKUP(NF33,Assumptions!40:40,Assumptions!45:45) -> Solar Shape 8 | NG39: =LOOKUP(NG33,Assumptions!40:40,Assumptions!45:45) -> Solar Shape 8 | NH39: =LOOKUP(NH33,Assumptions!40:40,Assumptions!45:45) -> Solar Shape 8 | NI39: =LOOKUP(NI33,Assumptions!40:40,Assumptions!45:45) -> Solar Shape 8 | NJ39: =LOOKUP(NJ33,Assumptions!40:40,Assumptions!45:45) -> Solar Shape 8 | NK39: =LOOKUP(NK33,Assumptions!40:40,Assumptions!45:45) -> Solar Shape 8 | NL39: =LOOKUP(NL33,Assumptions!40:40,Assumptions!45:45) -> Solar Shape 8 | NM39: =LOOKUP(NM33,Assumptions!40:40,Assumptions!45:45) -> Solar Shape 8 | NN39: =LOOKUP(NN33,Assumptions!40:40,Assumptions!45:45) -> Solar Shape 8 | NO39: =LOOKUP(NO33,Assumptions!40:40,Assumptions!45:45) -> Solar Shape 8 | NP39: =LOOKUP(NP33,Assumptions!40:40,Assumptions!45:45) -> Solar Shape 8 | NQ39: =LOOKUP(NQ33,Assumptions!40:40,Assumptions!45:45) -> Solar Shape 8 | NR39: =LOOKUP(NR33,Assumptions!40:40,Assumptions!45:45) -> Solar Shape 8 | NS39: =LOOKUP(NS33,Assumptions!40:40,Assumptions!45:45) -> Solar Shape 8 | NT39: =LOOKUP(NT33,Assumptions!40:40,Assumptions!45:45) -> Solar Shape 8 | NU39: =LOOKUP(NU33,Assumptions!40:40,Assumptions!45:45) -> Solar Shape 8 | NV39: =LOOKUP(NV33,Assumptions!40:40,Assumptions!45:45) -> Solar Shape 8 | NW39: =LOOKUP(NW33,Assumptions!40:40,Assumptions!45:45) -> Solar Shape 8 | NX39: =LOOKUP(NX33,Assumptions!40:40,Assumptions!45:45) -> Solar Shape 8 | NY39: =LOOKUP(NY33,Assumptions!40:40,Assumptions!45:45) -> Solar Shape 8 | NZ39: =LOOKUP(NZ33,Assumptions!40:40,Assumptions!45:45) -> Solar Shape 8 | OA39: =LOOKUP(OA33,Assumptions!40:40,Assumptions!45:45) -> Solar Shape 8 | OB39: =LOOKUP(OB33,Assumptions!40:40,Assumptions!45:45) -> Solar Shape 1 | OC39: =LOOKUP(OC33,Assumptions!40:40,Assumptions!45:45) -> Solar Shape 1 | OD39: =LOOKUP(OD33,Assumptions!40:40,Assumptions!45:45) -> Solar Shape 1 | OE39: =LOOKUP(OE33,Assumptions!40:40,Assumptions!45:45) -> Solar Shape 1 | OF39: =LOOKUP(OF33,Assumptions!40:40,Assumptions!45:45) -> Solar Shape 1 | OG39: =LOOKUP(OG33,Assumptions!40:40,Assumptions!45:45) -> Solar Shape 1 | OH39: =LOOKUP(OH33,Assumptions!40:40,Assumptions!45:45) -> Solar Shape 1 | OI39: =LOOKUP(OI33,Assumptions!40:40,Assumptions!45:45) -> Solar Shape 1 | OJ39: =LOOKUP(OJ33,Assumptions!40:40,Assumptions!45:45) -> Solar Shape 1 | OK39: =LOOKUP(OK33,Assumptions!40:40,Assumptions!45:45) -> Solar Shape 1 | OL39: =LOOKUP(OL33,Assumptions!40:40,Assumptions!45:45) -> Solar Shape 1 | OM39: =LOOKUP(OM33,Assumptions!40:40,Assumptions!45:45) -> Solar Shape 1 | ON39: =LOOKUP(ON33,Assumptions!40:40,Assumptions!45:45) -> Solar Shape 1 | OO39: =LOOKUP(OO33,Assumptions!40:40,Assumptions!45:45) -> Solar Shape 1 | OP39: =LOOKUP(OP33,Assumptions!40:40,Assumptions!45:45) -> Solar Shape 1 | OQ39: =LOOKUP(OQ33,Assumptions!40:40,Assumptions!45:45) -> Solar Shape 1 | OR39: =LOOKUP(OR33,Assumptions!40:40,Assumptions!45:45) -> Solar Shape 1 | OS39: =LOOKUP(OS33,Assumptions!40:40,Assumptions!45:45) -> Solar Shape 1 | OT39: =LOOKUP(OT33,Assumptions!40:40,Assumptions!45:45) -> Solar Shape 1 | OU39: =LOOKUP(OU33,Assumptions!40:40,Assumptions!45:45) -> Solar Shape 1 | OV39: =LOOKUP(OV33,Assumptions!40:40,Assumptions!45:45) -> Solar Shape 1 | OW39: =LOOKUP(OW33,Assumptions!40:40,Assumptions!45:45) -> Solar Shape 1 | OX39: =LOOKUP(OX33,Assumptions!40:40,Assumptions!45:45) -> Solar Shape 1 | OY39: =LOOKUP(OY33,Assumptions!40:40,Assumptions!45:45) -> Solar Shape 1 | OZ39: =LOOKUP(OZ33,Assumptions!40:40,Assumptions!45:45) -> Solar Shape 2 | PA39: =LOOKUP(PA33,Assumptions!40:40,Assumptions!45:45) -> Solar Shape 2 | PB39: =LOOKUP(PB33,Assumptions!40:40,Assumptions!45:45) -> Solar Shape 2 | PC39: =LOOKUP(PC33,Assumptions!40:40,Assumptions!45:45) -> Solar Shape 2 | PD39: =LOOKUP(PD33,Assumptions!40:40,Assumptions!45:45) -> Solar Shape 2 | PE39: =LOOKUP(PE33,Assumptions!40:40,Assumptions!45:45) -> Solar Shape 2 | PF39: =LOOKUP(PF33,Assumptions!40:40,Assumptions!45:45) -> Solar Shape 2 | PG39: =LOOKUP(PG33,Assumptions!40:40,Assumptions!45:45) -> Solar Shape 2 | PH39: =LOOKUP(PH33,Assumptions!40:40,Assumptions!45:45) -> Solar Shape 2 | PI39: =LOOKUP(PI33,Assumptions!40:40,Assumptions!45:45) -> Solar Shape 2 | PJ39: =LOOKUP(PJ33,Assumptions!40:40,Assumptions!45:45) -> Solar Shape 2 | PK39: =LOOKUP(PK33,Assumptions!40:40,Assumptions!45:45) -> Solar Shape 2 | PL39: =LOOKUP(PL33,Assumptions!40:40,Assumptions!45:45) -> Solar Shape 2 | PM39: =LOOKUP(PM33,Assumptions!40:40,Assumptions!45:45) -> Solar Shape 2 | PN39: =LOOKUP(PN33,Assumptions!40:40,Assumptions!45:45) -> Solar Shape 2 | PO39: =LOOKUP(PO33,Assumptions!40:40,Assumptions!45:45) -> Solar Shape 2 | PP39: =LOOKUP(PP33,Assumptions!40:40,Assumptions!45:45) -> Solar Shape 2 | PQ39: =LOOKUP(PQ33,Assumptions!40:40,Assumptions!45:45) -> Solar Shape 2 | PR39: =LOOKUP(PR33,Assumptions!40:40,Assumptions!45:45) -> Solar Shape 2 | PS39: =LOOKUP(PS33,Assumptions!40:40,Assumptions!45:45) -> Solar Shape 2 | PT39: =LOOKUP(PT33,Assumptions!40:40,Assumptions!45:45) -> Solar Shape 2 | PU39: =LOOKUP(PU33,Assumptions!40:40,Assumptions!45:45) -> Solar Shape 2 | PV39: =LOOKUP(PV33,Assumptions!40:40,Assumptions!45:45) -> Solar Shape 2 | PW39: =LOOKUP(PW33,Assumptions!40:40,Assumptions!45:45) -> Solar Shape 2 | PX39: =LOOKUP(PX33,Assumptions!40:40,Assumptions!45:45) -> Solar Shape 3 | PY39: =LOOKUP(PY33,Assumptions!40:40,Assumptions!45:45) -> Solar Shape 3 | PZ39: =LOOKUP(PZ33,Assumptions!40:40,Assumptions!45:45) -> Solar Shape 3 | QA39: =LOOKUP(QA33,Assumptions!40:40,Assumptions!45:45) -> Solar Shape 3 | QB39: =LOOKUP(QB33,Assumptions!40:40,Assumptions!45:45) -> Solar Shape 3 | QC39: =LOOKUP(QC33,Assumptions!40:40,Assumptions!45:45) -> Solar Shape 3 | QD39: =LOOKUP(QD33,Assumptions!40:40,Assumptions!45:45) -> Solar Shape 3 | QE39: =LOOKUP(QE33,Assumptions!40:40,Assumptions!45:45) -> Solar Shape 3 | QF39: =LOOKUP(QF33,Assumptions!40:40,Assumptions!45:45) -> Solar Shape 3 | QG39: =LOOKUP(QG33,Assumptions!40:40,Assumptions!45:45) -> Solar Shape 3 | QH39: =LOOKUP(QH33,Assumptions!40:40,Assumptions!45:45) -> Solar Shape 3 | QI39: =LOOKUP(QI33,Assumptions!40:40,Assumptions!45:45) -> Solar Shape 3 | QJ39: =LOOKUP(QJ33,Assumptions!40:40,Assumptions!45:45) -> Solar Shape 3 | QK39: =LOOKUP(QK33,Assumptions!40:40,Assumptions!45:45) -> Solar Shape 3 | QL39: =LOOKUP(QL33,Assumptions!40:40,Assumptions!45:45) -> Solar Shape 3 | QM39: =LOOKUP(QM33,Assumptions!40:40,Assumptions!45:45) -> Solar Shape 3 | QN39: =LOOKUP(QN33,Assumptions!40:40,Assumptions!45:45) -> Solar Shape 3 | QO39: =LOOKUP(QO33,Assumptions!40:40,Assumptions!45:45) -> Solar Shape 3 | QP39: =LOOKUP(QP33,Assumptions!40:40,Assumptions!45:45) -> Solar Shape 3 | QQ39: =LOOKUP(QQ33,Assumptions!40:40,Assumptions!45:45) -> Solar Shape 3 | QR39: =LOOKUP(QR33,Assumptions!40:40,Assumptions!45:45) -> Solar Shape 3 | QS39: =LOOKUP(QS33,Assumptions!40:40,Assumptions!45:45) -> Solar Shape 3 | QT39: =LOOKUP(QT33,Assumptions!40:40,Assumptions!45:45) -> Solar Shape 3 | QU39: =LOOKUP(QU33,Assumptions!40:40,Assumptions!45:45) -> Solar Shape 3 | QV39: =LOOKUP(QV33,Assumptions!40:40,Assumptions!45:45) -> Solar Shape 4 | QW39: =LOOKUP(QW33,Assumptions!40:40,Assumptions!45:45) -> Solar Shape 4 | QX39: =LOOKUP(QX33,Assumptions!40:40,Assumptions!45:45) -> Solar Shape 4 | QY39: =LOOKUP(QY33,Assumptions!40:40,Assumptions!45:45) -> Solar Shape 4 | QZ39: =LOOKUP(QZ33,Assumptions!40:40,Assumptions!45:45) -> Solar Shape 4 | RA39: =LOOKUP(RA33,Assumptions!40:40,Assumptions!45:45) -> Solar Shape 4 | RB39: =LOOKUP(RB33,Assumptions!40:40,Assumptions!45:45) -> Solar Shape 4 | RC39: =LOOKUP(RC33,Assumptions!40:40,Assumptions!45:45) -> Solar Shape 4 | RD39: =LOOKUP(RD33,Assumptions!40:40,Assumptions!45:45) -> Solar Shape 4 | RE39: =LOOKUP(RE33,Assumptions!40:40,Assumptions!45:45) -> Solar Shape 4 | RF39: =LOOKUP(RF33,Assumptions!40:40,Assumptions!45:45) -> Solar Shape 4 | RG39: =LOOKUP(RG33,Assumptions!40:40,Assumptions!45:45) -> Solar Shape 4 | RH39: =LOOKUP(RH33,Assumptions!40:40,Assumptions!45:45) -> Solar Shape 4 | RI39: =LOOKUP(RI33,Assumptions!40:40,Assumptions!45:45) -> Solar Shape 4 | RJ39: =LOOKUP(RJ33,Assumptions!40:40,Assumptions!45:45) -> Solar Shape 4 | RK39: =LOOKUP(RK33,Assumptions!40:40,Assumptions!45:45) -> Solar Shape 4 | RL39: =LOOKUP(RL33,Assumptions!40:40,Assumptions!45:45) -> Solar Shape 4 | RM39: =LOOKUP(RM33,Assumptions!40:40,Assumptions!45:45) -> Solar Shape 4 | RN39: =LOOKUP(RN33,Assumptions!40:40,Assumptions!45:45) -> Solar Shape 4 | RO39: =LOOKUP(RO33,Assumptions!40:40,Assumptions!45:45) -> Solar Shape 4 | RP39: =LOOKUP(RP33,Assumptions!40:40,Assumptions!45:45) -> Solar Shape 4 | RQ39: =LOOKUP(RQ33,Assumptions!40:40,Assumptions!45:45) -> Solar Shape 4 | RR39: =LOOKUP(RR33,Assumptions!40:40,Assumptions!45:45) -> Solar Shape 4 | RS39: =LOOKUP(RS33,Assumptions!40:40,Assumptions!45:45) -> Solar Shape 4 | RT39: =LOOKUP(RT33,Assumptions!40:40,Assumptions!45:45) -> Solar Shape 5 | RU39: =LOOKUP(RU33,Assumptions!40:40,Assumptions!45:45) -> Solar Shape 5 | RV39: =LOOKUP(RV33,Assumptions!40:40,Assumptions!45:45) -> Solar Shape 5 | RW39: =LOOKUP(RW33,Assumptions!40:40,Assumptions!45:45) -> Solar Shape 5 | RX39: =LOOKUP(RX33,Assumptions!40:40,Assumptions!45:45) -> Solar Shape 5 | RY39: =LOOKUP(RY33,Assumptions!40:40,Assumptions!45:45) -> Solar Shape 5 | RZ39: =LOOKUP(RZ33,Assumptions!40:40,Assumptions!45:45) -> Solar Shape 5 | SA39: =LOOKUP(SA33,Assumptions!40:40,Assumptions!45:45) -> Solar Shape 5 | SB39: =LOOKUP(SB33,Assumptions!40:40,Assumptions!45:45) -> Solar Shape 5 | SC39: =LOOKUP(SC33,Assumptions!40:40,Assumptions!45:45) -> Solar Shape 5 | SD39: =LOOKUP(SD33,Assumptions!40:40,Assumptions!45:45) -> Solar Shape 5 | SE39: =LOOKUP(SE33,Assumptions!40:40,Assumptions!45:45) -> Solar Shape 5 | SF39: =LOOKUP(SF33,Assumptions!40:40,Assumptions!45:45) -> Solar Shape 5 | SG39: =LOOKUP(SG33,Assumptions!40:40,Assumptions!45:45) -> Solar Shape 5 | SH39: =LOOKUP(SH33,Assumptions!40:40,Assumptions!45:45) -> Solar Shape 5 | SI39: =LOOKUP(SI33,Assumptions!40:40,Assumptions!45:45) -> Solar Shape 5 | SJ39: =LOOKUP(SJ33,Assumptions!40:40,Assumptions!45:45) -> Solar Shape 5 | SK39: =LOOKUP(SK33,Assumptions!40:40,Assumptions!45:45) -> Solar Shape 5 | SL39: =LOOKUP(SL33,Assumptions!40:40,Assumptions!45:45) -> Solar Shape 5 | SM39: =LOOKUP(SM33,Assumptions!40:40,Assumptions!45:45) -> Solar Shape 5 | SN39: =LOOKUP(SN33,Assumptions!40:40,Assumptions!45:45) -> Solar Shape 5 | SO39: =LOOKUP(SO33,Assumptions!40:40,Assumptions!45:45) -> Solar Shape 5 | SP39: =LOOKUP(SP33,Assumptions!40:40,Assumptions!45:45) -> Solar Shape 5 | SQ39: =LOOKUP(SQ33,Assumptions!40:40,Assumptions!45:45) -> Solar Shape 5 | SR39: =LOOKUP(SR33,Assumptions!40:40,Assumptions!45:45) -> Solar Shape 6 | SS39: =LOOKUP(SS33,Assumptions!40:40,Assumptions!45:45) -> Solar Shape 6 | ST39: =LOOKUP(ST33,Assumptions!40:40,Assumptions!45:45) -> Solar Shape 6 | SU39: =LOOKUP(SU33,Assumptions!40:40,Assumptions!45:45) -> Solar Shape 6 | SV39: =LOOKUP(SV33,Assumptions!40:40,Assumptions!45:45) -> Solar Shape 6 | SW39: =LOOKUP(SW33,Assumptions!40:40,Assumptions!45:45) -> Solar Shape 6 | SX39: =LOOKUP(SX33,Assumptions!40:40,Assumptions!45:45) -> Solar Shape 6 | SY39: =LOOKUP(SY33,Assumptions!40:40,Assumptions!45:45) -> Solar Shape 6 | SZ39: =LOOKUP(SZ33,Assumptions!40:40,Assumptions!45:45) -> Solar Shape 6 | TA39: =LOOKUP(TA33,Assumptions!40:40,Assumptions!45:45) -> Solar Shape 6 | TB39: =LOOKUP(TB33,Assumptions!40:40,Assumptions!45:45) -> Solar Shape 6 | TC39: =LOOKUP(TC33,Assumptions!40:40,Assumptions!45:45) -> Solar Shape 6 | TD39: =LOOKUP(TD33,Assumptions!40:40,Assumptions!45:45) -> Solar Shape 6 | TE39: =LOOKUP(TE33,Assumptions!40:40,Assumptions!45:45) -> Solar Shape 6 | TF39: =LOOKUP(TF33,Assumptions!40:40,Assumptions!45:45) -> Solar Shape 6 | TG39: =LOOKUP(TG33,Assumptions!40:40,Assumptions!45:45) -> Solar Shape 6 | TH39: =LOOKUP(TH33,Assumptions!40:40,Assumptions!45:45) -> Solar Shape 6 | TI39: =LOOKUP(TI33,Assumptions!40:40,Assumptions!45:45) -> Solar Shape 6 | TJ39: =LOOKUP(TJ33,Assumptions!40:40,Assumptions!45:45) -> Solar Shape 6 | TK39: =LOOKUP(TK33,Assumptions!40:40,Assumptions!45:45) -> Solar Shape 6 | TL39: =LOOKUP(TL33,Assumptions!40:40,Assumptions!45:45) -> Solar Shape 6 | TM39: =LOOKUP(TM33,Assumptions!40:40,Assumptions!45:45) -> Solar Shape 6 | TN39: =LOOKUP(TN33,Assumptions!40:40,Assumptions!45:45) -> Solar Shape 6 | TO39: =LOOKUP(TO33,Assumptions!40:40,Assumptions!45:45) -> Solar Shape 6 | TP39: =LOOKUP(TP33,Assumptions!40:40,Assumptions!45:45) -> Solar Shape 7 | TQ39: =LOOKUP(TQ33,Assumptions!40:40,Assumptions!45:45) -> Solar Shape 7 | TR39: =LOOKUP(TR33,Assumptions!40:40,Assumptions!45:45) -> Solar Shape 7 | TS39: =LOOKUP(TS33,Assumptions!40:40,Assumptions!45:45) -> Solar Shape 7 | TT39: =LOOKUP(TT33,Assumptions!40:40,Assumptions!45:45) -> Solar Shape 7 | TU39: =LOOKUP(TU33,Assumptions!40:40,Assumptions!45:45) -> Solar Shape 7 | TV39: =LOOKUP(TV33,Assumptions!40:40,Assumptions!45:45) -> Solar Shape 7 | TW39: =LOOKUP(TW33,Assumptions!40:40,Assumptions!45:45) -> Solar Shape 7 | TX39: =LOOKUP(TX33,Assumptions!40:40,Assumptions!45:45) -> Solar Shape 7 | TY39: =LOOKUP(TY33,Assumptions!40:40,Assumptions!45:45) -> Solar Shape 7 | TZ39: =LOOKUP(TZ33,Assumptions!40:40,Assumptions!45:45) -> Solar Shape 7 | UA39: =LOOKUP(UA33,Assumptions!40:40,Assumptions!45:45) -> Solar Shape 7 | UB39: =LOOKUP(UB33,Assumptions!40:40,Assumptions!45:45) -> Solar Shape 7 | UC39: =LOOKUP(UC33,Assumptions!40:40,Assumptions!45:45) -> Solar Shape 7 | UD39: =LOOKUP(UD33,Assumptions!40:40,Assumptions!45:45) -> Solar Shape 7 | UE39: =LOOKUP(UE33,Assumptions!40:40,Assumptions!45:45) -> Solar Shape 7 | UF39: =LOOKUP(UF33,Assumptions!40:40,Assumptions!45:45) -> Solar Shape 7 | UG39: =LOOKUP(UG33,Assumptions!40:40,Assumptions!45:45) -> Solar Shape 7 | UH39: =LOOKUP(UH33,Assumptions!40:40,Assumptions!45:45) -> Solar Shape 7 | UI39: =LOOKUP(UI33,Assumptions!40:40,Assumptions!45:45) -> Solar Shape 7 | UJ39: =LOOKUP(UJ33,Assumptions!40:40,Assumptions!45:45) -> Solar Shape 7 | UK39: =LOOKUP(UK33,Assumptions!40:40,Assumptions!45:45) -> Solar Shape 7 | UL39: =LOOKUP(UL33,Assumptions!40:40,Assumptions!45:45) -> Solar Shape 7 | UM39: =LOOKUP(UM33,Assumptions!40:40,Assumptions!45:45) -> Solar Shape 7 | UN39: =LOOKUP(UN33,Assumptions!40:40,Assumptions!45:45) -> Solar Shape 8 | UO39: =LOOKUP(UO33,Assumptions!40:40,Assumptions!45:45) -> Solar Shape 8 | UP39: =LOOKUP(UP33,Assumptions!40:40,Assumptions!45:45) -> Solar Shape 8 | UQ39: =LOOKUP(UQ33,Assumptions!40:40,Assumptions!45:45) -> Solar Shape 8 | UR39: =LOOKUP(UR33,Assumptions!40:40,Assumptions!45:45) -> Solar Shape 8 | US39: =LOOKUP(US33,Assumptions!40:40,Assumptions!45:45) -> Solar Shape 8 | UT39: =LOOKUP(UT33,Assumptions!40:40,Assumptions!45:45) -> Solar Shape 8 | UU39: =LOOKUP(UU33,Assumptions!40:40,Assumptions!45:45) -> Solar Shape 8 | UV39: =LOOKUP(UV33,Assumptions!40:40,Assumptions!45:45) -> Solar Shape 8 | UW39: =LOOKUP(UW33,Assumptions!40:40,Assumptions!45:45) -> Solar Shape 8 | UX39: =LOOKUP(UX33,Assumptions!40:40,Assumptions!45:45) -> Solar Shape 8 | UY39: =LOOKUP(UY33,Assumptions!40:40,Assumptions!45:45) -> Solar Shape 8 | UZ39: =LOOKUP(UZ33,Assumptions!40:40,Assumptions!45:45) -> Solar Shape 8 | VA39: =LOOKUP(VA33,Assumptions!40:40,Assumptions!45:45) -> Solar Shape 8 | VB39: =LOOKUP(VB33,Assumptions!40:40,Assumptions!45:45) -> Solar Shape 8 | VC39: =LOOKUP(VC33,Assumptions!40:40,Assumptions!45:45) -> Solar Shape 8 | VD39: =LOOKUP(VD33,Assumptions!40:40,Assumptions!45:45) -> Solar Shape 8 | VE39: =LOOKUP(VE33,Assumptions!40:40,Assumptions!45:45) -> Solar Shape 8 | VF39: =LOOKUP(VF33,Assumptions!40:40,Assumptions!45:45) -> Solar Shape 8 | VG39: =LOOKUP(VG33,Assumptions!40:40,Assumptions!45:45) -> Solar Shape 8 | VH39: =LOOKUP(VH33,Assumptions!40:40,Assumptions!45:45) -> Solar Shape 8 | VI39: =LOOKUP(VI33,Assumptions!40:40,Assumptions!45:45) -> Solar Shape 8 | VJ39: =LOOKUP(VJ33,Assumptions!40:40,Assumptions!45:45) -> Solar Shape 8 | VK39: =LOOKUP(VK33,Assumptions!40:40,Assumptions!45:45) -> Solar Shape 8 | VL39: =LOOKUP(VL33,Assumptions!40:40,Assumptions!45:45) -> Solar Shape 1 | VM39: =LOOKUP(VM33,Assumptions!40:40,Assumptions!45:45) -> Solar Shape 1 | VN39: =LOOKUP(VN33,Assumptions!40:40,Assumptions!45:45) -> Solar Shape 1 | VO39: =LOOKUP(VO33,Assumptions!40:40,Assumptions!45:45) -> Solar Shape 1 | VP39: =LOOKUP(VP33,Assumptions!40:40,Assumptions!45:45) -> Solar Shape 1 | VQ39: =LOOKUP(VQ33,Assumptions!40:40,Assumptions!45:45) -> Solar Shape 1 | VR39: =LOOKUP(VR33,Assumptions!40:40,Assumptions!45:45) -> Solar Shape 1 | VS39: =LOOKUP(VS33,Assumptions!40:40,Assumptions!45:45) -> Solar Shape 1 | VT39: =LOOKUP(VT33,Assumptions!40:40,Assumptions!45:45) -> Solar Shape 1 | VU39: =LOOKUP(VU33,Assumptions!40:40,Assumptions!45:45) -> Solar Shape 1 | VV39: =LOOKUP(VV33,Assumptions!40:40,Assumptions!45:45) -> Solar Shape 1 | VW39: =LOOKUP(VW33,Assumptions!40:40,Assumptions!45:45) -> Solar Shape 1 | VX39: =LOOKUP(VX33,Assumptions!40:40,Assumptions!45:45) -> Solar Shape 1 | VY39: =LOOKUP(VY33,Assumptions!40:40,Assumptions!45:45) -> Solar Shape 1 | VZ39: =LOOKUP(VZ33,Assumptions!40:40,Assumptions!45:45) -> Solar Shape 1 | WA39: =LOOKUP(WA33,Assumptions!40:40,Assumptions!45:45) -> Solar Shape 1 | WB39: =LOOKUP(WB33,Assumptions!40:40,Assumptions!45:45) -> Solar Shape 1 | WC39: =LOOKUP(WC33,Assumptions!40:40,Assumptions!45:45) -> Solar Shape 1 | WD39: =LOOKUP(WD33,Assumptions!40:40,Assumptions!45:45) -> Solar Shape 1 | WE39: =LOOKUP(WE33,Assumptions!40:40,Assumptions!45:45) -> Solar Shape 1 | WF39: =LOOKUP(WF33,Assumptions!40:40,Assumptions!45:45) -> Solar Shape 1 | WG39: =LOOKUP(WG33,Assumptions!40:40,Assumptions!45:45) -> Solar Shape 1 | WH39: =LOOKUP(WH33,Assumptions!40:40,Assumptions!45:45) -> Solar Shape 1 | WI39: =LOOKUP(WI33,Assumptions!40:40,Assumptions!45:45) -> Solar Shape 1 | WJ39: =LOOKUP(WJ33,Assumptions!40:40,Assumptions!45:45) -> Solar Shape 2 | WK39: =LOOKUP(WK33,Assumptions!40:40,Assumptions!45:45) -> Solar Shape 2 | WL39: =LOOKUP(WL33,Assumptions!40:40,Assumptions!45:45) -> Solar Shape 2 | WM39: =LOOKUP(WM33,Assumptions!40:40,Assumptions!45:45) -> Solar Shape 2 | WN39: =LOOKUP(WN33,Assumptions!40:40,Assumptions!45:45) -> Solar Shape 2 | WO39: =LOOKUP(WO33,Assumptions!40:40,Assumptions!45:45) -> Solar Shape 2 | WP39: =LOOKUP(WP33,Assumptions!40:40,Assumptions!45:45) -> Solar Shape 2 | WQ39: =LOOKUP(WQ33,Assumptions!40:40,Assumptions!45:45) -> Solar Shape 2 | WR39: =LOOKUP(WR33,Assumptions!40:40,Assumptions!45:45) -> Solar Shape 2 | WS39: =LOOKUP(WS33,Assumptions!40:40,Assumptions!45:45) -> Solar Shape 2 | WT39: =LOOKUP(WT33,Assumptions!40:40,Assumptions!45:45) -> Solar Shape 2 | WU39: =LOOKUP(WU33,Assumptions!40:40,Assumptions!45:45) -> Solar Shape 2 | WV39: =LOOKUP(WV33,Assumptions!40:40,Assumptions!45:45) -> Solar Shape 2 | WW39: =LOOKUP(WW33,Assumptions!40:40,Assumptions!45:45) -> Solar Shape 2 | WX39: =LOOKUP(WX33,Assumptions!40:40,Assumptions!45:45) -> Solar Shape 2 | WY39: =LOOKUP(WY33,Assumptions!40:40,Assumptions!45:45) -> Solar Shape 2 | WZ39: =LOOKUP(WZ33,Assumptions!40:40,Assumptions!45:45) -> Solar Shape 2 | XA39: =LOOKUP(XA33,Assumptions!40:40,Assumptions!45:45) -> Solar Shape 2 | XB39: =LOOKUP(XB33,Assumptions!40:40,Assumptions!45:45) -> Solar Shape 2 | XC39: =LOOKUP(XC33,Assumptions!40:40,Assumptions!45:45) -> Solar Shape 2 | XD39: =LOOKUP(XD33,Assumptions!40:40,Assumptions!45:45) -> Solar Shape 2 | XE39: =LOOKUP(XE33,Assumptions!40:40,Assumptions!45:45) -> Solar Shape 2 | XF39: =LOOKUP(XF33,Assumptions!40:40,Assumptions!45:45) -> Solar Shape 2 | XG39: =LOOKUP(XG33,Assumptions!40:40,Assumptions!45:45) -> Solar Shape 2 | XH39: =LOOKUP(XH33,Assumptions!40:40,Assumptions!45:45) -> Solar Shape 3 | XI39: =LOOKUP(XI33,Assumptions!40:40,Assumptions!45:45) -> Solar Shape 3 | XJ39: =LOOKUP(XJ33,Assumptions!40:40,Assumptions!45:45) -> Solar Shape 3 | XK39: =LOOKUP(XK33,Assumptions!40:40,Assumptions!45:45) -> Solar Shape 3 | XL39: =LOOKUP(XL33,Assumptions!40:40,Assumptions!45:45) -> Solar Shape 3 | XM39: =LOOKUP(XM33,Assumptions!40:40,Assumptions!45:45) -> Solar Shape 3 | XN39: =LOOKUP(XN33,Assumptions!40:40,Assumptions!45:45) -> Solar Shape 3 | XO39: =LOOKUP(XO33,Assumptions!40:40,Assumptions!45:45) -> Solar Shape 3 | XP39: =LOOKUP(XP33,Assumptions!40:40,Assumptions!45:45) -> Solar Shape 3 | XQ39: =LOOKUP(XQ33,Assumptions!40:40,Assumptions!45:45) -> Solar Shape 3 | XR39: =LOOKUP(XR33,Assumptions!40:40,Assumptions!45:45) -> Solar Shape 3 | XS39: =LOOKUP(XS33,Assumptions!40:40,Assumptions!45:45) -> Solar Shape 3 | XT39: =LOOKUP(XT33,Assumptions!40:40,Assumptions!45:45) -> Solar Shape 3 | XU39: =LOOKUP(XU33,Assumptions!40:40,Assumptions!45:45) -> Solar Shape 3 | XV39: =LOOKUP(XV33,Assumptions!40:40,Assumptions!45:45) -> Solar Shape 3 | XW39: =LOOKUP(XW33,Assumptions!40:40,Assumptions!45:45) -> Solar Shape 3 | XX39: =LOOKUP(XX33,Assumptions!40:40,Assumptions!45:45) -> Solar Shape 3 | XY39: =LOOKUP(XY33,Assumptions!40:40,Assumptions!45:45) -> Solar Shape 3 | XZ39: =LOOKUP(XZ33,Assumptions!40:40,Assumptions!45:45) -> Solar Shape 3 | YA39: =LOOKUP(YA33,Assumptions!40:40,Assumptions!45:45) -> Solar Shape 3 | YB39: =LOOKUP(YB33,Assumptions!40:40,Assumptions!45:45) -> Solar Shape 3 | YC39: =LOOKUP(YC33,Assumptions!40:40,Assumptions!45:45) -> Solar Shape 3 | YD39: =LOOKUP(YD33,Assumptions!40:40,Assumptions!45:45) -> Solar Shape 3 | YE39: =LOOKUP(YE33,Assumptions!40:40,Assumptions!45:45) -> Solar Shape 3 | YF39: =LOOKUP(YF33,Assumptions!40:40,Assumptions!45:45) -> Solar Shape 4 | YG39: =LOOKUP(YG33,Assumptions!40:40,Assumptions!45:45) -> Solar Shape 4 | YH39: =LOOKUP(YH33,Assumptions!40:40,Assumptions!45:45) -> Solar Shape 4 | YI39: =LOOKUP(YI33,Assumptions!40:40,Assumptions!45:45) -> Solar Shape 4 | YJ39: =LOOKUP(YJ33,Assumptions!40:40,Assumptions!45:45) -> Solar Shape 4 | YK39: =LOOKUP(YK33,Assumptions!40:40,Assumptions!45:45) -> Solar Shape 4 | YL39: =LOOKUP(YL33,Assumptions!40:40,Assumptions!45:45) -> Solar Shape 4 | YM39: =LOOKUP(YM33,Assumptions!40:40,Assumptions!45:45) -> Solar Shape 4 | YN39: =LOOKUP(YN33,Assumptions!40:40,Assumptions!45:45) -> Solar Shape 4 | YO39: =LOOKUP(YO33,Assumptions!40:40,Assumptions!45:45) -> Solar Shape 4 | YP39: =LOOKUP(YP33,Assumptions!40:40,Assumptions!45:45) -> Solar Shape 4 | YQ39: =LOOKUP(YQ33,Assumptions!40:40,Assumptions!45:45) -> Solar Shape 4 | YR39: =LOOKUP(YR33,Assumptions!40:40,Assumptions!45:45) -> Solar Shape 4 | YS39: =LOOKUP(YS33,Assumptions!40:40,Assumptions!45:45) -> Solar Shape 4 | YT39: =LOOKUP(YT33,Assumptions!40:40,Assumptions!45:45) -> Solar Shape 4 | YU39: =LOOKUP(YU33,Assumptions!40:40,Assumptions!45:45) -> Solar Shape 4 | YV39: =LOOKUP(YV33,Assumptions!40:40,Assumptions!45:45) -> Solar Shape 4 | YW39: =LOOKUP(YW33,Assumptions!40:40,Assumptions!45:45) -> Solar Shape 4 | YX39: =LOOKUP(YX33,Assumptions!40:40,Assumptions!45:45) -> Solar Shape 4 | YY39: =LOOKUP(YY33,Assumptions!40:40,Assumptions!45:45) -> Solar Shape 4 | YZ39: =LOOKUP(YZ33,Assumptions!40:40,Assumptions!45:45) -> Solar Shape 4 | ZA39: =LOOKUP(ZA33,Assumptions!40:40,Assumptions!45:45) -> Solar Shape 4 | ZB39: =LOOKUP(ZB33,Assumptions!40:40,Assumptions!45:45) -> Solar Shape 4 | ZC39: =LOOKUP(ZC33,Assumptions!40:40,Assumptions!45:45) -> Solar Shape 4 | ZD39: =LOOKUP(ZD33,Assumptions!40:40,Assumptions!45:45) -> Solar Shape 5 | ZE39: =LOOKUP(ZE33,Assumptions!40:40,Assumptions!45:45) -> Solar Shape 5 | ZF39: =LOOKUP(ZF33,Assumptions!40:40,Assumptions!45:45) -> Solar Shape 5 | ZG39: =LOOKUP(ZG33,Assumptions!40:40,Assumptions!45:45) -> Solar Shape 5 | ZH39: =LOOKUP(ZH33,Assumptions!40:40,Assumptions!45:45) -> Solar Shape 5 | ZI39: =LOOKUP(ZI33,Assumptions!40:40,Assumptions!45:45) -> Solar Shape 5 | ZJ39: =LOOKUP(ZJ33,Assumptions!40:40,Assumptions!45:45) -> Solar Shape 5 | ZK39: =LOOKUP(ZK33,Assumptions!40:40,Assumptions!45:45) -> Solar Shape 5 | ZL39: =LOOKUP(ZL33,Assumptions!40:40,Assumptions!45:45) -> Solar Shape 5 | ZM39: =LOOKUP(ZM33,Assumptions!40:40,Assumptions!45:45) -> Solar Shape 5 | ZN39: =LOOKUP(ZN33,Assumptions!40:40,Assumptions!45:45) -> Solar Shape 5 | ZO39: =LOOKUP(ZO33,Assumptions!40:40,Assumptions!45:45) -> Solar Shape 5 | ZP39: =LOOKUP(ZP33,Assumptions!40:40,Assumptions!45:45) -> Solar Shape 5 | ZQ39: =LOOKUP(ZQ33,Assumptions!40:40,Assumptions!45:45) -> Solar Shape 5 | ZR39: =LOOKUP(ZR33,Assumptions!40:40,Assumptions!45:45) -> Solar Shape 5 | ZS39: =LOOKUP(ZS33,Assumptions!40:40,Assumptions!45:45) -> Solar Shape 5 | ZT39: =LOOKUP(ZT33,Assumptions!40:40,Assumptions!45:45) -> Solar Shape 5 | ZU39: =LOOKUP(ZU33,Assumptions!40:40,Assumptions!45:45) -> Solar Shape 5 | ZV39: =LOOKUP(ZV33,Assumptions!40:40,Assumptions!45:45) -> Solar Shape 5 | ZW39: =LOOKUP(ZW33,Assumptions!40:40,Assumptions!45:45) -> Solar Shape 5 | ZX39: =LOOKUP(ZX33,Assumptions!40:40,Assumptions!45:45) -> Solar Shape 5 | ZY39: =LOOKUP(ZY33,Assumptions!40:40,Assumptions!45:45) -> Solar Shape 5 | ZZ39: =LOOKUP(ZZ33,Assumptions!40:40,Assumptions!45:45) -> Solar Shape 5 | AAA39: =LOOKUP(AAA33,Assumptions!40:40,Assumptions!45:45) -> Solar Shape 5 | AAB39: =LOOKUP(AAB33,Assumptions!40:40,Assumptions!45:45) -> Solar Shape 6 | AAC39: =LOOKUP(AAC33,Assumptions!40:40,Assumptions!45:45) -> Solar Shape 6 | AAD39: =LOOKUP(AAD33,Assumptions!40:40,Assumptions!45:45) -> Solar Shape 6 | AAE39: =LOOKUP(AAE33,Assumptions!40:40,Assumptions!45:45) -> Solar Shape 6 | AAF39: =LOOKUP(AAF33,Assumptions!40:40,Assumptions!45:45) -> Solar Shape 6 | AAG39: =LOOKUP(AAG33,Assumptions!40:40,Assumptions!45:45) -> Solar Shape 6 | AAH39: =LOOKUP(AAH33,Assumptions!40:40,Assumptions!45:45) -> Solar Shape 6 | AAI39: =LOOKUP(AAI33,Assumptions!40:40,Assumptions!45:45) -> Solar Shape 6 | AAJ39: =LOOKUP(AAJ33,Assumptions!40:40,Assumptions!45:45) -> Solar Shape 6 | AAK39: =LOOKUP(AAK33,Assumptions!40:40,Assumptions!45:45) -> Solar Shape 6 | AAL39: =LOOKUP(AAL33,Assumptions!40:40,Assumptions!45:45) -> Solar Shape 6 | AAM39: =LOOKUP(AAM33,Assumptions!40:40,Assumptions!45:45) -> Solar Shape 6 | AAN39: =LOOKUP(AAN33,Assumptions!40:40,Assumptions!45:45) -> Solar Shape 6 | AAO39: =LOOKUP(AAO33,Assumptions!40:40,Assumptions!45:45) -> Solar Shape 6 | AAP39: =LOOKUP(AAP33,Assumptions!40:40,Assumptions!45:45) -> Solar Shape 6 | AAQ39: =LOOKUP(AAQ33,Assumptions!40:40,Assumptions!45:45) -> Solar Shape 6 | AAR39: =LOOKUP(AAR33,Assumptions!40:40,Assumptions!45:45) -> Solar Shape 6 | AAS39: =LOOKUP(AAS33,Assumptions!40:40,Assumptions!45:45) -> Solar Shape 6 | AAT39: =LOOKUP(AAT33,Assumptions!40:40,Assumptions!45:45) -> Solar Shape 6 | AAU39: =LOOKUP(AAU33,Assumptions!40:40,Assumptions!45:45) -> Solar Shape 6 | AAV39: =LOOKUP(AAV33,Assumptions!40:40,Assumptions!45:45) -> Solar Shape 6 | AAW39: =LOOKUP(AAW33,Assumptions!40:40,Assumptions!45:45) -> Solar Shape 6 | AAX39: =LOOKUP(AAX33,Assumptions!40:40,Assumptions!45:45) -> Solar Shape 6 | AAY39: =LOOKUP(AAY33,Assumptions!40:40,Assumptions!45:45) -> Solar Shape 6
B40: ='Load Shapes'!#REF! -> 
C41: Day of Week | H41: 1 | I41: =IF(I33<>H33,IF(H41+1<7,H41+1,1),H41) -> 1 | J41: =IF(J33<>I33,IF(I41+1<7,I41+1,1),I41) -> 1 | K41: 1 | L41: 1 | M41: 1 | N41: 1 | O41: 1 | P41: 1 | Q41: 1 | R41: 1 | S41: 1 | T41: 1 | U41: 1 | V41: 1 | W41: 1 | X41: 1 | Y41: 1 | Z41: 1 | AA41: 1 | AB41: 1 | AC41: 1 | AD41: 1 | AE41: 1 | AF41: 2 | AG41: 2 | AH41: 2 | AI41: 2 | AJ41: 2 | AK41: 2 | AL41: 2 | AM41: 2 | AN41: 2 | AO41: 2 | AP41: 2 | AQ41: 2 | AR41: 2 | AS41: 2 | AT41: 2 | AU41: 2 | AV41: 2 | AW41: 2 | AX41: 2 | AY41: 2 | AZ41: 2 | BA41: 2 | BB41: 2 | BC41: 2 | BD41: 3 | BE41: 3 | BF41: 3 | BG41: 3 | BH41: 3 | BI41: 3 | BJ41: 3 | BK41: 3 | BL41: 3 | BM41: 3 | BN41: 3 | BO41: 3 | BP41: 3 | BQ41: 3 | BR41: 3 | BS41: 3 | BT41: 3 | BU41: 3 | BV41: =IF(BV33<>BU33,IF(BU41+1<7,BU41+1,1),BU41) -> 3 | BW41: 3 | BX41: 3 | BY41: 3 | BZ41: 3 | CA41: 3 | CB41: 4 | CC41: 4 | CD41: 4 | CE41: 4 | CF41: 4 | CG41: 4 | CH41: 4 | CI41: 4 | CJ41: 4 | CK41: 4 | CL41: 4 | CM41: 4 | CN41: 4 | CO41: 4 | CP41: 4 | CQ41: 4 | CR41: 4 | CS41: 4 | CT41: 4 | CU41: 4 | CV41: 4 | CW41: 4 | CX41: 4 | CY41: 4 | CZ41: 5 | DA41: 5 | DB41: 5 | DC41: 5 | DD41: 5 | DE41: 5 | DF41: 5 | DG41: 5 | DH41: 5 | DI41: 5 | DJ41: 5 | DK41: 5 | DL41: 5 | DM41: 5 | DN41: 5 | DO41: 5 | DP41: 5 | DQ41: 5 | DR41: 5 | DS41: 5 | DT41: 5 | DU41: 5 | DV41: 5 | DW41: 5 | DX41: 6 | DY41: 6 | DZ41: 6 | EA41: 6 | EB41: 6 | EC41: 6 | ED41: 6 | EE41: 6 | EF41: 6 | EG41: 6 | EH41: =IF(EH33<>EG33,IF(EG41+1<7,EG41+1,1),EG41) -> 6 | EI41: 6 | EJ41: 6 | EK41: 6 | EL41: 6 | EM41: 6 | EN41: 6 | EO41: 6 | EP41: 6 | EQ41: 6 | ER41: 6 | ES41: 6 | ET41: 6 | EU41: 6 | EV41: 1 | EW41: 1 | EX41: 1 | EY41: 1 | EZ41: 1 | FA41: 1 | FB41: 1 | FC41: 1 | FD41: 1 | FE41: 1 | FF41: 1 | FG41: 1 | FH41: 1 | FI41: 1 | FJ41: 1 | FK41: 1 | FL41: 1 | FM41: 1 | FN41: 1 | FO41: 1 | FP41: 1 | FQ41: 1 | FR41: 1 | FS41: 1 | FT41: 2 | FU41: 2 | FV41: 2 | FW41: 2 | FX41: 2 | FY41: 2 | FZ41: 2 | GA41: 2 | GB41: 2 | GC41: 2 | GD41: 2 | GE41: 2 | GF41: 2 | GG41: 2 | GH41: 2 | GI41: 2 | GJ41: 2 | GK41: 2 | GL41: 2 | GM41: 2 | GN41: 2 | GO41: 2 | GP41: 2 | GQ41: 2 | GR41: 3 | GS41: 3 | GT41: =IF(GT33<>GS33,IF(GS41+1<7,GS41+1,1),GS41) -> 3 | GU41: 3 | GV41: 3 | GW41: 3 | GX41: 3 | GY41: 3 | GZ41: 3 | HA41: 3 | HB41: 3 | HC41: 3 | HD41: 3 | HE41: 3 | HF41: 3 | HG41: 3 | HH41: 3 | HI41: 3 | HJ41: 3 | HK41: 3 | HL41: 3 | HM41: 3 | HN41: 3 | HO41: 3 | HP41: 4 | HQ41: 4 | HR41: 4 | HS41: 4 | HT41: 4 | HU41: 4 | HV41: 4 | HW41: 4 | HX41: 4 | HY41: 4 | HZ41: 4 | IA41: 4 | IB41: 4 | IC41: 4 | ID41: 4 | IE41: 4 | IF41: 4 | IG41: 4 | IH41: 4 | II41: 4 | IJ41: 4 | IK41: 4 | IL41: 4 | IM41: 4 | IN41: 5 | IO41: 5 | IP41: 5 | IQ41: 5 | IR41: 5 | IS41: 5 | IT41: 5 | IU41: 5 | IV41: 5 | IW41: 5 | IX41: 5 | IY41: 5 | IZ41: 5 | JA41: 5 | JB41: 5 | JC41: 5 | JD41: 5 | JE41: 5 | JF41: =IF(JF33<>JE33,IF(JE41+1<7,JE41+1,1),JE41) -> 5 | JG41: 5 | JH41: 5 | JI41: 5 | JJ41: 5 | JK41: 5 | JL41: 6 | JM41: 6 | JN41: 6 | JO41: 6 | JP41: 6 | JQ41: 6 | JR41: 6 | JS41: 6 | JT41: 6 | JU41: 6 | JV41: 6 | JW41: 6 | JX41: 6 | JY41: 6 | JZ41: 6 | KA41: 6 | KB41: 6 | KC41: 6 | KD41: 6 | KE41: 6 | KF41: 6 | KG41: 6 | KH41: 6 | KI41: 6 | KJ41: 1 | KK41: 1 | KL41: 1 | KM41: 1 | KN41: 1 | KO41: 1 | KP41: 1 | KQ41: 1 | KR41: 1 | KS41: 1 | KT41: 1 | KU41: 1 | KV41: 1 | KW41: 1 | KX41: 1 | KY41: 1 | KZ41: 1 | LA41: 1 | LB41: 1 | LC41: 1 | LD41: 1 | LE41: 1 | LF41: 1 | LG41: 1 | LH41: 2 | LI41: 2 | LJ41: 2 | LK41: 2 | LL41: 2 | LM41: 2 | LN41: 2 | LO41: 2 | LP41: 2 | LQ41: 2 | LR41: =IF(LR33<>LQ33,IF(LQ41+1<7,LQ41+1,1),LQ41) -> 2 | LS41: 2 | LT41: 2 | LU41: 2 | LV41: 2 | LW41: 2 | LX41: 2 | LY41: 2 | LZ41: 2 | MA41: 2 | MB41: 2 | MC41: 2 | MD41: 2 | ME41: 2 | MF41: 3 | MG41: 3 | MH41: 3 | MI41: 3 | MJ41: 3 | MK41: 3 | ML41: 3 | MM41: 3 | MN41: 3 | MO41: 3 | MP41: 3 | MQ41: 3 | MR41: 3 | MS41: 3 | MT41: 3 | MU41: 3 | MV41: 3 | MW41: 3 | MX41: 3 | MY41: 3 | MZ41: 3 | NA41: 3 | NB41: 3 | NC41: 3 | ND41: 4 | NE41: 4 | NF41: 4 | NG41: 4 | NH41: 4 | NI41: 4 | NJ41: 4 | NK41: 4 | NL41: 4 | NM41: 4 | NN41: 4 | NO41: 4 | NP41: 4 | NQ41: 4 | NR41: 4 | NS41: 4 | NT41: 4 | NU41: 4 | NV41: 4 | NW41: 4 | NX41: 4 | NY41: 4 | NZ41: 4 | OA41: 4 | OB41: 5 | OC41: 5 | OD41: =IF(OD33<>OC33,IF(OC41+1<7,OC41+1,1),OC41) -> 5 | OE41: 5 | OF41: 5 | OG41: 5 | OH41: 5 | OI41: 5 | OJ41: 5 | OK41: 5 | OL41: 5 | OM41: 5 | ON41: 5 | OO41: 5 | OP41: 5 | OQ41: 5 | OR41: 5 | OS41: 5 | OT41: 5 | OU41: 5 | OV41: 5 | OW41: 5 | OX41: 5 | OY41: 5 | OZ41: 6 | PA41: 6 | PB41: 6 | PC41: 6 | PD41: 6 | PE41: 6 | PF41: 6 | PG41: 6 | PH41: 6 | PI41: 6 | PJ41: 6 | PK41: 6 | PL41: 6 | PM41: 6 | PN41: 6 | PO41: 6 | PP41: 6 | PQ41: 6 | PR41: 6 | PS41: 6 | PT41: 6 | PU41: 6 | PV41: 6 | PW41: 6 | PX41: 1 | PY41: 1 | PZ41: 1 | QA41: 1 | QB41: 1 | QC41: 1 | QD41: 1 | QE41: 1 | QF41: 1 | QG41: 1 | QH41: 1 | QI41: 1 | QJ41: 1 | QK41: 1 | QL41: 1 | QM41: 1 | QN41: 1 | QO41: 1 | QP41: =IF(QP33<>QO33,IF(QO41+1<7,QO41+1,1),QO41) -> 1 | QQ41: 1 | QR41: 1 | QS41: 1 | QT41: 1 | QU41: 1 | QV41: 2 | QW41: 2 | QX41: 2 | QY41: 2 | QZ41: 2 | RA41: 2 | RB41: 2 | RC41: 2 | RD41: 2 | RE41: 2 | RF41: 2 | RG41: 2 | RH41: 2 | RI41: 2 | RJ41: 2 | RK41: 2 | RL41: 2 | RM41: 2 | RN41: 2 | RO41: 2 | RP41: 2 | RQ41: 2 | RR41: 2 | RS41: 2 | RT41: 3 | RU41: 3 | RV41: 3 | RW41: 3 | RX41: 3 | RY41: 3 | RZ41: 3 | SA41: 3 | SB41: 3 | SC41: 3 | SD41: 3 | SE41: 3 | SF41: 3 | SG41: 3 | SH41: 3 | SI41: 3 | SJ41: 3 | SK41: 3 | SL41: 3 | SM41: 3 | SN41: 3 | SO41: 3 | SP41: 3 | SQ41: 3 | SR41: 4 | SS41: 4 | ST41: 4 | SU41: 4 | SV41: 4 | SW41: 4 | SX41: 4 | SY41: 4 | SZ41: 4 | TA41: 4 | TB41: =IF(TB33<>TA33,IF(TA41+1<7,TA41+1,1),TA41) -> 4 | TC41: 4 | TD41: 4 | TE41: 4 | TF41: 4 | TG41: 4 | TH41: 4 | TI41: 4 | TJ41: 4 | TK41: 4 | TL41: 4 | TM41: 4 | TN41: 4 | TO41: 4 | TP41: 5 | TQ41: 5 | TR41: 5 | TS41: 5 | TT41: 5 | TU41: 5 | TV41: 5 | TW41: 5 | TX41: 5 | TY41: 5 | TZ41: 5 | UA41: 5 | UB41: 5 | UC41: 5 | UD41: 5 | UE41: 5 | UF41: 5 | UG41: 5 | UH41: 5 | UI41: 5 | UJ41: 5 | UK41: 5 | UL41: 5 | UM41: 5 | UN41: 6 | UO41: 6 | UP41: 6 | UQ41: 6 | UR41: 6 | US41: 6 | UT41: 6 | UU41: 6 | UV41: 6 | UW41: 6 | UX41: 6 | UY41: 6 | UZ41: 6 | VA41: 6 | VB41: 6 | VC41: 6 | VD41: 6 | VE41: 6 | VF41: 6 | VG41: 6 | VH41: 6 | VI41: 6 | VJ41: 6 | VK41: 6 | VL41: 1 | VM41: 1 | VN41: =IF(VN33<>VM33,IF(VM41+1<7,VM41+1,1),VM41) -> 1 | VO41: 1 | VP41: 1 | VQ41: 1 | VR41: 1 | VS41: 1 | VT41: 1 | VU41: 1 | VV41: 1 | VW41: 1 | VX41: 1 | VY41: 1 | VZ41: 1 | WA41: 1 | WB41: 1 | WC41: 1 | WD41: 1 | WE41: 1 | WF41: 1 | WG41: 1 | WH41: 1 | WI41: 1 | WJ41: 2 | WK41: 2 | WL41: 2 | WM41: 2 | WN41: 2 | WO41: 2 | WP41: 2 | WQ41: 2 | WR41: 2 | WS41: 2 | WT41: 2 | WU41: 2 | WV41: 2 | WW41: 2 | WX41: 2 | WY41: 2 | WZ41: 2 | XA41: 2 | XB41: 2 | XC41: 2 | XD41: 2 | XE41: 2 | XF41: 2 | XG41: 2 | XH41: 3 | XI41: 3 | XJ41: 3 | XK41: 3 | XL41: 3 | XM41: 3 | XN41: 3 | XO41: 3 | XP41: 3 | XQ41: 3 | XR41: 3 | XS41: 3 | XT41: 3 | XU41: 3 | XV41: 3 | XW41: 3 | XX41: 3 | XY41: 3 | XZ41: =IF(XZ33<>XY33,IF(XY41+1<7,XY41+1,1),XY41) -> 3 | YA41: 3 | YB41: 3 | YC41: 3 | YD41: 3 | YE41: 3 | YF41: 4 | YG41: 4 | YH41: 4 | YI41: 4 | YJ41: 4 | YK41: 4 | YL41: 4 | YM41: 4 | YN41: 4 | YO41: 4 | YP41: 4 | YQ41: 4 | YR41: 4 | YS41: 4 | YT41: 4 | YU41: 4 | YV41: 4 | YW41: 4 | YX41: 4 | YY41: 4 | YZ41: 4 | ZA41: 4 | ZB41: 4 | ZC41: 4 | ZD41: 5 | ZE41: 5 | ZF41: 5 | ZG41: 5 | ZH41: 5 | ZI41: 5 | ZJ41: 5 | ZK41: 5 | ZL41: 5 | ZM41: 5 | ZN41: 5 | ZO41: 5 | ZP41: 5 | ZQ41: 5 | ZR41: 5 | ZS41: 5 | ZT41: 5 | ZU41: 5 | ZV41: 5 | ZW41: 5 | ZX41: 5 | ZY41: 5 | ZZ41: 5 | AAA41: 5 | AAB41: 6 | AAC41: 6 | AAD41: 6 | AAE41: 6 | AAF41: 6 | AAG41: 6 | AAH41: 6 | AAI41: 6 | AAJ41: 6 | AAK41: 6 | AAL41: =IF(AAL33<>AAK33,IF(AAK41+1<7,AAK41+1,1),AAK41) -> 6 | AAM41: 6 | AAN41: 6 | AAO41: 6 | AAP41: 6 | AAQ41: 6 | AAR41: 6 | AAS41: 6 | AAT41: 6 | AAU41: 6 | AAV41: 6 | AAW41: 6 | AAX41: 6 | AAY41: 6
C42: Weekday | E42: Switch | F42: 5 | H42: =H41<=$F$42 -> TRUE | I42: =I41<=$F$42 -> TRUE | J42: TRUE | K42: TRUE | L42: TRUE | M42: TRUE | N42: TRUE | O42: TRUE | P42: TRUE | Q42: TRUE | R42: TRUE | S42: TRUE | T42: TRUE | U42: TRUE | V42: TRUE | W42: TRUE | X42: TRUE | Y42: TRUE | Z42: TRUE | AA42: TRUE | AB42: TRUE | AC42: TRUE | AD42: TRUE | AE42: TRUE | AF42: TRUE | AG42: TRUE | AH42: TRUE | AI42: TRUE | AJ42: TRUE | AK42: TRUE | AL42: TRUE | AM42: TRUE | AN42: TRUE | AO42: TRUE | AP42: TRUE | AQ42: TRUE | AR42: TRUE | AS42: TRUE | AT42: TRUE | AU42: TRUE | AV42: TRUE | AW42: TRUE | AX42: TRUE | AY42: TRUE | AZ42: TRUE | BA42: TRUE | BB42: TRUE | BC42: TRUE | BD42: TRUE | BE42: TRUE | BF42: TRUE | BG42: TRUE | BH42: TRUE | BI42: TRUE | BJ42: TRUE | BK42: TRUE | BL42: TRUE | BM42: TRUE | BN42: TRUE | BO42: TRUE | BP42: TRUE | BQ42: TRUE | BR42: TRUE | BS42: TRUE | BT42: TRUE | BU42: =BU41<=$F$42 -> TRUE | BV42: TRUE | BW42: TRUE | BX42: TRUE | BY42: TRUE | BZ42: TRUE | CA42: TRUE | CB42: TRUE | CC42: TRUE | CD42: TRUE | CE42: TRUE | CF42: TRUE | CG42: TRUE | CH42: TRUE | CI42: TRUE | CJ42: TRUE | CK42: TRUE | CL42: TRUE | CM42: TRUE | CN42: TRUE | CO42: TRUE | CP42: TRUE | CQ42: TRUE | CR42: TRUE | CS42: TRUE | CT42: TRUE | CU42: TRUE | CV42: TRUE | CW42: TRUE | CX42: TRUE | CY42: TRUE | CZ42: TRUE | DA42: TRUE | DB42: TRUE | DC42: TRUE | DD42: TRUE | DE42: TRUE | DF42: TRUE | DG42: TRUE | DH42: TRUE | DI42: TRUE | DJ42: TRUE | DK42: TRUE | DL42: TRUE | DM42: TRUE | DN42: TRUE | DO42: TRUE | DP42: TRUE | DQ42: TRUE | DR42: TRUE | DS42: TRUE | DT42: TRUE | DU42: TRUE | DV42: TRUE | DW42: TRUE | DX42: FALSE | DY42: FALSE | DZ42: FALSE | EA42: FALSE | EB42: FALSE | EC42: FALSE | ED42: FALSE | EE42: FALSE | EF42: FALSE | EG42: =EG41<=$F$42 -> FALSE | EH42: FALSE | EI42: FALSE | EJ42: FALSE | EK42: FALSE | EL42: FALSE | EM42: FALSE | EN42: FALSE | EO42: FALSE | EP42: FALSE | EQ42: FALSE | ER42: FALSE | ES42: FALSE | ET42: FALSE | EU42: FALSE | EV42: TRUE | EW42: TRUE | EX42: TRUE | EY42: TRUE | EZ42: TRUE | FA42: TRUE | FB42: TRUE | FC42: TRUE | FD42: TRUE | FE42: TRUE | FF42: TRUE | FG42: TRUE | FH42: TRUE | FI42: TRUE | FJ42: TRUE | FK42: TRUE | FL42: TRUE | FM42: TRUE | FN42: TRUE | FO42: TRUE | FP42: TRUE | FQ42: TRUE | FR42: TRUE | FS42: TRUE | FT42: TRUE | FU42: TRUE | FV42: TRUE | FW42: TRUE | FX42: TRUE | FY42: TRUE | FZ42: TRUE | GA42: TRUE | GB42: TRUE | GC42: TRUE | GD42: TRUE | GE42: TRUE | GF42: TRUE | GG42: TRUE | GH42: TRUE | GI42: TRUE | GJ42: TRUE | GK42: TRUE | GL42: TRUE | GM42: TRUE | GN42: TRUE | GO42: TRUE | GP42: TRUE | GQ42: TRUE | GR42: TRUE | GS42: =GS41<=$F$42 -> TRUE | GT42: TRUE | GU42: TRUE | GV42: TRUE | GW42: TRUE | GX42: TRUE | GY42: TRUE | GZ42: TRUE | HA42: TRUE | HB42: TRUE | HC42: TRUE | HD42: TRUE | HE42: TRUE | HF42: TRUE | HG42: TRUE | HH42: TRUE | HI42: TRUE | HJ42: TRUE | HK42: TRUE | HL42: TRUE | HM42: TRUE | HN42: TRUE | HO42: TRUE | HP42: TRUE | HQ42: TRUE | HR42: TRUE | HS42: TRUE | HT42: TRUE | HU42: TRUE | HV42: TRUE | HW42: TRUE | HX42: TRUE | HY42: TRUE | HZ42: TRUE | IA42: TRUE | IB42: TRUE | IC42: TRUE | ID42: TRUE | IE42: TRUE | IF42: TRUE | IG42: TRUE | IH42: TRUE | II42: TRUE | IJ42: TRUE | IK42: TRUE | IL42: TRUE | IM42: TRUE | IN42: TRUE | IO42: TRUE | IP42: TRUE | IQ42: TRUE | IR42: TRUE | IS42: TRUE | IT42: TRUE | IU42: TRUE | IV42: TRUE | IW42: TRUE | IX42: TRUE | IY42: TRUE | IZ42: TRUE | JA42: TRUE | JB42: TRUE | JC42: TRUE | JD42: TRUE | JE42: =JE41<=$F$42 -> TRUE | JF42: TRUE | JG42: TRUE | JH42: TRUE | JI42: TRUE | JJ42: TRUE | JK42: TRUE | JL42: FALSE | JM42: FALSE | JN42: FALSE | JO42: FALSE | JP42: FALSE | JQ42: FALSE | JR42: FALSE | JS42: FALSE | JT42: FALSE | JU42: FALSE | JV42: FALSE | JW42: FALSE | JX42: FALSE | JY42: FALSE | JZ42: FALSE | KA42: FALSE | KB42: FALSE | KC42: FALSE | KD42: FALSE | KE42: FALSE | KF42: FALSE | KG42: FALSE | KH42: FALSE | KI42: FALSE | KJ42: TRUE | KK42: TRUE | KL42: TRUE | KM42: TRUE | KN42: TRUE | KO42: TRUE | KP42: TRUE | KQ42: TRUE | KR42: TRUE | KS42: TRUE | KT42: TRUE | KU42: TRUE | KV42: TRUE | KW42: TRUE | KX42: TRUE | KY42: TRUE | KZ42: TRUE | LA42: TRUE | LB42: TRUE | LC42: TRUE | LD42: TRUE | LE42: TRUE | LF42: TRUE | LG42: TRUE | LH42: TRUE | LI42: TRUE | LJ42: TRUE | LK42: TRUE | LL42: TRUE | LM42: TRUE | LN42: TRUE | LO42: TRUE | LP42: TRUE | LQ42: =LQ41<=$F$42 -> TRUE | LR42: TRUE | LS42: TRUE | LT42: TRUE | LU42: TRUE | LV42: TRUE | LW42: TRUE | LX42: TRUE | LY42: TRUE | LZ42: TRUE | MA42: TRUE | MB42: TRUE | MC42: TRUE | MD42: TRUE | ME42: TRUE | MF42: TRUE | MG42: TRUE | MH42: TRUE | MI42: TRUE | MJ42: TRUE | MK42: TRUE | ML42: TRUE | MM42: TRUE | MN42: TRUE | MO42: TRUE | MP42: TRUE | MQ42: TRUE | MR42: TRUE | MS42: TRUE | MT42: TRUE | MU42: TRUE | MV42: TRUE | MW42: TRUE | MX42: TRUE | MY42: TRUE | MZ42: TRUE | NA42: TRUE | NB42: TRUE | NC42: TRUE | ND42: TRUE | NE42: TRUE | NF42: TRUE | NG42: TRUE | NH42: TRUE | NI42: TRUE | NJ42: TRUE | NK42: TRUE | NL42: TRUE | NM42: TRUE | NN42: TRUE | NO42: TRUE | NP42: TRUE | NQ42: TRUE | NR42: TRUE | NS42: TRUE | NT42: TRUE | NU42: TRUE | NV42: TRUE | NW42: TRUE | NX42: TRUE | NY42: TRUE | NZ42: TRUE | OA42: TRUE | OB42: TRUE | OC42: =OC41<=$F$42 -> TRUE | OD42: TRUE | OE42: TRUE | OF42: TRUE | OG42: TRUE | OH42: TRUE | OI42: TRUE | OJ42: TRUE | OK42: TRUE | OL42: TRUE | OM42: TRUE | ON42: TRUE | OO42: TRUE | OP42: TRUE | OQ42: TRUE | OR42: TRUE | OS42: TRUE | OT42: TRUE | OU42: TRUE | OV42: TRUE | OW42: TRUE | OX42: TRUE | OY42: TRUE | OZ42: FALSE | PA42: FALSE | PB42: FALSE | PC42: FALSE | PD42: FALSE | PE42: FALSE | PF42: FALSE | PG42: FALSE | PH42: FALSE | PI42: FALSE | PJ42: FALSE | PK42: FALSE | PL42: FALSE | PM42: FALSE | PN42: FALSE | PO42: FALSE | PP42: FALSE | PQ42: FALSE | PR42: FALSE | PS42: FALSE | PT42: FALSE | PU42: FALSE | PV42: FALSE | PW42: FALSE | PX42: TRUE | PY42: TRUE | PZ42: TRUE | QA42: TRUE | QB42: TRUE | QC42: TRUE | QD42: TRUE | QE42: TRUE | QF42: TRUE | QG42: TRUE | QH42: TRUE | QI42: TRUE | QJ42: TRUE | QK42: TRUE | QL42: TRUE | QM42: TRUE | QN42: TRUE | QO42: =QO41<=$F$42 -> TRUE | QP42: TRUE | QQ42: TRUE | QR42: TRUE | QS42: TRUE | QT42: TRUE | QU42: TRUE | QV42: TRUE | QW42: TRUE | QX42: TRUE | QY42: TRUE | QZ42: TRUE | RA42: TRUE | RB42: TRUE | RC42: TRUE | RD42: TRUE | RE42: TRUE | RF42: TRUE | RG42: TRUE | RH42: TRUE | RI42: TRUE | RJ42: TRUE | RK42: TRUE | RL42: TRUE | RM42: TRUE | RN42: TRUE | RO42: TRUE | RP42: TRUE | RQ42: TRUE | RR42: TRUE | RS42: TRUE | RT42: TRUE | RU42: TRUE | RV42: TRUE | RW42: TRUE | RX42: TRUE | RY42: TRUE | RZ42: TRUE | SA42: TRUE | SB42: TRUE | SC42: TRUE | SD42: TRUE | SE42: TRUE | SF42: TRUE | SG42: TRUE | SH42: TRUE | SI42: TRUE | SJ42: TRUE | SK42: TRUE | SL42: TRUE | SM42: TRUE | SN42: TRUE | SO42: TRUE | SP42: TRUE | SQ42: TRUE | SR42: TRUE | SS42: TRUE | ST42: TRUE | SU42: TRUE | SV42: TRUE | SW42: TRUE | SX42: TRUE | SY42: TRUE | SZ42: TRUE | TA42: =TA41<=$F$42 -> TRUE | TB42: TRUE | TC42: TRUE | TD42: TRUE | TE42: TRUE | TF42: TRUE | TG42: TRUE | TH42: TRUE | TI42: TRUE | TJ42: TRUE | TK42: TRUE | TL42: TRUE | TM42: TRUE | TN42: TRUE | TO42: TRUE | TP42: TRUE | TQ42: TRUE | TR42: TRUE | TS42: TRUE | TT42: TRUE | TU42: TRUE | TV42: TRUE | TW42: TRUE | TX42: TRUE | TY42: TRUE | TZ42: TRUE | UA42: TRUE | UB42: TRUE | UC42: TRUE | UD42: TRUE | UE42: TRUE | UF42: TRUE | UG42: TRUE | UH42: TRUE | UI42: TRUE | UJ42: TRUE | UK42: TRUE | UL42: TRUE | UM42: TRUE | UN42: FALSE | UO42: FALSE | UP42: FALSE | UQ42: FALSE | UR42: FALSE | US42: FALSE | UT42: FALSE | UU42: FALSE | UV42: FALSE | UW42: FALSE | UX42: FALSE | UY42: FALSE | UZ42: FALSE | VA42: FALSE | VB42: FALSE | VC42: FALSE | VD42: FALSE | VE42: FALSE | VF42: FALSE | VG42: FALSE | VH42: FALSE | VI42: FALSE | VJ42: FALSE | VK42: FALSE | VL42: TRUE | VM42: =VM41<=$F$42 -> TRUE | VN42: TRUE | VO42: TRUE | VP42: TRUE | VQ42: TRUE | VR42: TRUE | VS42: TRUE | VT42: TRUE | VU42: TRUE | VV42: TRUE | VW42: TRUE | VX42: TRUE | VY42: TRUE | VZ42: TRUE | WA42: TRUE | WB42: TRUE | WC42: TRUE | WD42: TRUE | WE42: TRUE | WF42: TRUE | WG42: TRUE | WH42: TRUE | WI42: TRUE | WJ42: TRUE | WK42: TRUE | WL42: TRUE | WM42: TRUE | WN42: TRUE | WO42: TRUE | WP42: TRUE | WQ42: TRUE | WR42: TRUE | WS42: TRUE | WT42: TRUE | WU42: TRUE | WV42: TRUE | WW42: TRUE | WX42: TRUE | WY42: TRUE | WZ42: TRUE | XA42: TRUE | XB42: TRUE | XC42: TRUE | XD42: TRUE | XE42: TRUE | XF42: TRUE | XG42: TRUE | XH42: TRUE | XI42: TRUE | XJ42: TRUE | XK42: TRUE | XL42: TRUE | XM42: TRUE | XN42: TRUE | XO42: TRUE | XP42: TRUE | XQ42: TRUE | XR42: TRUE | XS42: TRUE | XT42: TRUE | XU42: TRUE | XV42: TRUE | XW42: TRUE | XX42: TRUE | XY42: =XY41<=$F$42 -> TRUE | XZ42: TRUE | YA42: TRUE | YB42: TRUE | YC42: TRUE | YD42: TRUE | YE42: TRUE | YF42: TRUE | YG42: TRUE | YH42: TRUE | YI42: TRUE | YJ42: TRUE | YK42: TRUE | YL42: TRUE | YM42: TRUE | YN42: TRUE | YO42: TRUE | YP42: TRUE | YQ42: TRUE | YR42: TRUE | YS42: TRUE | YT42: TRUE | YU42: TRUE | YV42: TRUE | YW42: TRUE | YX42: TRUE | YY42: TRUE | YZ42: TRUE | ZA42: TRUE | ZB42: TRUE | ZC42: TRUE | ZD42: TRUE | ZE42: TRUE | ZF42: TRUE | ZG42: TRUE | ZH42: TRUE | ZI42: TRUE | ZJ42: TRUE | ZK42: TRUE | ZL42: TRUE | ZM42: TRUE | ZN42: TRUE | ZO42: TRUE | ZP42: TRUE | ZQ42: TRUE | ZR42: TRUE | ZS42: TRUE | ZT42: TRUE | ZU42: TRUE | ZV42: TRUE | ZW42: TRUE | ZX42: TRUE | ZY42: TRUE | ZZ42: TRUE | AAA42: TRUE | AAB42: FALSE | AAC42: FALSE | AAD42: FALSE | AAE42: FALSE | AAF42: FALSE | AAG42: FALSE | AAH42: FALSE | AAI42: FALSE | AAJ42: FALSE | AAK42: =AAK41<=$F$42 -> FALSE | AAL42: FALSE | AAM42: FALSE | AAN42: FALSE | AAO42: FALSE | AAP42: FALSE | AAQ42: FALSE | AAR42: FALSE | AAS42: FALSE | AAT42: FALSE | AAU42: FALSE | AAV42: FALSE | AAW42: FALSE | AAX42: FALSE | AAY42: FALSE
C43: Saturday | E43: Switch | F43: 6 | H43: =H41=$F$43 -> FALSE | I43: =I41=$F$43 -> FALSE | J43: FALSE | K43: FALSE | L43: FALSE | M43: FALSE | N43: FALSE | O43: FALSE | P43: FALSE | Q43: FALSE | R43: FALSE | S43: FALSE | T43: FALSE | U43: FALSE | V43: FALSE | W43: FALSE | X43: FALSE | Y43: FALSE | Z43: FALSE | AA43: FALSE | AB43: FALSE | AC43: FALSE | AD43: FALSE | AE43: FALSE | AF43: FALSE | AG43: FALSE | AH43: FALSE | AI43: FALSE | AJ43: FALSE | AK43: FALSE | AL43: FALSE | AM43: FALSE | AN43: FALSE | AO43: FALSE | AP43: FALSE | AQ43: FALSE | AR43: FALSE | AS43: FALSE | AT43: FALSE | AU43: FALSE | AV43: FALSE | AW43: FALSE | AX43: FALSE | AY43: FALSE | AZ43: FALSE | BA43: FALSE | BB43: FALSE | BC43: FALSE | BD43: FALSE | BE43: FALSE | BF43: FALSE | BG43: FALSE | BH43: FALSE | BI43: FALSE | BJ43: FALSE | BK43: FALSE | BL43: FALSE | BM43: FALSE | BN43: FALSE | BO43: FALSE | BP43: FALSE | BQ43: FALSE | BR43: FALSE | BS43: FALSE | BT43: FALSE | BU43: =BU41=$F$43 -> FALSE | BV43: FALSE | BW43: FALSE | BX43: FALSE | BY43: FALSE | BZ43: FALSE | CA43: FALSE | CB43: FALSE | CC43: FALSE | CD43: FALSE | CE43: FALSE | CF43: FALSE | CG43: FALSE | CH43: FALSE | CI43: FALSE | CJ43: FALSE | CK43: FALSE | CL43: FALSE | CM43: FALSE | CN43: FALSE | CO43: FALSE | CP43: FALSE | CQ43: FALSE | CR43: FALSE | CS43: FALSE | CT43: FALSE | CU43: FALSE | CV43: FALSE | CW43: FALSE | CX43: FALSE | CY43: FALSE | CZ43: FALSE | DA43: FALSE | DB43: FALSE | DC43: FALSE | DD43: FALSE | DE43: FALSE | DF43: FALSE | DG43: FALSE | DH43: FALSE | DI43: FALSE | DJ43: FALSE | DK43: FALSE | DL43: FALSE | DM43: FALSE | DN43: FALSE | DO43: FALSE | DP43: FALSE | DQ43: FALSE | DR43: FALSE | DS43: FALSE | DT43: FALSE | DU43: FALSE | DV43: FALSE | DW43: FALSE | DX43: TRUE | DY43: TRUE | DZ43: TRUE | EA43: TRUE | EB43: TRUE | EC43: TRUE | ED43: TRUE | EE43: TRUE | EF43: TRUE | EG43: =EG41=$F$43 -> TRUE | EH43: TRUE | EI43: TRUE | EJ43: TRUE | EK43: TRUE | EL43: TRUE | EM43: TRUE | EN43: TRUE | EO43: TRUE | EP43: TRUE | EQ43: TRUE | ER43: TRUE | ES43: TRUE | ET43: TRUE | EU43: TRUE | EV43: FALSE | EW43: FALSE | EX43: FALSE | EY43: FALSE | EZ43: FALSE | FA43: FALSE | FB43: FALSE | FC43: FALSE | FD43: FALSE | FE43: FALSE | FF43: FALSE | FG43: FALSE | FH43: FALSE | FI43: FALSE | FJ43: FALSE | FK43: FALSE | FL43: FALSE | FM43: FALSE | FN43: FALSE | FO43: FALSE | FP43: FALSE | FQ43: FALSE | FR43: FALSE | FS43: FALSE | FT43: FALSE | FU43: FALSE | FV43: FALSE | FW43: FALSE | FX43: FALSE | FY43: FALSE | FZ43: FALSE | GA43: FALSE | GB43: FALSE | GC43: FALSE | GD43: FALSE | GE43: FALSE | GF43: FALSE | GG43: FALSE | GH43: FALSE | GI43: FALSE | GJ43: FALSE | GK43: FALSE | GL43: FALSE | GM43: FALSE | GN43: FALSE | GO43: FALSE | GP43: FALSE | GQ43: FALSE | GR43: FALSE | GS43: =GS41=$F$43 -> FALSE | GT43: FALSE | GU43: FALSE | GV43: FALSE | GW43: FALSE | GX43: FALSE | GY43: FALSE | GZ43: FALSE | HA43: FALSE | HB43: FALSE | HC43: FALSE | HD43: FALSE | HE43: FALSE | HF43: FALSE | HG43: FALSE | HH43: FALSE | HI43: FALSE | HJ43: FALSE | HK43: FALSE | HL43: FALSE | HM43: FALSE | HN43: FALSE | HO43: FALSE | HP43: FALSE | HQ43: FALSE | HR43: FALSE | HS43: FALSE | HT43: FALSE | HU43: FALSE | HV43: FALSE | HW43: FALSE | HX43: FALSE | HY43: FALSE | HZ43: FALSE | IA43: FALSE | IB43: FALSE | IC43: FALSE | ID43: FALSE | IE43: FALSE | IF43: FALSE | IG43: FALSE | IH43: FALSE | II43: FALSE | IJ43: FALSE | IK43: FALSE | IL43: FALSE | IM43: FALSE | IN43: FALSE | IO43: FALSE | IP43: FALSE | IQ43: FALSE | IR43: FALSE | IS43: FALSE | IT43: FALSE | IU43: FALSE | IV43: FALSE | IW43: FALSE | IX43: FALSE | IY43: FALSE | IZ43: FALSE | JA43: FALSE | JB43: FALSE | JC43: FALSE | JD43: FALSE | JE43: =JE41=$F$43 -> FALSE | JF43: FALSE | JG43: FALSE | JH43: FALSE | JI43: FALSE | JJ43: FALSE | JK43: FALSE | JL43: TRUE | JM43: TRUE | JN43: TRUE | JO43: TRUE | JP43: TRUE | JQ43: TRUE | JR43: TRUE | JS43: TRUE | JT43: TRUE | JU43: TRUE | JV43: TRUE | JW43: TRUE | JX43: TRUE | JY43: TRUE | JZ43: TRUE | KA43: TRUE | KB43: TRUE | KC43: TRUE | KD43: TRUE | KE43: TRUE | KF43: TRUE | KG43: TRUE | KH43: TRUE | KI43: TRUE | KJ43: FALSE | KK43: FALSE | KL43: FALSE | KM43: FALSE | KN43: FALSE | KO43: FALSE | KP43: FALSE | KQ43: FALSE | KR43: FALSE | KS43: FALSE | KT43: FALSE | KU43: FALSE | KV43: FALSE | KW43: FALSE | KX43: FALSE | KY43: FALSE | KZ43: FALSE | LA43: FALSE | LB43: FALSE | LC43: FALSE | LD43: FALSE | LE43: FALSE | LF43: FALSE | LG43: FALSE | LH43: FALSE | LI43: FALSE | LJ43: FALSE | LK43: FALSE | LL43: FALSE | LM43: FALSE | LN43: FALSE | LO43: FALSE | LP43: FALSE | LQ43: =LQ41=$F$43 -> FALSE | LR43: FALSE | LS43: FALSE | LT43: FALSE | LU43: FALSE | LV43: FALSE | LW43: FALSE | LX43: FALSE | LY43: FALSE | LZ43: FALSE | MA43: FALSE | MB43: FALSE | MC43: FALSE | MD43: FALSE | ME43: FALSE | MF43: FALSE | MG43: FALSE | MH43: FALSE | MI43: FALSE | MJ43: FALSE | MK43: FALSE | ML43: FALSE | MM43: FALSE | MN43: FALSE | MO43: FALSE | MP43: FALSE | MQ43: FALSE | MR43: FALSE | MS43: FALSE | MT43: FALSE | MU43: FALSE | MV43: FALSE | MW43: FALSE | MX43: FALSE | MY43: FALSE | MZ43: FALSE | NA43: FALSE | NB43: FALSE | NC43: FALSE | ND43: FALSE | NE43: FALSE | NF43: FALSE | NG43: FALSE | NH43: FALSE | NI43: FALSE | NJ43: FALSE | NK43: FALSE | NL43: FALSE | NM43: FALSE | NN43: FALSE | NO43: FALSE | NP43: FALSE | NQ43: FALSE | NR43: FALSE | NS43: FALSE | NT43: FALSE | NU43: FALSE | NV43: FALSE | NW43: FALSE | NX43: FALSE | NY43: FALSE | NZ43: FALSE | OA43: FALSE | OB43: FALSE | OC43: =OC41=$F$43 -> FALSE | OD43: FALSE | OE43: FALSE | OF43: FALSE | OG43: FALSE | OH43: FALSE | OI43: FALSE | OJ43: FALSE | OK43: FALSE | OL43: FALSE | OM43: FALSE | ON43: FALSE | OO43: FALSE | OP43: FALSE | OQ43: FALSE | OR43: FALSE | OS43: FALSE | OT43: FALSE | OU43: FALSE | OV43: FALSE | OW43: FALSE | OX43: FALSE | OY43: FALSE | OZ43: TRUE | PA43: TRUE | PB43: TRUE | PC43: TRUE | PD43: TRUE | PE43: TRUE | PF43: TRUE | PG43: TRUE | PH43: TRUE | PI43: TRUE | PJ43: TRUE | PK43: TRUE | PL43: TRUE | PM43: TRUE | PN43: TRUE | PO43: TRUE | PP43: TRUE | PQ43: TRUE | PR43: TRUE | PS43: TRUE | PT43: TRUE | PU43: TRUE | PV43: TRUE | PW43: TRUE | PX43: FALSE | PY43: FALSE | PZ43: FALSE | QA43: FALSE | QB43: FALSE | QC43: FALSE | QD43: FALSE | QE43: FALSE | QF43: FALSE | QG43: FALSE | QH43: FALSE | QI43: FALSE | QJ43: FALSE | QK43: FALSE | QL43: FALSE | QM43: FALSE | QN43: FALSE | QO43: =QO41=$F$43 -> FALSE | QP43: FALSE | QQ43: FALSE | QR43: FALSE | QS43: FALSE | QT43: FALSE | QU43: FALSE | QV43: FALSE | QW43: FALSE | QX43: FALSE | QY43: FALSE | QZ43: FALSE | RA43: FALSE | RB43: FALSE | RC43: FALSE | RD43: FALSE | RE43: FALSE | RF43: FALSE | RG43: FALSE | RH43: FALSE | RI43: FALSE | RJ43: FALSE | RK43: FALSE | RL43: FALSE | RM43: FALSE | RN43: FALSE | RO43: FALSE | RP43: FALSE | RQ43: FALSE | RR43: FALSE | RS43: FALSE | RT43: FALSE | RU43: FALSE | RV43: FALSE | RW43: FALSE | RX43: FALSE | RY43: FALSE | RZ43: FALSE | SA43: FALSE | SB43: FALSE | SC43: FALSE | SD43: FALSE | SE43: FALSE | SF43: FALSE | SG43: FALSE | SH43: FALSE | SI43: FALSE | SJ43: FALSE | SK43: FALSE | SL43: FALSE | SM43: FALSE | SN43: FALSE | SO43: FALSE | SP43: FALSE | SQ43: FALSE | SR43: FALSE | SS43: FALSE | ST43: FALSE | SU43: FALSE | SV43: FALSE | SW43: FALSE | SX43: FALSE | SY43: FALSE | SZ43: FALSE | TA43: =TA41=$F$43 -> FALSE | TB43: FALSE | TC43: FALSE | TD43: FALSE | TE43: FALSE | TF43: FALSE | TG43: FALSE | TH43: FALSE | TI43: FALSE | TJ43: FALSE | TK43: FALSE | TL43: FALSE | TM43: FALSE | TN43: FALSE | TO43: FALSE | TP43: FALSE | TQ43: FALSE | TR43: FALSE | TS43: FALSE | TT43: FALSE | TU43: FALSE | TV43: FALSE | TW43: FALSE | TX43: FALSE | TY43: FALSE | TZ43: FALSE | UA43: FALSE | UB43: FALSE | UC43: FALSE | UD43: FALSE | UE43: FALSE | UF43: FALSE | UG43: FALSE | UH43: FALSE | UI43: FALSE | UJ43: FALSE | UK43: FALSE | UL43: FALSE | UM43: FALSE | UN43: TRUE | UO43: TRUE | UP43: TRUE | UQ43: TRUE | UR43: TRUE | US43: TRUE | UT43: TRUE | UU43: TRUE | UV43: TRUE | UW43: TRUE | UX43: TRUE | UY43: TRUE | UZ43: TRUE | VA43: TRUE | VB43: TRUE | VC43: TRUE | VD43: TRUE | VE43: TRUE | VF43: TRUE | VG43: TRUE | VH43: TRUE | VI43: TRUE | VJ43: TRUE | VK43: TRUE | VL43: FALSE | VM43: =VM41=$F$43 -> FALSE | VN43: FALSE | VO43: FALSE | VP43: FALSE | VQ43: FALSE | VR43: FALSE | VS43: FALSE | VT43: FALSE | VU43: FALSE | VV43: FALSE | VW43: FALSE | VX43: FALSE | VY43: FALSE | VZ43: FALSE | WA43: FALSE | WB43: FALSE | WC43: FALSE | WD43: FALSE | WE43: FALSE | WF43: FALSE | WG43: FALSE | WH43: FALSE | WI43: FALSE | WJ43: FALSE | WK43: FALSE | WL43: FALSE | WM43: FALSE | WN43: FALSE | WO43: FALSE | WP43: FALSE | WQ43: FALSE | WR43: FALSE | WS43: FALSE | WT43: FALSE | WU43: FALSE | WV43: FALSE | WW43: FALSE | WX43: FALSE | WY43: FALSE | WZ43: FALSE | XA43: FALSE | XB43: FALSE | XC43: FALSE | XD43: FALSE | XE43: FALSE | XF43: FALSE | XG43: FALSE | XH43: FALSE | XI43: FALSE | XJ43: FALSE | XK43: FALSE | XL43: FALSE | XM43: FALSE | XN43: FALSE | XO43: FALSE | XP43: FALSE | XQ43: FALSE | XR43: FALSE | XS43: FALSE | XT43: FALSE | XU43: FALSE | XV43: FALSE | XW43: FALSE | XX43: FALSE | XY43: =XY41=$F$43 -> FALSE | XZ43: FALSE | YA43: FALSE | YB43: FALSE | YC43: FALSE | YD43: FALSE | YE43: FALSE | YF43: FALSE | YG43: FALSE | YH43: FALSE | YI43: FALSE | YJ43: FALSE | YK43: FALSE | YL43: FALSE | YM43: FALSE | YN43: FALSE | YO43: FALSE | YP43: FALSE | YQ43: FALSE | YR43: FALSE | YS43: FALSE | YT43: FALSE | YU43: FALSE | YV43: FALSE | YW43: FALSE | YX43: FALSE | YY43: FALSE | YZ43: FALSE | ZA43: FALSE | ZB43: FALSE | ZC43: FALSE | ZD43: FALSE | ZE43: FALSE | ZF43: FALSE | ZG43: FALSE | ZH43: FALSE | ZI43: FALSE | ZJ43: FALSE | ZK43: FALSE | ZL43: FALSE | ZM43: FALSE | ZN43: FALSE | ZO43: FALSE | ZP43: FALSE | ZQ43: FALSE | ZR43: FALSE | ZS43: FALSE | ZT43: FALSE | ZU43: FALSE | ZV43: FALSE | ZW43: FALSE | ZX43: FALSE | ZY43: FALSE | ZZ43: FALSE | AAA43: FALSE | AAB43: TRUE | AAC43: TRUE | AAD43: TRUE | AAE43: TRUE | AAF43: TRUE | AAG43: TRUE | AAH43: TRUE | AAI43: TRUE | AAJ43: TRUE | AAK43: =AAK41=$F$43 -> TRUE | AAL43: TRUE | AAM43: TRUE | AAN43: TRUE | AAO43: TRUE | AAP43: TRUE | AAQ43: TRUE | AAR43: TRUE | AAS43: TRUE | AAT43: TRUE | AAU43: TRUE | AAV43: TRUE | AAW43: TRUE | AAX43: TRUE | AAY43: TRUE
